Workbook

Sheet INTRO
A2: Hauptmenü | Q2: =[1]INTRO!$B$4 -> eNISTRA 2022
B4: 1. Inputblätter | G4: 4. Sicherheit | M4: 8. Outputblätter
B5: Grunddaten | G5: SI1n | H5: =INDIRECT("Name"&G5) -> Unfälle | M5: Tableau
B6: Verkehrsmodell | G6: SI1w | H6: =INDIRECT("Name"&G6) -> Unfälle | M6: Zusammenfassung KNA
B7: Indikatorenliste | G7: SI2 | H7: Betriebsqualität, Betriebssicherheit | M7: Zusammenfassung KWA und QA
B8: Bewertungssätze KNA | G8: SI3n | H8: =INDIRECT("Name"&G8) -> Polizeiliche Verkehrsregelung | M8: Detailergebnisse KNA
B9: Gewichtungen und Annahmen KWA | G9: SI3w | H9: =INDIRECT("Name"&G9) -> Polizeiliche Verkehrsregelung | M9: Sensitivitätsanalyse
B10: Inputdaten | M10: Sozioökonomische Teilbilanzen
B11: Infrastrukturbudget | G11: 5. Siedlungsentwicklung | M11: Kommentare
G12: SE1 | H12: =INDIRECT("Name"&G12) -> Wohnlichkeit | M12: Abbildungen
B13: 2. Direkte Kosten | G13: SE2 | H13: Potenzial für Siedlungsentwicklung | M13: Klima
B14: DK1 | C14: =INDIRECT("Name"&B14) -> Baukosten | G14: SE3 | H14: Erreichbarkeit Siedlungsschwerpunkte | M14: Export KNA
B15: DK2 | C15: =INDIRECT("Name"&B15) -> Ersatzinvestitionen | G15: SE4 | H15: Orts- und Landschaftsbild | M15: Export KWA und QA
B16: DK3 | C16: Landkosten
B17: DK4 | C17: Betriebs- und Unterhaltskosten Strasse | G17: 6. Umwelt
G18: UW1n_Luft | H18: =INDIRECT("Name"&G18) -> Luftbelastung | M18: Klicken Sie auf den Namen eines Tabellenblattes, um auf das entsprechende Blatt zu springen.
B19: 3. Verkehrsqualität | G19: UW1n_Lärm | H19: Lärmbelastete Personen
B20: VQ1n | C20: =INDIRECT("Name"&B20) -> Reisezeit Stammverkehr | G20: UW1w | H20: Lärm- und Luftbelastung
B21: VQ1w | C21: =INDIRECT("Name"&B21) -> Reisezeit Stammverkehr | G21: UW2 | H21: Lebensräume und Gewässer
B22: VQ2n | C22: Zuverlässigkeit | G22: UW3n | H22: Bodenversiegelung
B23: VQ2w | C23: Zuverlässigkeit | G23: UW3w | H23: Flächenbeanspruchung und Boden | M23: Farbcode
B24: VQ3n | C24: Betriebskosten Fahrzeuge Stammverkehr | G24: UW4n | H24: Klimabelastung
B25: VQ3w | C25: =INDIRECT("Name"&B25) -> Betriebskosten Fahrzeuge Stammverkehr | G25: UW4w | H25: Klimabelastung | N25: für KNA relevant
B26: VQ4n | C26: Auswirkungen auf den ÖV | G26: UW5 | H26: Belastung während der Bauphase | N26: für KWA relevant
B27: VQ4w | C27: Auswirkungen auf den ÖV | G27: UW6 | H27: =INDIRECT("Name"&G27) -> Vor- und nachgelagerte Prozesse | N27: für QA relevant
B28: VQ5 | C28: Streckenredundanz | N28: für KNA und KWA relevant
B29: VQ6 | C29: Entlastung nachgelagertes Netz | G29: 7. Realisierung und Kohärenz | N29: für KWA und QA relevant
B30: VQ7.1 | C30: MWST-Einnahmen ÖV | G30: QI1 | H30: =INDIRECT("Name"&G30) -> Kostenrisiko, bautechnisches Risiko
B31: VQ7.2 | C31: Nettonutzen Mehrverkehr | G31: QI2 | H31: Etappierbarkeit | N31: Eingabe durch Benutzer
B32: VQ7.3 | C32: Einnahmen Steuer und Maut Mehrverkehr | G32: QI3 | H32: Kohärenz mit Gesamtverkehrskonzepten | N32: Vorgabewerte aus BASIC
B33: VQ7w | C33: =INDIRECT("Name"&B33) -> Nutzen durch Mehrverkehr | G33: QI4 | H33: Kohärenz mit Raumplänen | N33: Hinweisfarbe (Vorsicht!)
B34: VQ8 | C34: =INDIRECT("Name"&B34) -> Einnahmen Steuer und Maut Stammverkehr | G34: QI5 | H34: Langfristige Ausbaufähigkeit, Aufwärtskompatibilität
B35: VQ9 | C35: =INDIRECT("Name"&B35) -> Externe Gesundheitsnutzen FV / VV
B37: Im «Handbuch NISTRA 2022» finden Sie Hilfestellungen zu den nötigen Eingaben in den einzelnen Tabellenblättern.
B38: Das Handbuch kann hier heruntergeladen werden: | F38: https://www.nistra.ch

Sheet Grunddaten
A2: Grunddaten
A4: Projekt
B7: Projektnummer
B8: Projektname (lang)
B9: Projektname (Kürzel)
B10: Kanton(e)
B12: Allgemeiner
B13: Projektbeschrieb
B14: (für Tableau)
A21: Kontaktperson
B24: Name
B25: Vorname
B26: Telefon
B27: Datum
B28: E-Mail
A30: Zeitrahmen
B33: Beginn Planungsphase | K33: 2015
B34: Beginn Bauphase | K34: 2021
B35: Jahr der Inbetriebnahme | D35: =IF(I38=1," der ersten Etappe","") ->  | K35: 2025
B36: Vergleichsjahr | K36: 2016
I38: =IF(J38=TRUE,1,0) -> 0 | J38: FALSE
I39: 0=nicht etappiert, 1= etappiert
B41: Jahr der Inbetriebnahme | D41: der letzten Etappe | F41: Etappen bei QI2 beschreiben: zu QI2
I43: =IF(J43=TRUE,1,0) -> 0 | J43: FALSE
I44: 0=kein Prov, 1=Prov
B46: Ende Provisorium
I48: =IF(J48=TRUE,1,0) -> 0 | J48: FALSE
I49: 0=kein Vergl., 1=Vergl.
B51: Jahr der Inbetriebnahme | D51: des zuletzt eröffneten Vergleichsprojektes
B53: Betrachtung bis | C53: =IF(AND(ProvisoriumAktiv=0,VergleichAktiv=0,EtappeAktiv=0),Inbetriebnahme+39,IF(ProvisoriumAktiv=1,ProvisoriumEnde-1,IF(AND(ProvisoriumAktiv=0,OR(VergleichAktiv=1,EtappeAktiv=1)),MAX(InbetriebnahmeVergleich,Inbetriebnahme,Inbetriebnahme_letzte_Etappe)+39))) -> 39
A60: =[1]INTRO!$B$4 -> eNISTRA 2022
I61: Preisbasis | J61: =[1]Annahmen!$B$3 -> 2019
A62: Ab hier: Ausblenden
J63: Beginn | K63: Ende | L63: =SUM(L64:L66) -> 42
B64: Zeitgerüst | I64: Planungsphase | J64: =Planungsbeginn -> 0 | K64: =MAX(J64,Baubeginn-1) -> 0 | L64: =K64-J64+1 -> 1
B65: Periode | C65: Jahr | D65: Phase | I65: Bauphase | J65: =Baubeginn -> 0 | K65: =MAX(J65,Inbetriebnahme-1) -> 0 | L65: =K65-J65+1 -> 1
B66: 1 | C66: =Planungsbeginn -> 0 | D66: =IF(C66<Baubeginn,"Planungsphase",IF(C66<Inbetriebnahme,"Bauphase",IF(C66<Inbetriebnahme_letzte_Etappe,"Teilbetrieb",IF(C66=Inbetriebnahme_letzte_Etappe,"1. Jahr Vollbetrieb",IF(C66=Inbetriebnahme,"1. Betriebsjahr",IF(C66<=BetrachtungEndjahr,"Betrieb","")))))) -> 1. Jahr Vollbetrieb | I66: Betrieb | J66: =Inbetriebnahme -> 0 | K66: =BetrachtungEndjahr -> 39 | L66: =K66-J66+1 -> 40
B67: =B66+1 -> 2 | C67: =C66+1 -> 1 | D67: Betrieb
B68: 3 | C68: 2 | D68: Betrieb | I68: 10. Betriebsjahr | J68: =IF(Inbetriebnahme+9>BetrachtungEndjahr,"",Inbetriebnahme+9) -> 9
B69: 4 | C69: 3 | D69: Betrieb | I69: 20. Betriebsjahr | J69: =IF(Inbetriebnahme+19>BetrachtungEndjahr,"",Inbetriebnahme+19) -> 19
B70: 5 | C70: 4 | D70: Betrieb | I70: 30. Betriebsjahr | J70: =IF(Inbetriebnahme+29>BetrachtungEndjahr,"",Inbetriebnahme+29) -> 29
B71: 6 | C71: 5 | D71: Betrieb | I71: 40. Betriebsjahr | J71: =IF(Inbetriebnahme+39>BetrachtungEndjahr,"",Inbetriebnahme+39) -> 39
B72: 7 | C72: 6 | D72: Betrieb
B73: 8 | C73: 7 | D73: Betrieb
B74: 9 | C74: 8 | D74: Betrieb
B75: 10 | C75: 9 | D75: Betrieb
B76: 11 | C76: 10 | D76: Betrieb
B77: 12 | C77: 11 | D77: Betrieb
B78: 13 | C78: 12 | D78: Betrieb
B79: 14 | C79: 13 | D79: Betrieb
B80: 15 | C80: 14 | D80: Betrieb
B81: 16 | C81: 15 | D81: Betrieb
B82: 17 | C82: 16 | D82: Betrieb
B83: 18 | C83: 17 | D83: Betrieb
B84: 19 | C84: 18 | D84: Betrieb
B85: 20 | C85: 19 | D85: Betrieb
B86: 21 | C86: 20 | D86: Betrieb
B87: 22 | C87: 21 | D87: Betrieb
B88: 23 | C88: 22 | D88: Betrieb
B89: 24 | C89: 23 | D89: Betrieb
B90: 25 | C90: 24 | D90: Betrieb
B91: 26 | C91: 25 | D91: Betrieb
B92: 27 | C92: 26 | D92: Betrieb
B93: 28 | C93: 27 | D93: Betrieb
B94: 29 | C94: 28 | D94: Betrieb
B95: 30 | C95: 29 | D95: Betrieb
B96: 31 | C96: 30 | D96: Betrieb
B97: 32 | C97: 31 | D97: Betrieb
B98: 33 | C98: 32 | D98: =IF(C98<Baubeginn,"Planungsphase",IF(C98<Inbetriebnahme,"Bauphase",IF(C98<Inbetriebnahme_letzte_Etappe,"Teilbetrieb",IF(C98=Inbetriebnahme_letzte_Etappe,"1. Jahr Vollbetrieb",IF(C98=Inbetriebnahme,"1. Betriebsjahr",IF(C98<=BetrachtungEndjahr,"Betrieb","")))))) -> Betrieb
B99: =B98+1 -> 34 | C99: =C98+1 -> 33 | D99: Betrieb
B100: 35 | C100: 34 | D100: Betrieb
B101: 36 | C101: 35 | D101: Betrieb
B102: 37 | C102: 36 | D102: Betrieb
B103: 38 | C103: 37 | D103: Betrieb
B104: 39 | C104: 38 | D104: Betrieb
B105: 40 | C105: 39 | D105: Betrieb
B106: 41 | C106: 40
B107: 42 | C107: 41
B108: 43 | C108: 42
B109: 44 | C109: 43
B110: 45 | C110: 44
B111: 46 | C111: 45
B112: 47 | C112: 46
B113: 48 | C113: 47
B114: 49 | C114: 48
B115: 50 | C115: 49
B116: 51 | C116: 50
B117: 52 | C117: 51
B118: 53 | C118: 52
B119: 54 | C119: 53
B120: 55 | C120: 54
B121: 56 | C121: 55
B122: 57 | C122: 56
B123: 58 | C123: 57
B124: 59 | C124: 58
B125: 60 | C125: 59
B126: 61 | C126: 60
B127: 62 | C127: 61
B128: 63 | C128: 62
B129: 64 | C129: 63
B130: 65 | C130: 64 | D130: =IF(C130<Baubeginn,"Planungsphase",IF(C130<Inbetriebnahme,"Bauphase",IF(C130<Inbetriebnahme_letzte_Etappe,"Teilbetrieb",IF(C130=Inbetriebnahme_letzte_Etappe,"1. Jahr Vollbetrieb",IF(C130=Inbetriebnahme,"1. Betriebsjahr",IF(C130<=BetrachtungEndjahr,"Betrieb","")))))) -> 
B131: =B130+1 -> 66 | C131: =C130+1 -> 65
B132: 67 | C132: 66
B133: 68 | C133: 67
B134: 69 | C134: 68
B135: 70 | C135: 69
B136: 71 | C136: 70
B137: 72 | C137: 71
B138: 73 | C138: 72
B139: 74 | C139: 73
B140: 75 | C140: 74
B141: 76 | C141: 75
B142: 77 | C142: 76
B143: 78 | C143: 77
B144: 79 | C144: 78
B145: 80 | C145: 79
B146: 81 | C146: 80
B147: 82 | C147: 81
B148: 83 | C148: 82
B149: 84 | C149: 83
B150: 85 | C150: 84
B151: 86 | C151: 85
B152: 87 | C152: 86
B153: 88 | C153: 87
B154: 89 | C154: 88
B155: 90 | C155: 89
B156: 91 | C156: 90
B157: 92 | C157: 91
B158: 93 | C158: 92
B159: 94 | C159: 93
B160: 95 | C160: 94
B161: 96 | C161: 95
B162: 97 | C162: 96 | D162: =IF(C162<Baubeginn,"Planungsphase",IF(C162<Inbetriebnahme,"Bauphase",IF(C162<Inbetriebnahme_letzte_Etappe,"Teilbetrieb",IF(C162=Inbetriebnahme_letzte_Etappe,"1. Jahr Vollbetrieb",IF(C162=Inbetriebnahme,"1. Betriebsjahr",IF(C162<=BetrachtungEndjahr,"Betrieb","")))))) -> 
B163: =B162+1 -> 98 | C163: =C162+1 -> 97
B164: 99 | C164: 98
B165: 100 | C165: 99
B166: 101 | C166: 100
B167: 102 | C167: 101
B168: 103 | C168: 102
B169: 104 | C169: 103
B170: 105 | C170: 104
B171: 106 | C171: 105
B172: 107 | C172: 106
B173: 108 | C173: 107
B174: 109 | C174: 108
B175: 110 | C175: 109
B176: 111 | C176: 110
B177: 112 | C177: 111
B178: 113 | C178: 112
B179: 114 | C179: 113
B180: 115 | C180: 114
B181: 116 | C181: 115
B182: 117 | C182: 116
B183: 118 | C183: 117
B184: 119 | C184: 118
B185: 120 | C185: 119
B186: 121 | C186: 120
B187: 122 | C187: 121
B188: 123 | C188: 122
B189: 124 | C189: 123
B190: 125 | C190: 124

Sheet Verkehrsmodell
B2: Verkehrsmodell
B5: Angaben zum Verkehrsmodell
S8: Inbetriebnahme | T8: =Inbetriebnahme -> 0 | V8: Ja
B9: Grundsatzfrage | S9: BetrachtungEndjahr | T9: =BetrachtungEndjahr -> 39 | V9: Nein
B11: Wurden Verkehrsmodellberechnungen vorgenommen? | Q11: Ja
C13: =IF(Q11="Ja","Für wie viele verschiedene Zeitpunkte wurden Verkehrsmodellberechnungen vorgenommen?","") -> Für wie viele verschiedene Zeitpunkte wurden Verkehrsmodellberechnungen vorgenommen? | S13: 2. Zeitpunkt | T13: 3. Zeitpunkt | U13: 4. Zeitpunkt | V13: 5. Zeitpunkt | W13: 6. Zeitpunkt | X13: 7. Zeitpunkt
C15: =IF(Q11="Ja","Für folgende Jahre liegen Modellergebnisse vor:","") -> Für folgende Jahre liegen Modellergebnisse vor: | S15: =AND($G$15>$E$15,ISBLANK($E$15)=FALSE,VerkehrsmodellJahr2<=BetrachtungEndjahr) -> FALSE | T15: =AND($I$15>$G$15,ISBLANK($G$15)=FALSE,VerkehrsmodellJahr3<=BetrachtungEndjahr) -> FALSE | U15: =AND($K$15>$I$15,ISBLANK($I$15)=FALSE,VerkehrsmodellJahr4<=BetrachtungEndjahr) -> FALSE | V15: =AND($M$15>$K$15,ISBLANK($K$15)=FALSE,VerkehrsmodellJahr5<=BetrachtungEndjahr) -> FALSE | W15: =AND($O$15>$M$15,ISBLANK($M$15)=FALSE,VerkehrsmodellJahr6<=BetrachtungEndjahr) -> FALSE | X15: =AND($Q$15>$O$15,ISBLANK($O$15)=FALSE,VerkehrsmodellJahr7<=BetrachtungEndjahr) -> FALSE
B17: =IF(Q11="Ja","Wie berücksichtigt das verwendete Verkehrsmodell den Mehrverkehr?","") -> Wie berücksichtigt das verwendete Verkehrsmodell den Mehrverkehr?
C19: =IF(Q11="Ja","Werden Routenumlagerungen berücksichtigt?","") -> Werden Routenumlagerungen berücksichtigt?
C21: =IF(Q11="Ja","Werden Zielwahlanpassungen (kurz- oder langfristig) berücksichtigt?","") -> Werden Zielwahlanpassungen (kurz- oder langfristig) berücksichtigt?
C23: =IF(Q11="Ja","Wird zwischen Haupt- und Nebenverkehrszeit unterschieden?","") -> Wird zwischen Haupt- und Nebenverkehrszeit unterschieden?
C25: =IF(Q11="Ja","Wird der induzierte Verkehr ('neuer Verkehr') berücksichtigt?","") -> Wird der induzierte Verkehr ('neuer Verkehr') berücksichtigt?
B27: =IF(Q11="Ja","Weitere Fragen","") -> Weitere Fragen
C29: =IF(Q11="Ja","Werden Verlagerungen zwischen Verkehrsmitteln berücksichtigt?","") -> Werden Verlagerungen zwischen Verkehrsmitteln berücksichtigt?
C31: =IF(Q11="Ja","Wird die Rückkoppelung auf die Siedlungsstruktur berücksichtigt?","") -> Wird die Rückkoppelung auf die Siedlungsstruktur berücksichtigt?
C33: =IF(Q11="Ja","Können zeitliche Verlagerungen der Fahrten abgebildet werden?","") -> Können zeitliche Verlagerungen der Fahrten abgebildet werden?
C35: =IF(Q11="Ja","Wurden die verkehrlichen Veränderungen im ÖV mit dem Verkehrsmodell ermittelt?","") -> Wurden die verkehrlichen Veränderungen im ÖV mit dem Verkehrsmodell ermittelt?
B38: =IF(Q11="Ja","Kurzbeschrieb des Verkehrsmodells (für Tableau)","Kurzbeschrieb der Grundlagen zur Beurteilung") -> Kurzbeschrieb des Verkehrsmodells (für Tableau)
B45: =IF(Q11="Ja","Bemerkungen zum Verkehrsmodell","Bemerkungen zu den Grundlagen der Beurteilung") -> Bemerkungen zum Verkehrsmodell | Q45: => Kommentarblatt
B72: =[1]INTRO!$B$4 -> eNISTRA 2022

Sheet Indikatorenliste
B2: Indikatorenliste
B4: Nr. | C4: Kurzbezeichnung | D4: Ausführliche Bezeichnung | E4: Einheit | F4: Typ
B5: =[1]Indikatoren!A3 -> DK1 | C5: =[1]Indikatoren!B3 -> Baukosten | D5: =[1]Indikatoren!C3 -> Baukosten | E5: =[1]Indikatoren!D3 -> Mio. CHF / Jahr | F5: =[1]Indikatoren!H3 -> KNA & KWA
B6: =[1]Indikatoren!A4 -> DK2 | C6: =[1]Indikatoren!B4 -> Ersatzinvestitionen | D6: =[1]Indikatoren!C4 -> Ersatzinvestitionen | E6: =[1]Indikatoren!D4 -> Mio. CHF / Jahr | F6: =[1]Indikatoren!H4 -> KNA & KWA
B7: =[1]Indikatoren!A5 -> DK3 | C7: =[1]Indikatoren!B5 -> Landkosten | D7: =[1]Indikatoren!C5 -> Landkosten | E7: =[1]Indikatoren!D5 -> Mio. CHF / Jahr | F7: =[1]Indikatoren!H5 -> KNA & KWA
B8: =[1]Indikatoren!A6 -> DK4 | C8: =[1]Indikatoren!B6 -> Betriebs- und Unterhaltskosten Strasse | D8: =[1]Indikatoren!C6 -> Betriebs- und Unterhaltskosten Strasse | E8: =[1]Indikatoren!D6 -> Mio. CHF / Jahr | F8: =[1]Indikatoren!H6 -> KNA & KWA
B9: =[1]Indikatoren!A7 -> VQ1n | C9: =[1]Indikatoren!B7 -> Reisezeit Stammverkehr | D9: =[1]Indikatoren!C7 -> Reisezeit Stammverkehr | E9: =[1]Indikatoren!D7 -> Personenstunden / Jahr | F9: =[1]Indikatoren!H7 -> KNA
B10: =[1]Indikatoren!A8 -> VQ1w | C10: =[1]Indikatoren!B8 -> Reisezeit Stammverkehr | D10: =[1]Indikatoren!C8 -> Reisezeit Stammverkehr | E10: =[1]Indikatoren!D8 -> Punkte | F10: =[1]Indikatoren!H8 -> KWA
B11: =[1]Indikatoren!A9 -> VQ2n | C11: =[1]Indikatoren!B9 -> Zuverlässigkeit | D11: =[1]Indikatoren!C9 -> Zuverlässigkeit | E11: =[1]Indikatoren!D9 -> Personenstunden / Jahr | F11: =[1]Indikatoren!H9 -> KNA
B12: =[1]Indikatoren!A10 -> VQ2w | C12: =[1]Indikatoren!B10 -> Zuverlässigkeit | D12: =[1]Indikatoren!C10 -> Zuverlässigkeit | E12: =[1]Indikatoren!D10 -> Punkte | F12: =[1]Indikatoren!H10 -> KWA
B13: =[1]Indikatoren!A11 -> VQ3n | C13: =[1]Indikatoren!B11 -> Betriebskosten Fahrzeuge Stammverkehr | D13: =[1]Indikatoren!C11 -> Betriebskosten Fahrzeuge Stammverkehr | E13: =[1]Indikatoren!D11 -> Mio. Fzkm / Jahr | F13: =[1]Indikatoren!H11 -> KNA
B14: =[1]Indikatoren!A12 -> VQ3w | C14: =[1]Indikatoren!B12 -> Betriebskosten Fahrzeuge Stammverkehr | D14: =[1]Indikatoren!C12 -> Betriebskosten Fahrzeuge Stammverkehr | E14: =[1]Indikatoren!D12 -> Punkte | F14: =[1]Indikatoren!H12 -> KWA
B15: =[1]Indikatoren!A13 -> VQ4n | C15: =[1]Indikatoren!B13 -> Auswirkungen auf den ÖV | D15: =[1]Indikatoren!C13 -> Auswirkungen auf den öffentlichen Verkehr | E15: =[1]Indikatoren!D13 -> Mio. CHF / Jahr | F15: =[1]Indikatoren!H13 -> KNA
B16: =[1]Indikatoren!A14 -> VQ4w | C16: =[1]Indikatoren!B14 -> Auswirkungen auf den ÖV | D16: =[1]Indikatoren!C14 -> Auswirkungen auf den öffentlichen Verkehr | E16: =[1]Indikatoren!D14 -> Punkte | F16: =[1]Indikatoren!H14 -> KWA
B17: =[1]Indikatoren!A15 -> VQ5 | C17: =[1]Indikatoren!B15 -> Streckenredundanz | D17: =[1]Indikatoren!C15 -> Streckenredundanz | E17: =[1]Indikatoren!D15 -> Punkte | F17: =[1]Indikatoren!H15 -> KWA
B18: =[1]Indikatoren!A16 -> VQ6 | C18: =[1]Indikatoren!B16 -> Entlastung nachgelagertes Netz | D18: =[1]Indikatoren!C16 -> Verkehrsentlastung nachgelagertes Netz | E18: =[1]Indikatoren!D16 -> Punkte | F18: =[1]Indikatoren!H16 -> KWA
B19: =[1]Indikatoren!A17 -> VQ7n | C19: =[1]Indikatoren!B17 -> Nutzen durch Mehrverkehr | D19: =[1]Indikatoren!C17 -> Nutzen durch Mehrverkehr | E19: =[1]Indikatoren!D17 -> Mio. CHF / Jahr | F19: =[1]Indikatoren!H17 -> KNA
B20: =[1]Indikatoren!A18 -> VQ7.1 | C20: =[1]Indikatoren!B18 -> MWST-Einnahmen ÖV | D20: =[1]Indikatoren!C18 -> Mehrwertsteuereinnahmen im öffentlichen Verkehr | E20: =[1]Indikatoren!D18 -> Mio. CHF / Jahr | F20: =[1]Indikatoren!H18 -> KNA
B21: =[1]Indikatoren!A19 -> VQ7.2 | C21: =[1]Indikatoren!B19 -> Nettonutzen Mehrverkehr | D21: =[1]Indikatoren!C19 -> Nettonutzen des Mehrverkehrs | E21: =[1]Indikatoren!D19 -> Mio. CHF / Jahr | F21: =[1]Indikatoren!H19 -> KNA
B22: =[1]Indikatoren!A20 -> VQ7.3 | C22: =[1]Indikatoren!B20 -> Einnahmen Steuer und Maut Mehrverkehr | D22: =[1]Indikatoren!C20 -> Einnahmen aus Treibstoffsteuern und Maut im Mehrverkehr | E22: =[1]Indikatoren!D20 -> Mio. CHF / Jahr | F22: =[1]Indikatoren!H20 -> KNA
B23: =[1]Indikatoren!A21 -> VQ7w | C23: =[1]Indikatoren!B21 -> Nutzen durch Mehrverkehr | D23: =[1]Indikatoren!C21 -> Nutzen durch Mehrverkehr | E23: =[1]Indikatoren!D21 -> Punkte | F23: =[1]Indikatoren!H21 -> KWA
B24: =[1]Indikatoren!A22 -> VQ8 | C24: =[1]Indikatoren!B22 -> Einnahmen Steuer und Maut Stammverkehr | D24: =[1]Indikatoren!C22 -> Einnahmen aus Treibstoffsteuern und Maut im Stammverkehr | E24: =[1]Indikatoren!D22 -> Mio. CHF / Jahr | F24: =[1]Indikatoren!H22 -> KNA
B25: =[1]Indikatoren!A23 -> VQ9 | C25: =[1]Indikatoren!B23 -> Externe Gesundheitsnutzen FV / VV | D25: =[1]Indikatoren!C23 -> Externe Gesundheitsnutzen im Fuss- und Veloverkehr | E25: =[1]Indikatoren!D23 -> Mio. CHF / Jahr | F25: =[1]Indikatoren!H23 -> KNA
B26: =[1]Indikatoren!A24 -> SI1n | C26: =[1]Indikatoren!B24 -> Unfälle | D26: =[1]Indikatoren!C24 -> Unfälle | E26: =[1]Indikatoren!D24 -> Anzahl / Jahr | F26: =[1]Indikatoren!H24 -> KNA
B27: =[1]Indikatoren!A25 -> SI1w | C27: =[1]Indikatoren!B25 -> Unfälle | D27: =[1]Indikatoren!C25 -> Unfälle | E27: =[1]Indikatoren!D25 -> Punkte | F27: =[1]Indikatoren!H25 -> KWA
B28: =[1]Indikatoren!A26 -> SI2 | C28: =[1]Indikatoren!B26 -> Betriebsqualität, Betriebssicherheit | D28: =[1]Indikatoren!C26 -> Betriebsqualität, Betriebssicherheit | E28: =[1]Indikatoren!D26 -> Punkte | F28: =[1]Indikatoren!H26 -> KWA
B29: =[1]Indikatoren!A27 -> SI3n | C29: =[1]Indikatoren!B27 -> Polizeiliche Verkehrsregelung | D29: =[1]Indikatoren!C27 -> Polizeiliche Verkehrsregelung und Überwachung | E29: =[1]Indikatoren!D27 -> Mio. CHF / Jahr | F29: =[1]Indikatoren!H27 -> KNA
B30: =[1]Indikatoren!A28 -> SI3w | C30: =[1]Indikatoren!B28 -> Polizeiliche Verkehrsregelung | D30: =[1]Indikatoren!C28 -> Polizeiliche Verkehrsregelung und Überwachung | E30: =[1]Indikatoren!D28 -> Punkte | F30: =[1]Indikatoren!H28 -> KWA
B31: =[1]Indikatoren!A29 -> SE1 | C31: =[1]Indikatoren!B29 -> Wohnlichkeit | D31: =[1]Indikatoren!C29 -> Wohnlichkeit | E31: =[1]Indikatoren!D29 -> Punkte | F31: =[1]Indikatoren!H29 -> KWA
B32: =[1]Indikatoren!A30 -> SE2 | C32: =[1]Indikatoren!B30 -> Potenzial für Siedlungsentwicklung | D32: =[1]Indikatoren!C30 -> Potenzial für Siedlungsentwicklung | E32: =[1]Indikatoren!D30 -> Punkte | F32: =[1]Indikatoren!H30 -> KWA
B33: =[1]Indikatoren!A31 -> SE3 | C33: =[1]Indikatoren!B31 -> Erreichbarkeit Siedlungsschwerpunkte | D33: =[1]Indikatoren!C31 -> Erreichbarkeit Siedlungsschwerpunkte | E33: =[1]Indikatoren!D31 -> Punkte | F33: =[1]Indikatoren!H31 -> KWA
B34: =[1]Indikatoren!A32 -> SE4 | C34: =[1]Indikatoren!B32 -> Orts- und Landschaftsbild | D34: =[1]Indikatoren!C32 -> Orts- und Landschaftsbild, Naherholungsgebiete | E34: =[1]Indikatoren!D32 -> Punkte | F34: =[1]Indikatoren!H32 -> KWA
B35: =[1]Indikatoren!A33 -> UW1n_Luft | C35: =[1]Indikatoren!B33 -> Luftbelastung | D35: =[1]Indikatoren!C33 -> Luftbelastung | E35: =[1]Indikatoren!D33 -> Tonnen PM10 / Jahr | F35: =[1]Indikatoren!H33 -> KNA
B36: =[1]Indikatoren!A34 -> UW1n_Lärm | C36: =[1]Indikatoren!B34 -> Lärmbelastete Personen | D36: =[1]Indikatoren!C34 -> Übermässig lärmbelastete Personen am Wohnort | E36: =[1]Indikatoren!D34 -> Personen | F36: =[1]Indikatoren!H34 -> KNA
B37: =[1]Indikatoren!A35 -> UW1w | C37: =[1]Indikatoren!B35 -> Lärm- und Luftbelastung | D37: =[1]Indikatoren!C35 -> Lärm- und Luftbelastung | E37: =[1]Indikatoren!D35 -> Punkte | F37: =[1]Indikatoren!H35 -> KWA
B38: =[1]Indikatoren!A36 -> UW2 | C38: =[1]Indikatoren!B36 -> Lebensräume und Gewässer | D38: =[1]Indikatoren!C36 -> Qualität von natürlichen Lebensräumen und Gewässern | E38: =[1]Indikatoren!D36 -> Punkte | F38: =[1]Indikatoren!H36 -> KWA
B39: =[1]Indikatoren!A37 -> UW3n | C39: =[1]Indikatoren!B37 -> Bodenversiegelung | D39: =[1]Indikatoren!C37 -> Bodenversiegelung | E39: =[1]Indikatoren!D37 -> Hektaren | F39: =[1]Indikatoren!H37 -> KNA
B40: =[1]Indikatoren!A38 -> UW3w | C40: =[1]Indikatoren!B38 -> Flächenbeanspruchung und Boden | D40: =[1]Indikatoren!C38 -> Flächenbeanspruchung und Bodenfruchtbarkeit | E40: =[1]Indikatoren!D38 -> Punkte | F40: =[1]Indikatoren!H38 -> KWA
B41: =[1]Indikatoren!A39 -> UW4n | C41: =[1]Indikatoren!B39 -> Klimabelastung | D41: =[1]Indikatoren!C39 -> Klimaeffekt: Treibhausgas-Emissionen | E41: =[1]Indikatoren!D39 -> Tonnen CO2 / Jahr | F41: =[1]Indikatoren!H39 -> KNA
B42: =[1]Indikatoren!A40 -> UW4w | C42: =[1]Indikatoren!B40 -> Klimabelastung | D42: =[1]Indikatoren!C40 -> Klimabelastung | E42: =[1]Indikatoren!D40 -> Punkte | F42: =[1]Indikatoren!H40 -> KWA
B43: =[1]Indikatoren!A41 -> UW5 | C43: =[1]Indikatoren!B41 -> Belastung während der Bauphase | D43: =[1]Indikatoren!C41 -> Umweltbelastung während der Bauphase | E43: =[1]Indikatoren!D41 -> Punkte | F43: =[1]Indikatoren!H41 -> KWA
B44: =[1]Indikatoren!A42 -> UW6 | C44: =[1]Indikatoren!B42 -> Vor- und nachgelagerte Prozesse | D44: =[1]Indikatoren!C42 -> Vor- und nachgelagerte Prozesse der Antriebsenergie und der Infrastruktur | E44: =[1]Indikatoren!D42 -> Mio. CHF / Jahr | F44: =[1]Indikatoren!H42 -> KNA
B45: =[1]Indikatoren!A43 -> QI1 | C45: =[1]Indikatoren!B43 -> Kostenrisiko, bautechnisches Risiko | D45: =[1]Indikatoren!C43 -> Kostenrisiko, bautechnisches Risiko | E45: =[1]Indikatoren!D43 -> Punkte | F45: =[1]Indikatoren!H43 -> QA
B46: =[1]Indikatoren!A44 -> QI2 | C46: =[1]Indikatoren!B44 -> Etappierbarkeit | D46: =[1]Indikatoren!C44 -> Etappierbarkeit | E46: =[1]Indikatoren!D44 -> Punkte | F46: =[1]Indikatoren!H44 -> QA
B47: =[1]Indikatoren!A45 -> QI3 | C47: =[1]Indikatoren!B45 -> Kohärenz mit Gesamtverkehrskonzepten | D47: =[1]Indikatoren!C45 -> Kohärenz mit Gesamtverkehrskonzepten | E47: =[1]Indikatoren!D45 -> Punkte | F47: =[1]Indikatoren!H45 -> QA
B48: =[1]Indikatoren!A46 -> QI4 | C48: =[1]Indikatoren!B46 -> Kohärenz mit Raumplänen | D48: =[1]Indikatoren!C46 -> Kohärenz mit Raumplänen (national, kantonal, regional) | E48: =[1]Indikatoren!D46 -> Punkte | F48: =[1]Indikatoren!H46 -> QA
B49: =[1]Indikatoren!A47 -> QI5 | C49: =[1]Indikatoren!B47 -> Langfristige Ausbaufähigkeit, Aufwärtskompatibilität | D49: =[1]Indikatoren!C47 -> Langfristige Ausbaufähigkeit, Aufwärtskompatibilität | E49: =[1]Indikatoren!D47 -> Punkte | F49: =[1]Indikatoren!H47 -> QA
B51: =[1]INTRO!$B$4 -> eNISTRA 2022

Sheet Bewertungssätze KNA
B2: Bewertungssätze KNA
B4: ="Hinweis: Alle Bewertungssätze beziehen sich auf Preise des Jahres " & Preisbasis & " (= Preisbasis eNISTRA)" -> Hinweis: Alle Bewertungssätze beziehen sich auf Preise des Jahres 2019 (= Preisbasis eNISTRA)
E5: 2 Varianten
C6: Bezeichnung | D6: Bewertungssatz (CHF) pro ... | E6: NISTRA- BASIC | F6: Manuelle Werte | G6: ="GEWÄHLT: "&BewertungAktiv -> GEWÄHLT: NISTRABASIC
B7: =NummerDK1 -> DK1 | C7: =NameDK1 -> Baukosten | D7: =[1]KNA!C3 -> (wird direkt in CHF erhoben) | E7: =[1]KNA!D3 -> -- | G7: =IF(AND(WahlBewertungssatz=2,F7<>""),F7,E7) -> --
B8: =NummerDK2 -> DK2 | C8: =NameDK2 -> Ersatzinvestitionen | D8: =[1]KNA!C4 -> (wird direkt in CHF erhoben) | E8: =[1]KNA!D4 -> -- | G8: =IF(AND(WahlBewertungssatz=2,F8<>""),F8,E8) -> --
B9: =NummerDK3 -> DK3 | C9: =NameDK3 -> Landkosten | D9: =[1]KNA!C5 -> (wird direkt in CHF erhoben) | E9: =[1]KNA!D5 -> -- | G9: =IF(AND(WahlBewertungssatz=2,F9<>""),F9,E9) -> --
B10: =NummerDK4 -> DK4 | C10: =NameDK4 -> Betriebs- und Unterhaltskosten Strasse | D10: =[1]KNA!C6 -> (wird direkt in CHF erhoben) | E10: =[1]KNA!D6 -> -- | G10: =IF(AND(WahlBewertungssatz=2,F10<>""),F10,E10) -> --
B11: =NummerVQ1n -> VQ1n | C11: =NameVQ1n -> Reisezeit Stammverkehr | D11: =[1]KNA!C7 -> (wird direkt in CHF erhoben) | E11: =[1]KNA!D7 -> -- | G11: =IF(AND(WahlBewertungssatz=2,F11<>""),F11,E11) -> --
B12: =NummerVQ2n -> VQ2n | C12: =NameVQ2n -> Zuverlässigkeit | D12: =[1]KNA!C8 -> (Eingabe im Blatt VQ2n) | E12: =[1]KNA!D8 -> -- | G12: --
B13: =NummerVQ3n -> VQ3n | C13: =NameVQ3n -> Betriebskosten Fahrzeuge Stammverkehr | D13: =[1]KNA!C9 -> Liter Benzin (CHF ohne Steuern) | E13: =[1]KNA!D9 -> 0.8223019645 | G13: =IF(AND(WahlBewertungssatz=2,F13<>""),F13,E13) -> 0.8223019645
D14: =[1]KNA!C10 -> Liter Diesel (CHF ohne Steuern) | E14: =[1]KNA!D10 -> 0.8763954163 | G14: 0.8763954163
D15: =[1]KNA!C11 -> Anpassungsfaktor gegenüber eNISTRA BASIC (gilt für 16 Betriebskostengrundwerte und ihre jährlichen Veränderungen) | E15: =[1]KNA!D11 -> 1 | G15: 1
D16: =[1]KNA!C12 -> Strompreis für Elektrofahrzeuge im Personenverkehr (Faktorpreis in Rp / MJ) | E16: =[1]KNA!D12 -> 4.374156113 | G16: 4.374156113
D17: =[1]KNA!C13 -> Strompreis für Elektrofahrzeuge im Güterverkehr (Faktorpreis in Rp / MJ) | E17: =[1]KNA!D13 -> 3.432657682 | G17: 3.432657682
D18: =[1]KNA!C14 -> Steuern und Abgaben für Elektrofahrzeuge im Personenverkehr (Rp / MJ) | E18: =[1]KNA!D14 -> 1.750104345 | G18: 1.750104345
D19: =[1]KNA!C15 -> Steuern und Abgaben für Elektrofahrzeuge im Güterverkehr (Rp / MJ) | E19: =[1]KNA!D15 -> 1.246246302 | G19: 1.246246302
B20: =NummerVQ4n -> VQ4n | C20: =NameVQ4n -> Auswirkungen auf den ÖV | D20: =[1]KNA!C16 -> (wird direkt in CHF erhoben) | E20: =[1]KNA!D16 -> -- | G20: --
B21: =NummerVQ7.1 -> VQ7.1 | C21: =NameVQ7.1 -> MWST-Einnahmen ÖV | D21: =[1]KNA!C17 -> (wird direkt in CHF erhoben) | E21: =[1]KNA!D17 -> -- | G21: --
B22: =NummerVQ7.2 -> VQ7.2 | C22: =NameVQ7.2 -> Nettonutzen Mehrverkehr | D22: =[1]KNA!C18 -> (siehe VQ1n, VQ3 und VQ7.3) | E22: =[1]KNA!D18 -> -- | G22: =IF(AND(WahlBewertungssatz=2,F22<>""),F22,E22) -> --
B23: =NummerVQ7.3 -> VQ7.3 | C23: =NameVQ7.3 -> Einnahmen Steuer und Maut Mehrverkehr | D23: =[1]KNA!C19 -> Mehrwertsteuersatz | E23: =[1]KNA!D19 -> 0.077 | G23: =IF(AND(WahlBewertungssatz=2,F23<>""),F23,E23) -> 0.077
D24: =[1]KNA!C20 -> Mineralölsteuer etc. Benzin in CHF / Liter | E24: =[1]KNA!D20 -> 0.7312 | G24: 0.7312
D25: =[1]KNA!C21 -> Mineralölsteuer etc. Diesel in CHF / Liter | E25: =[1]KNA!D21 -> 0.7587 | G25: 0.7587
D26: =[1]KNA!C22 -> LSVA in CHF / Fzkm | E26: =[1]KNA!D22 -> 0.7 | G26: 0.7
B27: =NummerVQ8 -> VQ8 | C27: =NameVQ8 -> Einnahmen Steuer und Maut Stammverkehr | D27: =[1]KNA!C23 -> (siehe VQ7.3) | E27: =[1]KNA!D23 -> -- | G27: --
B28: =NummerVQ9 -> VQ9 | C28: =NameVQ9 -> Externe Gesundheitsnutzen FV / VV | D28: =[1]KNA!C24 -> CHF / Personenkilometer im Fussverkehr | E28: =[1]KNA!D24 -> 0.1885805907 | G28: =IF(AND(WahlBewertungssatz=2,F28<>""),F28,E28) -> 0.1885805907
D29: =[1]KNA!C25 -> CHF / Personenkilometer im Veloverkehr | E29: =[1]KNA!D25 -> 0.1885805907 | G29: =IF(AND(WahlBewertungssatz=2,F29<>""),F29,E29) -> 0.1885805907
B30: =NummerSI1n -> SI1n | C30: =NameSI1n -> Unfälle | D30: =[1]KNA!C26 -> Anpassungsfaktor gegenüber eNISTRA BASIC (gilt für 46 Bewertungssätze) | E30: =[1]KNA!D26 -> 1 | G30: 1
B31: =NummerSI3n -> SI3n | C31: =NameSI3n -> Polizeiliche Verkehrsregelung | D31: =[1]KNA!C27 -> CHF / 1000 Fzkm Autobahn | E31: =[1]KNA!D27 -> 8.732229645 | G31: =IF(AND(WahlBewertungssatz=2,F31<>""),F31,E31) -> 8.732229645
D32: =[1]KNA!C28 -> CHF / 1000 Fzkm ausserorts | E32: =[1]KNA!D28 -> 10.55778288 | G32: =IF(AND(WahlBewertungssatz=2,F32<>""),F32,E32) -> 10.55778288
D33: =[1]KNA!C29 -> CHF / 1000 Fzkm innerorts | E33: =[1]KNA!D29 -> 29.13785804 | G33: =IF(AND(WahlBewertungssatz=2,F33<>""),F33,E33) -> 29.13785804
B34: =NummerUW1n_Luft -> UW1n_Luft | C34: =NameUW1n_Luft & " Gesundheitskosten" -> Luftbelastung Gesundheitskosten | D34: =[1]KNA!C30 -> t PM10, lokale Schäden, bebautes Gebiet | E34: =[1]KNA!D30 -> 845259.248 | G34: 845259.248
D35: =[1]KNA!C31 -> t PM10, lokale Schäden, unbebautes Gebiet | E35: =[1]KNA!D31 -> 0 | G35: =IF(AND(WahlBewertungssatz=2,F35<>""),F35,E35) -> 0
D36: =[1]KNA!C32 -> t PM10, regionale Schäden | E36: =[1]KNA!D32 -> 516900.3922 | G36: 516900.3922
C37: Gesunheitskosten mit hohem VOSL | D37: =[1]KNA!C33 -> t PM10, lokale Schäden, bebautes Gebiet | E37: =[1]KNA!D33 -> 1182091.881 | G37: =E37*BewertungUW1n_LuftPM_GS_B/E34 -> 1182091.881 | H37: Zeile ausblenden
D38: =[1]KNA!C34 -> t PM10, regionale Schäden | E38: =[1]KNA!D34 -> 723448.7047 | G38: =E38*BewertungUW1n_LuftPM_GS_R/E36 -> 723448.7047 | H38: Zeile ausblenden
C39: Gesunheitskosten mit tiefem VOSL | D39: =[1]KNA!C35 -> t PM10, lokale Schäden, bebautes Gebiet | E39: =[1]KNA!D35 -> 507367.3932 | G39: =E39*BewertungUW1n_LuftPM_GS_B/E34 -> 507367.3932 | H39: Zeile ausblenden
D40: =[1]KNA!C36 -> t PM10, regionale Schäden | E40: =[1]KNA!D36 -> 310352.0798 | G40: =E40*BewertungUW1n_LuftPM_GS_R/E36 -> 310352.0798 | H40: Zeile ausblenden
C41: Gebäudeschäden | D41: =[1]KNA!C37 -> t PM10, lokale Schäden, bebautes Gebiet | E41: =[1]KNA!D37 -> 145443.1563 | G41: 145443.1563
D42: =[1]KNA!C38 -> t PM10, lokale Schäden, unbebautes Gebiet | E42: =[1]KNA!D38 -> 0 | G42: 0
D43: =[1]KNA!C39 -> t PM10, regionale Schäden | E43: =[1]KNA!D39 -> 2301.978013 | G43: 2301.978013
C44: Ernteausfälle und Waldschäden | D44: =[1]KNA!C40 -> t NOx | E44: =[1]KNA!D40 -> 7097.765363 | G44: 7097.765363
C45: Bodenqualität | D45: =[1]KNA!C41 -> t Zink | E45: =[1]KNA!D41 -> 437019.5531 | G45: 437019.5531
B46: =NummerUW1n_Lärm -> UW1n_Lärm | C46: =NameUW1n_Lärm -> Lärmbelastete Personen | D46: =[1]KNA!C42 -> Wohnung und dB(A) ZKB-Lärmmass (Mietzinsausfälle) | E46: =[1]KNA!D42 -> 43.11731224 | G46: 43.11731224
D47: =[1]KNA!C43 -> Person und dB(A) Lden (Gesundheitskosten) | E47: =[1]KNA!D43 -> 16.18308439 | G47: 16.18308439
D48: =[1]KNA!C44 -> Person und dB(A) Lden (Gesundheitskosten - VOSL hoch) | E48: =[1]KNA!D44 -> 22.96788608 | G48: =E48*BewertungUW1n_Lärm_Pers/$E$47 -> 22.96788608 | H48: Zeile ausblenden
D49: =[1]KNA!C45 -> Person und dB(A) Lden (Gesundheitskosten - VOSL tief) | E49: =[1]KNA!D45 -> 9.408531646 | G49: =E49*BewertungUW1n_Lärm_Pers/$E$47 -> 9.408531646 | H49: Zeile ausblenden
B50: =NummerUW3n -> UW3n | C50: =NameUW3n -> Bodenversiegelung | D50: =[1]KNA!C46 -> Hektare und Jahr | E50: =[1]KNA!D46 -> 3479.881594 | G50: 3479.881594
B51: =NummerUW4n -> UW4n | C51: =NameUW4n&" im Jahr 2015" -> Klimabelastung im Jahr 2015 | D51: =[1]KNA!C47 -> Tonne CO2 | E51: =[1]KNA!D47 -> 123.1969274 | G51: 123.1969274
C52: Zunahme Kostensatz pro Jahr | D52: =[1]KNA!C48 -> Tonne CO2 | E52: =[1]KNA!D48 -> 0.03 | G52: 0.03
B53: =NummerUW6 -> UW6 | C53: =NameUW6 -> Vor- und nachgelagerte Prozesse | D53: =[1]KNA!C51 -> MWh, Luftbelastung durch Stromverbrauch durch Elektrofahrzeuge | E53: =[1]KNA!D51 -> 10.24894515 | G53: =IF(AND(WahlBewertungssatz=2,F53<>""),F53,E53) -> 10.24894515
D54: =[1]KNA!C52 -> t Benzin, Luftbelastung durch Benzinverbrauch | E54: =[1]KNA!D52 -> 99.33277637 | G54: 99.33277637
D55: =[1]KNA!C53 -> t Diesel, Luftbelastung durch Dieselverbrauch | E55: =[1]KNA!D53 -> 54.71911814 | G55: 54.71911814
D56: =[1]KNA!C54 -> Schäden durch Luftschadstoffe in CHF pro m2 und Jahr
D57: =[1]KNA!C55 -> Strasse (offene Strecke Autobahn bis 3.-Klass-Strasse) | E57: =[1]KNA!D55 -> 0.4755510549 | G57: 0.4755510549
D58: =[1]KNA!C56 -> Brücke / Viadukt | E58: =[1]KNA!D56 -> 2.853306329 | G58: 2.853306329
D59: =[1]KNA!C57 -> Tagbautunnel / Galerie | E59: =[1]KNA!D57 -> 3.805433333 | G59: 3.805433333
D60: =[1]KNA!C58 -> Bergmännischer Tunnel | E60: =[1]KNA!D58 -> 4.756535443 | G60: 4.756535443
D61: =[1]KNA!C59 -> Trottoir oder strassenbegleitender Veloweg innerorts | E61: =[1]KNA!D59 -> 0.3648624473 | G61: 0.3648624473
D62: =[1]KNA!C60 -> Befestigter Fuss- oder Veloweg | E62: =[1]KNA!D60 -> 0.2838957806 | G62: 0.2838957806
B69: Bemerkungen / Begründung allfälliger manueller Werte | G69: => Kommentarblatt
B125: =[1]INTRO!$B$4 -> eNISTRA 2022 | G125: => Zusammenfassung KNA
C129: 1
B130: Aktiv | C130: =IF(WahlBewertungssatz=1,"NISTRABASIC","Manuelle Werte") -> NISTRABASIC

Sheet Gewichtung und Annahmen KWA
B2: Gewichtung und Annahmen KWA
B4: Gewichtung KWA
D7: Haupt-gewich-tung | E7: Teilgewichtungen | J7: Manuelle Gewich- tung | L7: Manuelle Gewichtung (skaliert) | N7: Nicht in KNA ent-halten
E8: Investor ASTRA | F8: Betreiber ASTRA | G8: Strassen-benutzer | H8: Anwohner | I8: Region
B9: Anteil Teilgewichte für Hauptgewichtung | E9: =[1]KWA!D5 -> 0.4 | F9: =[1]KWA!E5 -> 0.2 | G9: =[1]KWA!F5 -> 0.16 | H9: =[1]KWA!G5 -> 0.14 | I9: =[1]KWA!H5 -> 0.1 | J9: Sensitivität | L9: Sensitivität
B11: Verkehrsqualität
B12: =NummerVQ1w -> VQ1w | C12: =NameVQ1w -> Reisezeit Stammverkehr | D12: =SUMPRODUCT($E$9:$I$9,E12:I12) -> 0.0896 | E12: =[1]KWA!D8 -> 0.1 | F12: =[1]KWA!E8 -> 0.02 | G12: =[1]KWA!F8 -> 0.2 | H12: =[1]KWA!G8 -> 0.04 | I12: =[1]KWA!H8 -> 0.08 | L12: =IF($J$42=0,"",J12/$J$42) -> 
B13: =NummerVQ2w -> VQ2w | C13: =NameVQ2w -> Zuverlässigkeit | D13: =SUMPRODUCT($E$9:$I$9,E13:I13) -> 0.1096 | E13: =[1]KWA!D9 -> 0.12 | F13: =[1]KWA!E9 -> 0.14 | G13: =[1]KWA!F9 -> 0.14 | H13: =[1]KWA!G9 -> 0.03 | I13: =[1]KWA!H9 -> 0.07 | L13: =IF($J$42=0,"",J13/$J$42) -> 
B14: =NummerVQ3w -> VQ3w | C14: =NameVQ3w -> Betriebskosten Fahrzeuge Stammverkehr | D14: 0.0204 | E14: =[1]KWA!D10 -> 0.03 | F14: =[1]KWA!E10 -> 0 | G14: =[1]KWA!F10 -> 0.04 | H14: =[1]KWA!G10 -> 0 | I14: =[1]KWA!H10 -> 0.02 | L14: =IF($J$42=0,"",J14/$J$42) -> 
B15: =NummerVQ4w -> VQ4w | C15: =NameVQ4w -> Auswirkungen auf den ÖV | D15: 0.0302 | E15: =[1]KWA!D11 -> 0.04 | F15: =[1]KWA!E11 -> 0 | G15: =[1]KWA!F11 -> 0 | H15: =[1]KWA!G11 -> 0.03 | I15: =[1]KWA!H11 -> 0.1
B16: =NummerVQ5 -> VQ5 | C16: =NameVQ5 -> Streckenredundanz | D16: 0.0716 | E16: =[1]KWA!D12 -> 0.05 | F16: =[1]KWA!E12 -> 0.16 | G16: =[1]KWA!F12 -> 0.08 | H16: =[1]KWA!G12 -> 0.02 | I16: =[1]KWA!H12 -> 0.04 | L16: =IF($J$42=0,"",J16/$J$42) ->  | N16: X
B17: =NummerVQ6 -> VQ6 | C17: =NameVQ6 -> Entlastung nachgelagertes Netz | D17: 0.0598 | E17: =[1]KWA!D13 -> 0.04 | F17: =[1]KWA!E13 -> 0.08 | G17: =[1]KWA!F13 -> 0.06 | H17: =[1]KWA!G13 -> 0.08 | I17: =[1]KWA!H13 -> 0.07 | L17: =IF($J$42=0,"",J17/$J$42) ->  | N17: X
B18: =NummerVQ7w -> VQ7w | C18: =NameVQ7w -> Nutzen durch Mehrverkehr | D18: 0.0204 | E18: =[1]KWA!D14 -> 0.03 | F18: =[1]KWA!E14 -> 0 | G18: =[1]KWA!F14 -> 0.04 | H18: =[1]KWA!G14 -> 0 | I18: =[1]KWA!H14 -> 0.02 | L18: =IF($J$42=0,"",J18/$J$42) -> 
B19: Total VQ | D19: =SUM(D12:D18) -> 0.4016 | E19: =SUM(E12:E18) -> 0.41 | F19: 0.4 | G19: 0.56 | H19: 0.2 | I19: 0.4 | J19: 0 | L19: 0
B21: Sicherheit
B22: =NummerSI1w -> SI1w | C22: =NameSI1w -> Unfälle | D22: =SUMPRODUCT($E$9:$I$9,E22:I22) -> 0.1104 | E22: =[1]KWA!D18 -> 0.09 | F22: =[1]KWA!E18 -> 0.18 | G22: =[1]KWA!F18 -> 0.18 | H22: =[1]KWA!G18 -> 0.04 | I22: =[1]KWA!H18 -> 0.04 | L22: =IF($J$42=0,"",J22/$J$42) -> 
B23: =NummerSI2 -> SI2 | C23: =NameSI2 -> Betriebsqualität, Betriebssicherheit | D23: 0.0704 | E23: =[1]KWA!D19 -> 0.07 | F23: =[1]KWA!E19 -> 0.18 | G23: =[1]KWA!F19 -> 0.04 | H23: =[1]KWA!G19 -> 0 | I23: =[1]KWA!H19 -> 0 | L23: =IF($J$42=0,"",J23/$J$42) ->  | N23: X
B24: =NummerSI3w -> SI3w | C24: =NameSI3w -> Polizeiliche Verkehrsregelung | D24: 0.0192 | E24: =[1]KWA!D20 -> 0.02 | F24: =[1]KWA!E20 -> 0.04 | G24: =[1]KWA!F20 -> 0.02 | H24: =[1]KWA!G20 -> 0 | I24: =[1]KWA!H20 -> 0 | L24: =IF($J$42=0,"",J24/$J$42) -> 
B25: Total SI | D25: =SUM(D22:D24) -> 0.2 | E25: =SUM(E22:E24) -> 0.18 | F25: 0.4 | G25: 0.24 | H25: 0.04 | I25: 0.04 | J25: 0 | L25: 0
B27: Siedlungsentwicklung
B28: =NummerSE1 -> SE1 | C28: =NameSE1 -> Wohnlichkeit | D28: =SUMPRODUCT($E$9:$I$9,E28:I28) -> 0.0552 | E28: =[1]KWA!D24 -> 0.05 | F28: =[1]KWA!E24 -> 0 | G28: =[1]KWA!F24 -> 0.02 | H28: =[1]KWA!G24 -> 0.2 | I28: =[1]KWA!H24 -> 0.04 | L28: =IF($J$42=0,"",J28/$J$42) ->  | N28: X
B29: =NummerSE2 -> SE2 | C29: =NameSE2 -> Potenzial für Siedlungsentwicklung | D29: 0.0444 | E29: =[1]KWA!D25 -> 0.05 | F29: =[1]KWA!E25 -> 0 | G29: =[1]KWA!F25 -> 0.02 | H29: =[1]KWA!G25 -> 0.08 | I29: =[1]KWA!H25 -> 0.1 | N29: X
B30: =NummerSE3 -> SE3 | C30: =NameSE3 -> Erreichbarkeit Siedlungsschwerpunkte | D30: 0.0564 | E30: =[1]KWA!D26 -> 0.05 | F30: =[1]KWA!E26 -> 0 | G30: =[1]KWA!F26 -> 0.04 | H30: =[1]KWA!G26 -> 0.1 | I30: =[1]KWA!H26 -> 0.16 | N30: X
B31: =NummerSE4 -> SE4 | C31: =NameSE4 -> Orts- und Landschaftsbild | D31: 0.0412 | E31: =[1]KWA!D27 -> 0.05 | F31: =[1]KWA!E27 -> 0 | G31: =[1]KWA!F27 -> 0.02 | H31: =[1]KWA!G27 -> 0.1 | I31: =[1]KWA!H27 -> 0.04 | N31: X
B32: Total SE | D32: =SUM(D28:D31) -> 0.1972 | E32: =SUM(E28:E31) -> 0.2 | F32: 0 | G32: 0.1 | H32: 0.48 | I32: 0.34 | J32: 0 | L32: 0
B34: Umwelt
B35: =NummerUW1w -> UW1w | C35: =NameUW1w -> Lärm- und Luftbelastung | D35: =SUMPRODUCT($E$9:$I$9,E35:I35) -> 0.0572 | E35: =[1]KWA!D31 -> 0.06 | F35: =[1]KWA!E31 -> 0.04 | G35: =[1]KWA!F31 -> 0.02 | H35: =[1]KWA!G31 -> 0.1 | I35: =[1]KWA!H31 -> 0.08 | L35: =IF($J$42=0,"",J35/$J$42) -> 
B36: =NummerUW2 -> UW2 | C36: =NameUW2 -> Lebensräume und Gewässer | D36: 0.0304 | E36: =[1]KWA!D32 -> 0.03 | F36: =[1]KWA!E32 -> 0.04 | G36: =[1]KWA!F32 -> 0.02 | H36: =[1]KWA!G32 -> 0.03 | I36: =[1]KWA!H32 -> 0.03 | N36: X
B37: =NummerUW3w -> UW3w | C37: =NameUW3w -> Flächenbeanspruchung und Boden | D37: 0.0318 | E37: =[1]KWA!D33 -> 0.03 | F37: =[1]KWA!E33 -> 0.04 | G37: =[1]KWA!F33 -> 0.02 | H37: =[1]KWA!G33 -> 0.04 | I37: =[1]KWA!H33 -> 0.03
B38: =NummerUW4w -> UW4w | C38: =NameUW4w -> Klimabelastung | D38: 0.0606 | E38: =[1]KWA!D34 -> 0.07 | F38: =[1]KWA!E34 -> 0.06 | G38: =[1]KWA!F34 -> 0.03 | H38: =[1]KWA!G34 -> 0.07 | I38: =[1]KWA!H34 -> 0.06
B39: =NummerUW5 -> UW5 | C39: =NameUW5 -> Belastung während der Bauphase | D39: 0.0212 | E39: =[1]KWA!D35 -> 0.02 | F39: =[1]KWA!E35 -> 0.02 | G39: =[1]KWA!F35 -> 0.01 | H39: =[1]KWA!G35 -> 0.04 | I39: =[1]KWA!H35 -> 0.02 | N39: X
B40: Total UW | D40: =SUM(D35:D39) -> 0.2012 | E40: =SUM(E35:E39) -> 0.21 | F40: 0.2 | G40: 0.1 | H40: 0.28 | I40: 0.22 | J40: 0 | L40: 0
B42: Gesamttotal | D42: =SUM(D19,D25,D32,D40) -> 1 | E42: =SUM(E19,E25,E32,E40) -> 1 | F42: 1 | G42: 1 | H42: 1 | I42: 1 | J42: 0 | L42: 0 | N42: =COUNTIF(N12:N39,"X") -> 9
B44: Wahl Ausgestaltung der Bewertungsfunktionen der KWA
N52: => Kommentarblatt
B53: =[1]INTRO!$B$4 -> eNISTRA 2022 | N53: => Zusammenfassung KWA
B56: WahlMaxPunktzahl
B57: 1 | C57: =IF(B57=1,"15 Punkte","Kein Maximum") -> 15 Punkte
C61: Skalierung KWA
H63: Maximum = | I63: 1 Punkt = | J63: Einheit
C64: Verkehrsqualität
C65: VQ1 Reisezeit Stammverkehr | G65: Gesamtwirkung: 15 Punkte = | H65: =[1]KWA!M7 -> 4500 | I65: =H65/15 -> 300 | J65: ph (DTV)
C66: VQ2 Zuverlässigkeit | G66: Veränderung: 3 Punkte = | H66: =[1]KWA!M8 -> 18 | I66: =H66/3 -> 6 | J66: Veränderung bereinigter LOS-Mittelwert
G67: Betroffenheit: 5 Punkte = | H67: =[1]KWA!M9 -> 50000 | I67: =H67/5 -> 10000 | J67: Fzkm in Spitzenstunde (ASP)
C68: VQ3 Betriebskosten Fahrzeuge Stammverkehr | G68: Gesamtwirkung: 15 Punkte = | H68: =[1]KWA!M10 -> 120000 | I68: =H68/15 -> 8000 | J68: Fzkm pro Tag
C69: VQ4 Auswirkungen auf den ÖV | G69: Gesamtwirkung: 15 Punkte = | H69: =[1]KWA!M11 -> 240000 | I69: =H69/15 -> 16000 | J69: pkm pro Tag
C70: VQ5 Streckenredundanz | G70: Betroffenheit: 5 Punkte = | H70: =[1]KWA!M12 -> 50000 | I70: =H70/5 -> 10000 | J70: Fzg (DTV)
C71: VQ6 Verkehrsentlastung | G71: Veränderung: 3 Punkte = | H71: =[1]KWA!M13 -> 0.4 | I71: =H71/3 -> 0.1333333333 | J71: Delta Verkehrsbelastung in %
G72: Betroffenheit: 5 Punkte = | H72: =[1]KWA!M14 -> 10 | I72: =H72/5 -> 2 | J72: Streckenlänge in km
C73: VQ7 Nutzen durch Mehrverkehr | G73: Gesamtwirkung: 15 Punkte = | H73: =[1]KWA!M15 -> 1200 | I73: =H73/15 -> 80 | J73: ph pro Tag
C74: Sicherheit
C75: SI1 Verkehrssicherheit | G75: Gesamtwirkung: 15 Punkte = | H75: =[1]KWA!M17 -> 150 | I75: =H75/15 -> 10 | J75: Unfallgleichwerte pro Jahr
C76: SI2 Betriebsqualität | G76: Betroffenheit: 5 Punkte = | H76: =[1]KWA!M18 -> 1000000 | I76: =H76/5 -> 200000 | J76: Fzkm pro Tag
C77: SI3 Polizeil. Verkehrsregelung/Überwachung | G77: Gesamtwirkung: 15 Punkte = | H77: =[1]KWA!M19 -> 60000 | I77: =H77/15 -> 4000 | J77: Gewichtete Fzkm pro Tag
C78: Siedlungsentwicklung
C79: SE1 Wohnlichkeit | G79: Betroffenheit: 5 Punkte = | H79: =[1]KWA!M21 -> 5000 | I79: =H79/5 -> 1000 | J79: Personen (Einwohner)
C80: SE2 Potenzial Siedlungsentwicklung | G80: Betroffenheit: 5 Punkte = | H80: =[1]KWA!M22 -> 150 | I80: =H80/5 -> 30 | J80: Delta zum Max. [EW+VZÄ/ha Bauzone]
C81: SE3 Erreichbarkeit Siedlungsschwerpunkte | G81: Betroffenheit: 5 Punkte = | H81: =[1]KWA!M23 -> 300 | I81: =H81/4 -> 75 | J81: Grösse ESP in ha
C82: Umwelt
C83: UW1 Luft- und Lärmbelastung | G83: Nationalstrasse
G84: Veränderung: 3 Punkte = | H84: =[1]KWA!M26 -> 0.3 | I84: =H84/3 -> 0.1 | J84: Delta Verkehrsbelastung in %
G85: Veränderung: 3 Punkte = | H85: =[1]KWA!M27 -> 0.5 | I85: =H85/3 -> 0.1666666667 | J85: Tunnelstrecke in %
G86: Betroffenheit: 5 Punkte = | H86: =[1]KWA!M28 -> 5000 | I86: =+H86/5 -> 1000 | J86: Personen (Einwohner)
G87: Nachgelagertes Netz
G88: Veränderung: 3 Punkte = | H88: =[1]KWA!M30 -> 0.3 | I88: =H88/3 -> 0.1 | J88: Delta Verkehrsbelastung in %
C89: UW3 Flächenbeanspruchung | G89: Veränderung: 3 Punkte = | H89: =[1]KWA!M31 -> 10 | I89: =H89/3 -> 3.333333333 | J89: versiegelte Fläche in ha
C90: UW4 Klimabelastung | G90: Gesamtwirkung: 15 Punkte = | H90: =[1]KWA!M32 -> 7500 | I90: =H90/15 -> 500 | J90: CO2-Äquivalente in t/a
C91: UW5 Umweltbelastung Bauphase | G91: Betroffenheit: 5 Punkte = | H91: =[1]KWA!M33 -> 15 | I91: =H91/5 -> 3 | J91: Streckenlänge in km

Sheet Inputdaten
B2: Gemeinsame Inputdaten
B5: In diesem Tabellenblatt werden Daten eingegeben, die bei mehreren Indikatoren benötigt werden.
B6: Daten, die nur bei einem Indikator verwendet werden, sind beim entsprechenden Indikator einzugeben.
B7: Veränderung der Fzkm in der Betriebsphase
B10: Die folgenden Daten werden bei den folgenden Indikatoren verwendet:
B11: VQ8 | C11: =INDIRECT("Name"&B11) -> Einnahmen Steuer und Maut Stammverkehr
B12: SI1n | C12: =INDIRECT("Name"&B12) & " (vereinfachte Methode)" -> Unfälle (vereinfachte Methode)
B13: SI3n | C13: =INDIRECT("Name"&B13) -> Polizeiliche Verkehrsregelung
B14: UW1n_Luft | C14: =INDIRECT("Name"&B14) -> Luftbelastung
B15: UW1n_Lärm | C15: =INDIRECT("Name"&B15) & " (vereinfachte Methode)" -> Lärmbelastete Personen (vereinfachte Methode)
B16: UW4n | C16: =INDIRECT("Name"&B16) -> Klimabelastung
B17: UW6 | C17: =INDIRECT("Name"&B17) -> Vor- und nachgelagerte Prozesse
D19: Nettoeffekt in Mio. Fzkm (Projektfall - Referenzfall): Autobahn, bebautes Gebiet | O19: Hilfstabelle: 1 = Eingabe, 0 = keine Eingabe
D20: Personenverkehr | I20: Güterverkehr | L20: Æ PV und GV | M20: Total | O20: Personenverkehr | T20: Güterverkehr | W20: Æ PV und GV
C21: Jahr | D21: PW | E21: Bus | F21: Car | G21: MZ | H21: Æ PV | I21: Li | J21: SNF | K21: Æ GV | O21: PW | P21: Bus | Q21: Car | R21: MZ | S21: Æ PV | T21: Li | U21: SNF | V21: Æ GV
C22: =VerkehrsmodellJahr1 -> 0 | M22: =SUM(D22:L22) -> 0 | O22: =IF(AND($C22<>0,D22<>""),1,0) -> 0 | P22: =IF(AND($C22<>0,E22<>""),1,0) -> 0 | Q22: =IF(AND($C22<>0,F22<>""),1,0) -> 0 | R22: =IF(AND($C22<>0,G22<>""),1,0) -> 0 | S22: =IF(AND($C22<>0,H22<>""),1,0) -> 0 | T22: =IF(AND($C22<>0,I22<>""),1,0) -> 0 | U22: =IF(AND($C22<>0,J22<>""),1,0) -> 0 | V22: =IF(AND($C22<>0,K22<>""),1,0) -> 0 | W22: =IF(AND($C22<>0,L22<>""),1,0) -> 0
C23: =VerkehrsmodellJahr2 -> 0 | M23: =SUM(D23:L23) -> 0 | O23: =IF(AND($C23<>0,D23<>""),1,0) -> 0 | P23: 0 | Q23: 0 | R23: 0 | S23: 0 | T23: 0 | U23: 0 | V23: 0 | W23: 0
C24: =VerkehrsmodellJahr3 -> 0 | M24: 0 | O24: 0 | P24: 0 | Q24: 0 | R24: 0 | S24: 0 | T24: 0 | U24: 0 | V24: 0 | W24: 0
C25: =VerkehrsmodellJahr4 -> 0 | M25: 0 | O25: 0 | P25: 0 | Q25: 0 | R25: 0 | S25: 0 | T25: 0 | U25: 0 | V25: 0 | W25: 0
C26: =VerkehrsmodellJahr5 -> 0 | M26: 0 | O26: 0 | P26: 0 | Q26: 0 | R26: 0 | S26: 0 | T26: 0 | U26: 0 | V26: 0 | W26: 0
C27: =VerkehrsmodellJahr6 -> 0 | M27: 0 | O27: 0 | P27: 0 | Q27: 0 | R27: 0 | S27: 0 | T27: 0 | U27: 0 | V27: 0 | W27: 0
C28: =VerkehrsmodellJahr7 -> 0 | M28: 0 | O28: 0 | P28: 0 | Q28: 0 | R28: 0 | S28: 0 | T28: 0 | U28: 0 | V28: 0 | W28: 0
B29: PW = Personenwagen, Bus = Linienbus ÖV, Car = Privatcar, MZ = motorisierte Zweiräder, Li = Lieferwagen, SNF = Schwere Nutzfahrzeuge | O29: =SUMPRODUCT(ABS(D22:D28),O22:O28) -> 0 | P29: =SUMPRODUCT(ABS(E22:E28),P22:P28) -> 0 | Q29: =SUMPRODUCT(ABS(F22:F28),Q22:Q28) -> 0 | R29: =SUMPRODUCT(ABS(G22:G28),R22:R28) -> 0 | S29: =SUMPRODUCT(ABS(H22:H28),S22:S28) -> 0 | T29: =SUMPRODUCT(ABS(I22:I28),T22:T28) -> 0 | U29: =SUMPRODUCT(ABS(J22:J28),U22:U28) -> 0 | V29: =SUMPRODUCT(ABS(K22:K28),V22:V28) -> 0 | W29: =SUMPRODUCT(ABS(L22:L28),W22:W28) -> 0 | X29: Summenprodukt
D31: Nettoeffekt in Mio. Fzkm (Projektfall - Referenzfall): Autobahn, unbebautes Gebiet | O31: Hilfstabelle: 1 = Eingabe, 0 = keine Eingabe
D32: Personenverkehr | I32: Güterverkehr | L32: Æ PV und GV | M32: Total | O32: Personenverkehr | T32: Güterverkehr | W32: Æ PV und GV
C33: Jahr | D33: PW | E33: Bus | F33: Car | G33: MZ | H33: Æ PV | I33: Li | J33: SNF | K33: Æ GV | O33: PW | P33: Bus | Q33: Car | R33: MZ | S33: Æ PV | T33: Li | U33: SNF | V33: Æ GV
C34: =C22 -> 0 | M34: =SUM(D34:L34) -> 0 | O34: =IF(AND($C34<>0,D34<>""),1,0) -> 0 | P34: =IF(AND($C34<>0,E34<>""),1,0) -> 0 | Q34: =IF(AND($C34<>0,F34<>""),1,0) -> 0 | R34: =IF(AND($C34<>0,G34<>""),1,0) -> 0 | S34: =IF(AND($C34<>0,H34<>""),1,0) -> 0 | T34: =IF(AND($C34<>0,I34<>""),1,0) -> 0 | U34: =IF(AND($C34<>0,J34<>""),1,0) -> 0 | V34: =IF(AND($C34<>0,K34<>""),1,0) -> 0 | W34: =IF(AND($C34<>0,L34<>""),1,0) -> 0
C35: 0 | M35: =SUM(D35:L35) -> 0 | O35: =IF(AND($C35<>0,D35<>""),1,0) -> 0 | P35: 0 | Q35: 0 | R35: 0 | S35: 0 | T35: 0 | U35: 0 | V35: 0 | W35: 0
C36: 0 | M36: 0 | O36: 0 | P36: 0 | Q36: 0 | R36: 0 | S36: 0 | T36: 0 | U36: 0 | V36: 0 | W36: 0
C37: 0 | M37: 0 | O37: 0 | P37: 0 | Q37: 0 | R37: 0 | S37: 0 | T37: 0 | U37: 0 | V37: 0 | W37: 0
C38: 0 | M38: 0 | O38: 0 | P38: 0 | Q38: 0 | R38: 0 | S38: 0 | T38: 0 | U38: 0 | V38: 0 | W38: 0
C39: 0 | M39: 0 | O39: 0 | P39: 0 | Q39: 0 | R39: 0 | S39: 0 | T39: 0 | U39: 0 | V39: 0 | W39: 0
C40: 0 | M40: 0 | O40: 0 | P40: 0 | Q40: 0 | R40: 0 | S40: 0 | T40: 0 | U40: 0 | V40: 0 | W40: 0
B41: PW = Personenwagen, Bus = Linienbus ÖV, Car = Privatcar, MZ = motorisierte Zweiräder, Li = Lieferwagen, SNF = Schwere Nutzfahrzeuge | O41: =SUMPRODUCT(ABS(D34:D40),O34:O40) -> 0 | P41: =SUMPRODUCT(ABS(E34:E40),P34:P40) -> 0 | Q41: =SUMPRODUCT(ABS(F34:F40),Q34:Q40) -> 0 | R41: =SUMPRODUCT(ABS(G34:G40),R34:R40) -> 0 | S41: =SUMPRODUCT(ABS(H34:H40),S34:S40) -> 0 | T41: =SUMPRODUCT(ABS(I34:I40),T34:T40) -> 0 | U41: =SUMPRODUCT(ABS(J34:J40),U34:U40) -> 0 | V41: =SUMPRODUCT(ABS(K34:K40),V34:V40) -> 0 | W41: =SUMPRODUCT(ABS(L34:L40),W34:W40) -> 0 | X41: Summenprodukt
D43: Nettoeffekt in Mio. Fzkm (Projektfall - Referenzfall): ausserorts, bebautes Gebiet | O43: Hilfstabelle: 1 = Eingabe, 0 = keine Eingabe
D44: Personenverkehr | I44: Güterverkehr | L44: Æ PV und GV | M44: Total | O44: Personenverkehr | T44: Güterverkehr | W44: Æ PV und GV
C45: Jahr | D45: PW | E45: Bus | F45: Car | G45: MZ | H45: Æ PV | I45: Li | J45: SNF | K45: Æ GV | O45: PW | P45: Bus | Q45: Car | R45: MZ | S45: Æ PV | T45: Li | U45: SNF | V45: Æ GV
C46: =C34 -> 0 | M46: =SUM(D46:L46) -> 0 | O46: =IF(AND($C46<>0,D46<>""),1,0) -> 0 | P46: =IF(AND($C46<>0,E46<>""),1,0) -> 0 | Q46: =IF(AND($C46<>0,F46<>""),1,0) -> 0 | R46: =IF(AND($C46<>0,G46<>""),1,0) -> 0 | S46: =IF(AND($C46<>0,H46<>""),1,0) -> 0 | T46: =IF(AND($C46<>0,I46<>""),1,0) -> 0 | U46: =IF(AND($C46<>0,J46<>""),1,0) -> 0 | V46: =IF(AND($C46<>0,K46<>""),1,0) -> 0 | W46: =IF(AND($C46<>0,L46<>""),1,0) -> 0
C47: =C35 -> 0 | M47: =SUM(D47:L47) -> 0 | O47: =IF(AND($C47<>0,D47<>""),1,0) -> 0 | P47: 0 | Q47: 0 | R47: 0 | S47: 0 | T47: 0 | U47: 0 | V47: 0 | W47: 0
C48: 0 | M48: 0 | O48: 0 | P48: 0 | Q48: 0 | R48: 0 | S48: 0 | T48: 0 | U48: 0 | V48: 0 | W48: 0
C49: 0 | M49: 0 | O49: 0 | P49: 0 | Q49: 0 | R49: 0 | S49: 0 | T49: 0 | U49: 0 | V49: 0 | W49: 0
C50: 0 | M50: 0 | O50: 0 | P50: 0 | Q50: 0 | R50: 0 | S50: 0 | T50: 0 | U50: 0 | V50: 0 | W50: 0
C51: 0 | M51: 0 | O51: 0 | P51: 0 | Q51: 0 | R51: 0 | S51: 0 | T51: 0 | U51: 0 | V51: 0 | W51: 0
C52: 0 | M52: 0 | O52: 0 | P52: 0 | Q52: 0 | R52: 0 | S52: 0 | T52: 0 | U52: 0 | V52: 0 | W52: 0
B53: PW = Personenwagen, Bus = Linienbus ÖV, Car = Privatcar, MZ = motorisierte Zweiräder, Li = Lieferwagen, SNF = Schwere Nutzfahrzeuge | O53: =SUMPRODUCT(ABS(D46:D52),O46:O52) -> 0 | P53: =SUMPRODUCT(ABS(E46:E52),P46:P52) -> 0 | Q53: =SUMPRODUCT(ABS(F46:F52),Q46:Q52) -> 0 | R53: =SUMPRODUCT(ABS(G46:G52),R46:R52) -> 0 | S53: =SUMPRODUCT(ABS(H46:H52),S46:S52) -> 0 | T53: =SUMPRODUCT(ABS(I46:I52),T46:T52) -> 0 | U53: =SUMPRODUCT(ABS(J46:J52),U46:U52) -> 0 | V53: =SUMPRODUCT(ABS(K46:K52),V46:V52) -> 0 | W53: =SUMPRODUCT(ABS(L46:L52),W46:W52) -> 0 | X53: Summenprodukt
D55: Nettoeffekt in Mio. Fzkm (Projektfall - Referenzfall): ausserorts, unbebautes Gebiet | O55: Hilfstabelle: 1 = Eingabe, 0 = keine Eingabe
D56: Personenverkehr | I56: Güterverkehr | L56: Æ PV und GV | M56: Total | O56: Personenverkehr | T56: Güterverkehr | W56: Æ PV und GV
C57: Jahr | D57: PW | E57: Bus | F57: Car | G57: MZ | H57: Æ PV | I57: Li | J57: SNF | K57: Æ GV | O57: PW | P57: Bus | Q57: Car | R57: MZ | S57: Æ PV | T57: Li | U57: SNF | V57: Æ GV
C58: =C46 -> 0 | M58: =SUM(D58:L58) -> 0 | O58: =IF(AND($C58<>0,D58<>""),1,0) -> 0 | P58: =IF(AND($C58<>0,E58<>""),1,0) -> 0 | Q58: =IF(AND($C58<>0,F58<>""),1,0) -> 0 | R58: =IF(AND($C58<>0,G58<>""),1,0) -> 0 | S58: =IF(AND($C58<>0,H58<>""),1,0) -> 0 | T58: =IF(AND($C58<>0,I58<>""),1,0) -> 0 | U58: =IF(AND($C58<>0,J58<>""),1,0) -> 0 | V58: =IF(AND($C58<>0,K58<>""),1,0) -> 0 | W58: =IF(AND($C58<>0,L58<>""),1,0) -> 0
C59: =C47 -> 0 | M59: =SUM(D59:L59) -> 0 | O59: =IF(AND($C59<>0,D59<>""),1,0) -> 0 | P59: 0 | Q59: 0 | R59: 0 | S59: 0 | T59: 0 | U59: 0 | V59: 0 | W59: 0
C60: 0 | M60: 0 | O60: 0 | P60: 0 | Q60: 0 | R60: 0 | S60: 0 | T60: 0 | U60: 0 | V60: 0 | W60: 0
C61: 0 | M61: 0 | O61: 0 | P61: 0 | Q61: 0 | R61: 0 | S61: 0 | T61: 0 | U61: 0 | V61: 0 | W61: 0
C62: 0 | M62: 0 | O62: 0 | P62: 0 | Q62: 0 | R62: 0 | S62: 0 | T62: 0 | U62: 0 | V62: 0 | W62: 0
C63: 0 | M63: 0 | O63: 0 | P63: 0 | Q63: 0 | R63: 0 | S63: 0 | T63: 0 | U63: 0 | V63: 0 | W63: 0
C64: 0 | M64: 0 | O64: 0 | P64: 0 | Q64: 0 | R64: 0 | S64: 0 | T64: 0 | U64: 0 | V64: 0 | W64: 0
B65: PW = Personenwagen, Bus = Linienbus ÖV, Car = Privatcar, MZ = motorisierte Zweiräder, Li = Lieferwagen, SNF = Schwere Nutzfahrzeuge | O65: =SUMPRODUCT(ABS(D58:D64),O58:O64) -> 0 | P65: =SUMPRODUCT(ABS(E58:E64),P58:P64) -> 0 | Q65: =SUMPRODUCT(ABS(F58:F64),Q58:Q64) -> 0 | R65: =SUMPRODUCT(ABS(G58:G64),R58:R64) -> 0 | S65: =SUMPRODUCT(ABS(H58:H64),S58:S64) -> 0 | T65: =SUMPRODUCT(ABS(I58:I64),T58:T64) -> 0 | U65: =SUMPRODUCT(ABS(J58:J64),U58:U64) -> 0 | V65: =SUMPRODUCT(ABS(K58:K64),V58:V64) -> 0 | W65: =SUMPRODUCT(ABS(L58:L64),W58:W64) -> 0 | X65: Summenprodukt
D67: Nettoeffekt in Mio. Fzkm (Projektfall - Referenzfall): innerorts, bebautes Gebiet | O67: Hilfstabelle: 1 = Eingabe, 0 = keine Eingabe
D68: Personenverkehr | I68: Güterverkehr | L68: Æ PV und GV | M68: Total | O68: Personenverkehr | T68: Güterverkehr | W68: Æ PV und GV
C69: Jahr | D69: PW | E69: Bus | F69: Car | G69: MZ | H69: Æ PV | I69: Li | J69: SNF | K69: Æ GV | O69: PW | P69: Bus | Q69: Car | R69: MZ | S69: Æ PV | T69: Li | U69: SNF | V69: Æ GV
C70: =C58 -> 0 | M70: =SUM(D70:L70) -> 0 | O70: =IF(AND($C70<>0,D70<>""),1,0) -> 0 | P70: =IF(AND($C70<>0,E70<>""),1,0) -> 0 | Q70: =IF(AND($C70<>0,F70<>""),1,0) -> 0 | R70: =IF(AND($C70<>0,G70<>""),1,0) -> 0 | S70: =IF(AND($C70<>0,H70<>""),1,0) -> 0 | T70: =IF(AND($C70<>0,I70<>""),1,0) -> 0 | U70: =IF(AND($C70<>0,J70<>""),1,0) -> 0 | V70: =IF(AND($C70<>0,K70<>""),1,0) -> 0 | W70: =IF(AND($C70<>0,L70<>""),1,0) -> 0
C71: =C59 -> 0 | M71: =SUM(D71:L71) -> 0 | O71: =IF(AND($C71<>0,D71<>""),1,0) -> 0 | P71: 0 | Q71: 0 | R71: 0 | S71: 0 | T71: 0 | U71: 0 | V71: 0 | W71: 0
C72: 0 | M72: 0 | O72: 0 | P72: 0 | Q72: 0 | R72: 0 | S72: 0 | T72: 0 | U72: 0 | V72: 0 | W72: 0
C73: 0 | M73: 0 | O73: 0 | P73: 0 | Q73: 0 | R73: 0 | S73: 0 | T73: 0 | U73: 0 | V73: 0 | W73: 0
C74: 0 | M74: 0 | O74: 0 | P74: 0 | Q74: 0 | R74: 0 | S74: 0 | T74: 0 | U74: 0 | V74: 0 | W74: 0
C75: 0 | M75: 0 | O75: 0 | P75: 0 | Q75: 0 | R75: 0 | S75: 0 | T75: 0 | U75: 0 | V75: 0 | W75: 0
C76: 0 | M76: 0 | O76: 0 | P76: 0 | Q76: 0 | R76: 0 | S76: 0 | T76: 0 | U76: 0 | V76: 0 | W76: 0
B77: PW = Personenwagen, Bus = Linienbus ÖV, Car = Privatcar, MZ = motorisierte Zweiräder, Li = Lieferwagen, SNF = Schwere Nutzfahrzeuge | O77: =SUMPRODUCT(ABS(D70:D76),O70:O76) -> 0 | P77: =SUMPRODUCT(ABS(E70:E76),P70:P76) -> 0 | Q77: =SUMPRODUCT(ABS(F70:F76),Q70:Q76) -> 0 | R77: =SUMPRODUCT(ABS(G70:G76),R70:R76) -> 0 | S77: =SUMPRODUCT(ABS(H70:H76),S70:S76) -> 0 | T77: =SUMPRODUCT(ABS(I70:I76),T70:T76) -> 0 | U77: =SUMPRODUCT(ABS(J70:J76),U70:U76) -> 0 | V77: =SUMPRODUCT(ABS(K70:K76),V70:V76) -> 0 | W77: =SUMPRODUCT(ABS(L70:L76),W70:W76) -> 0 | X77: Summenprodukt
D79: Nettoeffekt in Mio. Fzkm (Projektfall - Referenzfall): innerorts, unbebautes Gebiet | O79: Hilfstabelle: 1 = Eingabe, 0 = keine Eingabe
D80: Personenverkehr | I80: Güterverkehr | L80: Æ PV und GV | M80: Total | O80: Personenverkehr | T80: Güterverkehr | W80: Æ PV und GV
C81: Jahr | D81: PW | E81: Bus | F81: Car | G81: MZ | H81: Æ PV | I81: Li | J81: SNF | K81: Æ GV | O81: PW | P81: Bus | Q81: Car | R81: MZ | S81: Æ PV | T81: Li | U81: SNF | V81: Æ GV
C82: =C70 -> 0 | M82: =SUM(D82:L82) -> 0 | O82: =IF(AND($C82<>0,D82<>""),1,0) -> 0 | P82: =IF(AND($C82<>0,E82<>""),1,0) -> 0 | Q82: =IF(AND($C82<>0,F82<>""),1,0) -> 0 | R82: =IF(AND($C82<>0,G82<>""),1,0) -> 0 | S82: =IF(AND($C82<>0,H82<>""),1,0) -> 0 | T82: =IF(AND($C82<>0,I82<>""),1,0) -> 0 | U82: =IF(AND($C82<>0,J82<>""),1,0) -> 0 | V82: =IF(AND($C82<>0,K82<>""),1,0) -> 0 | W82: =IF(AND($C82<>0,L82<>""),1,0) -> 0
C83: =C71 -> 0 | M83: =SUM(D83:L83) -> 0 | O83: =IF(AND($C83<>0,D83<>""),1,0) -> 0 | P83: 0 | Q83: 0 | R83: 0 | S83: 0 | T83: 0 | U83: 0 | V83: 0 | W83: 0
C84: 0 | M84: 0 | O84: 0 | P84: 0 | Q84: 0 | R84: 0 | S84: 0 | T84: 0 | U84: 0 | V84: 0 | W84: 0
C85: 0 | M85: 0 | O85: 0 | P85: 0 | Q85: 0 | R85: 0 | S85: 0 | T85: 0 | U85: 0 | V85: 0 | W85: 0
C86: 0 | M86: 0 | O86: 0 | P86: 0 | Q86: 0 | R86: 0 | S86: 0 | T86: 0 | U86: 0 | V86: 0 | W86: 0
C87: 0 | M87: 0 | O87: 0 | P87: 0 | Q87: 0 | R87: 0 | S87: 0 | T87: 0 | U87: 0 | V87: 0 | W87: 0
C88: 0 | M88: 0 | O88: 0 | P88: 0 | Q88: 0 | R88: 0 | S88: 0 | T88: 0 | U88: 0 | V88: 0 | W88: 0
B89: PW = Personenwagen, Bus = Linienbus ÖV, Car = Privatcar, MZ = motorisierte Zweiräder, Li = Lieferwagen, SNF = Schwere Nutzfahrzeuge | O89: =SUMPRODUCT(ABS(D82:D88),O82:O88) -> 0 | P89: =SUMPRODUCT(ABS(E82:E88),P82:P88) -> 0 | Q89: =SUMPRODUCT(ABS(F82:F88),Q82:Q88) -> 0 | R89: =SUMPRODUCT(ABS(G82:G88),R82:R88) -> 0 | S89: =SUMPRODUCT(ABS(H82:H88),S82:S88) -> 0 | T89: =SUMPRODUCT(ABS(I82:I88),T82:T88) -> 0 | U89: =SUMPRODUCT(ABS(J82:J88),U82:U88) -> 0 | V89: =SUMPRODUCT(ABS(K82:K88),V82:V88) -> 0 | W89: =SUMPRODUCT(ABS(L82:L88),W82:W88) -> 0 | X89: Summenprodukt
O90: =O89+O77+O65+O53+O41+O29 -> 0 | P90: =P89+P77+P65+P53+P41+P29 -> 0 | Q90: 0 | R90: 0 | S90: 0 | T90: 0 | U90: 0 | V90: 0 | W90: 0 | X90: Total alle 6 Strassentypen
B91: Veränderung der Fzkm während der Bauphase
B94: Die folgenden Daten werden bei den folgenden Indikatoren verwendet:
B95: VQ3n | C95: =INDIRECT("Name"&B95) -> Betriebskosten Fahrzeuge Stammverkehr
B96: SI1n | C96: =INDIRECT("Name"&B96) -> Unfälle
B97: SI3n | C97: =INDIRECT("Name"&B97) -> Polizeiliche Verkehrsregelung
B98: UW1n_Luft | C98: =INDIRECT("Name"&B98) -> Luftbelastung
B99: UW1n_Lärm | C99: =INDIRECT("Name"&B99) & " (vereinfachte Methode)" -> Lärmbelastete Personen (vereinfachte Methode)
B100: UW4n | C100: =INDIRECT("Name"&B100) -> Klimabelastung
B101: UW6 | C101: =INDIRECT("Name"&B101) -> Vor- und nachgelagerte Prozesse
P102: Für Datenüberprüfung von H101
F103: Dauer der Umleitung während Bauphase: | G103: Beginn | I103: Dauer | K103: =IF(J103=1,"Jahr","Jahre") -> Jahre | O103: Baubeginn | P103: =Baubeginn -> 0
O104: Inbetriebnahme letzte Etappe | P104: =MAX(Inbetriebnahme,Inbetriebnahme_letzte_Etappe) -> 0
D105: Æ Umwegfahrten in Mio. Fzkm pro Jahr (Dauer der Umleitung)
D106: Personenverkehr | I106: Güterverkehr | L106: Æ PV und GV | M106: Total
D107: PW | E107: Bus | F107: Car | G107: MZ | H107: Æ PV | I107: Li | J107: SNF | K107: Æ GV
C108: Autobahn, bebautes Gebiet | M108: =SUM(D108:L108) -> 0
C109: Autobahn, unbebautes Gebiet | M109: 0
C110: ausserorts, bebautes Gebiet | M110: 0
C111: ausserorts, unbebautes Gebiet | M111: 0
C112: innerorts, bebautes Gebiet | M112: 0
C113: innerorts, unbebautes Gebiet | M113: 0
C114: Mio. Fzh | E114: ---- | M114: =SUM(D114:L114) -> 0
B115: PW = Personenwagen, Bus = Linienbus ÖV, Car = Privatcar, MZ = motorisierte Zweiräder, Li = Lieferwagen, SNF = Schwere Nutzfahrzeuge
B118: Anteile der Fzkm auf Autobahnen, ausserorts und innerorts
B120: Für Berechnung der Anteile der Elektro-, Benzin- und Dieselfahrzeuge.
C122: Anteil der Fzkm
C123: Personenverkehr | H123: Güterverkehr | K123: Æ PV und GV
C124: PW | D124: Bus | E124: Car | F124: MZ | G124: Æ PV | H124: Li | I124: SNF | J124: Æ GV
B125: Vorgabewerte | O125: Schweizer Durchschnitt
B126: Autobahn | C126: =IF(O$90=0,$O126,(O29+O41)/O90) -> 0.3581529582 | D126: 0.3581529582 | E126: 0.3581529582 | F126: 0.3581529582 | G126: 0.3581529582 | H126: 0.3581529582 | I126: 0.3581529582 | J126: 0.3581529582 | K126: 0.3581529582 | O126: =[1]HBEFA!M66 -> 0.3581529582
B127: ausserorts | C127: =IF(O$90=0,$O127,(O53+O65)/O$90) -> 0.3342857143 | D127: 0.3342857143 | E127: 0.3342857143 | F127: 0.3342857143 | G127: 0.3342857143 | H127: 0.3342857143 | I127: 0.3342857143 | J127: 0.3342857143 | K127: 0.3342857143 | O127: =[1]HBEFA!M67 -> 0.3342857143
B128: innerorts | C128: =IF(O$90=0,$O128,(O77+O89)/O$90) -> 0.3075613276 | D128: 0.3075613276 | E128: 0.3075613276 | F128: 0.3075613276 | G128: 0.3075613276 | H128: 0.3075613276 | I128: 0.3075613276 | J128: 0.3075613276 | K128: 0.3075613276 | O128: =[1]HBEFA!M68 -> 0.3075613276
B129: Total | C129: =SUM(C126:C128) -> 1 | D129: =SUM(D126:D128) -> 1 | E129: 1 | F129: 1 | G129: 1 | H129: 1 | I129: 1 | J129: 1 | K129: 1
B130: Eingabewerte
B131: Autobahn | C131: =C126 -> 0.3581529582 | D131: =D126 -> 0.3581529582 | E131: 0.3581529582 | F131: 0.3581529582 | G131: 0.3581529582 | H131: 0.3581529582 | I131: 0.3581529582 | J131: 0.3581529582 | K131: 0.3581529582 | O131: Keine Differenzierung nach Jahren, sonst zu komplex (scheingenau)
B132: ausserorts | C132: =C127 -> 0.3342857143 | D132: 0.3342857143 | E132: 0.3342857143 | F132: 0.3342857143 | G132: 0.3342857143 | H132: 0.3342857143 | I132: 0.3342857143 | J132: 0.3342857143 | K132: 0.3342857143 | O132: Diese Gewichtung wird nur für Berechnung unten verwendet.
B133: innerorts | C133: =C128 -> 0.3075613276 | D133: 0.3075613276 | E133: 0.3075613276 | F133: 0.3075613276 | G133: 0.3075613276 | H133: 0.3075613276 | I133: 0.3075613276 | J133: 0.3075613276 | K133: 0.3075613276
B134: Total | C134: =SUM(C131:C133) -> 1 | D134: =SUM(D131:D133) -> 1 | E134: =SUM(E131:E133) -> 1 | F134: =SUM(F131:F133) -> 1 | G134: =SUM(G131:G133) -> 1 | H134: =SUM(H131:H133) -> 1 | I134: =SUM(I131:I133) -> 1 | J134: =SUM(J131:J133) -> 1 | K134: =SUM(K131:K133) -> 1
B135: Verwendete Werte
B136: Autobahn | C136: =C131/C$134 -> 0.3581529582 | D136: 0.3581529582 | E136: 0.3581529582 | F136: 0.3581529582 | G136: 0.3581529582 | H136: 0.3581529582 | I136: 0.3581529582 | J136: 0.3581529582 | K136: 0.3581529582
B137: ausserorts | C137: =C132/C$134 -> 0.3342857143 | D137: 0.3342857143 | E137: 0.3342857143 | F137: 0.3342857143 | G137: 0.3342857143 | H137: 0.3342857143 | I137: 0.3342857143 | J137: 0.3342857143 | K137: 0.3342857143
B138: innerorts | C138: =C133/C$134 -> 0.3075613276 | D138: 0.3075613276 | E138: 0.3075613276 | F138: 0.3075613276 | G138: 0.3075613276 | H138: 0.3075613276 | I138: 0.3075613276 | J138: 0.3075613276 | K138: 0.3075613276
B139: Total | C139: =SUM(C136:C138) -> 1 | D139: =SUM(D136:D138) -> 1 | E139: =SUM(E136:E138) -> 1 | F139: =SUM(F136:F138) -> 1 | G139: =SUM(G136:G138) -> 1 | H139: =SUM(H136:H138) -> 1 | I139: =SUM(I136:I138) -> 1 | J139: =SUM(J136:J138) -> 1 | K139: =SUM(K136:K138) -> 1
B140: PW = Personenwagen, Bus = Linienbus ÖV, Car = Privatcar, MZ = motorisierte Zweiräder, Li = Lieferwagen, SNF = Schwere Nutzfahrzeuge
B142: Bemerkungen / Begründung | M142: => Kommentarblatt
B165: =[1]INTRO!$B$4 -> eNISTRA 2022
B167: Herleitung von Anteil Diesel- und Elektro-Fahrzeuge
B169: Dieselanteil an Fzkm (Vorgabewerte aus HBEFA)
B170: Verwendete Werte unten werden für die Indikatoren VQ3, VQ8, VQ9, VQ10 und UW6 verwendet.
B172: Dieselanteil | C172: Personenverkehr | H172: Güterverkehr | K172: Æ PV und GV
B173: Autobahn | C173: PW | D173: Bus | E173: Car | F173: MZ | G173: Æ PV | H173: Li | I173: SNF | J173: Æ GV
B174: 2015 | C174: =[1]HBEFA!B918 -> 0.411042273 | D174: =[1]HBEFA!C918 -> 0.9946432978 | E174: =[1]HBEFA!D918 -> 0.9999999404 | F174: =[1]HBEFA!E918 -> 0 | G174: =[1]HBEFA!F918 -> 0.3986879025 | H174: =[1]HBEFA!G918 -> 0.884668529 | I174: =[1]HBEFA!H918 -> 0.9921342324 | J174: =[1]HBEFA!I918 -> 0.9193703023 | K174: =[1]HBEFA!J918 -> 0.4507596838
B175: =B174+1 -> 2016 | C175: =[1]HBEFA!B919 -> 0.4306580722 | D175: =[1]HBEFA!C919 -> 0.994691001 | E175: =[1]HBEFA!D919 -> 1 | F175: =[1]HBEFA!E919 -> 0 | G175: =[1]HBEFA!F919 -> 0.4176050236 | H175: =[1]HBEFA!G919 -> 0.8934539557 | I175: =[1]HBEFA!H919 -> 0.9923895175 | J175: =[1]HBEFA!I919 -> 0.9254012591 | K175: =[1]HBEFA!J919 -> 0.4683881008
B176: 2017 | C176: =[1]HBEFA!B920 -> 0.4380176365 | D176: =[1]HBEFA!C920 -> 0.9953836728 | E176: =[1]HBEFA!D920 -> 0.9999999404 | F176: =[1]HBEFA!E920 -> 0 | G176: =[1]HBEFA!F920 -> 0.4247024539 | H176: =[1]HBEFA!G920 -> 0.9008726478 | I176: =[1]HBEFA!H920 -> 0.9927057915 | J176: =[1]HBEFA!I920 -> 0.9305265078 | K176: =[1]HBEFA!J920 -> 0.4752882995
B177: 2018 | C177: =[1]HBEFA!B921 -> 0.4397192943 | D177: =[1]HBEFA!C921 -> 0.9922345205 | E177: =[1]HBEFA!D921 -> 0.999583602 | F177: =[1]HBEFA!E921 -> 0 | G177: =[1]HBEFA!F921 -> 0.4263425499 | H177: =[1]HBEFA!G921 -> 0.9083477855 | I177: =[1]HBEFA!H921 -> 0.9933686103 | J177: =[1]HBEFA!I921 -> 0.9358018782 | K177: =[1]HBEFA!J921 -> 0.4772919478
B178: 2019 | C178: =[1]HBEFA!B922 -> 0.4407771791 | D178: =[1]HBEFA!C922 -> 0.99149967 | E178: =[1]HBEFA!D922 -> 0.9992395639 | F178: =[1]HBEFA!E922 -> 0 | G178: =[1]HBEFA!F922 -> 0.4273619683 | H178: =[1]HBEFA!G922 -> 0.9120280147 | I178: =[1]HBEFA!H922 -> 0.9931340575 | J178: =[1]HBEFA!I922 -> 0.9382179843 | K178: =[1]HBEFA!J922 -> 0.4784510444
B179: 2020 | C179: =[1]HBEFA!B923 -> 0.4336375167 | D179: =[1]HBEFA!C923 -> 0.9903892479 | E179: =[1]HBEFA!D923 -> 0.9990240335 | F179: =[1]HBEFA!E923 -> 0 | G179: =[1]HBEFA!F923 -> 0.4204761146 | H179: =[1]HBEFA!G923 -> 0.9124805927 | I179: =[1]HBEFA!H923 -> 0.9982979391 | J179: =[1]HBEFA!I923 -> 0.9401918904 | K179: =[1]HBEFA!J923 -> 0.4724512269
B180: 2021 | C180: =[1]HBEFA!B924 -> 0.4443366189 | D180: =[1]HBEFA!C924 -> 0.988115423 | E180: =[1]HBEFA!D924 -> 0.9989681081 | F180: =[1]HBEFA!E924 -> 0 | G180: =[1]HBEFA!F924 -> 0.4307940069 | H180: =[1]HBEFA!G924 -> 0.9213612434 | I180: =[1]HBEFA!H924 -> 0.9967423266 | J180: =[1]HBEFA!I924 -> 0.9457025651 | K180: =[1]HBEFA!J924 -> 0.4822883648
B181: 2022 | C181: =[1]HBEFA!B925 -> 0.4493612186 | D181: =[1]HBEFA!C925 -> 0.9851047952 | E181: =[1]HBEFA!D925 -> 0.9990574014 | F181: =[1]HBEFA!E925 -> 0 | G181: =[1]HBEFA!F925 -> 0.4356398439 | H181: =[1]HBEFA!G925 -> 0.9219041257 | I181: =[1]HBEFA!H925 -> 0.9946383599 | J181: =[1]HBEFA!I925 -> 0.9453907528 | K181: =[1]HBEFA!J925 -> 0.4866184017
B182: 2023 | C182: =[1]HBEFA!B926 -> 0.4533034489 | D182: =[1]HBEFA!C926 -> 0.9809411504 | E182: =[1]HBEFA!D926 -> 0.9991440894 | F182: =[1]HBEFA!E926 -> 0 | G182: =[1]HBEFA!F926 -> 0.4394418574 | H182: =[1]HBEFA!G926 -> 0.9213009095 | I182: =[1]HBEFA!H926 -> 0.9919677617 | J182: =[1]HBEFA!I926 -> 0.9441199578 | K182: =[1]HBEFA!J926 -> 0.4899130999
B183: 2024 | C183: =[1]HBEFA!B927 -> 0.456146358 | D183: =[1]HBEFA!C927 -> 0.9755082705 | E183: =[1]HBEFA!D927 -> 0.9992127959 | F183: =[1]HBEFA!E927 -> 0 | G183: =[1]HBEFA!F927 -> 0.4421836646 | H183: =[1]HBEFA!G927 -> 0.919617861 | I183: =[1]HBEFA!H927 -> 0.9887298439 | J183: =[1]HBEFA!I927 -> 0.9419348262 | K183: =[1]HBEFA!J927 -> 0.4921621797
B184: 2025 | C184: =[1]HBEFA!B928 -> 0.4579229513 | D184: =[1]HBEFA!C928 -> 0.9690309094 | E184: =[1]HBEFA!D928 -> 0.9992740769 | F184: =[1]HBEFA!E928 -> 0 | G184: =[1]HBEFA!F928 -> 0.443897119 | H184: =[1]HBEFA!G928 -> 0.9168954231 | I184: =[1]HBEFA!H928 -> 0.9848984117 | J184: =[1]HBEFA!I928 -> 0.9388542827 | K184: =[1]HBEFA!J928 -> 0.4933962017
B185: 2026 | C185: =[1]HBEFA!B929 -> 0.4549600035 | D185: =[1]HBEFA!C929 -> 0.9584499063 | E185: =[1]HBEFA!D929 -> 0.9993410259 | F185: =[1]HBEFA!E929 -> 0 | G185: =[1]HBEFA!F929 -> 0.4410398589 | H185: =[1]HBEFA!G929 -> 0.9125956073 | I185: =[1]HBEFA!H929 -> 0.9805378141 | J185: =[1]HBEFA!I929 -> 0.9345348398 | K185: =[1]HBEFA!J929 -> 0.4903927134
B186: 2027 | C186: =[1]HBEFA!B930 -> 0.4501835331 | D186: =[1]HBEFA!C930 -> 0.9443762615 | E186: =[1]HBEFA!D930 -> 0.9994043261 | F186: =[1]HBEFA!E930 -> 0 | G186: =[1]HBEFA!F930 -> 0.4364336622 | H186: =[1]HBEFA!G930 -> 0.9067911142 | I186: =[1]HBEFA!H930 -> 0.9756167498 | J186: =[1]HBEFA!I930 -> 0.9290156149 | K186: =[1]HBEFA!J930 -> 0.4856952077
B187: 2028 | C187: =[1]HBEFA!B931 -> 0.4436542895 | D187: =[1]HBEFA!C931 -> 0.926528343 | E187: =[1]HBEFA!D931 -> 0.9994602688 | F187: =[1]HBEFA!E931 -> 0 | G187: =[1]HBEFA!F931 -> 0.4301371059 | H187: =[1]HBEFA!G931 -> 0.8995076306 | I187: =[1]HBEFA!H931 -> 0.9700912917 | J187: =[1]HBEFA!I931 -> 0.9222998157 | K187: =[1]HBEFA!J931 -> 0.4793567243
B188: 2029 | C188: =[1]HBEFA!B932 -> 0.4355124719 | D188: =[1]HBEFA!C932 -> 0.9052677279 | E188: =[1]HBEFA!D932 -> 0.9995320067 | F188: =[1]HBEFA!E932 -> 0 | G188: =[1]HBEFA!F932 -> 0.4222854488 | H188: =[1]HBEFA!G932 -> 0.8905469831 | I188: =[1]HBEFA!H932 -> 0.9639938017 | J188: =[1]HBEFA!I932 -> 0.914263711 | K188: =[1]HBEFA!J932 -> 0.4714866211
B189: 2030 | C189: =[1]HBEFA!B933 -> 0.425863836 | D189: =[1]HBEFA!C933 -> 0.8803937318 | E189: =[1]HBEFA!D933 -> 0.9995859861 | F189: =[1]HBEFA!E933 -> 0 | G189: =[1]HBEFA!F933 -> 0.4129806026 | H189: =[1]HBEFA!G933 -> 0.8802347109 | I189: =[1]HBEFA!H933 -> 0.9575119726 | J189: =[1]HBEFA!I933 -> 0.905188328 | K189: =[1]HBEFA!J933 -> 0.4622047228
B190: 2031 | C190: =[1]HBEFA!B934 -> 0.4146282747 | D190: =[1]HBEFA!C934 -> 0.8541267723 | E190: =[1]HBEFA!D934 -> 0.9989579991 | F190: =[1]HBEFA!E934 -> 0 | G190: =[1]HBEFA!F934 -> 0.4021437954 | H190: =[1]HBEFA!G934 -> 0.8676090203 | I190: =[1]HBEFA!H934 -> 0.950752032 | J190: =[1]HBEFA!I934 -> 0.894456748 | K190: =[1]HBEFA!J934 -> 0.451378439
B191: 2032 | C191: =[1]HBEFA!B935 -> 0.401943218 | D191: =[1]HBEFA!C935 -> 0.8266796579 | E191: =[1]HBEFA!D935 -> 0.9976781979 | F191: =[1]HBEFA!E935 -> 0 | G191: =[1]HBEFA!F935 -> 0.3899076308 | H191: =[1]HBEFA!G935 -> 0.8526117802 | I191: =[1]HBEFA!H935 -> 0.9438178968 | J191: =[1]HBEFA!I935 -> 0.8820631668 | K191: =[1]HBEFA!J935 -> 0.4391265317
B192: 2033 | C192: =[1]HBEFA!B936 -> 0.3878349029 | D192: =[1]HBEFA!C936 -> 0.7980099963 | E192: =[1]HBEFA!D936 -> 0.995766446 | F192: =[1]HBEFA!E936 -> 0 | G192: =[1]HBEFA!F936 -> 0.3762974569 | H192: =[1]HBEFA!G936 -> 0.8352737874 | I192: =[1]HBEFA!H936 -> 0.9368081857 | J192: =[1]HBEFA!I936 -> 0.8680602816 | K192: =[1]HBEFA!J936 -> 0.425477084
B193: 2034 | C193: =[1]HBEFA!B937 -> 0.3723691814 | D193: =[1]HBEFA!C937 -> 0.7683255921 | E193: =[1]HBEFA!D937 -> 0.9932436943 | F193: =[1]HBEFA!E937 -> 0 | G193: =[1]HBEFA!F937 -> 0.3613768281 | H193: =[1]HBEFA!G937 -> 0.8155765459 | I193: =[1]HBEFA!H937 -> 0.9297782406 | J193: =[1]HBEFA!I937 -> 0.8524534395 | K193: =[1]HBEFA!J937 -> 0.4104878292
B194: 2035 | C194: =[1]HBEFA!B938 -> 0.3556186259 | D194: =[1]HBEFA!C938 -> 0.7377226166 | E194: =[1]HBEFA!D938 -> 0.9901307672 | F194: =[1]HBEFA!E938 -> 0 | G194: =[1]HBEFA!F938 -> 0.3452157794 | H194: =[1]HBEFA!G938 -> 0.7935978919 | I194: =[1]HBEFA!H938 -> 0.9228301626 | J194: =[1]HBEFA!I938 -> 0.835328312 | K194: =[1]HBEFA!J938 -> 0.394230366
B195: 2036 | C195: =[1]HBEFA!B939 -> 0.3395721205 | D195: =[1]HBEFA!C939 -> 0.7073239841 | E195: =[1]HBEFA!D939 -> 0.9864366651 | F195: =[1]HBEFA!E939 -> 0 | G195: =[1]HBEFA!F939 -> 0.3297323751 | H195: =[1]HBEFA!G939 -> 0.7690990455 | I195: =[1]HBEFA!H939 -> 0.9157278929 | J195: =[1]HBEFA!I939 -> 0.816446998 | K195: =[1]HBEFA!J939 -> 0.3784071477
B196: 2037 | C196: =[1]HBEFA!B940 -> 0.3224966452 | D196: =[1]HBEFA!C940 -> 0.6773746729 | E196: =[1]HBEFA!D940 -> 0.9821717292 | F196: =[1]HBEFA!E940 -> 0 | G196: =[1]HBEFA!F940 -> 0.3132553459 | H196: =[1]HBEFA!G940 -> 0.7420639656 | I196: =[1]HBEFA!H940 -> 0.9084926862 | J196: =[1]HBEFA!I940 -> 0.7958054994 | K196: =[1]HBEFA!J940 -> 0.3615136432
B197: 2038 | C197: =[1]HBEFA!B941 -> 0.3044887185 | D197: =[1]HBEFA!C941 -> 0.6482311096 | E197: =[1]HBEFA!D941 -> 0.9773744494 | F197: =[1]HBEFA!E941 -> 0 | G197: =[1]HBEFA!F941 -> 0.2958778605 | H197: =[1]HBEFA!G941 -> 0.7124394551 | I197: =[1]HBEFA!H941 -> 0.9011522438 | J197: =[1]HBEFA!I941 -> 0.773376742 | K197: =[1]HBEFA!J941 -> 0.3436309963
B198: 2039 | C198: =[1]HBEFA!B942 -> 0.285658747 | D198: =[1]HBEFA!C942 -> 0.6197565208 | E198: =[1]HBEFA!D942 -> 0.9720717818 | F198: =[1]HBEFA!E942 -> 0 | G198: =[1]HBEFA!F942 -> 0.2777064545 | H198: =[1]HBEFA!G942 -> 0.6802099943 | I198: =[1]HBEFA!H942 -> 0.893743502 | J198: =[1]HBEFA!I942 -> 0.7491621449 | K198: =[1]HBEFA!J942 -> 0.32485523
B199: 2040 | C199: =[1]HBEFA!B943 -> 0.2661305368 | D199: =[1]HBEFA!C943 -> 0.5919798706 | E199: =[1]HBEFA!D943 -> 0.9657239616 | F199: =[1]HBEFA!E943 -> 0 | G199: =[1]HBEFA!F943 -> 0.2588592904 | H199: =[1]HBEFA!G943 -> 0.6453187764 | I199: =[1]HBEFA!H943 -> 0.8863112275 | J199: =[1]HBEFA!I943 -> 0.7231377002 | K199: =[1]HBEFA!J943 -> 0.3052902891
B200: 2041 | C200: =[1]HBEFA!B944 -> 0.2471794114 | D200: =[1]HBEFA!C944 -> 0.5639562188 | E200: =[1]HBEFA!D944 -> 0.9577810913 | F200: =[1]HBEFA!E944 -> 0 | G200: =[1]HBEFA!F944 -> 0.2405650098 | H200: =[1]HBEFA!G944 -> 0.6101039797 | I200: =[1]HBEFA!H944 -> 0.878800204 | J200: =[1]HBEFA!I944 -> 0.6968687349 | K200: =[1]HBEFA!J944 -> 0.2861984858
B201: 2042 | C201: =[1]HBEFA!B945 -> 0.2288876101 | D201: =[1]HBEFA!C945 -> 0.5359866372 | E201: =[1]HBEFA!D945 -> 0.9482460618 | F201: =[1]HBEFA!E945 -> 0 | G201: =[1]HBEFA!F945 -> 0.2229029295 | H201: =[1]HBEFA!G945 -> 0.5746799931 | I201: =[1]HBEFA!H945 -> 0.8712326325 | J201: =[1]HBEFA!I945 -> 0.6704398692 | K201: =[1]HBEFA!J945 -> 0.2676596673
B202: 2043 | C202: =[1]HBEFA!B946 -> 0.2113185525 | D202: =[1]HBEFA!C946 -> 0.5077578892 | E202: =[1]HBEFA!D946 -> 0.9372282028 | F202: =[1]HBEFA!E946 -> 0 | G202: =[1]HBEFA!F946 -> 0.20593446 | H202: =[1]HBEFA!G946 -> 0.5392512828 | I202: =[1]HBEFA!H946 -> 0.8636337686 | J202: =[1]HBEFA!I946 -> 0.6439977006 | K202: =[1]HBEFA!J946 -> 0.2497437635
B203: 2044 | C203: =[1]HBEFA!B947 -> 0.1944808438 | D203: =[1]HBEFA!C947 -> 0.4793525811 | E203: =[1]HBEFA!D947 -> 0.9247368574 | F203: =[1]HBEFA!E947 -> 0 | G203: =[1]HBEFA!F947 -> 0.1896679215 | H203: =[1]HBEFA!G947 -> 0.5040507093 | I203: =[1]HBEFA!H947 -> 0.8560079094 | J203: =[1]HBEFA!I947 -> 0.617701284 | K203: =[1]HBEFA!J947 -> 0.232474169
B204: 2045 | C204: =[1]HBEFA!B948 -> 0.1784111597 | D204: =[1]HBEFA!C948 -> 0.4508604862 | E204: =[1]HBEFA!D948 -> 0.9108627737 | F204: =[1]HBEFA!E948 -> 0 | G204: =[1]HBEFA!F948 -> 0.1741388908 | H204: =[1]HBEFA!G948 -> 0.4692017436 | I204: =[1]HBEFA!H948 -> 0.8483773358 | J204: =[1]HBEFA!I948 -> 0.5916414151 | K204: =[1]HBEFA!J948 -> 0.2158919827
B205: 2046 | C205: =[1]HBEFA!B949 -> 0.1630145237 | D205: =[1]HBEFA!C949 -> 0.4214435297 | E205: =[1]HBEFA!D949 -> 0.8938133717 | F205: =[1]HBEFA!E949 -> 0 | G205: =[1]HBEFA!F949 -> 0.1592516761 | H205: =[1]HBEFA!G949 -> 0.4355435297 | I205: =[1]HBEFA!H949 -> 0.8399487622 | J205: =[1]HBEFA!I949 -> 0.5661301097 | K205: =[1]HBEFA!J949 -> 0.1999422867
B206: 2047 | C206: =[1]HBEFA!B950 -> 0.1483364813 | D206: =[1]HBEFA!C950 -> 0.3911861426 | E206: =[1]HBEFA!D950 -> 0.8736025989 | F206: =[1]HBEFA!E950 -> 0 | G206: =[1]HBEFA!F950 -> 0.1450502325 | H206: =[1]HBEFA!G950 -> 0.403093487 | I206: =[1]HBEFA!H950 -> 0.8307430185 | J206: =[1]HBEFA!I950 -> 0.5411858886 | K206: =[1]HBEFA!J950 -> 0.1846664924
B207: 2048 | C207: =[1]HBEFA!B951 -> 0.1343945898 | D207: =[1]HBEFA!C951 -> 0.3601491499 | E207: =[1]HBEFA!D951 -> 0.8504089713 | F207: =[1]HBEFA!E951 -> 0 | G207: =[1]HBEFA!F951 -> 0.1315519002 | H207: =[1]HBEFA!G951 -> 0.3719106689 | I207: =[1]HBEFA!H951 -> 0.8207688257 | J207: =[1]HBEFA!I951 -> 0.5168515522 | K207: =[1]HBEFA!J951 -> 0.1700844859
B208: 2049 | C208: =[1]HBEFA!B952 -> 0.1212219372 | D208: =[1]HBEFA!C952 -> 0.3285087213 | E208: =[1]HBEFA!D952 -> 0.8243126869 | F208: =[1]HBEFA!E952 -> 0 | G208: =[1]HBEFA!F952 -> 0.1187887719 | H208: =[1]HBEFA!G952 -> 0.342059873 | I208: =[1]HBEFA!H952 -> 0.810051118 | J208: =[1]HBEFA!I952 -> 0.4931790259 | K208: =[1]HBEFA!J952 -> 0.1562303436
B209: 2050 | C209: =[1]HBEFA!B953 -> 0.1088701375 | D209: =[1]HBEFA!C953 -> 0.2962209893 | E209: =[1]HBEFA!D953 -> 0.7959993184 | F209: =[1]HBEFA!E953 -> 0 | G209: =[1]HBEFA!F953 -> 0.1068121905 | H209: =[1]HBEFA!G953 -> 0.3136829659 | I209: =[1]HBEFA!H953 -> 0.7986147394 | J209: =[1]HBEFA!I953 -> 0.4702723885 | K209: =[1]HBEFA!J953 -> 0.1431606823
B210: 2051 | C210: =[1]HBEFA!B954 -> 0.09751329198 | D210: =[1]HBEFA!C954 -> 0.2659564848 | E210: =[1]HBEFA!D954 -> 0.7654927075 | F210: =[1]HBEFA!E954 -> 0 | G210: =[1]HBEFA!F954 -> 0.0957901108 | H210: =[1]HBEFA!G954 -> 0.2867926508 | I210: =[1]HBEFA!H954 -> 0.7851630971 | J210: =[1]HBEFA!I954 -> 0.4477215581 | K210: =[1]HBEFA!J954 -> 0.1309856491
B211: 2052 | C211: =[1]HBEFA!B955 -> 0.08716243505 | D211: =[1]HBEFA!C955 -> 0.2377157811 | E211: =[1]HBEFA!D955 -> 0.7336179912 | F211: =[1]HBEFA!E955 -> 0 | G211: =[1]HBEFA!F955 -> 0.08573506048 | H211: =[1]HBEFA!G955 -> 0.2615057714 | I211: =[1]HBEFA!H955 -> 0.769776707 | J211: =[1]HBEFA!I955 -> 0.4256316478 | K211: =[1]HBEFA!J955 -> 0.119727031
B212: 2053 | C212: =[1]HBEFA!B956 -> 0.07778215781 | D212: =[1]HBEFA!C956 -> 0.2114716918 | E212: =[1]HBEFA!D956 -> 0.7011431754 | F212: =[1]HBEFA!E956 -> 0 | G212: =[1]HBEFA!F956 -> 0.07661464767 | H212: =[1]HBEFA!G956 -> 0.237888772 | I212: =[1]HBEFA!H956 -> 0.7524683904 | J212: =[1]HBEFA!I956 -> 0.4040517865 | K212: =[1]HBEFA!J956 -> 0.1093605885
B213: 2054 | C213: =[1]HBEFA!B957 -> 0.06931918673 | D213: =[1]HBEFA!C957 -> 0.1871249135 | E213: =[1]HBEFA!D957 -> 0.668805033 | F213: =[1]HBEFA!E957 -> 0 | G213: =[1]HBEFA!F957 -> 0.06837918075 | H213: =[1]HBEFA!G957 -> 0.2159610093 | I213: =[1]HBEFA!H957 -> 0.7332805828 | J213: =[1]HBEFA!I957 -> 0.3830087833 | K213: =[1]HBEFA!J957 -> 0.09984428089
B214: 2055 | C214: =[1]HBEFA!B958 -> 0.06171601266 | D214: =[1]HBEFA!C958 -> 0.1646988113 | E214: =[1]HBEFA!D958 -> 0.6372976601 | F214: =[1]HBEFA!E958 -> 0 | G214: =[1]HBEFA!F958 -> 0.06097478576 | H214: =[1]HBEFA!G958 -> 0.1956679299 | I214: =[1]HBEFA!H958 -> 0.7123120972 | J214: =[1]HBEFA!I958 -> 0.3624976084 | K214: =[1]HBEFA!J958 -> 0.09112911877
B215: 2056 | C215: =[1]HBEFA!B959 -> 0.05490851775 | D215: =[1]HBEFA!C959 -> 0.1441856185 | E215: =[1]HBEFA!D959 -> 0.6075366735 | F215: =[1]HBEFA!E959 -> 0 | G215: =[1]HBEFA!F959 -> 0.0543417219 | H215: =[1]HBEFA!G959 -> 0.1769433171 | I215: =[1]HBEFA!H959 -> 0.6868830142 | J215: =[1]HBEFA!I959 -> 0.3416080536 | K215: =[1]HBEFA!J959 -> 0.08307030886
B216: 2057 | C216: =[1]HBEFA!B960 -> 0.04883010313 | D216: =[1]HBEFA!C960 -> 0.1255862736 | E216: =[1]HBEFA!D960 -> 0.5796337426 | F216: =[1]HBEFA!E960 -> 0 | G216: =[1]HBEFA!F960 -> 0.04841601772 | H216: =[1]HBEFA!G960 -> 0.1597386673 | I216: =[1]HBEFA!H960 -> 0.6570157537 | J216: =[1]HBEFA!I960 -> 0.3203145175 | K216: =[1]HBEFA!J960 -> 0.07560771696
B217: 2058 | C217: =[1]HBEFA!B961 -> 0.04341202602 | D217: =[1]HBEFA!C961 -> 0.1088124947 | E217: =[1]HBEFA!D961 -> 0.5537153929 | F217: =[1]HBEFA!E961 -> 0 | G217: =[1]HBEFA!F961 -> 0.04313166818 | H217: =[1]HBEFA!G961 -> 0.1440122724 | I217: =[1]HBEFA!H961 -> 0.6227334081 | J217: =[1]HBEFA!I961 -> 0.2985962166 | K217: =[1]HBEFA!J961 -> 0.06867986051
B218: 2059 | C218: =[1]HBEFA!B962 -> 0.03859221935 | D218: =[1]HBEFA!C962 -> 0.09387407197 | E218: =[1]HBEFA!D962 -> 0.5298050046 | F218: =[1]HBEFA!E962 -> 0 | G218: =[1]HBEFA!F962 -> 0.03842887039 | H218: =[1]HBEFA!G962 -> 0.1297332402 | I218: =[1]HBEFA!H962 -> 0.5840940692 | J218: =[1]HBEFA!I962 -> 0.2764509926 | K218: =[1]HBEFA!J962 -> 0.06223270147
B219: 2060 | C219: =[1]HBEFA!B963 -> 0.03431228921 | D219: =[1]HBEFA!C963 -> 0.08058352002 | E219: =[1]HBEFA!D963 -> 0.5080140978 | F219: =[1]HBEFA!E963 -> 0 | G219: =[1]HBEFA!F963 -> 0.03425156526 | H219: =[1]HBEFA!G963 -> 0.1168353762 | I219: =[1]HBEFA!H963 -> 0.5412414537 | J219: =[1]HBEFA!I963 -> 0.2538804334 | K219: =[1]HBEFA!J963 -> 0.05621594583
B221: Dieselanteil | C221: Personenverkehr | H221: Güterverkehr | K221: Æ PV und GV
B222: Ausserorts | C222: PW | D222: Bus | E222: Car | F222: MZ | G222: Æ PV | H222: Li | I222: SNF | J222: Æ GV
B223: 2015 | C223: =[1]HBEFA!B967 -> 0.4000083804 | D223: =[1]HBEFA!C967 -> 0.9946432977 | E223: =[1]HBEFA!D967 -> 0.9999999404 | F223: =[1]HBEFA!E967 -> 0 | G223: =[1]HBEFA!F967 -> 0.3909708376 | H223: =[1]HBEFA!G967 -> 0.8872671723 | I223: =[1]HBEFA!H967 -> 0.9879091305 | J223: =[1]HBEFA!I967 -> 0.9197654886 | K223: =[1]HBEFA!J967 -> 0.4436243815
B224: =B223+1 -> 2016 | C224: =[1]HBEFA!B968 -> 0.4146074355 | D224: =[1]HBEFA!C968 -> 0.994691001 | E224: =[1]HBEFA!D968 -> 1 | F224: =[1]HBEFA!E968 -> 0 | G224: =[1]HBEFA!F968 -> 0.40498227 | H224: =[1]HBEFA!G968 -> 0.8959622383 | I224: =[1]HBEFA!H968 -> 0.9883325037 | J224: =[1]HBEFA!I968 -> 0.9257895404 | K224: =[1]HBEFA!J968 -> 0.4568404883
B225: 2017 | C225: =[1]HBEFA!B969 -> 0.4212699831 | D225: =[1]HBEFA!C969 -> 0.9953836727 | E225: =[1]HBEFA!D969 -> 0.9999999404 | F225: =[1]HBEFA!E969 -> 0 | G225: =[1]HBEFA!F969 -> 0.4113798787 | H225: =[1]HBEFA!G969 -> 0.9032968879 | I225: =[1]HBEFA!H969 -> 0.9887912385 | J225: =[1]HBEFA!I969 -> 0.9309038869 | K225: =[1]HBEFA!J969 -> 0.463110319
B226: 2018 | C226: =[1]HBEFA!B970 -> 0.420659436 | D226: =[1]HBEFA!C970 -> 0.9922345201 | E226: =[1]HBEFA!D970 -> 0.9993699193 | F226: =[1]HBEFA!E970 -> 0 | G226: =[1]HBEFA!F970 -> 0.4107773037 | H226: =[1]HBEFA!G970 -> 0.9099370241 | I226: =[1]HBEFA!H970 -> 0.9899439828 | J226: =[1]HBEFA!I970 -> 0.9357720882 | K226: =[1]HBEFA!J970 -> 0.4630524844
B227: 2019 | C227: =[1]HBEFA!B971 -> 0.420984551 | D227: =[1]HBEFA!C971 -> 0.9914996695 | E227: =[1]HBEFA!D971 -> 0.9988504648 | F227: =[1]HBEFA!E971 -> 0 | G227: =[1]HBEFA!F971 -> 0.4110846037 | H227: =[1]HBEFA!G971 -> 0.9134592414 | I227: =[1]HBEFA!H971 -> 0.989636949 | J227: =[1]HBEFA!I971 -> 0.9380578012 | K227: =[1]HBEFA!J971 -> 0.4635567804
B228: 2020 | C228: =[1]HBEFA!B972 -> 0.4133116748 | D228: =[1]HBEFA!C972 -> 0.9903892477 | E228: =[1]HBEFA!D972 -> 0.9985442162 | F228: =[1]HBEFA!E972 -> 0 | G228: =[1]HBEFA!F972 -> 0.4037146382 | H228: =[1]HBEFA!G972 -> 0.9137842059 | I228: =[1]HBEFA!H972 -> 0.9974508407 | J228: =[1]HBEFA!I972 -> 0.9408010168 | K228: =[1]HBEFA!J972 -> 0.4571938123
B229: 2021 | C229: =[1]HBEFA!B973 -> 0.423192988 | D229: =[1]HBEFA!C973 -> 0.9881154222 | E229: =[1]HBEFA!D973 -> 0.9984852709 | F229: =[1]HBEFA!E973 -> 0 | G229: =[1]HBEFA!F973 -> 0.4131869715 | H229: =[1]HBEFA!G973 -> 0.9235809878 | I229: =[1]HBEFA!H973 -> 0.9951817879 | J229: =[1]HBEFA!I973 -> 0.9467016175 | K229: =[1]HBEFA!J973 -> 0.4663104983
B230: 2022 | C230: =[1]HBEFA!B974 -> 0.427459419 | D230: =[1]HBEFA!C974 -> 0.9851047956 | E230: =[1]HBEFA!D974 -> 0.9986128234 | F230: =[1]HBEFA!E974 -> 0 | G230: =[1]HBEFA!F974 -> 0.4172673871 | H230: =[1]HBEFA!G974 -> 0.9241895967 | I230: =[1]HBEFA!H974 -> 0.9920357554 | J230: =[1]HBEFA!I974 -> 0.9460978143 | K230: =[1]HBEFA!J974 -> 0.4699244933
B231: 2023 | C231: =[1]HBEFA!B975 -> 0.430730772 | D231: =[1]HBEFA!C975 -> 0.9809411496 | E231: =[1]HBEFA!D975 -> 0.9987372383 | F231: =[1]HBEFA!E975 -> 0 | G231: =[1]HBEFA!F975 -> 0.4203872283 | H231: =[1]HBEFA!G975 -> 0.9236957403 | I231: =[1]HBEFA!H975 -> 0.9879746335 | J231: =[1]HBEFA!I975 -> 0.9444520514 | K231: =[1]HBEFA!J975 -> 0.4725698101
B232: 2024 | C232: =[1]HBEFA!B976 -> 0.4330040505 | D232: =[1]HBEFA!C976 -> 0.9755082704 | E232: =[1]HBEFA!D976 -> 0.9988354556 | F232: =[1]HBEFA!E976 -> 0 | G232: =[1]HBEFA!F976 -> 0.4225430066 | H232: =[1]HBEFA!G976 -> 0.9221650492 | I232: =[1]HBEFA!H976 -> 0.9830134758 | J232: =[1]HBEFA!I976 -> 0.9418136277 | K232: =[1]HBEFA!J976 -> 0.4742482165
B233: 2025 | C233: =[1]HBEFA!B977 -> 0.434322238 | D233: =[1]HBEFA!C977 -> 0.9690309091 | E233: =[1]HBEFA!D977 -> 0.9989236705 | F233: =[1]HBEFA!E977 -> 0 | G233: =[1]HBEFA!F977 -> 0.4237770948 | H233: =[1]HBEFA!G977 -> 0.9196380619 | I233: =[1]HBEFA!H977 -> 0.9771409077 | J233: =[1]HBEFA!I977 -> 0.9382063181 | K233: =[1]HBEFA!J977 -> 0.4750002333
B234: 2026 | C234: =[1]HBEFA!B978 -> 0.4338680878 | D234: =[1]HBEFA!C978 -> 0.9584499043 | E234: =[1]HBEFA!D978 -> 0.9990202896 | F234: =[1]HBEFA!E978 -> 0 | G234: =[1]HBEFA!F978 -> 0.4232904506 | H234: =[1]HBEFA!G978 -> 0.9156030016 | I234: =[1]HBEFA!H978 -> 0.97052933 | J234: =[1]HBEFA!I978 -> 0.933339274 | K234: =[1]HBEFA!J978 -> 0.4740774206
B235: 2027 | C235: =[1]HBEFA!B979 -> 0.4316253802 | D235: =[1]HBEFA!C979 -> 0.9443762604 | E235: =[1]HBEFA!D979 -> 0.999112539 | F235: =[1]HBEFA!E979 -> 0 | G235: =[1]HBEFA!F979 -> 0.4210704232 | H235: =[1]HBEFA!G979 -> 0.9101323783 | I235: =[1]HBEFA!H979 -> 0.9631962758 | J235: =[1]HBEFA!I979 -> 0.9272672528 | K235: =[1]HBEFA!J979 -> 0.4714738396
B236: 2028 | C236: =[1]HBEFA!B980 -> 0.4276375491 | D236: =[1]HBEFA!C980 -> 0.9265283412 | E236: =[1]HBEFA!D980 -> 0.9991938248 | F236: =[1]HBEFA!E980 -> 0 | G236: =[1]HBEFA!F980 -> 0.4171573253 | H236: =[1]HBEFA!G980 -> 0.903253179 | I236: =[1]HBEFA!H980 -> 0.9551348975 | J236: =[1]HBEFA!I980 -> 0.9200063158 | K236: =[1]HBEFA!J980 -> 0.4672273881
B237: 2029 | C237: =[1]HBEFA!B981 -> 0.4220256358 | D237: =[1]HBEFA!C981 -> 0.9052677277 | E237: =[1]HBEFA!D981 -> 0.9992994368 | F237: =[1]HBEFA!E981 -> 0 | G237: =[1]HBEFA!F981 -> 0.4116691473 | H237: =[1]HBEFA!G981 -> 0.8947757892 | I237: =[1]HBEFA!H981 -> 0.9464232242 | J237: =[1]HBEFA!I981 -> 0.9114532735 | K237: =[1]HBEFA!J981 -> 0.4614340331 | EU237: Hilfstabellen für Wertgerüst, Bauemissionen
B238: 2030 | C238: =[1]HBEFA!B982 -> 0.4148745164 | D238: =[1]HBEFA!C982 -> 0.8803937311 | E238: =[1]HBEFA!D982 -> 0.9993786514 | F238: =[1]HBEFA!E982 -> 0 | G238: =[1]HBEFA!F982 -> 0.4046862649 | H238: =[1]HBEFA!G982 -> 0.8850150146 | I238: =[1]HBEFA!H982 -> 0.937278593 | J238: =[1]HBEFA!I982 -> 0.9018914578 | K238: =[1]HBEFA!J982 -> 0.4541943591
B239: 2031 | C239: =[1]HBEFA!B983 -> 0.4060583785 | D239: =[1]HBEFA!C983 -> 0.8541267656 | E239: =[1]HBEFA!D983 -> 0.9988168404 | F239: =[1]HBEFA!E983 -> 0 | G239: =[1]HBEFA!F983 -> 0.3960972358 | H239: =[1]HBEFA!G983 -> 0.8730485849 | I239: =[1]HBEFA!H983 -> 0.9278231058 | J239: =[1]HBEFA!I983 -> 0.8907358372 | K239: =[1]HBEFA!J983 -> 0.4453497675
B240: 2032 | C240: =[1]HBEFA!B984 -> 0.3957001157 | D240: =[1]HBEFA!C984 -> 0.8266796573 | E240: =[1]HBEFA!D984 -> 0.9976402372 | F240: =[1]HBEFA!E984 -> 0 | G240: =[1]HBEFA!F984 -> 0.3860210907 | H240: =[1]HBEFA!G984 -> 0.8588051759 | I240: =[1]HBEFA!H984 -> 0.9181989674 | J240: =[1]HBEFA!I984 -> 0.8779840378 | K240: =[1]HBEFA!J984 -> 0.4350072001
B241: 2033 | C241: =[1]HBEFA!B985 -> 0.3838092312 | D241: =[1]HBEFA!C985 -> 0.7980100071 | E241: =[1]HBEFA!D985 -> 0.9958647043 | F241: =[1]HBEFA!E985 -> 0 | G241: =[1]HBEFA!F985 -> 0.3744667818 | H241: =[1]HBEFA!G985 -> 0.8423180394 | I241: =[1]HBEFA!H985 -> 0.9085215367 | J241: =[1]HBEFA!I985 -> 0.8636958249 | K241: =[1]HBEFA!J985 -> 0.4231806688
B242: 2034 | C242: =[1]HBEFA!B986 -> 0.3704319447 | D242: =[1]HBEFA!C986 -> 0.7683255912 | E242: =[1]HBEFA!D986 -> 0.9935069978 | F242: =[1]HBEFA!E986 -> 0 | G242: =[1]HBEFA!F986 -> 0.3614797074 | H242: =[1]HBEFA!G986 -> 0.823565159 | I242: =[1]HBEFA!H986 -> 0.8988596387 | J242: =[1]HBEFA!I986 -> 0.8478785155 | K242: =[1]HBEFA!J986 -> 0.4099117801
B243: 2035 | C243: =[1]HBEFA!B987 -> 0.3556186259 | D243: =[1]HBEFA!C987 -> 0.7377226089 | E243: =[1]HBEFA!D987 -> 0.9905859381 | F243: =[1]HBEFA!E987 -> 0 | G243: =[1]HBEFA!F987 -> 0.3471087154 | H243: =[1]HBEFA!G987 -> 0.8026159145 | I243: =[1]HBEFA!H987 -> 0.8893133849 | J243: =[1]HBEFA!I987 -> 0.8306114132 | K243: =[1]HBEFA!J987 -> 0.3952524144
B244: 2036 | C244: =[1]HBEFA!B988 -> 0.3395721242 | D244: =[1]HBEFA!C988 -> 0.7073239966 | E244: =[1]HBEFA!D988 -> 0.987111643 | F244: =[1]HBEFA!E988 -> 0 | G244: =[1]HBEFA!F988 -> 0.3315539228 | H244: =[1]HBEFA!G988 -> 0.7792175412 | I244: =[1]HBEFA!H988 -> 0.879567381 | J244: =[1]HBEFA!I988 -> 0.8116215294 | K244: =[1]HBEFA!J988 -> 0.3793555803
... 320 more rows

Sheet Infrastrukturbudget
B2: Belastung des Infrastrukturbudgets
B4: Hinweis: Diese Grösse wird für die Berechnung des Entscheidungskriteriums Infrastrukturbudgeteffizienz benötigt.
B6: Eingabe
B9: Vorgabe | H9: MWST-Satz
E10: ="Belastung des Infrastrukturbudgets = "&NameDK1&" ("&NummerDK1&") + "&NameDK3&" ("&NummerDK3&") in Mio. CHF " -> Belastung des Infrastrukturbudgets = Baukosten (DK1) + Landkosten (DK3) in Mio. CHF | F10: =('DK1'!V118+'DK3'!H114+('DK1'!V115+'DK3'!H111)*(1+Diskontsatz)^(Vergleichsjahr-(BetrachtungEndjahr+1)))*(1+H10) -> 0 | H10: =[1]Annahmen!$B$29 -> 0.077
F11: ="(Nettobarwert " & Vergleichsjahr & ", inklusive Reserve, Restwerte und MWST)" -> (Nettobarwert , inklusive Reserve, Restwerte und MWST) | H11: d.h. ohne Abzug Restwerte
H14: 1
B20: =IF(H14=1,"","Eingabe") -> 
E21: =IF(H14=1,"","Manuelle Eingabe der Belastung des Infrastrukturbudgets in Mio. CHF ") ->  | F21: 100
F22: =F11 -> (Nettobarwert , inklusive Reserve, Restwerte und MWST)
B24: Bemerkungen / Begründung | F24: => Kommentarblatt
B60: Ergebnis
E64: Belastung des Infrastrukturbudgets in Mio. CHF | F64: =IF(OR(H14=1,F21=""),F10,F21) -> 0
F65: =F11 -> (Nettobarwert , inklusive Reserve, Restwerte und MWST)
E67: Belastung des Infrastrukturbudgets in Mio. CHF | F67: =-PMT(Diskontsatz,BetrachtungEndjahr-Inbetriebnahme+1,Finanzkosten*(1+Diskontsatz)^(Inbetriebnahme-1-Vergleichsjahr)) -> 0
F68: ="(Annuität)" -> (Annuität)
B70: =[1]INTRO!$B$4 -> eNISTRA 2022

Sheet DK1
B2: =NummerDK1&": "&NameDK1 -> DK1: Baukosten | V2: =TypDK1 -> KNA & KWA
B4: Kosten | C4: =V121 -> 0 | E4: ="(" & Inbetriebnahme & " bis " & BetrachtungEndjahr & ")" -> ( bis 39) | G4: =V118 -> 0 | I4: ="(Vergleichsjahr: "&Vergleichsjahr&")" -> (Vergleichsjahr: )
C5: Annuität in Mio. CHF pro Jahr | G5: Nettobarwert in Mio. CHF
B8: Eingabebereich
E11: Preisbasis Eingabe | N11: =IF(ProvisoriumAktiv=1,"Rückbaukosten Provisorium in Mio. CHF","Rückbaukosten in Mio. CHF") -> Rückbaukosten in Mio. CHF
E13: nominale Bauteuerung (% / Jahr) | N13: =IF(ProvisoriumAktiv=1,"Bauzeit für den Rückbau des Provisoriums in Jahren",IF(EtappeAktiv=1,"Bauzeit für den Rückbau","Bauzeit für den Rückbau in Jahren")) -> Bauzeit für den Rückbau in Jahren | P13: =IF(EtappeAktiv=1," Jahre ab dem Jahr","") -> 
D15: VORSICHT: Es gibt Eingaben in den ausgeblendeten Zeilen (für Korrektur siehe Handbuch, DK1).
D16: ="Baukosten für verschiedene Baubestandteile in Mio. CHF bei Preisbasis "&PreisbasisDK1 -> Baukosten für verschiedene Baubestandteile in Mio. CHF bei Preisbasis | V16: Total
B17: Phase | C17: Jahr | D17: Planung und Bauleitung | E17: ... | F17: ... | G17: ... | H17: ... | I17: ... | J17: ... | K17: ... | L17: ... | M17: ... | N17: ... | O17: ... | P17: ... | Q17: ... | R17: ... | S17: ... | T17: ... | U17: Rückbaukosten | X17: Hilfsspalte für bedingte Einfärbung von D18-T73 | Y17: Hilfsspalte zur Prüfung ob Einga-ben in ausgeblendeten Zeilen
B18: =IF(C18<Planungsbeginn,"",IF(LOOKUP(C18,Grunddaten!$C$66:$C$190,Grunddaten!$D$66:$D$190)="Betrieb","",LOOKUP(C18,Grunddaten!$C$66:$C$190,Grunddaten!$D$66:$D$190))) ->  | C18: =C19-1 -> -25 | V18: =SUM(D18:U18) -> 0 | X18: =IF(B18="Planungsphase",2,IF(B18<>"",1,0)) -> 0 | Y18: =IF(AND(SUM(D18:U18)>0,B18=""),1,0) -> 0
B19: =IF(C19<Planungsbeginn,"",IF(LOOKUP(C19,Grunddaten!$C$66:$C$190,Grunddaten!$D$66:$D$190)="Betrieb","",LOOKUP(C19,Grunddaten!$C$66:$C$190,Grunddaten!$D$66:$D$190))) ->  | C19: -24 | V19: =SUM(D19:U19) -> 0 | X19: =IF(B19="Planungsphase",2,IF(B19<>"",1,0)) -> 0 | Y19: =IF(AND(SUM(D19:U19)>0,B19=""),1,0) -> 0
B20: =IF(C20<Planungsbeginn,"",IF(LOOKUP(C20,Grunddaten!$C$66:$C$190,Grunddaten!$D$66:$D$190)="Betrieb","",LOOKUP(C20,Grunddaten!$C$66:$C$190,Grunddaten!$D$66:$D$190))) ->  | C20: -23 | V20: 0 | X20: 0 | Y20: 0
B21: =IF(C21<Planungsbeginn,"",IF(LOOKUP(C21,Grunddaten!$C$66:$C$190,Grunddaten!$D$66:$D$190)="Betrieb","",LOOKUP(C21,Grunddaten!$C$66:$C$190,Grunddaten!$D$66:$D$190))) ->  | C21: -22 | V21: 0 | X21: 0 | Y21: 0
B22: =IF(C22<Planungsbeginn,"",IF(LOOKUP(C22,Grunddaten!$C$66:$C$190,Grunddaten!$D$66:$D$190)="Betrieb","",LOOKUP(C22,Grunddaten!$C$66:$C$190,Grunddaten!$D$66:$D$190))) ->  | C22: -21 | V22: 0 | X22: 0 | Y22: 0
B23: =IF(C23<Planungsbeginn,"",IF(LOOKUP(C23,Grunddaten!$C$66:$C$190,Grunddaten!$D$66:$D$190)="Betrieb","",LOOKUP(C23,Grunddaten!$C$66:$C$190,Grunddaten!$D$66:$D$190))) ->  | C23: -20 | V23: 0 | X23: 0 | Y23: 0
B24: =IF(C24<Planungsbeginn,"",IF(LOOKUP(C24,Grunddaten!$C$66:$C$190,Grunddaten!$D$66:$D$190)="Betrieb","",LOOKUP(C24,Grunddaten!$C$66:$C$190,Grunddaten!$D$66:$D$190))) ->  | C24: -19 | V24: 0 | X24: 0 | Y24: 0
B25: =IF(C25<Planungsbeginn,"",IF(LOOKUP(C25,Grunddaten!$C$66:$C$190,Grunddaten!$D$66:$D$190)="Betrieb","",LOOKUP(C25,Grunddaten!$C$66:$C$190,Grunddaten!$D$66:$D$190))) ->  | C25: -18 | V25: 0 | X25: 0 | Y25: 0
B26: =IF(C26<Planungsbeginn,"",IF(LOOKUP(C26,Grunddaten!$C$66:$C$190,Grunddaten!$D$66:$D$190)="Betrieb","",LOOKUP(C26,Grunddaten!$C$66:$C$190,Grunddaten!$D$66:$D$190))) ->  | C26: -17 | V26: 0 | X26: 0 | Y26: 0
B27: =IF(C27<Planungsbeginn,"",IF(LOOKUP(C27,Grunddaten!$C$66:$C$190,Grunddaten!$D$66:$D$190)="Betrieb","",LOOKUP(C27,Grunddaten!$C$66:$C$190,Grunddaten!$D$66:$D$190))) ->  | C27: -16 | V27: 0 | X27: 0 | Y27: 0
B28: =IF(C28<Planungsbeginn,"",IF(LOOKUP(C28,Grunddaten!$C$66:$C$190,Grunddaten!$D$66:$D$190)="Betrieb","",LOOKUP(C28,Grunddaten!$C$66:$C$190,Grunddaten!$D$66:$D$190))) ->  | C28: -15 | V28: 0 | X28: 0 | Y28: 0
B29: =IF(C29<Planungsbeginn,"",IF(LOOKUP(C29,Grunddaten!$C$66:$C$190,Grunddaten!$D$66:$D$190)="Betrieb","",LOOKUP(C29,Grunddaten!$C$66:$C$190,Grunddaten!$D$66:$D$190))) ->  | C29: -14 | V29: 0 | X29: 0 | Y29: 0
B30: =IF(C30<Planungsbeginn,"",IF(LOOKUP(C30,Grunddaten!$C$66:$C$190,Grunddaten!$D$66:$D$190)="Betrieb","",LOOKUP(C30,Grunddaten!$C$66:$C$190,Grunddaten!$D$66:$D$190))) ->  | C30: -13 | V30: 0 | X30: 0 | Y30: 0
B31: =IF(C31<Planungsbeginn,"",IF(LOOKUP(C31,Grunddaten!$C$66:$C$190,Grunddaten!$D$66:$D$190)="Betrieb","",LOOKUP(C31,Grunddaten!$C$66:$C$190,Grunddaten!$D$66:$D$190))) ->  | C31: -12 | V31: 0 | X31: 0 | Y31: 0
B32: =IF(C32<Planungsbeginn,"",IF(LOOKUP(C32,Grunddaten!$C$66:$C$190,Grunddaten!$D$66:$D$190)="Betrieb","",LOOKUP(C32,Grunddaten!$C$66:$C$190,Grunddaten!$D$66:$D$190))) ->  | C32: -11 | V32: 0 | X32: 0 | Y32: 0
B33: =IF(C33<Planungsbeginn,"",IF(LOOKUP(C33,Grunddaten!$C$66:$C$190,Grunddaten!$D$66:$D$190)="Betrieb","",LOOKUP(C33,Grunddaten!$C$66:$C$190,Grunddaten!$D$66:$D$190))) ->  | C33: -10 | V33: 0 | X33: 0 | Y33: 0
B34: =IF(C34<Planungsbeginn,"",IF(LOOKUP(C34,Grunddaten!$C$66:$C$190,Grunddaten!$D$66:$D$190)="Betrieb","",LOOKUP(C34,Grunddaten!$C$66:$C$190,Grunddaten!$D$66:$D$190))) ->  | C34: -9 | V34: 0 | X34: 0 | Y34: 0
B35: =IF(C35<Planungsbeginn,"",IF(LOOKUP(C35,Grunddaten!$C$66:$C$190,Grunddaten!$D$66:$D$190)="Betrieb","",LOOKUP(C35,Grunddaten!$C$66:$C$190,Grunddaten!$D$66:$D$190))) ->  | C35: -8 | V35: 0 | X35: 0 | Y35: 0
B36: =IF(C36<Planungsbeginn,"",IF(LOOKUP(C36,Grunddaten!$C$66:$C$190,Grunddaten!$D$66:$D$190)="Betrieb","",LOOKUP(C36,Grunddaten!$C$66:$C$190,Grunddaten!$D$66:$D$190))) ->  | C36: -7 | V36: 0 | X36: 0 | Y36: 0
B37: =IF(C37<Planungsbeginn,"",IF(LOOKUP(C37,Grunddaten!$C$66:$C$190,Grunddaten!$D$66:$D$190)="Betrieb","",LOOKUP(C37,Grunddaten!$C$66:$C$190,Grunddaten!$D$66:$D$190))) ->  | C37: -6 | V37: 0 | X37: 0 | Y37: 0
B38: =IF(C38<Planungsbeginn,"",IF(LOOKUP(C38,Grunddaten!$C$66:$C$190,Grunddaten!$D$66:$D$190)="Betrieb","",LOOKUP(C38,Grunddaten!$C$66:$C$190,Grunddaten!$D$66:$D$190))) ->  | C38: -5 | V38: 0 | X38: 0 | Y38: 0
B39: =IF(C39<Planungsbeginn,"",IF(LOOKUP(C39,Grunddaten!$C$66:$C$190,Grunddaten!$D$66:$D$190)="Betrieb","",LOOKUP(C39,Grunddaten!$C$66:$C$190,Grunddaten!$D$66:$D$190))) ->  | C39: -4 | V39: 0 | X39: 0 | Y39: 0
B40: =IF(C40<Planungsbeginn,"",IF(LOOKUP(C40,Grunddaten!$C$66:$C$190,Grunddaten!$D$66:$D$190)="Betrieb","",LOOKUP(C40,Grunddaten!$C$66:$C$190,Grunddaten!$D$66:$D$190))) ->  | C40: -3 | V40: 0 | X40: 0 | Y40: 0
B41: =IF(C41<Planungsbeginn,"",IF(LOOKUP(C41,Grunddaten!$C$66:$C$190,Grunddaten!$D$66:$D$190)="Betrieb","",LOOKUP(C41,Grunddaten!$C$66:$C$190,Grunddaten!$D$66:$D$190))) ->  | C41: -2 | V41: 0 | X41: 0 | Y41: 0
B42: =IF(C42<Planungsbeginn,"",IF(LOOKUP(C42,Grunddaten!$C$66:$C$190,Grunddaten!$D$66:$D$190)="Betrieb","",LOOKUP(C42,Grunddaten!$C$66:$C$190,Grunddaten!$D$66:$D$190))) ->  | C42: =C43-1 -> -1 | V42: 0 | X42: 0 | Y42: 0
B43: =IF(C43<Planungsbeginn,"",IF(LOOKUP(C43,Grunddaten!$C$66:$C$190,Grunddaten!$D$66:$D$190)="Betrieb","",LOOKUP(C43,Grunddaten!$C$66:$C$190,Grunddaten!$D$66:$D$190))) -> 1. Jahr Vollbetrieb | C43: =Inbetriebnahme -> 0 | V43: 0 | X43: 1 | Y43: 0
B44: =IF(C44<Planungsbeginn,"",IF(LOOKUP(C44,Grunddaten!$C$66:$C$190,Grunddaten!$D$66:$D$190)="Betrieb","",LOOKUP(C44,Grunddaten!$C$66:$C$190,Grunddaten!$D$66:$D$190))) ->  | C44: =C43+1 -> 1 | V44: 0 | X44: 0 | Y44: 0
B45: =IF(C45<Planungsbeginn,"",IF(LOOKUP(C45,Grunddaten!$C$66:$C$190,Grunddaten!$D$66:$D$190)="Betrieb","",LOOKUP(C45,Grunddaten!$C$66:$C$190,Grunddaten!$D$66:$D$190))) ->  | C45: =C44+1 -> 2 | V45: 0 | X45: 0 | Y45: 0
B46: =IF(C46<Planungsbeginn,"",IF(LOOKUP(C46,Grunddaten!$C$66:$C$190,Grunddaten!$D$66:$D$190)="Betrieb","",LOOKUP(C46,Grunddaten!$C$66:$C$190,Grunddaten!$D$66:$D$190))) ->  | C46: 3 | V46: 0 | X46: 0 | Y46: 0
B47: =IF(C47<Planungsbeginn,"",IF(LOOKUP(C47,Grunddaten!$C$66:$C$190,Grunddaten!$D$66:$D$190)="Betrieb","",LOOKUP(C47,Grunddaten!$C$66:$C$190,Grunddaten!$D$66:$D$190))) ->  | C47: 4 | V47: 0 | X47: 0 | Y47: 0
B48: =IF(C48<Planungsbeginn,"",IF(LOOKUP(C48,Grunddaten!$C$66:$C$190,Grunddaten!$D$66:$D$190)="Betrieb","",LOOKUP(C48,Grunddaten!$C$66:$C$190,Grunddaten!$D$66:$D$190))) ->  | C48: 5 | V48: 0 | X48: 0 | Y48: 0
B49: =IF(C49<Planungsbeginn,"",IF(LOOKUP(C49,Grunddaten!$C$66:$C$190,Grunddaten!$D$66:$D$190)="Betrieb","",LOOKUP(C49,Grunddaten!$C$66:$C$190,Grunddaten!$D$66:$D$190))) ->  | C49: 6 | V49: 0 | X49: 0 | Y49: 0
B50: =IF(C50<Planungsbeginn,"",IF(LOOKUP(C50,Grunddaten!$C$66:$C$190,Grunddaten!$D$66:$D$190)="Betrieb","",LOOKUP(C50,Grunddaten!$C$66:$C$190,Grunddaten!$D$66:$D$190))) ->  | C50: 7 | V50: 0 | X50: 0 | Y50: 0
B51: =IF(C51<Planungsbeginn,"",IF(LOOKUP(C51,Grunddaten!$C$66:$C$190,Grunddaten!$D$66:$D$190)="Betrieb","",LOOKUP(C51,Grunddaten!$C$66:$C$190,Grunddaten!$D$66:$D$190))) ->  | C51: 8 | V51: 0 | X51: 0 | Y51: 0
B52: =IF(C52<Planungsbeginn,"",IF(LOOKUP(C52,Grunddaten!$C$66:$C$190,Grunddaten!$D$66:$D$190)="Betrieb","",LOOKUP(C52,Grunddaten!$C$66:$C$190,Grunddaten!$D$66:$D$190))) ->  | C52: 9 | V52: 0 | X52: 0 | Y52: 0
B53: =IF(C53<Planungsbeginn,"",IF(LOOKUP(C53,Grunddaten!$C$66:$C$190,Grunddaten!$D$66:$D$190)="Betrieb","",LOOKUP(C53,Grunddaten!$C$66:$C$190,Grunddaten!$D$66:$D$190))) ->  | C53: 10 | V53: 0 | X53: 0 | Y53: 0
B54: =IF(C54<Planungsbeginn,"",IF(LOOKUP(C54,Grunddaten!$C$66:$C$190,Grunddaten!$D$66:$D$190)="Betrieb","",LOOKUP(C54,Grunddaten!$C$66:$C$190,Grunddaten!$D$66:$D$190))) ->  | C54: 11 | V54: 0 | X54: 0 | Y54: 0
B55: =IF(C55<Planungsbeginn,"",IF(LOOKUP(C55,Grunddaten!$C$66:$C$190,Grunddaten!$D$66:$D$190)="Betrieb","",LOOKUP(C55,Grunddaten!$C$66:$C$190,Grunddaten!$D$66:$D$190))) ->  | C55: 12 | V55: 0 | X55: 0 | Y55: 0
B56: =IF(C56<Planungsbeginn,"",IF(LOOKUP(C56,Grunddaten!$C$66:$C$190,Grunddaten!$D$66:$D$190)="Betrieb","",LOOKUP(C56,Grunddaten!$C$66:$C$190,Grunddaten!$D$66:$D$190))) ->  | C56: 13 | V56: 0 | X56: 0 | Y56: 0
B57: =IF(C57<Planungsbeginn,"",IF(LOOKUP(C57,Grunddaten!$C$66:$C$190,Grunddaten!$D$66:$D$190)="Betrieb","",LOOKUP(C57,Grunddaten!$C$66:$C$190,Grunddaten!$D$66:$D$190))) ->  | C57: 14 | V57: 0 | X57: 0 | Y57: 0
B58: =IF(C58<Planungsbeginn,"",IF(LOOKUP(C58,Grunddaten!$C$66:$C$190,Grunddaten!$D$66:$D$190)="Betrieb","",LOOKUP(C58,Grunddaten!$C$66:$C$190,Grunddaten!$D$66:$D$190))) ->  | C58: 15 | V58: 0 | X58: 0 | Y58: 0
B59: =IF(C59<Planungsbeginn,"",IF(LOOKUP(C59,Grunddaten!$C$66:$C$190,Grunddaten!$D$66:$D$190)="Betrieb","",LOOKUP(C59,Grunddaten!$C$66:$C$190,Grunddaten!$D$66:$D$190))) ->  | C59: 16 | V59: 0 | X59: 0 | Y59: 0
B60: =IF(C60<Planungsbeginn,"",IF(LOOKUP(C60,Grunddaten!$C$66:$C$190,Grunddaten!$D$66:$D$190)="Betrieb","",LOOKUP(C60,Grunddaten!$C$66:$C$190,Grunddaten!$D$66:$D$190))) ->  | C60: 17 | V60: 0 | X60: 0 | Y60: 0
B61: =IF(C61<Planungsbeginn,"",IF(LOOKUP(C61,Grunddaten!$C$66:$C$190,Grunddaten!$D$66:$D$190)="Betrieb","",LOOKUP(C61,Grunddaten!$C$66:$C$190,Grunddaten!$D$66:$D$190))) ->  | C61: 18 | V61: 0 | X61: 0 | Y61: 0
B62: =IF(C62<Planungsbeginn,"",IF(LOOKUP(C62,Grunddaten!$C$66:$C$190,Grunddaten!$D$66:$D$190)="Betrieb","",LOOKUP(C62,Grunddaten!$C$66:$C$190,Grunddaten!$D$66:$D$190))) ->  | C62: 19 | V62: 0 | X62: 0 | Y62: 0
B63: =IF(C63<Planungsbeginn,"",IF(LOOKUP(C63,Grunddaten!$C$66:$C$190,Grunddaten!$D$66:$D$190)="Betrieb","",LOOKUP(C63,Grunddaten!$C$66:$C$190,Grunddaten!$D$66:$D$190))) ->  | C63: 20 | V63: 0 | X63: 0 | Y63: 0
B64: =IF(C64<Planungsbeginn,"",IF(LOOKUP(C64,Grunddaten!$C$66:$C$190,Grunddaten!$D$66:$D$190)="Betrieb","",LOOKUP(C64,Grunddaten!$C$66:$C$190,Grunddaten!$D$66:$D$190))) ->  | C64: 21 | V64: 0 | X64: 0 | Y64: 0
B65: =IF(C65<Planungsbeginn,"",IF(LOOKUP(C65,Grunddaten!$C$66:$C$190,Grunddaten!$D$66:$D$190)="Betrieb","",LOOKUP(C65,Grunddaten!$C$66:$C$190,Grunddaten!$D$66:$D$190))) ->  | C65: 22 | V65: 0 | X65: 0 | Y65: 0
B66: =IF(C66<Planungsbeginn,"",IF(LOOKUP(C66,Grunddaten!$C$66:$C$190,Grunddaten!$D$66:$D$190)="Betrieb","",LOOKUP(C66,Grunddaten!$C$66:$C$190,Grunddaten!$D$66:$D$190))) ->  | C66: 23 | V66: 0 | X66: 0 | Y66: 0
B67: =IF(C67<Planungsbeginn,"",IF(LOOKUP(C67,Grunddaten!$C$66:$C$190,Grunddaten!$D$66:$D$190)="Betrieb","",LOOKUP(C67,Grunddaten!$C$66:$C$190,Grunddaten!$D$66:$D$190))) ->  | C67: 24 | V67: 0 | X67: 0 | Y67: 0
B68: =IF(C68<Planungsbeginn,"",IF(LOOKUP(C68,Grunddaten!$C$66:$C$190,Grunddaten!$D$66:$D$190)="Betrieb","",LOOKUP(C68,Grunddaten!$C$66:$C$190,Grunddaten!$D$66:$D$190))) ->  | C68: 25 | V68: 0 | X68: 0 | Y68: 0
B69: =IF(C69<Planungsbeginn,"",IF(LOOKUP(C69,Grunddaten!$C$66:$C$190,Grunddaten!$D$66:$D$190)="Betrieb","",LOOKUP(C69,Grunddaten!$C$66:$C$190,Grunddaten!$D$66:$D$190))) ->  | C69: 26 | V69: 0 | X69: 0 | Y69: 0
B70: =IF(C70<Planungsbeginn,"",IF(LOOKUP(C70,Grunddaten!$C$66:$C$190,Grunddaten!$D$66:$D$190)="Betrieb","",LOOKUP(C70,Grunddaten!$C$66:$C$190,Grunddaten!$D$66:$D$190))) ->  | C70: 27 | V70: 0 | X70: 0 | Y70: 0
B71: =IF(C71<Planungsbeginn,"",IF(LOOKUP(C71,Grunddaten!$C$66:$C$190,Grunddaten!$D$66:$D$190)="Betrieb","",LOOKUP(C71,Grunddaten!$C$66:$C$190,Grunddaten!$D$66:$D$190))) ->  | C71: 28 | V71: 0 | X71: 0 | Y71: 0
B72: =IF(C72<Planungsbeginn,"",IF(LOOKUP(C72,Grunddaten!$C$66:$C$190,Grunddaten!$D$66:$D$190)="Betrieb","",LOOKUP(C72,Grunddaten!$C$66:$C$190,Grunddaten!$D$66:$D$190))) ->  | C72: 29 | V72: 0 | X72: 0 | Y72: 0 | Z72: Summe (falls >0, dann Eingaben in Jahren, in denen es keine geben sollte)
B73: =IF(C73<Planungsbeginn,"",IF(LOOKUP(C73,Grunddaten!$C$66:$C$190,Grunddaten!$D$66:$D$190)="Betrieb","",LOOKUP(C73,Grunddaten!$C$66:$C$190,Grunddaten!$D$66:$D$190))) ->  | C73: 30 | V73: 0 | X73: 0 | Y73: =IF(AND(SUM(D73:U73)>0,B73=""),1,0) -> 0 | Z73: =SUM(Y18:Y73) -> 0
C76: Baukosten Total | D76: =SUM(D18:D73) -> 0 | E76: =SUM(E18:E73) -> 0 | F76: 0 | G76: 0 | H76: 0 | I76: 0 | J76: 0 | K76: 0 | L76: 0 | M76: 0 | N76: 0 | O76: 0 | P76: 0 | Q76: 0 | R76: 0 | S76: 0 | T76: 0 | U76: =O11 -> 0 | V76: =SUM(D76:U76) -> 0 | X76: Eingabe? | Y76: =IF(D76>0,1,0) -> 0 | Z76: =IF(E76>0,1,0) -> 0 | AA76: 0 | AB76: 0 | AC76: 0 | AD76: 0 | AE76: 0 | AF76: 0 | AG76: 0 | AH76: 0 | AI76: 0 | AJ76: 0 | AK76: 0 | AL76: 0 | AM76: 0 | AN76: 0 | AO76: 0 | AP76: 0
C78: Reserve (%) | X78: Eingabe? | Y78: =IF(D78>0,1,0) -> 0 | Z78: =IF(E78>0,1,0) -> 0 | AA78: 0 | AB78: 0 | AC78: 0 | AD78: 0 | AE78: 0 | AF78: 0 | AG78: 0 | AH78: 0 | AI78: 0 | AJ78: 0 | AK78: 0 | AL78: 0 | AM78: 0 | AN78: 0 | AO78: 0 | AP78: 0
C80: Genauigkeit Kosten ± | X80: Eingabe? | Y80: =IF(D80>0,1,0) -> 0 | Z80: =IF(E80>0,1,0) -> 0 | AA80: 0 | AB80: 0 | AC80: 0 | AD80: 0 | AE80: 0 | AF80: 0 | AG80: 0 | AH80: 0 | AI80: 0 | AJ80: 0 | AK80: 0 | AL80: 0 | AM80: 0 | AN80: 0 | AO80: 0 | AP80: 0 | AQ80: Summe
D81: =IF(SensitivitätBaukostenAktiv=1,(1+D78)*(1+D80),IF(SensitivitätBaukostenAktiv=2,1+D78,IF(SensitivitätBaukostenAktiv=3,(1+D78)*(1-D80)))) -> 1 | E81: 1 | F81: 1 | G81: 1 | H81: 1 | I81: 1 | J81: 1 | K81: 1 | L81: 1 | M81: 1 | N81: 1 | O81: 1 | P81: 1 | Q81: 1 | R81: 1 | S81: 1 | T81: 1 | U81: 1 | W81: diese Zeile ausblenden | X81: OK? | Y81: =IF(Y76=1,IF(AND(Y78=1,Y80=1),1,0),1) -> 1 | Z81: 1 | AA81: 1 | AB81: 1 | AC81: 1 | AD81: 1 | AE81: 1 | AF81: 1 | AG81: 1 | AH81: 1 | AI81: 1 | AJ81: 1 | AK81: 1 | AL81: 1 | AM81: 1 | AN81: 1 | AO81: 1 | AP81: 1 | AQ81: =SUM(Y81:AP81)-Z73 -> 18
C83: Lebensdauer | D83: -----
D85: Wenn die Lebensdauer eines Bauteils kleiner ist als die gesamte Bauzeit (Baubeginn bis und mit 1. Betriebsjahr), dann verteilen Sie bitte die Investitionskosten so auf die einzelnen Baujahre, dass die erste Ersatzinvestition nicht vor dem 2. Betriebsjahr zu liegen kommt.
D88: VORSICHT: Es gibt Eingaben in den ausgeblendeten Zeilen (für Korrektur siehe Handbuch, DK1).
B89: Bemerkungen / Begründung | V89: => Kommentarblatt
B100: Überblick über Ergebnisse und zentrale Annahmen
E103: Diskontsatz | F103: =Diskontsatz -> 0.02 | G103: =" ("&Sensitivitätsanalyse!$O$10&")" -> (Vorgabe KNA: Basis)
E105: Sensitivität Baukosten | F105: =SensitivitätBaukosten -> Basis
D109: ="in Mio. CHF bei Preisbasis "&Preisbasis -> in Mio. CHF bei Preisbasis 2019 | V109: Total
D110: =D17 -> Planung und Bauleitung | E110: ... | F110: ... | G110: ... | H110: ... | I110: ... | J110: ... | K110: ... | L110: ... | M110: ... | N110: ... | O110: ... | P110: ... | Q110: ... | R110: ... | S110: ... | T110: ... | U110: Rückbaukosten
C112: Baukosten Total¹ | D112: =D191 -> 0 | E112: =E191 -> 0 | F112: 0 | G112: 0 | H112: 0 | I112: 0 | J112: 0 | K112: 0 | L112: 0 | M112: 0 | N112: 0 | O112: 0 | P112: 0 | Q112: 0 | R112: 0 | S112: 0 | T112: 0 | U112: =IF($O$11=0,0,U191) -> 0 | V112: =IF($AQ$81=18,SUM(D112:U112),"Fehler") -> 0
C115: =IF(ProvisoriumAktiv=0,"Restwerte "&BetrachtungEndjahr+1&"²","Keine Restwerte!") -> Restwerte 40² | D115: ="----" -> ---- | E115: =IF(ProvisoriumAktiv=0,E467+AB467,"----") -> 0 | F115: 0 | G115: 0 | H115: 0 | I115: 0 | J115: 0 | K115: 0 | L115: 0 | M115: 0 | N115: 0 | O115: 0 | P115: 0 | Q115: 0 | R115: 0 | S115: 0 | T115: 0 | U115: ---- | V115: =IF($AQ$81=18,IF(ProvisoriumAktiv=0,SUM(D115:U115),"----"),"Fehler") -> 0
C118: ="Nettobarwert "&Vergleichsjahr -> Nettobarwert | D118: =D329*(1+Diskontsatz)^(Vergleichsjahr-(Inbetriebnahme-26))+AA329*(1+Diskontsatz)^(Vergleichsjahr-Inbetriebnahme) -> 0 | E118: =E329*(1+Diskontsatz)^(Vergleichsjahr-(Inbetriebnahme-26))+AB329*(1+Diskontsatz)^(Vergleichsjahr-Inbetriebnahme)-IF(E115="----",0,E115*(1+Diskontsatz)^(Vergleichsjahr-(BetrachtungEndjahr+1))) -> 0 | F118: =F329*(1+Diskontsatz)^(Vergleichsjahr-(Inbetriebnahme-26))+AC329*(1+Diskontsatz)^(Vergleichsjahr-Inbetriebnahme)-IF(F115="----",0,F115*(1+Diskontsatz)^(Vergleichsjahr-(BetrachtungEndjahr+1))) -> 0 | G118: 0 | H118: 0 | I118: 0 | J118: 0 | K118: 0 | L118: 0 | M118: 0 | N118: 0 | O118: 0 | P118: 0 | Q118: 0 | R118: 0 | S118: 0 | T118: 0 | U118: =IF($O$11=0,0,U329*(1+Diskontsatz)^(Vergleichsjahr-(Inbetriebnahme-26))) -> 0 | V118: =IF($AQ$81=18,SUM(D118:U118),"Fehler") -> 0
C121: =IF(OR(VergleichAktiv=1,ProvisoriumAktiv=1,EtappeAktiv=1),"Annuität³","Annuität") -> Annuität | D121: =IF(D118=0,0,-PMT(Diskontsatz,BetrachtungEndjahr-Inbetriebnahme+1,D118*(1+Diskontsatz)^(Inbetriebnahme-1-Vergleichsjahr))) -> 0 | E121: =IF(E118=0,0,-PMT(Diskontsatz,BetrachtungEndjahr-Inbetriebnahme+1,E118*(1+Diskontsatz)^(Inbetriebnahme-1-Vergleichsjahr))) -> 0 | F121: =IF(F118=0,0,-PMT(Diskontsatz,BetrachtungEndjahr-Inbetriebnahme+1,F118*(1+Diskontsatz)^(Inbetriebnahme-1-Vergleichsjahr))) -> 0 | G121: 0 | H121: =IF(H118=0,0,-PMT(Diskontsatz,BetrachtungEndjahr-Inbetriebnahme+1,H118*(1+Diskontsatz)^(Inbetriebnahme-1-Vergleichsjahr))) -> 0 | I121: 0 | J121: 0 | K121: 0 | L121: 0 | M121: 0 | N121: 0 | O121: 0 | P121: 0 | Q121: 0 | R121: 0 | S121: 0 | T121: 0 | U121: =IF($O$11=0,0,IF(U118=0,0,-PMT(Diskontsatz,BetrachtungEndjahr-Inbetriebnahme+1,U118*(1+Diskontsatz)^(Inbetriebnahme-1-Vergleichsjahr)))) -> 0 | V121: =IF($AQ$81=18,SUM(D121:U121),"Fehler") -> 0
D123: ¹Ohne Diskontierung
D124: ²Ohne Diskontierung, nur Erstinvestition (Restwerte der Ersatzinvestitionen bei W112) | X124: für Makro
D125: ³Achtung: Annuität eignet sich nicht zum Vergleich mit anderen Projekten! | X125: =IF(OR(VergleichAktiv=1,ProvisoriumAktiv=1,EtappeAktiv=1),1,0) -> 0
B127: Detaillierte Ergebnisse
D131: ="Baukosten in Mio. CHF bei Preisbasis "&Preisbasis -> Baukosten in Mio. CHF bei Preisbasis 2019 | V131: Total
B132: Phase | C132: Jahr | D132: =D17 -> Planung und Bauleitung | E132: ... | F132: ... | G132: ... | H132: ... | I132: ... | J132: ... | K132: ... | L132: ... | M132: ... | N132: ... | O132: ... | P132: ... | Q132: ... | R132: ... | S132: ... | T132: ... | U132: Rückbaukosten
B133: =B18 ->  | C133: -25 | D133: =IF($B133="","",D203) ->  | V133: =SUM(D133:U133) -> 0
C134: -24 | D134: =IF($B134="","",D204) ->  | V134: =SUM(D134:U134) -> 0
C135: -23 | D135: =IF($B135="","",D205) ->  | V135: 0
C136: -22 | D136: =IF($B136="","",D206) ->  | V136: 0
C137: -21 | D137: =IF($B137="","",D207) ->  | V137: 0
C138: -20 | D138: =IF($B138="","",D208) ->  | V138: 0
C139: -19 | D139: =IF($B139="","",D209) ->  | V139: 0
C140: -18 | D140: =IF($B140="","",D210) ->  | V140: 0
C141: -17 | D141: =IF($B141="","",D211) ->  | V141: 0
C142: -16 | D142: =IF($B142="","",D212) ->  | V142: 0
C143: -15 | D143: =IF($B143="","",D213) ->  | V143: 0
C144: -14 | D144: =IF($B144="","",D214) ->  | V144: 0
C145: -13 | D145: =IF($B145="","",D215) ->  | V145: 0
C146: -12 | D146: =IF($B146="","",D216) ->  | V146: 0
C147: -11 | D147: =IF($B147="","",D217) ->  | V147: 0
C148: -10 | D148: =IF($B148="","",D218) ->  | V148: 0
C149: -9 | D149: =IF($B149="","",D219) ->  | V149: 0
C150: -8 | D150: =IF($B150="","",D220) ->  | V150: 0
C151: -7 | D151: =IF($B151="","",D221) ->  | V151: 0
C152: -6 | D152: =IF($B152="","",D222) ->  | V152: 0
C153: -5 | D153: =IF($B153="","",D223) ->  | V153: 0
C154: -4 | D154: =IF($B154="","",D224) ->  | V154: 0
C155: -3 | D155: =IF($B155="","",D225) ->  | V155: 0
C156: -2 | D156: =IF($B156="","",D226) ->  | V156: 0
C157: -1 | D157: =IF($B157="","",D227) ->  | V157: 0
B158: 1. Jahr Vollbetrieb | C158: 0 | D158: =IF($B158="","",D228) -> 0 | E158: 0 | F158: 0 | G158: 0 | H158: 0 | I158: 0 | J158: 0 | K158: 0 | L158: 0 | M158: 0 | N158: 0 | O158: 0 | P158: 0 | Q158: 0 | R158: 0 | S158: 0 | T158: 0 | U158: 0 | V158: 0
B159: =B44 ->  | C159: =C158+1 -> 1 | D159: =IF($B159="","",AA199) ->  | E159: =IF($B159="","",AB199) ->  | U159: =IF($B159="","",U229) ->  | V159: 0
C160: =C159+1 -> 2 | D160: =IF($B160="","",AA200) ->  | V160: 0
C161: 3 | D161: =IF($B161="","",AA201) ->  | V161: 0
C162: 4 | D162: =IF($B162="","",AA202) ->  | V162: 0
C163: 5 | D163: =IF($B163="","",AA203) ->  | V163: 0
C164: 6 | D164: =IF($B164="","",AA204) ->  | V164: 0
C165: 7 | D165: =IF($B165="","",AA205) ->  | V165: 0
C166: 8 | D166: =IF($B166="","",AA206) ->  | V166: 0
C167: 9 | D167: =IF($B167="","",AA207) ->  | V167: 0
C168: 10 | D168: =IF($B168="","",AA208) ->  | V168: 0
C169: 11 | D169: =IF($B169="","",AA209) ->  | V169: 0
C170: 12 | D170: =IF($B170="","",AA210) ->  | V170: 0
C171: 13 | D171: =IF($B171="","",AA211) ->  | V171: 0
C172: 14 | D172: =IF($B172="","",AA212) ->  | V172: 0
C173: 15 | D173: =IF($B173="","",AA213) ->  | V173: 0
C174: 16 | D174: =IF($B174="","",AA214) ->  | V174: 0
C175: 17 | D175: =IF($B175="","",AA215) ->  | V175: 0
C176: 18 | D176: =IF($B176="","",AA216) ->  | V176: 0
C177: 19 | D177: =IF($B177="","",AA217) ->  | V177: 0
C178: 20 | D178: =IF($B178="","",AA218) ->  | V178: 0
C179: 21 | D179: =IF($B179="","",AA219) ->  | V179: 0
C180: 22 | D180: =IF($B180="","",AA220) ->  | V180: 0
C181: 23 | D181: =IF($B181="","",AA221) ->  | V181: 0
C182: 24 | D182: =IF($B182="","",AA222) ->  | V182: 0
C183: 25 | D183: =IF($B183="","",AA223) ->  | V183: 0
C184: 26 | D184: =IF($B184="","",AA224) ->  | V184: 0
C185: 27 | D185: =IF($B185="","",AA225) ->  | V185: 0
C186: 28 | D186: =IF($B186="","",AA226) ->  | V186: 0
C187: 29 | D187: =IF($B187="","",AA227) ->  | V187: 0
C188: 30 | D188: =IF($B188="","",AA228) ->  | V188: 0
B189: ="Rückbau " & MAX(Inbetriebnahme,Inbetriebnahme_letzte_Etappe)+1 & " und später¹" -> Rückbau 1 und später¹ | U189: =SUM(U203:U327)-SUM(U133:U188) -> 0 | V189: 0
C191: Baukosten Total¹ | D191: =SUM(D133:D189) -> 0 | E191: =SUM(E133:E189) -> 0 | F191: 0 | G191: 0 | H191: 0 | I191: 0 | J191: 0 | K191: 0 | L191: 0 | M191: 0 | N191: 0 | O191: 0 | P191: 0 | Q191: 0 | R191: 0 | S191: 0 | T191: 0 | U191: =SUM(U133:U189) -> 0 | V191: =SUM(D191:U191) -> 0
D192: ¹Ohne Diskontierung
B194: =[1]INTRO!$B$4 -> eNISTRA 2022
Y196: Nur bei etappierten Projekten relevant
D197: ="Baukosten und Ersatzinvestitionen (inkl. realer Kostenveränderung) in Mio. CHF bei Preisbasis "&Preisbasis & " (ohne Baukosten nach Inbetriebnahme erste Etappe, d.h. bis " & Inbetriebnahme & ")" -> Baukosten und Ersatzinvestitionen (inkl. realer Kostenveränderung) in Mio. CHF bei Preisbasis 2019 (ohne Baukosten nach Inbetriebnahme erste Etappe, d.h. bis ) | V197: Total | AA197: ="Baukosten und Ersatzinvestitionen (inkl. realer Kostenveränderung) in Mio. CHF bei Preisbasis "&Preisbasis & " (NUR Baukosten nach Inbetriebnahme erste Etappe, d.h. nach " & Inbetriebnahme & ")" -> Baukosten und Ersatzinvestitionen (inkl. realer Kostenveränderung) in Mio. CHF bei Preisbasis 2019 (NUR Baukosten nach Inbetriebnahme erste Etappe, d.h. nach ) | AS197: Total
B198: Phase | C198: Jahr | D198: =D17 -> Planung und Bauleitung | E198: =E17 -> ... | F198: ... | G198: ... | H198: ... | I198: ... | J198: ... | K198: ... | L198: ... | M198: ... | N198: ... | O198: ... | P198: ... | Q198: ... | R198: ... | S198: ... | T198: ... | U198: Rückbaukosten | Y198: Phase | Z198: Jahr | AA198: =D198 -> Planung und Bauleitung | AB198: =E198 -> ... | AC198: ... | AD198: ... | AE198: ... | AF198: ... | AG198: ... | AH198: ... | AI198: ... | AJ198: ... | AK198: ... | AL198: ... | AM198: ... | AN198: ... | AO198: ... | AP198: ... | AQ198: ... | AR198: Rückbaukosten
Y199: =IF(Z199<Planungsbeginn,"",LOOKUP(Z199,Grunddaten!$C$66:$C$190,Grunddaten!$D$66:$D$190)) -> Betrieb | Z199: =Inbetriebnahme+1 -> 1 | AA199: =D44*D$81*(1+TeuerungDK1)^(Preisbasis-PreisbasisDK1) -> 0 | AB199: =E44*E$81*(1+TeuerungDK1)^(Preisbasis-PreisbasisDK1) -> 0 | AC199: =F44*F$81*(1+TeuerungDK1)^(Preisbasis-PreisbasisDK1) -> 0 | AD199: =G44*G$81*(1+TeuerungDK1)^(Preisbasis-PreisbasisDK1) -> 0 | AE199: =H44*H$81*(1+TeuerungDK1)^(Preisbasis-PreisbasisDK1) -> 0 | AF199: =I44*I$81*(1+TeuerungDK1)^(Preisbasis-PreisbasisDK1) -> 0 | AG199: =J44*J$81*(1+TeuerungDK1)^(Preisbasis-PreisbasisDK1) -> 0 | AH199: =K44*K$81*(1+TeuerungDK1)^(Preisbasis-PreisbasisDK1) -> 0 | AI199: =L44*L$81*(1+TeuerungDK1)^(Preisbasis-PreisbasisDK1) -> 0 | AJ199: =M44*M$81*(1+TeuerungDK1)^(Preisbasis-PreisbasisDK1) -> 0 | AK199: =N44*N$81*(1+TeuerungDK1)^(Preisbasis-PreisbasisDK1) -> 0 | AL199: =O44*O$81*(1+TeuerungDK1)^(Preisbasis-PreisbasisDK1) -> 0 | AM199: =P44*P$81*(1+TeuerungDK1)^(Preisbasis-PreisbasisDK1) -> 0 | AN199: =Q44*Q$81*(1+TeuerungDK1)^(Preisbasis-PreisbasisDK1) -> 0 | AO199: =R44*R$81*(1+TeuerungDK1)^(Preisbasis-PreisbasisDK1) -> 0 | AP199: =S44*S$81*(1+TeuerungDK1)^(Preisbasis-PreisbasisDK1) -> 0 | AQ199: =T44*T$81*(1+TeuerungDK1)^(Preisbasis-PreisbasisDK1) -> 0 | AS199: =SUM(AA199:AR199) -> 0 | AT199: Baukosten / Erstinvestition
Y200: =IF(Z200<Planungsbeginn,"",LOOKUP(Z200,Grunddaten!$C$66:$C$190,Grunddaten!$D$66:$D$190)) -> Betrieb | Z200: =Z199+1 -> 2 | AA200: 0 | AB200: 0 | AC200: 0 | AD200: 0 | AE200: 0 | AF200: 0 | AG200: 0 | AH200: 0 | AI200: 0 | AJ200: 0 | AK200: 0 | AL200: 0 | AM200: 0 | AN200: 0 | AO200: 0 | AP200: 0 | AQ200: 0 | AS200: 0 | AT200: Baukosten / Erstinvestition
Y201: =IF(Z201<Planungsbeginn,"",LOOKUP(Z201,Grunddaten!$C$66:$C$190,Grunddaten!$D$66:$D$190)) -> Betrieb | Z201: 3 | AA201: 0 | AB201: 0 | AC201: 0 | AD201: 0 | AE201: 0 | AF201: 0 | AG201: 0 | AH201: 0 | AI201: 0 | AJ201: 0 | AK201: 0 | AL201: 0 | AM201: 0 | AN201: 0 | AO201: 0 | AP201: 0 | AQ201: 0 | AS201: 0 | AT201: Baukosten / Erstinvestition
Y202: =IF(Z202<Planungsbeginn,"",LOOKUP(Z202,Grunddaten!$C$66:$C$190,Grunddaten!$D$66:$D$190)) -> Betrieb | Z202: 4 | AA202: 0 | AB202: 0 | AC202: 0 | AD202: 0 | AE202: 0 | AF202: 0 | AG202: 0 | AH202: 0 | AI202: 0 | AJ202: 0 | AK202: 0 | AL202: 0 | AM202: 0 | AN202: 0 | AO202: 0 | AP202: 0 | AQ202: 0 | AS202: 0 | AT202: Baukosten / Erstinvestition
B203: =IF(C203<Planungsbeginn,"",LOOKUP(C203,Grunddaten!$C$66:$C$190,Grunddaten!$D$66:$D$190)) ->  | C203: =C204-1 -> -25 | D203: =D18*D$81*(1+TeuerungDK1)^(Preisbasis-PreisbasisDK1) -> 0 | E203: 0 | F203: 0 | G203: 0 | H203: 0 | I203: 0 | J203: 0 | K203: 0 | L203: 0 | M203: 0 | N203: 0 | O203: 0 | P203: 0 | Q203: 0 | R203: 0 | S203: 0 | T203: 0 | U203: =IF(AND(C203<=$AU$245,C203>=$AU$228),VLOOKUP(C203,$AU$228:$AV$245,2,FALSE),0) -> 0 | V203: =SUM(D203:U203) -> 0 | W203: Baukosten / Erstinvestition | Y203: =IF(Z203<Planungsbeginn,"",LOOKUP(Z203,Grunddaten!$C$66:$C$190,Grunddaten!$D$66:$D$190)) -> Betrieb | Z203: 5 | AA203: 0 | AB203: 0 | AC203: 0 | AD203: 0 | AE203: 0 | AF203: 0 | AG203: 0 | AH203: 0 | AI203: 0 | AJ203: 0 | AK203: 0 | AL203: 0 | AM203: 0 | AN203: 0 | AO203: 0 | AP203: 0 | AQ203: 0 | AS203: 0 | AT203: Baukosten / Erstinvestition
B204: =IF(C204<Planungsbeginn,"",LOOKUP(C204,Grunddaten!$C$66:$C$190,Grunddaten!$D$66:$D$190)) ->  | C204: -24 | D204: =D19*D$81*(1+TeuerungDK1)^(Preisbasis-PreisbasisDK1) -> 0 | E204: 0 | F204: 0 | G204: 0 | H204: 0 | I204: 0 | J204: 0 | K204: 0 | L204: 0 | M204: 0 | N204: 0 | O204: 0 | P204: 0 | Q204: 0 | R204: 0 | S204: 0 | T204: 0 | U204: 0 | V204: =SUM(D204:U204) -> 0 | W204: Baukosten / Erstinvestition | Y204: =IF(Z204<Planungsbeginn,"",LOOKUP(Z204,Grunddaten!$C$66:$C$190,Grunddaten!$D$66:$D$190)) -> Betrieb | Z204: 6 | AA204: 0 | AB204: 0 | AC204: 0 | AD204: 0 | AE204: 0 | AF204: 0 | AG204: 0 | AH204: 0 | AI204: 0 | AJ204: 0 | AK204: 0 | AL204: 0 | AM204: 0 | AN204: 0 | AO204: 0 | AP204: 0 | AQ204: 0 | AS204: 0 | AT204: Baukosten / Erstinvestition
B205: =IF(C205<Planungsbeginn,"",LOOKUP(C205,Grunddaten!$C$66:$C$190,Grunddaten!$D$66:$D$190)) ->  | C205: -23 | D205: =D20*D$81*(1+TeuerungDK1)^(Preisbasis-PreisbasisDK1) -> 0 | E205: 0 | F205: 0 | G205: 0 | H205: 0 | I205: 0 | J205: 0 | K205: 0 | L205: 0 | M205: 0 | N205: 0 | O205: 0 | P205: 0 | Q205: 0 | R205: 0 | S205: 0 | T205: 0 | U205: 0 | V205: 0 | W205: Baukosten / Erstinvestition | Y205: =IF(Z205<Planungsbeginn,"",LOOKUP(Z205,Grunddaten!$C$66:$C$190,Grunddaten!$D$66:$D$190)) -> Betrieb | Z205: 7 | AA205: 0 | AB205: 0 | AC205: 0 | AD205: 0 | AE205: 0 | AF205: 0 | AG205: 0 | AH205: 0 | AI205: 0 | AJ205: 0 | AK205: 0 | AL205: 0 | AM205: 0 | AN205: 0 | AO205: 0 | AP205: 0 | AQ205: 0 | AS205: 0 | AT205: Baukosten / Erstinvestition
B206: =IF(C206<Planungsbeginn,"",LOOKUP(C206,Grunddaten!$C$66:$C$190,Grunddaten!$D$66:$D$190)) ->  | C206: -22 | D206: =D21*D$81*(1+TeuerungDK1)^(Preisbasis-PreisbasisDK1) -> 0 | E206: 0 | F206: 0 | G206: 0 | H206: 0 | I206: 0 | J206: 0 | K206: 0 | L206: 0 | M206: 0 | N206: 0 | O206: 0 | P206: 0 | Q206: 0 | R206: 0 | S206: 0 | T206: 0 | U206: 0 | V206: 0 | W206: Baukosten / Erstinvestition | Y206: =IF(Z206<Planungsbeginn,"",LOOKUP(Z206,Grunddaten!$C$66:$C$190,Grunddaten!$D$66:$D$190)) -> Betrieb | Z206: 8 | AA206: 0 | AB206: 0 | AC206: 0 | AD206: 0 | AE206: 0 | AF206: 0 | AG206: 0 | AH206: 0 | AI206: 0 | AJ206: 0 | AK206: 0 | AL206: 0 | AM206: 0 | AN206: 0 | AO206: 0 | AP206: 0 | AQ206: 0 | AS206: 0 | AT206: Baukosten / Erstinvestition
B207: =IF(C207<Planungsbeginn,"",LOOKUP(C207,Grunddaten!$C$66:$C$190,Grunddaten!$D$66:$D$190)) ->  | C207: -21 | D207: =D22*D$81*(1+TeuerungDK1)^(Preisbasis-PreisbasisDK1) -> 0 | E207: 0 | F207: 0 | G207: 0 | H207: 0 | I207: 0 | J207: 0 | K207: 0 | L207: 0 | M207: 0 | N207: 0 | O207: 0 | P207: 0 | Q207: 0 | R207: 0 | S207: 0 | T207: 0 | U207: 0 | V207: 0 | W207: Baukosten / Erstinvestition | Y207: =IF(Z207<Planungsbeginn,"",LOOKUP(Z207,Grunddaten!$C$66:$C$190,Grunddaten!$D$66:$D$190)) -> Betrieb | Z207: 9 | AA207: 0 | AB207: 0 | AC207: 0 | AD207: 0 | AE207: 0 | AF207: 0 | AG207: 0 | AH207: 0 | AI207: 0 | AJ207: 0 | AK207: 0 | AL207: 0 | AM207: 0 | AN207: 0 | AO207: 0 | AP207: 0 | AQ207: 0 | AS207: 0 | AT207: Baukosten / Erstinvestition
B208: =IF(C208<Planungsbeginn,"",LOOKUP(C208,Grunddaten!$C$66:$C$190,Grunddaten!$D$66:$D$190)) ->  | C208: -20 | D208: =D23*D$81*(1+TeuerungDK1)^(Preisbasis-PreisbasisDK1) -> 0 | E208: 0 | F208: 0 | G208: 0 | H208: 0 | I208: 0 | J208: 0 | K208: 0 | L208: 0 | M208: 0 | N208: 0 | O208: 0 | P208: 0 | Q208: 0 | R208: 0 | S208: 0 | T208: 0 | U208: 0 | V208: 0 | W208: Baukosten / Erstinvestition | Y208: =IF(Z208<Planungsbeginn,"",LOOKUP(Z208,Grunddaten!$C$66:$C$190,Grunddaten!$D$66:$D$190)) -> Betrieb | Z208: 10 | AA208: 0 | AB208: 0 | AC208: 0 | AD208: 0 | AE208: 0 | AF208: 0 | AG208: 0 | AH208: 0 | AI208: 0 | AJ208: 0 | AK208: 0 | AL208: 0 | AM208: 0 | AN208: 0 | AO208: 0 | AP208: 0 | AQ208: 0 | AS208: 0 | AT208: Baukosten / Erstinvestition
B209: =IF(C209<Planungsbeginn,"",LOOKUP(C209,Grunddaten!$C$66:$C$190,Grunddaten!$D$66:$D$190)) ->  | C209: -19 | D209: =D24*D$81*(1+TeuerungDK1)^(Preisbasis-PreisbasisDK1) -> 0 | E209: 0 | F209: 0 | G209: 0 | H209: 0 | I209: 0 | J209: 0 | K209: 0 | L209: 0 | M209: 0 | N209: 0 | O209: 0 | P209: 0 | Q209: 0 | R209: 0 | S209: 0 | T209: 0 | U209: 0 | V209: 0 | W209: Baukosten / Erstinvestition | Y209: =IF(Z209<Planungsbeginn,"",LOOKUP(Z209,Grunddaten!$C$66:$C$190,Grunddaten!$D$66:$D$190)) -> Betrieb | Z209: 11 | AA209: 0 | AB209: 0 | AC209: 0 | AD209: 0 | AE209: 0 | AF209: 0 | AG209: 0 | AH209: 0 | AI209: 0 | AJ209: 0 | AK209: 0 | AL209: 0 | AM209: 0 | AN209: 0 | AO209: 0 | AP209: 0 | AQ209: 0 | AS209: 0 | AT209: Baukosten / Erstinvestition
B210: =IF(C210<Planungsbeginn,"",LOOKUP(C210,Grunddaten!$C$66:$C$190,Grunddaten!$D$66:$D$190)) ->  | C210: -18 | D210: =D25*D$81*(1+TeuerungDK1)^(Preisbasis-PreisbasisDK1) -> 0 | E210: 0 | F210: 0 | G210: 0 | H210: 0 | I210: 0 | J210: 0 | K210: 0 | L210: 0 | M210: 0 | N210: 0 | O210: 0 | P210: 0 | Q210: 0 | R210: 0 | S210: 0 | T210: 0 | U210: 0 | V210: 0 | W210: Baukosten / Erstinvestition | Y210: =IF(Z210<Planungsbeginn,"",LOOKUP(Z210,Grunddaten!$C$66:$C$190,Grunddaten!$D$66:$D$190)) -> Betrieb | Z210: 12 | AA210: 0 | AB210: 0 | AC210: 0 | AD210: 0 | AE210: 0 | AF210: 0 | AG210: 0 | AH210: 0 | AI210: 0 | AJ210: 0 | AK210: 0 | AL210: 0 | AM210: 0 | AN210: 0 | AO210: 0 | AP210: 0 | AQ210: 0 | AS210: 0 | AT210: Baukosten / Erstinvestition
B211: =IF(C211<Planungsbeginn,"",LOOKUP(C211,Grunddaten!$C$66:$C$190,Grunddaten!$D$66:$D$190)) ->  | C211: -17 | D211: =D26*D$81*(1+TeuerungDK1)^(Preisbasis-PreisbasisDK1) -> 0 | E211: 0 | F211: 0 | G211: 0 | H211: 0 | I211: 0 | J211: 0 | K211: 0 | L211: 0 | M211: 0 | N211: 0 | O211: 0 | P211: 0 | Q211: 0 | R211: 0 | S211: 0 | T211: 0 | U211: 0 | V211: 0 | W211: Baukosten / Erstinvestition | Y211: =IF(Z211<Planungsbeginn,"",LOOKUP(Z211,Grunddaten!$C$66:$C$190,Grunddaten!$D$66:$D$190)) -> Betrieb | Z211: 13 | AA211: 0 | AB211: 0 | AC211: 0 | AD211: 0 | AE211: 0 | AF211: 0 | AG211: 0 | AH211: 0 | AI211: 0 | AJ211: 0 | AK211: 0 | AL211: 0 | AM211: 0 | AN211: 0 | AO211: 0 | AP211: 0 | AQ211: 0 | AS211: 0 | AT211: Baukosten / Erstinvestition
B212: =IF(C212<Planungsbeginn,"",LOOKUP(C212,Grunddaten!$C$66:$C$190,Grunddaten!$D$66:$D$190)) ->  | C212: -16 | D212: =D27*D$81*(1+TeuerungDK1)^(Preisbasis-PreisbasisDK1) -> 0 | E212: 0 | F212: 0 | G212: 0 | H212: 0 | I212: 0 | J212: 0 | K212: 0 | L212: 0 | M212: 0 | N212: 0 | O212: 0 | P212: 0 | Q212: 0 | R212: 0 | S212: 0 | T212: 0 | U212: 0 | V212: 0 | W212: Baukosten / Erstinvestition | Y212: =IF(Z212<Planungsbeginn,"",LOOKUP(Z212,Grunddaten!$C$66:$C$190,Grunddaten!$D$66:$D$190)) -> Betrieb | Z212: 14 | AA212: 0 | AB212: 0 | AC212: 0 | AD212: 0 | AE212: 0 | AF212: 0 | AG212: 0 | AH212: 0 | AI212: 0 | AJ212: 0 | AK212: 0 | AL212: 0 | AM212: 0 | AN212: 0 | AO212: 0 | AP212: 0 | AQ212: 0 | AS212: 0 | AT212: Baukosten / Erstinvestition
B213: =IF(C213<Planungsbeginn,"",LOOKUP(C213,Grunddaten!$C$66:$C$190,Grunddaten!$D$66:$D$190)) ->  | C213: -15 | D213: =D28*D$81*(1+TeuerungDK1)^(Preisbasis-PreisbasisDK1) -> 0 | E213: 0 | F213: 0 | G213: 0 | H213: 0 | I213: 0 | J213: 0 | K213: 0 | L213: 0 | M213: 0 | N213: 0 | O213: 0 | P213: 0 | Q213: 0 | R213: 0 | S213: 0 | T213: 0 | U213: 0 | V213: 0 | W213: Baukosten / Erstinvestition | Y213: =IF(Z213<Planungsbeginn,"",LOOKUP(Z213,Grunddaten!$C$66:$C$190,Grunddaten!$D$66:$D$190)) -> Betrieb | Z213: 15 | AA213: 0 | AB213: 0 | AC213: 0 | AD213: 0 | AE213: 0 | AF213: 0 | AG213: 0 | AH213: 0 | AI213: 0 | AJ213: 0 | AK213: 0 | AL213: 0 | AM213: 0 | AN213: 0 | AO213: 0 | AP213: 0 | AQ213: 0 | AS213: 0 | AT213: Baukosten / Erstinvestition
B214: =IF(C214<Planungsbeginn,"",LOOKUP(C214,Grunddaten!$C$66:$C$190,Grunddaten!$D$66:$D$190)) ->  | C214: -14 | D214: =D29*D$81*(1+TeuerungDK1)^(Preisbasis-PreisbasisDK1) -> 0 | E214: 0 | F214: 0 | G214: 0 | H214: 0 | I214: 0 | J214: 0 | K214: 0 | L214: 0 | M214: 0 | N214: 0 | O214: 0 | P214: 0 | Q214: 0 | R214: 0 | S214: 0 | T214: 0 | U214: 0 | V214: 0 | W214: Baukosten / Erstinvestition | Y214: =IF(Z214<Planungsbeginn,"",LOOKUP(Z214,Grunddaten!$C$66:$C$190,Grunddaten!$D$66:$D$190)) -> Betrieb | Z214: 16 | AA214: 0 | AB214: 0 | AC214: 0 | AD214: 0 | AE214: 0 | AF214: 0 | AG214: 0 | AH214: 0 | AI214: 0 | AJ214: 0 | AK214: 0 | AL214: 0 | AM214: 0 | AN214: 0 | AO214: 0 | AP214: 0 | AQ214: 0 | AS214: 0 | AT214: Baukosten / Erstinvestition
B215: =IF(C215<Planungsbeginn,"",LOOKUP(C215,Grunddaten!$C$66:$C$190,Grunddaten!$D$66:$D$190)) ->  | C215: -13 | D215: =D30*D$81*(1+TeuerungDK1)^(Preisbasis-PreisbasisDK1) -> 0 | E215: 0 | F215: 0 | G215: 0 | H215: 0 | I215: 0 | J215: 0 | K215: 0 | L215: 0 | M215: 0 | N215: 0 | O215: 0 | P215: 0 | Q215: 0 | R215: 0 | S215: 0 | T215: 0 | U215: 0 | V215: 0 | W215: Baukosten / Erstinvestition | Y215: =IF(Z215<Planungsbeginn,"",LOOKUP(Z215,Grunddaten!$C$66:$C$190,Grunddaten!$D$66:$D$190)) -> Betrieb | Z215: 17 | AA215: 0 | AB215: 0 | AC215: 0 | AD215: 0 | AE215: 0 | AF215: 0 | AG215: 0 | AH215: 0 | AI215: 0 | AJ215: 0 | AK215: 0 | AL215: 0 | AM215: 0 | AN215: 0 | AO215: 0 | AP215: 0 | AQ215: 0 | AS215: 0 | AT215: Baukosten / Erstinvestition
B216: =IF(C216<Planungsbeginn,"",LOOKUP(C216,Grunddaten!$C$66:$C$190,Grunddaten!$D$66:$D$190)) ->  | C216: -12 | D216: =D31*D$81*(1+TeuerungDK1)^(Preisbasis-PreisbasisDK1) -> 0 | E216: 0 | F216: 0 | G216: 0 | H216: 0 | I216: 0 | J216: 0 | K216: 0 | L216: 0 | M216: 0 | N216: 0 | O216: 0 | P216: 0 | Q216: 0 | R216: 0 | S216: 0 | T216: 0 | U216: 0 | V216: 0 | W216: Baukosten / Erstinvestition | Y216: =IF(Z216<Planungsbeginn,"",LOOKUP(Z216,Grunddaten!$C$66:$C$190,Grunddaten!$D$66:$D$190)) -> Betrieb | Z216: 18 | AA216: 0 | AB216: 0 | AC216: 0 | AD216: 0 | AE216: 0 | AF216: 0 | AG216: 0 | AH216: 0 | AI216: 0 | AJ216: 0 | AK216: 0 | AL216: 0 | AM216: 0 | AN216: 0 | AO216: 0 | AP216: 0 | AQ216: 0 | AS216: 0 | AT216: Baukosten / Erstinvestition
B217: =IF(C217<Planungsbeginn,"",LOOKUP(C217,Grunddaten!$C$66:$C$190,Grunddaten!$D$66:$D$190)) ->  | C217: -11 | D217: =D32*D$81*(1+TeuerungDK1)^(Preisbasis-PreisbasisDK1) -> 0 | E217: 0 | F217: 0 | G217: 0 | H217: 0 | I217: 0 | J217: 0 | K217: 0 | L217: 0 | M217: 0 | N217: 0 | O217: 0 | P217: 0 | Q217: 0 | R217: 0 | S217: 0 | T217: 0 | U217: 0 | V217: 0 | W217: Baukosten / Erstinvestition | Y217: =IF(Z217<Planungsbeginn,"",LOOKUP(Z217,Grunddaten!$C$66:$C$190,Grunddaten!$D$66:$D$190)) -> Betrieb | Z217: 19 | AA217: 0 | AB217: 0 | AC217: 0 | AD217: 0 | AE217: 0 | AF217: 0 | AG217: 0 | AH217: 0 | AI217: 0 | AJ217: 0 | AK217: 0 | AL217: 0 | AM217: 0 | AN217: 0 | AO217: 0 | AP217: 0 | AQ217: 0 | AS217: 0 | AT217: Baukosten / Erstinvestition
B218: =IF(C218<Planungsbeginn,"",LOOKUP(C218,Grunddaten!$C$66:$C$190,Grunddaten!$D$66:$D$190)) ->  | C218: -10 | D218: =D33*D$81*(1+TeuerungDK1)^(Preisbasis-PreisbasisDK1) -> 0 | E218: 0 | F218: 0 | G218: 0 | H218: 0 | I218: 0 | J218: 0 | K218: 0 | L218: 0 | M218: 0 | N218: 0 | O218: 0 | P218: 0 | Q218: 0 | R218: 0 | S218: 0 | T218: 0 | U218: 0 | V218: 0 | W218: Baukosten / Erstinvestition | Y218: =IF(Z218<Planungsbeginn,"",LOOKUP(Z218,Grunddaten!$C$66:$C$190,Grunddaten!$D$66:$D$190)) -> Betrieb | Z218: 20 | AA218: 0 | AB218: 0 | AC218: 0 | AD218: 0 | AE218: 0 | AF218: 0 | AG218: 0 | AH218: 0 | AI218: 0 | AJ218: 0 | AK218: 0 | AL218: 0 | AM218: 0 | AN218: 0 | AO218: 0 | AP218: 0 | AQ218: 0 | AS218: 0 | AT218: Baukosten / Erstinvestition
B219: =IF(C219<Planungsbeginn,"",LOOKUP(C219,Grunddaten!$C$66:$C$190,Grunddaten!$D$66:$D$190)) ->  | C219: -9 | D219: =D34*D$81*(1+TeuerungDK1)^(Preisbasis-PreisbasisDK1) -> 0 | E219: 0 | F219: 0 | G219: 0 | H219: 0 | I219: 0 | J219: 0 | K219: 0 | L219: 0 | M219: 0 | N219: 0 | O219: 0 | P219: 0 | Q219: 0 | R219: 0 | S219: 0 | T219: 0 | U219: 0 | V219: 0 | W219: Baukosten / Erstinvestition | Y219: =IF(Z219<Planungsbeginn,"",LOOKUP(Z219,Grunddaten!$C$66:$C$190,Grunddaten!$D$66:$D$190)) -> Betrieb | Z219: 21 | AA219: 0 | AB219: 0 | AC219: 0 | AD219: 0 | AE219: 0 | AF219: 0 | AG219: 0 | AH219: 0 | AI219: 0 | AJ219: 0 | AK219: 0 | AL219: 0 | AM219: 0 | AN219: 0 | AO219: 0 | AP219: 0 | AQ219: 0 | AS219: 0 | AT219: Baukosten / Erstinvestition
B220: =IF(C220<Planungsbeginn,"",LOOKUP(C220,Grunddaten!$C$66:$C$190,Grunddaten!$D$66:$D$190)) ->  | C220: -8 | D220: =D35*D$81*(1+TeuerungDK1)^(Preisbasis-PreisbasisDK1) -> 0 | E220: 0 | F220: 0 | G220: 0 | H220: 0 | I220: 0 | J220: 0 | K220: 0 | L220: 0 | M220: 0 | N220: 0 | O220: 0 | P220: 0 | Q220: 0 | R220: 0 | S220: 0 | T220: 0 | U220: 0 | V220: 0 | W220: Baukosten / Erstinvestition | Y220: =IF(Z220<Planungsbeginn,"",LOOKUP(Z220,Grunddaten!$C$66:$C$190,Grunddaten!$D$66:$D$190)) -> Betrieb | Z220: 22 | AA220: 0 | AB220: 0 | AC220: 0 | AD220: 0 | AE220: 0 | AF220: 0 | AG220: 0 | AH220: 0 | AI220: 0 | AJ220: 0 | AK220: 0 | AL220: 0 | AM220: 0 | AN220: 0 | AO220: 0 | AP220: 0 | AQ220: 0 | AS220: 0 | AT220: Baukosten / Erstinvestition
B221: =IF(C221<Planungsbeginn,"",LOOKUP(C221,Grunddaten!$C$66:$C$190,Grunddaten!$D$66:$D$190)) ->  | C221: -7 | D221: =D36*D$81*(1+TeuerungDK1)^(Preisbasis-PreisbasisDK1) -> 0 | E221: 0 | F221: 0 | G221: 0 | H221: 0 | I221: 0 | J221: 0 | K221: 0 | L221: 0 | M221: 0 | N221: 0 | O221: 0 | P221: 0 | Q221: 0 | R221: 0 | S221: 0 | T221: 0 | U221: 0 | V221: 0 | W221: Baukosten / Erstinvestition | Y221: =IF(Z221<Planungsbeginn,"",LOOKUP(Z221,Grunddaten!$C$66:$C$190,Grunddaten!$D$66:$D$190)) -> Betrieb | Z221: 23 | AA221: 0 | AB221: 0 | AC221: 0 | AD221: 0 | AE221: 0 | AF221: 0 | AG221: 0 | AH221: 0 | AI221: 0 | AJ221: 0 | AK221: 0 | AL221: 0 | AM221: 0 | AN221: 0 | AO221: 0 | AP221: 0 | AQ221: 0 | AS221: 0 | AT221: Baukosten / Erstinvestition
B222: =IF(C222<Planungsbeginn,"",LOOKUP(C222,Grunddaten!$C$66:$C$190,Grunddaten!$D$66:$D$190)) ->  | C222: -6 | D222: =D37*D$81*(1+TeuerungDK1)^(Preisbasis-PreisbasisDK1) -> 0 | E222: 0 | F222: 0 | G222: 0 | H222: 0 | I222: 0 | J222: 0 | K222: 0 | L222: 0 | M222: 0 | N222: 0 | O222: 0 | P222: 0 | Q222: 0 | R222: 0 | S222: 0 | T222: 0 | U222: 0 | V222: 0 | W222: Baukosten / Erstinvestition | Y222: =IF(Z222<Planungsbeginn,"",LOOKUP(Z222,Grunddaten!$C$66:$C$190,Grunddaten!$D$66:$D$190)) -> Betrieb | Z222: 24 | AA222: 0 | AB222: 0 | AC222: 0 | AD222: 0 | AE222: 0 | AF222: 0 | AG222: 0 | AH222: 0 | AI222: 0 | AJ222: 0 | AK222: 0 | AL222: 0 | AM222: 0 | AN222: 0 | AO222: 0 | AP222: 0 | AQ222: 0 | AS222: 0 | AT222: Baukosten / Erstinvestition
B223: =IF(C223<Planungsbeginn,"",LOOKUP(C223,Grunddaten!$C$66:$C$190,Grunddaten!$D$66:$D$190)) ->  | C223: -5 | D223: =D38*D$81*(1+TeuerungDK1)^(Preisbasis-PreisbasisDK1) -> 0 | E223: 0 | F223: 0 | G223: 0 | H223: 0 | I223: 0 | J223: 0 | K223: 0 | L223: 0 | M223: 0 | N223: 0 | O223: 0 | P223: 0 | Q223: 0 | R223: 0 | S223: 0 | T223: 0 | U223: 0 | V223: 0 | W223: Baukosten / Erstinvestition | Y223: =IF(Z223<Planungsbeginn,"",LOOKUP(Z223,Grunddaten!$C$66:$C$190,Grunddaten!$D$66:$D$190)) -> Betrieb | Z223: 25 | AA223: 0 | AB223: 0 | AC223: 0 | AD223: 0 | AE223: 0 | AF223: 0 | AG223: 0 | AH223: 0 | AI223: 0 | AJ223: 0 | AK223: 0 | AL223: 0 | AM223: 0 | AN223: 0 | AO223: 0 | AP223: 0 | AQ223: 0 | AS223: 0 | AT223: Baukosten / Erstinvestition
B224: =IF(C224<Planungsbeginn,"",LOOKUP(C224,Grunddaten!$C$66:$C$190,Grunddaten!$D$66:$D$190)) ->  | C224: -4 | D224: =D39*D$81*(1+TeuerungDK1)^(Preisbasis-PreisbasisDK1) -> 0 | E224: 0 | F224: 0 | G224: 0 | H224: 0 | I224: 0 | J224: 0 | K224: 0 | L224: 0 | M224: 0 | N224: 0 | O224: 0 | P224: 0 | Q224: 0 | R224: 0 | S224: 0 | T224: 0 | U224: 0 | V224: 0 | W224: Baukosten / Erstinvestition | Y224: =IF(Z224<Planungsbeginn,"",LOOKUP(Z224,Grunddaten!$C$66:$C$190,Grunddaten!$D$66:$D$190)) -> Betrieb | Z224: 26 | AA224: 0 | AB224: 0 | AC224: 0 | AD224: 0 | AE224: 0 | AF224: 0 | AG224: 0 | AH224: 0 | AI224: 0 | AJ224: 0 | AK224: 0 | AL224: 0 | AM224: 0 | AN224: 0 | AO224: 0 | AP224: 0 | AQ224: 0 | AS224: 0 | AT224: Baukosten / Erstinvestition | AZ224: Verteilung der Rückbaukosten
B225: =IF(C225<Planungsbeginn,"",LOOKUP(C225,Grunddaten!$C$66:$C$190,Grunddaten!$D$66:$D$190)) ->  | C225: -3 | D225: =D40*D$81*(1+TeuerungDK1)^(Preisbasis-PreisbasisDK1) -> 0 | E225: 0 | F225: 0 | G225: 0 | H225: 0 | I225: 0 | J225: 0 | K225: 0 | L225: 0 | M225: 0 | N225: 0 | O225: 0 | P225: 0 | Q225: 0 | R225: 0 | S225: 0 | T225: 0 | U225: 0 | V225: 0 | W225: Baukosten / Erstinvestition | Y225: =IF(Z225<Planungsbeginn,"",LOOKUP(Z225,Grunddaten!$C$66:$C$190,Grunddaten!$D$66:$D$190)) -> Betrieb | Z225: 27 | AA225: 0 | AB225: 0 | AC225: 0 | AD225: 0 | AE225: 0 | AF225: 0 | AG225: 0 | AH225: 0 | AI225: 0 | AJ225: 0 | AK225: 0 | AL225: 0 | AM225: 0 | AN225: 0 | AO225: 0 | AP225: 0 | AQ225: 0 | AS225: 0 | AT225: Baukosten / Erstinvestition | AU225: Rückbaukosten
B226: =IF(C226<Planungsbeginn,"",LOOKUP(C226,Grunddaten!$C$66:$C$190,Grunddaten!$D$66:$D$190)) ->  | C226: -2 | D226: =D41*D$81*(1+TeuerungDK1)^(Preisbasis-PreisbasisDK1) -> 0 | E226: 0 | F226: 0 | G226: 0 | H226: 0 | I226: 0 | J226: 0 | K226: 0 | L226: 0 | M226: 0 | N226: 0 | O226: 0 | P226: 0 | Q226: 0 | R226: 0 | S226: 0 | T226: 0 | U226: 0 | V226: 0 | W226: Baukosten / Erstinvestition | Y226: =IF(Z226<Planungsbeginn,"",LOOKUP(Z226,Grunddaten!$C$66:$C$190,Grunddaten!$D$66:$D$190)) -> Betrieb | Z226: 28 | AA226: 0 | AB226: 0 | AC226: 0 | AD226: 0 | AE226: 0 | AF226: 0 | AG226: 0 | AH226: 0 | AI226: 0 | AJ226: 0 | AK226: 0 | AL226: 0 | AM226: 0 | AN226: 0 | AO226: 0 | AP226: 0 | AQ226: 0 | AS226: 0 | AT226: Baukosten / Erstinvestition | AU226: mit oder ohne Provisorium | BA226: Bauzeit in Jahren
B227: =IF(C227<Planungsbeginn,"",LOOKUP(C227,Grunddaten!$C$66:$C$190,Grunddaten!$D$66:$D$190)) ->  | C227: =C228-1 -> -1 | D227: =D42*D$81*(1+TeuerungDK1)^(Preisbasis-PreisbasisDK1) -> 0 | E227: 0 | F227: 0 | G227: 0 | H227: 0 | I227: 0 | J227: 0 | K227: 0 | L227: 0 | M227: 0 | N227: 0 | O227: 0 | P227: 0 | Q227: 0 | R227: 0 | S227: 0 | T227: 0 | U227: 0 | V227: 0 | W227: Baukosten / Erstinvestition | Y227: =IF(Z227<Planungsbeginn,"",LOOKUP(Z227,Grunddaten!$C$66:$C$190,Grunddaten!$D$66:$D$190)) -> Betrieb | Z227: 29 | AA227: 0 | AB227: 0 | AC227: 0 | AD227: 0 | AE227: 0 | AF227: 0 | AG227: 0 | AH227: 0 | AI227: 0 | AJ227: 0 | AK227: 0 | AL227: 0 | AM227: 0 | AN227: 0 | AO227: 0 | AP227: 0 | AQ227: 0 | AS227: 0 | AT227: Baukosten / Erstinvestition | AU227: Total | AV227: =O11*U$81*(1+TeuerungDK1)^(Preisbasis-PreisbasisDK1) -> 0 | BA227: 1 | BB227: 1.5 | BC227: 2 | BD227: 2.5 | BE227: 3 | BF227: 3.5 | BG227: 4 | BH227: 5 | BI227: 6 | BJ227: 7 | BK227: 8 | BL227: 9 | BM227: 10 | BN227: 11 | BO227: 12 | BP227: 13 | BQ227: 14 | BR227: 15 | BS227: 16 | BT227: 17 | BU227: Hilsspalte
B228: =IF(C228<Planungsbeginn,"",LOOKUP(C228,Grunddaten!$C$66:$C$190,Grunddaten!$D$66:$D$190)) -> 1. Jahr Vollbetrieb | C228: =Inbetriebnahme -> 0 | D228: =D43*D$81*(1+TeuerungDK1)^(Preisbasis-PreisbasisDK1) -> 0 | E228: 0 | F228: 0 | G228: 0 | H228: 0 | I228: 0 | J228: 0 | K228: 0 | L228: 0 | M228: 0 | N228: 0 | O228: 0 | P228: 0 | Q228: 0 | R228: 0 | S228: 0 | T228: 0 | U228: 0 | V228: 0 | W228: Baukosten / Erstinvestition | Y228: =IF(Z228<Planungsbeginn,"",LOOKUP(Z228,Grunddaten!$C$66:$C$190,Grunddaten!$D$66:$D$190)) -> Betrieb | Z228: 30 | AA228: 0 | AB228: 0 | AC228: 0 | AD228: 0 | AE228: 0 | AF228: 0 | AG228: 0 | AH228: 0 | AI228: 0 | AJ228: 0 | AK228: 0 | AL228: 0 | AM228: 0 | AN228: 0 | AO228: 0 | AP228: 0 | AQ228: 0 | AS228: 0 | AT228: Baukosten / Erstinvestition | AU228: =IF(ProvisoriumAktiv=1,ProvisoriumEnde,IF(EtappeAktiv=1,'DK1'!S13,Inbetriebnahme)) -> 0 | AV228: =IF($O$13="",0,$AV$227*HLOOKUP($O$13,$BA$227:$BT$245,BU228,FALSE)) -> 0 | AY228: Anteil an den gesamten Baukosten (in %) im Jahr | AZ228: =AU228 -> 0 | BA228: 0.97 | BB228: 0.68 | BC228: 0.47 | BD228: 0.39 | BE228: 0.3 | BF228: 0.27 | BG228: 0.22 | BH228: 0.13 | BI228: 0.065 | BJ228: 0.055 | BK228: 0.05 | BL228: 0.05 | BM228: 0.045 | BN228: 0.04 | BO228: 0.035 | BP228: 0.035 | BQ228: 0.03 | BR228: 0.03 | BS228: 0.03 | BT228: 0.03 | BU228: 2
B229: =IF(C229<Planungsbeginn,"",LOOKUP(C229,Grunddaten!$C$66:$C$190,Grunddaten!$D$66:$D$190)) -> Betrieb | C229: =C228+1 -> 1 | E229: =IF(AND($B229<>"",E$83<>""),IF($C229-E$83<$C$18,0,LOOKUP($C229-E$83,$C$203:$C$327,E$203:E$327)*(1+'DK2'!E$17)),0) -> 0 | F229: =IF(AND($B229<>"",F$83<>""),IF($C229-F$83<$C$18,0,LOOKUP($C229-F$83,$C$203:$C$327,F$203:F$327)*(1+'DK2'!F$17)),0) -> 0 | G229: =IF(AND($B229<>"",G$83<>""),IF($C229-G$83<$C$18,0,LOOKUP($C229-G$83,$C$203:$C$327,G$203:G$327)*(1+'DK2'!G$17)),0) -> 0 | H229: =IF(AND($B229<>"",H$83<>""),IF($C229-H$83<$C$18,0,LOOKUP($C229-H$83,$C$203:$C$327,H$203:H$327)*(1+'DK2'!H$17)),0) -> 0 | I229: =IF(AND($B229<>"",I$83<>""),IF($C229-I$83<$C$18,0,LOOKUP($C229-I$83,$C$203:$C$327,I$203:I$327)*(1+'DK2'!I$17)),0) -> 0 | J229: =IF(AND($B229<>"",J$83<>""),IF($C229-J$83<$C$18,0,LOOKUP($C229-J$83,$C$203:$C$327,J$203:J$327)*(1+'DK2'!J$17)),0) -> 0 | K229: =IF(AND($B229<>"",K$83<>""),IF($C229-K$83<$C$18,0,LOOKUP($C229-K$83,$C$203:$C$327,K$203:K$327)*(1+'DK2'!K$17)),0) -> 0 | L229: =IF(AND($B229<>"",L$83<>""),IF($C229-L$83<$C$18,0,LOOKUP($C229-L$83,$C$203:$C$327,L$203:L$327)*(1+'DK2'!L$17)),0) -> 0 | M229: =IF(AND($B229<>"",M$83<>""),IF($C229-M$83<$C$18,0,LOOKUP($C229-M$83,$C$203:$C$327,M$203:M$327)*(1+'DK2'!M$17)),0) -> 0 | N229: =IF(AND($B229<>"",N$83<>""),IF($C229-N$83<$C$18,0,LOOKUP($C229-N$83,$C$203:$C$327,N$203:N$327)*(1+'DK2'!N$17)),0) -> 0 | O229: =IF(AND($B229<>"",O$83<>""),IF($C229-O$83<$C$18,0,LOOKUP($C229-O$83,$C$203:$C$327,O$203:O$327)*(1+'DK2'!O$17)),0) -> 0 | P229: =IF(AND($B229<>"",P$83<>""),IF($C229-P$83<$C$18,0,LOOKUP($C229-P$83,$C$203:$C$327,P$203:P$327)*(1+'DK2'!P$17)),0) -> 0 | Q229: =IF(AND($B229<>"",Q$83<>""),IF($C229-Q$83<$C$18,0,LOOKUP($C229-Q$83,$C$203:$C$327,Q$203:Q$327)*(1+'DK2'!Q$17)),0) -> 0 | R229: =IF(AND($B229<>"",R$83<>""),IF($C229-R$83<$C$18,0,LOOKUP($C229-R$83,$C$203:$C$327,R$203:R$327)*(1+'DK2'!R$17)),0) -> 0 | S229: =IF(AND($B229<>"",S$83<>""),IF($C229-S$83<$C$18,0,LOOKUP($C229-S$83,$C$203:$C$327,S$203:S$327)*(1+'DK2'!S$17)),0) -> 0 | T229: =IF(AND($B229<>"",T$83<>""),IF($C229-T$83<$C$18,0,LOOKUP($C229-T$83,$C$203:$C$327,T$203:T$327)*(1+'DK2'!T$17)),0) -> 0 | U229: 0 | V229: 0 | W229: Ersatzinvesttion | Y229: =IF(Z229<Planungsbeginn,"",LOOKUP(Z229,Grunddaten!$C$66:$C$190,Grunddaten!$D$66:$D$190)) -> Betrieb | Z229: =Inbetriebnahme+1 -> 1 | AB229: =IF(AND($Y229<>"",E$83<>""),IF($Z229-E$83<Inbetriebnahme+1,0,(LOOKUP($Z229-E$83,$Z$229:$Z$327,AB$229:AB$327)+LOOKUP($Z229-E$83,$Z$199:$Z$228,AB$199:AB$228))*(1+'DK2'!E$17)),0) -> 0 | AC229: =IF(AND($Y229<>"",F$83<>""),IF($Z229-F$83<Inbetriebnahme+1,0,(LOOKUP($Z229-F$83,$Z$229:$Z$327,AC$229:AC$327)+LOOKUP($Z229-F$83,$Z$199:$Z$228,AC$199:AC$228))*(1+'DK2'!F$17)),0) -> 0 | AD229: =IF(AND($Y229<>"",G$83<>""),IF($Z229-G$83<Inbetriebnahme+1,0,(LOOKUP($Z229-G$83,$Z$229:$Z$327,AD$229:AD$327)+LOOKUP($Z229-G$83,$Z$199:$Z$228,AD$199:AD$228))*(1+'DK2'!G$17)),0) -> 0 | AE229: =IF(AND($Y229<>"",H$83<>""),IF($Z229-H$83<Inbetriebnahme+1,0,(LOOKUP($Z229-H$83,$Z$229:$Z$327,AE$229:AE$327)+LOOKUP($Z229-H$83,$Z$199:$Z$228,AE$199:AE$228))*(1+'DK2'!H$17)),0) -> 0 | AF229: =IF(AND($Y229<>"",I$83<>""),IF($Z229-I$83<Inbetriebnahme+1,0,(LOOKUP($Z229-I$83,$Z$229:$Z$327,AF$229:AF$327)+LOOKUP($Z229-I$83,$Z$199:$Z$228,AF$199:AF$228))*(1+'DK2'!I$17)),0) -> 0 | AG229: =IF(AND($Y229<>"",J$83<>""),IF($Z229-J$83<Inbetriebnahme+1,0,(LOOKUP($Z229-J$83,$Z$229:$Z$327,AG$229:AG$327)+LOOKUP($Z229-J$83,$Z$199:$Z$228,AG$199:AG$228))*(1+'DK2'!J$17)),0) -> 0 | AH229: =IF(AND($Y229<>"",K$83<>""),IF($Z229-K$83<Inbetriebnahme+1,0,(LOOKUP($Z229-K$83,$Z$229:$Z$327,AH$229:AH$327)+LOOKUP($Z229-K$83,$Z$199:$Z$228,AH$199:AH$228))*(1+'DK2'!K$17)),0) -> 0 | AI229: =IF(AND($Y229<>"",L$83<>""),IF($Z229-L$83<Inbetriebnahme+1,0,(LOOKUP($Z229-L$83,$Z$229:$Z$327,AI$229:AI$327)+LOOKUP($Z229-L$83,$Z$199:$Z$228,AI$199:AI$228))*(1+'DK2'!L$17)),0) -> 0 | AJ229: =IF(AND($Y229<>"",M$83<>""),IF($Z229-M$83<Inbetriebnahme+1,0,(LOOKUP($Z229-M$83,$Z$229:$Z$327,AJ$229:AJ$327)+LOOKUP($Z229-M$83,$Z$199:$Z$228,AJ$199:AJ$228))*(1+'DK2'!M$17)),0) -> 0 | AK229: =IF(AND($Y229<>"",N$83<>""),IF($Z229-N$83<Inbetriebnahme+1,0,(LOOKUP($Z229-N$83,$Z$229:$Z$327,AK$229:AK$327)+LOOKUP($Z229-N$83,$Z$199:$Z$228,AK$199:AK$228))*(1+'DK2'!N$17)),0) -> 0 | AL229: =IF(AND($Y229<>"",O$83<>""),IF($Z229-O$83<Inbetriebnahme+1,0,(LOOKUP($Z229-O$83,$Z$229:$Z$327,AL$229:AL$327)+LOOKUP($Z229-O$83,$Z$199:$Z$228,AL$199:AL$228))*(1+'DK2'!O$17)),0) -> 0 | AM229: =IF(AND($Y229<>"",P$83<>""),IF($Z229-P$83<Inbetriebnahme+1,0,(LOOKUP($Z229-P$83,$Z$229:$Z$327,AM$229:AM$327)+LOOKUP($Z229-P$83,$Z$199:$Z$228,AM$199:AM$228))*(1+'DK2'!P$17)),0) -> 0 | AN229: =IF(AND($Y229<>"",Q$83<>""),IF($Z229-Q$83<Inbetriebnahme+1,0,(LOOKUP($Z229-Q$83,$Z$229:$Z$327,AN$229:AN$327)+LOOKUP($Z229-Q$83,$Z$199:$Z$228,AN$199:AN$228))*(1+'DK2'!Q$17)),0) -> 0 | AO229: =IF(AND($Y229<>"",R$83<>""),IF($Z229-R$83<Inbetriebnahme+1,0,(LOOKUP($Z229-R$83,$Z$229:$Z$327,AO$229:AO$327)+LOOKUP($Z229-R$83,$Z$199:$Z$228,AO$199:AO$228))*(1+'DK2'!R$17)),0) -> 0 | AP229: =IF(AND($Y229<>"",S$83<>""),IF($Z229-S$83<Inbetriebnahme+1,0,(LOOKUP($Z229-S$83,$Z$229:$Z$327,AP$229:AP$327)+LOOKUP($Z229-S$83,$Z$199:$Z$228,AP$199:AP$228))*(1+'DK2'!S$17)),0) -> 0 | AQ229: =IF(AND($Y229<>"",T$83<>""),IF($Z229-T$83<Inbetriebnahme+1,0,(LOOKUP($Z229-T$83,$Z$229:$Z$327,AQ$229:AQ$327)+LOOKUP($Z229-T$83,$Z$199:$Z$228,AQ$199:AQ$228))*(1+'DK2'!T$17)),0) -> 0 | AS229: 0 | AT229: Ersatzinvesttion | AU229: =AU228+1 -> 1 | AV229: 0 | AZ229: =AZ228+1 -> 1 | BA229: 0.03 | BB229: 0.32 | BC229: 0.5 | BD229: 0.42 | BE229: 0.34 | BF229: 0.29 | BG229: 0.25 | BH229: 0.2 | BI229: 0.17 | BJ229: 0.14 | BK229: 0.08 | BL229: 0.07 | BM229: 0.05 | BN229: 0.05 | BO229: 0.05 | BP229: 0.04 | BQ229: 0.04 | BR229: 0.04 | BS229: 0.04 | BT229: 0.04 | BU229: =BU228+1 -> 3
B230: =IF(C230<Planungsbeginn,"",LOOKUP(C230,Grunddaten!$C$66:$C$190,Grunddaten!$D$66:$D$190)) -> Betrieb | C230: =C229+1 -> 2 | E230: =IF(AND($B230<>"",E$83<>""),IF($C230-E$83<$C$18,0,LOOKUP($C230-E$83,$C$203:$C$327,E$203:E$327)*(1+'DK2'!E$17)),0) -> 0 | F230: =IF(AND($B230<>"",F$83<>""),IF($C230-F$83<$C$18,0,LOOKUP($C230-F$83,$C$203:$C$327,F$203:F$327)*(1+'DK2'!F$17)),0) -> 0 | G230: =IF(AND($B230<>"",G$83<>""),IF($C230-G$83<$C$18,0,LOOKUP($C230-G$83,$C$203:$C$327,G$203:G$327)*(1+'DK2'!G$17)),0) -> 0 | H230: =IF(AND($B230<>"",H$83<>""),IF($C230-H$83<$C$18,0,LOOKUP($C230-H$83,$C$203:$C$327,H$203:H$327)*(1+'DK2'!H$17)),0) -> 0 | I230: =IF(AND($B230<>"",I$83<>""),IF($C230-I$83<$C$18,0,LOOKUP($C230-I$83,$C$203:$C$327,I$203:I$327)*(1+'DK2'!I$17)),0) -> 0 | J230: =IF(AND($B230<>"",J$83<>""),IF($C230-J$83<$C$18,0,LOOKUP($C230-J$83,$C$203:$C$327,J$203:J$327)*(1+'DK2'!J$17)),0) -> 0 | K230: =IF(AND($B230<>"",K$83<>""),IF($C230-K$83<$C$18,0,LOOKUP($C230-K$83,$C$203:$C$327,K$203:K$327)*(1+'DK2'!K$17)),0) -> 0 | L230: =IF(AND($B230<>"",L$83<>""),IF($C230-L$83<$C$18,0,LOOKUP($C230-L$83,$C$203:$C$327,L$203:L$327)*(1+'DK2'!L$17)),0) -> 0 | M230: =IF(AND($B230<>"",M$83<>""),IF($C230-M$83<$C$18,0,LOOKUP($C230-M$83,$C$203:$C$327,M$203:M$327)*(1+'DK2'!M$17)),0) -> 0 | N230: =IF(AND($B230<>"",N$83<>""),IF($C230-N$83<$C$18,0,LOOKUP($C230-N$83,$C$203:$C$327,N$203:N$327)*(1+'DK2'!N$17)),0) -> 0 | O230: =IF(AND($B230<>"",O$83<>""),IF($C230-O$83<$C$18,0,LOOKUP($C230-O$83,$C$203:$C$327,O$203:O$327)*(1+'DK2'!O$17)),0) -> 0 | P230: =IF(AND($B230<>"",P$83<>""),IF($C230-P$83<$C$18,0,LOOKUP($C230-P$83,$C$203:$C$327,P$203:P$327)*(1+'DK2'!P$17)),0) -> 0 | Q230: =IF(AND($B230<>"",Q$83<>""),IF($C230-Q$83<$C$18,0,LOOKUP($C230-Q$83,$C$203:$C$327,Q$203:Q$327)*(1+'DK2'!Q$17)),0) -> 0 | R230: =IF(AND($B230<>"",R$83<>""),IF($C230-R$83<$C$18,0,LOOKUP($C230-R$83,$C$203:$C$327,R$203:R$327)*(1+'DK2'!R$17)),0) -> 0 | S230: =IF(AND($B230<>"",S$83<>""),IF($C230-S$83<$C$18,0,LOOKUP($C230-S$83,$C$203:$C$327,S$203:S$327)*(1+'DK2'!S$17)),0) -> 0 | T230: =IF(AND($B230<>"",T$83<>""),IF($C230-T$83<$C$18,0,LOOKUP($C230-T$83,$C$203:$C$327,T$203:T$327)*(1+'DK2'!T$17)),0) -> 0 | U230: 0 | V230: 0 | W230: Ersatzinvesttion | Y230: =IF(Z230<Planungsbeginn,"",LOOKUP(Z230,Grunddaten!$C$66:$C$190,Grunddaten!$D$66:$D$190)) -> Betrieb | Z230: =Z229+1 -> 2 | AB230: =IF(AND($Y230<>"",E$83<>""),IF($Z230-E$83<Inbetriebnahme+1,0,(LOOKUP($Z230-E$83,$Z$229:$Z$327,AB$229:AB$327)+LOOKUP($Z230-E$83,$Z$199:$Z$228,AB$199:AB$228))*(1+'DK2'!E$17)),0) -> 0 | AC230: =IF(AND($Y230<>"",F$83<>""),IF($Z230-F$83<Inbetriebnahme+1,0,(LOOKUP($Z230-F$83,$Z$229:$Z$327,AC$229:AC$327)+LOOKUP($Z230-F$83,$Z$199:$Z$228,AC$199:AC$228))*(1+'DK2'!F$17)),0) -> 0 | AD230: =IF(AND($Y230<>"",G$83<>""),IF($Z230-G$83<Inbetriebnahme+1,0,(LOOKUP($Z230-G$83,$Z$229:$Z$327,AD$229:AD$327)+LOOKUP($Z230-G$83,$Z$199:$Z$228,AD$199:AD$228))*(1+'DK2'!G$17)),0) -> 0 | AE230: =IF(AND($Y230<>"",H$83<>""),IF($Z230-H$83<Inbetriebnahme+1,0,(LOOKUP($Z230-H$83,$Z$229:$Z$327,AE$229:AE$327)+LOOKUP($Z230-H$83,$Z$199:$Z$228,AE$199:AE$228))*(1+'DK2'!H$17)),0) -> 0 | AF230: =IF(AND($Y230<>"",I$83<>""),IF($Z230-I$83<Inbetriebnahme+1,0,(LOOKUP($Z230-I$83,$Z$229:$Z$327,AF$229:AF$327)+LOOKUP($Z230-I$83,$Z$199:$Z$228,AF$199:AF$228))*(1+'DK2'!I$17)),0) -> 0 | AG230: =IF(AND($Y230<>"",J$83<>""),IF($Z230-J$83<Inbetriebnahme+1,0,(LOOKUP($Z230-J$83,$Z$229:$Z$327,AG$229:AG$327)+LOOKUP($Z230-J$83,$Z$199:$Z$228,AG$199:AG$228))*(1+'DK2'!J$17)),0) -> 0 | AH230: =IF(AND($Y230<>"",K$83<>""),IF($Z230-K$83<Inbetriebnahme+1,0,(LOOKUP($Z230-K$83,$Z$229:$Z$327,AH$229:AH$327)+LOOKUP($Z230-K$83,$Z$199:$Z$228,AH$199:AH$228))*(1+'DK2'!K$17)),0) -> 0 | AI230: =IF(AND($Y230<>"",L$83<>""),IF($Z230-L$83<Inbetriebnahme+1,0,(LOOKUP($Z230-L$83,$Z$229:$Z$327,AI$229:AI$327)+LOOKUP($Z230-L$83,$Z$199:$Z$228,AI$199:AI$228))*(1+'DK2'!L$17)),0) -> 0 | AJ230: =IF(AND($Y230<>"",M$83<>""),IF($Z230-M$83<Inbetriebnahme+1,0,(LOOKUP($Z230-M$83,$Z$229:$Z$327,AJ$229:AJ$327)+LOOKUP($Z230-M$83,$Z$199:$Z$228,AJ$199:AJ$228))*(1+'DK2'!M$17)),0) -> 0 | AK230: =IF(AND($Y230<>"",N$83<>""),IF($Z230-N$83<Inbetriebnahme+1,0,(LOOKUP($Z230-N$83,$Z$229:$Z$327,AK$229:AK$327)+LOOKUP($Z230-N$83,$Z$199:$Z$228,AK$199:AK$228))*(1+'DK2'!N$17)),0) -> 0 | AL230: =IF(AND($Y230<>"",O$83<>""),IF($Z230-O$83<Inbetriebnahme+1,0,(LOOKUP($Z230-O$83,$Z$229:$Z$327,AL$229:AL$327)+LOOKUP($Z230-O$83,$Z$199:$Z$228,AL$199:AL$228))*(1+'DK2'!O$17)),0) -> 0 | AM230: =IF(AND($Y230<>"",P$83<>""),IF($Z230-P$83<Inbetriebnahme+1,0,(LOOKUP($Z230-P$83,$Z$229:$Z$327,AM$229:AM$327)+LOOKUP($Z230-P$83,$Z$199:$Z$228,AM$199:AM$228))*(1+'DK2'!P$17)),0) -> 0 | AN230: =IF(AND($Y230<>"",Q$83<>""),IF($Z230-Q$83<Inbetriebnahme+1,0,(LOOKUP($Z230-Q$83,$Z$229:$Z$327,AN$229:AN$327)+LOOKUP($Z230-Q$83,$Z$199:$Z$228,AN$199:AN$228))*(1+'DK2'!Q$17)),0) -> 0 | AO230: =IF(AND($Y230<>"",R$83<>""),IF($Z230-R$83<Inbetriebnahme+1,0,(LOOKUP($Z230-R$83,$Z$229:$Z$327,AO$229:AO$327)+LOOKUP($Z230-R$83,$Z$199:$Z$228,AO$199:AO$228))*(1+'DK2'!R$17)),0) -> 0 | AP230: =IF(AND($Y230<>"",S$83<>""),IF($Z230-S$83<Inbetriebnahme+1,0,(LOOKUP($Z230-S$83,$Z$229:$Z$327,AP$229:AP$327)+LOOKUP($Z230-S$83,$Z$199:$Z$228,AP$199:AP$228))*(1+'DK2'!S$17)),0) -> 0 | AQ230: =IF(AND($Y230<>"",T$83<>""),IF($Z230-T$83<Inbetriebnahme+1,0,(LOOKUP($Z230-T$83,$Z$229:$Z$327,AQ$229:AQ$327)+LOOKUP($Z230-T$83,$Z$199:$Z$228,AQ$199:AQ$228))*(1+'DK2'!T$17)),0) -> 0 | AS230: 0 | AT230: Ersatzinvesttion | AU230: =AU229+1 -> 2 | AV230: 0 | AZ230: =AZ229+1 -> 2 | BA230: 0 | BB230: 0 | BC230: 0.03 | BD230: 0.19 | BE230: 0.33 | BF230: 0.3 | BG230: 0.25 | BH230: 0.23 | BI230: 0.19 | BJ230: 0.16 | BK230: 0.14 | BL230: 0.08 | BM230: 0.07 | BN230: 0.06 | BO230: 0.05 | BP230: 0.05 | BQ230: 0.05 | BR230: 0.04 | BS230: 0.04 | BT230: 0.04 | BU230: =BU229+1 -> 4
B231: =IF(C231<Planungsbeginn,"",LOOKUP(C231,Grunddaten!$C$66:$C$190,Grunddaten!$D$66:$D$190)) -> Betrieb | C231: 3 | E231: =IF(AND($B231<>"",E$83<>""),IF($C231-E$83<$C$18,0,LOOKUP($C231-E$83,$C$203:$C$327,E$203:E$327)*(1+'DK2'!E$17)),0) -> 0 | F231: =IF(AND($B231<>"",F$83<>""),IF($C231-F$83<$C$18,0,LOOKUP($C231-F$83,$C$203:$C$327,F$203:F$327)*(1+'DK2'!F$17)),0) -> 0 | G231: =IF(AND($B231<>"",G$83<>""),IF($C231-G$83<$C$18,0,LOOKUP($C231-G$83,$C$203:$C$327,G$203:G$327)*(1+'DK2'!G$17)),0) -> 0 | H231: =IF(AND($B231<>"",H$83<>""),IF($C231-H$83<$C$18,0,LOOKUP($C231-H$83,$C$203:$C$327,H$203:H$327)*(1+'DK2'!H$17)),0) -> 0 | I231: =IF(AND($B231<>"",I$83<>""),IF($C231-I$83<$C$18,0,LOOKUP($C231-I$83,$C$203:$C$327,I$203:I$327)*(1+'DK2'!I$17)),0) -> 0 | J231: =IF(AND($B231<>"",J$83<>""),IF($C231-J$83<$C$18,0,LOOKUP($C231-J$83,$C$203:$C$327,J$203:J$327)*(1+'DK2'!J$17)),0) -> 0 | K231: =IF(AND($B231<>"",K$83<>""),IF($C231-K$83<$C$18,0,LOOKUP($C231-K$83,$C$203:$C$327,K$203:K$327)*(1+'DK2'!K$17)),0) -> 0 | L231: =IF(AND($B231<>"",L$83<>""),IF($C231-L$83<$C$18,0,LOOKUP($C231-L$83,$C$203:$C$327,L$203:L$327)*(1+'DK2'!L$17)),0) -> 0 | M231: =IF(AND($B231<>"",M$83<>""),IF($C231-M$83<$C$18,0,LOOKUP($C231-M$83,$C$203:$C$327,M$203:M$327)*(1+'DK2'!M$17)),0) -> 0 | N231: =IF(AND($B231<>"",N$83<>""),IF($C231-N$83<$C$18,0,LOOKUP($C231-N$83,$C$203:$C$327,N$203:N$327)*(1+'DK2'!N$17)),0) -> 0 | O231: =IF(AND($B231<>"",O$83<>""),IF($C231-O$83<$C$18,0,LOOKUP($C231-O$83,$C$203:$C$327,O$203:O$327)*(1+'DK2'!O$17)),0) -> 0 | P231: =IF(AND($B231<>"",P$83<>""),IF($C231-P$83<$C$18,0,LOOKUP($C231-P$83,$C$203:$C$327,P$203:P$327)*(1+'DK2'!P$17)),0) -> 0 | Q231: =IF(AND($B231<>"",Q$83<>""),IF($C231-Q$83<$C$18,0,LOOKUP($C231-Q$83,$C$203:$C$327,Q$203:Q$327)*(1+'DK2'!Q$17)),0) -> 0 | R231: =IF(AND($B231<>"",R$83<>""),IF($C231-R$83<$C$18,0,LOOKUP($C231-R$83,$C$203:$C$327,R$203:R$327)*(1+'DK2'!R$17)),0) -> 0 | S231: =IF(AND($B231<>"",S$83<>""),IF($C231-S$83<$C$18,0,LOOKUP($C231-S$83,$C$203:$C$327,S$203:S$327)*(1+'DK2'!S$17)),0) -> 0 | T231: =IF(AND($B231<>"",T$83<>""),IF($C231-T$83<$C$18,0,LOOKUP($C231-T$83,$C$203:$C$327,T$203:T$327)*(1+'DK2'!T$17)),0) -> 0 | U231: 0 | V231: 0 | W231: Ersatzinvesttion | Y231: =IF(Z231<Planungsbeginn,"",LOOKUP(Z231,Grunddaten!$C$66:$C$190,Grunddaten!$D$66:$D$190)) -> Betrieb | Z231: 3 | AB231: =IF(AND($Y231<>"",E$83<>""),IF($Z231-E$83<Inbetriebnahme+1,0,(LOOKUP($Z231-E$83,$Z$229:$Z$327,AB$229:AB$327)+LOOKUP($Z231-E$83,$Z$199:$Z$228,AB$199:AB$228))*(1+'DK2'!E$17)),0) -> 0 | AC231: =IF(AND($Y231<>"",F$83<>""),IF($Z231-F$83<Inbetriebnahme+1,0,(LOOKUP($Z231-F$83,$Z$229:$Z$327,AC$229:AC$327)+LOOKUP($Z231-F$83,$Z$199:$Z$228,AC$199:AC$228))*(1+'DK2'!F$17)),0) -> 0 | AD231: =IF(AND($Y231<>"",G$83<>""),IF($Z231-G$83<Inbetriebnahme+1,0,(LOOKUP($Z231-G$83,$Z$229:$Z$327,AD$229:AD$327)+LOOKUP($Z231-G$83,$Z$199:$Z$228,AD$199:AD$228))*(1+'DK2'!G$17)),0) -> 0 | AE231: =IF(AND($Y231<>"",H$83<>""),IF($Z231-H$83<Inbetriebnahme+1,0,(LOOKUP($Z231-H$83,$Z$229:$Z$327,AE$229:AE$327)+LOOKUP($Z231-H$83,$Z$199:$Z$228,AE$199:AE$228))*(1+'DK2'!H$17)),0) -> 0 | AF231: =IF(AND($Y231<>"",I$83<>""),IF($Z231-I$83<Inbetriebnahme+1,0,(LOOKUP($Z231-I$83,$Z$229:$Z$327,AF$229:AF$327)+LOOKUP($Z231-I$83,$Z$199:$Z$228,AF$199:AF$228))*(1+'DK2'!I$17)),0) -> 0 | AG231: =IF(AND($Y231<>"",J$83<>""),IF($Z231-J$83<Inbetriebnahme+1,0,(LOOKUP($Z231-J$83,$Z$229:$Z$327,AG$229:AG$327)+LOOKUP($Z231-J$83,$Z$199:$Z$228,AG$199:AG$228))*(1+'DK2'!J$17)),0) -> 0 | AH231: =IF(AND($Y231<>"",K$83<>""),IF($Z231-K$83<Inbetriebnahme+1,0,(LOOKUP($Z231-K$83,$Z$229:$Z$327,AH$229:AH$327)+LOOKUP($Z231-K$83,$Z$199:$Z$228,AH$199:AH$228))*(1+'DK2'!K$17)),0) -> 0 | AI231: =IF(AND($Y231<>"",L$83<>""),IF($Z231-L$83<Inbetriebnahme+1,0,(LOOKUP($Z231-L$83,$Z$229:$Z$327,AI$229:AI$327)+LOOKUP($Z231-L$83,$Z$199:$Z$228,AI$199:AI$228))*(1+'DK2'!L$17)),0) -> 0 | AJ231: =IF(AND($Y231<>"",M$83<>""),IF($Z231-M$83<Inbetriebnahme+1,0,(LOOKUP($Z231-M$83,$Z$229:$Z$327,AJ$229:AJ$327)+LOOKUP($Z231-M$83,$Z$199:$Z$228,AJ$199:AJ$228))*(1+'DK2'!M$17)),0) -> 0 | AK231: =IF(AND($Y231<>"",N$83<>""),IF($Z231-N$83<Inbetriebnahme+1,0,(LOOKUP($Z231-N$83,$Z$229:$Z$327,AK$229:AK$327)+LOOKUP($Z231-N$83,$Z$199:$Z$228,AK$199:AK$228))*(1+'DK2'!N$17)),0) -> 0 | AL231: =IF(AND($Y231<>"",O$83<>""),IF($Z231-O$83<Inbetriebnahme+1,0,(LOOKUP($Z231-O$83,$Z$229:$Z$327,AL$229:AL$327)+LOOKUP($Z231-O$83,$Z$199:$Z$228,AL$199:AL$228))*(1+'DK2'!O$17)),0) -> 0 | AM231: =IF(AND($Y231<>"",P$83<>""),IF($Z231-P$83<Inbetriebnahme+1,0,(LOOKUP($Z231-P$83,$Z$229:$Z$327,AM$229:AM$327)+LOOKUP($Z231-P$83,$Z$199:$Z$228,AM$199:AM$228))*(1+'DK2'!P$17)),0) -> 0 | AN231: =IF(AND($Y231<>"",Q$83<>""),IF($Z231-Q$83<Inbetriebnahme+1,0,(LOOKUP($Z231-Q$83,$Z$229:$Z$327,AN$229:AN$327)+LOOKUP($Z231-Q$83,$Z$199:$Z$228,AN$199:AN$228))*(1+'DK2'!Q$17)),0) -> 0 | AO231: =IF(AND($Y231<>"",R$83<>""),IF($Z231-R$83<Inbetriebnahme+1,0,(LOOKUP($Z231-R$83,$Z$229:$Z$327,AO$229:AO$327)+LOOKUP($Z231-R$83,$Z$199:$Z$228,AO$199:AO$228))*(1+'DK2'!R$17)),0) -> 0 | AP231: =IF(AND($Y231<>"",S$83<>""),IF($Z231-S$83<Inbetriebnahme+1,0,(LOOKUP($Z231-S$83,$Z$229:$Z$327,AP$229:AP$327)+LOOKUP($Z231-S$83,$Z$199:$Z$228,AP$199:AP$228))*(1+'DK2'!S$17)),0) -> 0 | AQ231: =IF(AND($Y231<>"",T$83<>""),IF($Z231-T$83<Inbetriebnahme+1,0,(LOOKUP($Z231-T$83,$Z$229:$Z$327,AQ$229:AQ$327)+LOOKUP($Z231-T$83,$Z$199:$Z$228,AQ$199:AQ$228))*(1+'DK2'!T$17)),0) -> 0 | AS231: =SUM(AA231:AR231) -> 0 | AT231: Ersatzinvesttion | AU231: 3 | AV231: 0 | AZ231: 3 | BA231: 0 | BB231: 0 | BC231: 0 | BD231: 0 | BE231: 0.03 | BF231: 0.14 | BG231: 0.25 | BH231: 0.23 | BI231: 0.21 | BJ231: 0.17 | BK231: 0.15 | BL231: 0.13 | BM231: 0.09 | BN231: 0.075 | BO231: 0.07 | BP231: 0.06 | BQ231: 0.06 | BR231: 0.05 | BS231: 0.05 | BT231: 0.04 | BU231: 5
B232: =IF(C232<Planungsbeginn,"",LOOKUP(C232,Grunddaten!$C$66:$C$190,Grunddaten!$D$66:$D$190)) -> Betrieb | C232: 4 | E232: =IF(AND($B232<>"",E$83<>""),IF($C232-E$83<$C$18,0,LOOKUP($C232-E$83,$C$203:$C$327,E$203:E$327)*(1+'DK2'!E$17)),0) -> 0 | F232: =IF(AND($B232<>"",F$83<>""),IF($C232-F$83<$C$18,0,LOOKUP($C232-F$83,$C$203:$C$327,F$203:F$327)*(1+'DK2'!F$17)),0) -> 0 | G232: =IF(AND($B232<>"",G$83<>""),IF($C232-G$83<$C$18,0,LOOKUP($C232-G$83,$C$203:$C$327,G$203:G$327)*(1+'DK2'!G$17)),0) -> 0 | H232: =IF(AND($B232<>"",H$83<>""),IF($C232-H$83<$C$18,0,LOOKUP($C232-H$83,$C$203:$C$327,H$203:H$327)*(1+'DK2'!H$17)),0) -> 0 | I232: =IF(AND($B232<>"",I$83<>""),IF($C232-I$83<$C$18,0,LOOKUP($C232-I$83,$C$203:$C$327,I$203:I$327)*(1+'DK2'!I$17)),0) -> 0 | J232: =IF(AND($B232<>"",J$83<>""),IF($C232-J$83<$C$18,0,LOOKUP($C232-J$83,$C$203:$C$327,J$203:J$327)*(1+'DK2'!J$17)),0) -> 0 | K232: =IF(AND($B232<>"",K$83<>""),IF($C232-K$83<$C$18,0,LOOKUP($C232-K$83,$C$203:$C$327,K$203:K$327)*(1+'DK2'!K$17)),0) -> 0 | L232: =IF(AND($B232<>"",L$83<>""),IF($C232-L$83<$C$18,0,LOOKUP($C232-L$83,$C$203:$C$327,L$203:L$327)*(1+'DK2'!L$17)),0) -> 0 | M232: =IF(AND($B232<>"",M$83<>""),IF($C232-M$83<$C$18,0,LOOKUP($C232-M$83,$C$203:$C$327,M$203:M$327)*(1+'DK2'!M$17)),0) -> 0 | N232: =IF(AND($B232<>"",N$83<>""),IF($C232-N$83<$C$18,0,LOOKUP($C232-N$83,$C$203:$C$327,N$203:N$327)*(1+'DK2'!N$17)),0) -> 0 | O232: =IF(AND($B232<>"",O$83<>""),IF($C232-O$83<$C$18,0,LOOKUP($C232-O$83,$C$203:$C$327,O$203:O$327)*(1+'DK2'!O$17)),0) -> 0 | P232: =IF(AND($B232<>"",P$83<>""),IF($C232-P$83<$C$18,0,LOOKUP($C232-P$83,$C$203:$C$327,P$203:P$327)*(1+'DK2'!P$17)),0) -> 0 | Q232: =IF(AND($B232<>"",Q$83<>""),IF($C232-Q$83<$C$18,0,LOOKUP($C232-Q$83,$C$203:$C$327,Q$203:Q$327)*(1+'DK2'!Q$17)),0) -> 0 | R232: =IF(AND($B232<>"",R$83<>""),IF($C232-R$83<$C$18,0,LOOKUP($C232-R$83,$C$203:$C$327,R$203:R$327)*(1+'DK2'!R$17)),0) -> 0 | S232: =IF(AND($B232<>"",S$83<>""),IF($C232-S$83<$C$18,0,LOOKUP($C232-S$83,$C$203:$C$327,S$203:S$327)*(1+'DK2'!S$17)),0) -> 0 | T232: =IF(AND($B232<>"",T$83<>""),IF($C232-T$83<$C$18,0,LOOKUP($C232-T$83,$C$203:$C$327,T$203:T$327)*(1+'DK2'!T$17)),0) -> 0 | U232: 0 | V232: 0 | W232: Ersatzinvesttion | Y232: =IF(Z232<Planungsbeginn,"",LOOKUP(Z232,Grunddaten!$C$66:$C$190,Grunddaten!$D$66:$D$190)) -> Betrieb | Z232: 4 | AB232: =IF(AND($Y232<>"",E$83<>""),IF($Z232-E$83<Inbetriebnahme+1,0,(LOOKUP($Z232-E$83,$Z$229:$Z$327,AB$229:AB$327)+LOOKUP($Z232-E$83,$Z$199:$Z$228,AB$199:AB$228))*(1+'DK2'!E$17)),0) -> 0 | AC232: =IF(AND($Y232<>"",F$83<>""),IF($Z232-F$83<Inbetriebnahme+1,0,(LOOKUP($Z232-F$83,$Z$229:$Z$327,AC$229:AC$327)+LOOKUP($Z232-F$83,$Z$199:$Z$228,AC$199:AC$228))*(1+'DK2'!F$17)),0) -> 0 | AD232: =IF(AND($Y232<>"",G$83<>""),IF($Z232-G$83<Inbetriebnahme+1,0,(LOOKUP($Z232-G$83,$Z$229:$Z$327,AD$229:AD$327)+LOOKUP($Z232-G$83,$Z$199:$Z$228,AD$199:AD$228))*(1+'DK2'!G$17)),0) -> 0 | AE232: =IF(AND($Y232<>"",H$83<>""),IF($Z232-H$83<Inbetriebnahme+1,0,(LOOKUP($Z232-H$83,$Z$229:$Z$327,AE$229:AE$327)+LOOKUP($Z232-H$83,$Z$199:$Z$228,AE$199:AE$228))*(1+'DK2'!H$17)),0) -> 0 | AF232: =IF(AND($Y232<>"",I$83<>""),IF($Z232-I$83<Inbetriebnahme+1,0,(LOOKUP($Z232-I$83,$Z$229:$Z$327,AF$229:AF$327)+LOOKUP($Z232-I$83,$Z$199:$Z$228,AF$199:AF$228))*(1+'DK2'!I$17)),0) -> 0 | AG232: =IF(AND($Y232<>"",J$83<>""),IF($Z232-J$83<Inbetriebnahme+1,0,(LOOKUP($Z232-J$83,$Z$229:$Z$327,AG$229:AG$327)+LOOKUP($Z232-J$83,$Z$199:$Z$228,AG$199:AG$228))*(1+'DK2'!J$17)),0) -> 0 | AH232: =IF(AND($Y232<>"",K$83<>""),IF($Z232-K$83<Inbetriebnahme+1,0,(LOOKUP($Z232-K$83,$Z$229:$Z$327,AH$229:AH$327)+LOOKUP($Z232-K$83,$Z$199:$Z$228,AH$199:AH$228))*(1+'DK2'!K$17)),0) -> 0 | AI232: =IF(AND($Y232<>"",L$83<>""),IF($Z232-L$83<Inbetriebnahme+1,0,(LOOKUP($Z232-L$83,$Z$229:$Z$327,AI$229:AI$327)+LOOKUP($Z232-L$83,$Z$199:$Z$228,AI$199:AI$228))*(1+'DK2'!L$17)),0) -> 0 | AJ232: =IF(AND($Y232<>"",M$83<>""),IF($Z232-M$83<Inbetriebnahme+1,0,(LOOKUP($Z232-M$83,$Z$229:$Z$327,AJ$229:AJ$327)+LOOKUP($Z232-M$83,$Z$199:$Z$228,AJ$199:AJ$228))*(1+'DK2'!M$17)),0) -> 0 | AK232: =IF(AND($Y232<>"",N$83<>""),IF($Z232-N$83<Inbetriebnahme+1,0,(LOOKUP($Z232-N$83,$Z$229:$Z$327,AK$229:AK$327)+LOOKUP($Z232-N$83,$Z$199:$Z$228,AK$199:AK$228))*(1+'DK2'!N$17)),0) -> 0 | AL232: =IF(AND($Y232<>"",O$83<>""),IF($Z232-O$83<Inbetriebnahme+1,0,(LOOKUP($Z232-O$83,$Z$229:$Z$327,AL$229:AL$327)+LOOKUP($Z232-O$83,$Z$199:$Z$228,AL$199:AL$228))*(1+'DK2'!O$17)),0) -> 0 | AM232: =IF(AND($Y232<>"",P$83<>""),IF($Z232-P$83<Inbetriebnahme+1,0,(LOOKUP($Z232-P$83,$Z$229:$Z$327,AM$229:AM$327)+LOOKUP($Z232-P$83,$Z$199:$Z$228,AM$199:AM$228))*(1+'DK2'!P$17)),0) -> 0 | AN232: =IF(AND($Y232<>"",Q$83<>""),IF($Z232-Q$83<Inbetriebnahme+1,0,(LOOKUP($Z232-Q$83,$Z$229:$Z$327,AN$229:AN$327)+LOOKUP($Z232-Q$83,$Z$199:$Z$228,AN$199:AN$228))*(1+'DK2'!Q$17)),0) -> 0 | AO232: =IF(AND($Y232<>"",R$83<>""),IF($Z232-R$83<Inbetriebnahme+1,0,(LOOKUP($Z232-R$83,$Z$229:$Z$327,AO$229:AO$327)+LOOKUP($Z232-R$83,$Z$199:$Z$228,AO$199:AO$228))*(1+'DK2'!R$17)),0) -> 0 | AP232: =IF(AND($Y232<>"",S$83<>""),IF($Z232-S$83<Inbetriebnahme+1,0,(LOOKUP($Z232-S$83,$Z$229:$Z$327,AP$229:AP$327)+LOOKUP($Z232-S$83,$Z$199:$Z$228,AP$199:AP$228))*(1+'DK2'!S$17)),0) -> 0 | AQ232: =IF(AND($Y232<>"",T$83<>""),IF($Z232-T$83<Inbetriebnahme+1,0,(LOOKUP($Z232-T$83,$Z$229:$Z$327,AQ$229:AQ$327)+LOOKUP($Z232-T$83,$Z$199:$Z$228,AQ$199:AQ$228))*(1+'DK2'!T$17)),0) -> 0 | AS232: 0 | AT232: Ersatzinvesttion | AU232: 4 | AV232: 0 | AZ232: 4 | BA232: 0 | BB232: 0 | BC232: 0 | BD232: 0 | BE232: 0 | BF232: 0 | BG232: 0.03 | BH232: 0.18 | BI232: 0.21 | BJ232: 0.17 | BK232: 0.16 | BL232: 0.14 | BM232: 0.12 | BN232: 0.09 | BO232: 0.08 | BP232: 0.07 | BQ232: 0.06 | BR232: 0.06 | BS232: 0.05 | BT232: 0.05 | BU232: 6
B233: =IF(C233<Planungsbeginn,"",LOOKUP(C233,Grunddaten!$C$66:$C$190,Grunddaten!$D$66:$D$190)) -> Betrieb | C233: 5 | E233: =IF(AND($B233<>"",E$83<>""),IF($C233-E$83<$C$18,0,LOOKUP($C233-E$83,$C$203:$C$327,E$203:E$327)*(1+'DK2'!E$17)),0) -> 0 | F233: =IF(AND($B233<>"",F$83<>""),IF($C233-F$83<$C$18,0,LOOKUP($C233-F$83,$C$203:$C$327,F$203:F$327)*(1+'DK2'!F$17)),0) -> 0 | G233: =IF(AND($B233<>"",G$83<>""),IF($C233-G$83<$C$18,0,LOOKUP($C233-G$83,$C$203:$C$327,G$203:G$327)*(1+'DK2'!G$17)),0) -> 0 | H233: =IF(AND($B233<>"",H$83<>""),IF($C233-H$83<$C$18,0,LOOKUP($C233-H$83,$C$203:$C$327,H$203:H$327)*(1+'DK2'!H$17)),0) -> 0 | I233: =IF(AND($B233<>"",I$83<>""),IF($C233-I$83<$C$18,0,LOOKUP($C233-I$83,$C$203:$C$327,I$203:I$327)*(1+'DK2'!I$17)),0) -> 0 | J233: =IF(AND($B233<>"",J$83<>""),IF($C233-J$83<$C$18,0,LOOKUP($C233-J$83,$C$203:$C$327,J$203:J$327)*(1+'DK2'!J$17)),0) -> 0 | K233: =IF(AND($B233<>"",K$83<>""),IF($C233-K$83<$C$18,0,LOOKUP($C233-K$83,$C$203:$C$327,K$203:K$327)*(1+'DK2'!K$17)),0) -> 0 | L233: =IF(AND($B233<>"",L$83<>""),IF($C233-L$83<$C$18,0,LOOKUP($C233-L$83,$C$203:$C$327,L$203:L$327)*(1+'DK2'!L$17)),0) -> 0 | M233: =IF(AND($B233<>"",M$83<>""),IF($C233-M$83<$C$18,0,LOOKUP($C233-M$83,$C$203:$C$327,M$203:M$327)*(1+'DK2'!M$17)),0) -> 0 | N233: =IF(AND($B233<>"",N$83<>""),IF($C233-N$83<$C$18,0,LOOKUP($C233-N$83,$C$203:$C$327,N$203:N$327)*(1+'DK2'!N$17)),0) -> 0 | O233: =IF(AND($B233<>"",O$83<>""),IF($C233-O$83<$C$18,0,LOOKUP($C233-O$83,$C$203:$C$327,O$203:O$327)*(1+'DK2'!O$17)),0) -> 0 | P233: =IF(AND($B233<>"",P$83<>""),IF($C233-P$83<$C$18,0,LOOKUP($C233-P$83,$C$203:$C$327,P$203:P$327)*(1+'DK2'!P$17)),0) -> 0 | Q233: =IF(AND($B233<>"",Q$83<>""),IF($C233-Q$83<$C$18,0,LOOKUP($C233-Q$83,$C$203:$C$327,Q$203:Q$327)*(1+'DK2'!Q$17)),0) -> 0 | R233: =IF(AND($B233<>"",R$83<>""),IF($C233-R$83<$C$18,0,LOOKUP($C233-R$83,$C$203:$C$327,R$203:R$327)*(1+'DK2'!R$17)),0) -> 0 | S233: =IF(AND($B233<>"",S$83<>""),IF($C233-S$83<$C$18,0,LOOKUP($C233-S$83,$C$203:$C$327,S$203:S$327)*(1+'DK2'!S$17)),0) -> 0 | T233: =IF(AND($B233<>"",T$83<>""),IF($C233-T$83<$C$18,0,LOOKUP($C233-T$83,$C$203:$C$327,T$203:T$327)*(1+'DK2'!T$17)),0) -> 0 | U233: 0 | V233: 0 | W233: Ersatzinvesttion | Y233: =IF(Z233<Planungsbeginn,"",LOOKUP(Z233,Grunddaten!$C$66:$C$190,Grunddaten!$D$66:$D$190)) -> Betrieb | Z233: 5 | AB233: =IF(AND($Y233<>"",E$83<>""),IF($Z233-E$83<Inbetriebnahme+1,0,(LOOKUP($Z233-E$83,$Z$229:$Z$327,AB$229:AB$327)+LOOKUP($Z233-E$83,$Z$199:$Z$228,AB$199:AB$228))*(1+'DK2'!E$17)),0) -> 0 | AC233: =IF(AND($Y233<>"",F$83<>""),IF($Z233-F$83<Inbetriebnahme+1,0,(LOOKUP($Z233-F$83,$Z$229:$Z$327,AC$229:AC$327)+LOOKUP($Z233-F$83,$Z$199:$Z$228,AC$199:AC$228))*(1+'DK2'!F$17)),0) -> 0 | AD233: =IF(AND($Y233<>"",G$83<>""),IF($Z233-G$83<Inbetriebnahme+1,0,(LOOKUP($Z233-G$83,$Z$229:$Z$327,AD$229:AD$327)+LOOKUP($Z233-G$83,$Z$199:$Z$228,AD$199:AD$228))*(1+'DK2'!G$17)),0) -> 0 | AE233: =IF(AND($Y233<>"",H$83<>""),IF($Z233-H$83<Inbetriebnahme+1,0,(LOOKUP($Z233-H$83,$Z$229:$Z$327,AE$229:AE$327)+LOOKUP($Z233-H$83,$Z$199:$Z$228,AE$199:AE$228))*(1+'DK2'!H$17)),0) -> 0 | AF233: =IF(AND($Y233<>"",I$83<>""),IF($Z233-I$83<Inbetriebnahme+1,0,(LOOKUP($Z233-I$83,$Z$229:$Z$327,AF$229:AF$327)+LOOKUP($Z233-I$83,$Z$199:$Z$228,AF$199:AF$228))*(1+'DK2'!I$17)),0) -> 0 | AG233: =IF(AND($Y233<>"",J$83<>""),IF($Z233-J$83<Inbetriebnahme+1,0,(LOOKUP($Z233-J$83,$Z$229:$Z$327,AG$229:AG$327)+LOOKUP($Z233-J$83,$Z$199:$Z$228,AG$199:AG$228))*(1+'DK2'!J$17)),0) -> 0 | AH233: =IF(AND($Y233<>"",K$83<>""),IF($Z233-K$83<Inbetriebnahme+1,0,(LOOKUP($Z233-K$83,$Z$229:$Z$327,AH$229:AH$327)+LOOKUP($Z233-K$83,$Z$199:$Z$228,AH$199:AH$228))*(1+'DK2'!K$17)),0) -> 0 | AI233: =IF(AND($Y233<>"",L$83<>""),IF($Z233-L$83<Inbetriebnahme+1,0,(LOOKUP($Z233-L$83,$Z$229:$Z$327,AI$229:AI$327)+LOOKUP($Z233-L$83,$Z$199:$Z$228,AI$199:AI$228))*(1+'DK2'!L$17)),0) -> 0 | AJ233: =IF(AND($Y233<>"",M$83<>""),IF($Z233-M$83<Inbetriebnahme+1,0,(LOOKUP($Z233-M$83,$Z$229:$Z$327,AJ$229:AJ$327)+LOOKUP($Z233-M$83,$Z$199:$Z$228,AJ$199:AJ$228))*(1+'DK2'!M$17)),0) -> 0 | AK233: =IF(AND($Y233<>"",N$83<>""),IF($Z233-N$83<Inbetriebnahme+1,0,(LOOKUP($Z233-N$83,$Z$229:$Z$327,AK$229:AK$327)+LOOKUP($Z233-N$83,$Z$199:$Z$228,AK$199:AK$228))*(1+'DK2'!N$17)),0) -> 0 | AL233: =IF(AND($Y233<>"",O$83<>""),IF($Z233-O$83<Inbetriebnahme+1,0,(LOOKUP($Z233-O$83,$Z$229:$Z$327,AL$229:AL$327)+LOOKUP($Z233-O$83,$Z$199:$Z$228,AL$199:AL$228))*(1+'DK2'!O$17)),0) -> 0 | AM233: =IF(AND($Y233<>"",P$83<>""),IF($Z233-P$83<Inbetriebnahme+1,0,(LOOKUP($Z233-P$83,$Z$229:$Z$327,AM$229:AM$327)+LOOKUP($Z233-P$83,$Z$199:$Z$228,AM$199:AM$228))*(1+'DK2'!P$17)),0) -> 0 | AN233: =IF(AND($Y233<>"",Q$83<>""),IF($Z233-Q$83<Inbetriebnahme+1,0,(LOOKUP($Z233-Q$83,$Z$229:$Z$327,AN$229:AN$327)+LOOKUP($Z233-Q$83,$Z$199:$Z$228,AN$199:AN$228))*(1+'DK2'!Q$17)),0) -> 0 | AO233: =IF(AND($Y233<>"",R$83<>""),IF($Z233-R$83<Inbetriebnahme+1,0,(LOOKUP($Z233-R$83,$Z$229:$Z$327,AO$229:AO$327)+LOOKUP($Z233-R$83,$Z$199:$Z$228,AO$199:AO$228))*(1+'DK2'!R$17)),0) -> 0 | AP233: =IF(AND($Y233<>"",S$83<>""),IF($Z233-S$83<Inbetriebnahme+1,0,(LOOKUP($Z233-S$83,$Z$229:$Z$327,AP$229:AP$327)+LOOKUP($Z233-S$83,$Z$199:$Z$228,AP$199:AP$228))*(1+'DK2'!S$17)),0) -> 0 | AQ233: =IF(AND($Y233<>"",T$83<>""),IF($Z233-T$83<Inbetriebnahme+1,0,(LOOKUP($Z233-T$83,$Z$229:$Z$327,AQ$229:AQ$327)+LOOKUP($Z233-T$83,$Z$199:$Z$228,AQ$199:AQ$228))*(1+'DK2'!T$17)),0) -> 0 | AS233: 0 | AT233: Ersatzinvesttion | AU233: 5 | AV233: 0 | AZ233: 5 | BA233: 0 | BB233: 0 | BC233: 0 | BD233: 0 | BE233: 0 | BF233: 0 | BG233: 0 | BH233: 0.03 | BI233: 0.13 | BJ233: 0.17 | BK233: 0.15 | BL233: 0.14 | BM233: 0.13 | BN233: 0.11 | BO233: 0.09 | BP233: 0.08 | BQ233: 0.07 | BR233: 0.07 | BS233: 0.06 | BT233: 0.05 | BU233: 7
B234: =IF(C234<Planungsbeginn,"",LOOKUP(C234,Grunddaten!$C$66:$C$190,Grunddaten!$D$66:$D$190)) -> Betrieb | C234: 6 | E234: =IF(AND($B234<>"",E$83<>""),IF($C234-E$83<$C$18,0,LOOKUP($C234-E$83,$C$203:$C$327,E$203:E$327)*(1+'DK2'!E$17)),0) -> 0 | F234: =IF(AND($B234<>"",F$83<>""),IF($C234-F$83<$C$18,0,LOOKUP($C234-F$83,$C$203:$C$327,F$203:F$327)*(1+'DK2'!F$17)),0) -> 0 | G234: =IF(AND($B234<>"",G$83<>""),IF($C234-G$83<$C$18,0,LOOKUP($C234-G$83,$C$203:$C$327,G$203:G$327)*(1+'DK2'!G$17)),0) -> 0 | H234: =IF(AND($B234<>"",H$83<>""),IF($C234-H$83<$C$18,0,LOOKUP($C234-H$83,$C$203:$C$327,H$203:H$327)*(1+'DK2'!H$17)),0) -> 0 | I234: =IF(AND($B234<>"",I$83<>""),IF($C234-I$83<$C$18,0,LOOKUP($C234-I$83,$C$203:$C$327,I$203:I$327)*(1+'DK2'!I$17)),0) -> 0 | J234: =IF(AND($B234<>"",J$83<>""),IF($C234-J$83<$C$18,0,LOOKUP($C234-J$83,$C$203:$C$327,J$203:J$327)*(1+'DK2'!J$17)),0) -> 0 | K234: =IF(AND($B234<>"",K$83<>""),IF($C234-K$83<$C$18,0,LOOKUP($C234-K$83,$C$203:$C$327,K$203:K$327)*(1+'DK2'!K$17)),0) -> 0 | L234: =IF(AND($B234<>"",L$83<>""),IF($C234-L$83<$C$18,0,LOOKUP($C234-L$83,$C$203:$C$327,L$203:L$327)*(1+'DK2'!L$17)),0) -> 0 | M234: =IF(AND($B234<>"",M$83<>""),IF($C234-M$83<$C$18,0,LOOKUP($C234-M$83,$C$203:$C$327,M$203:M$327)*(1+'DK2'!M$17)),0) -> 0 | N234: =IF(AND($B234<>"",N$83<>""),IF($C234-N$83<$C$18,0,LOOKUP($C234-N$83,$C$203:$C$327,N$203:N$327)*(1+'DK2'!N$17)),0) -> 0 | O234: =IF(AND($B234<>"",O$83<>""),IF($C234-O$83<$C$18,0,LOOKUP($C234-O$83,$C$203:$C$327,O$203:O$327)*(1+'DK2'!O$17)),0) -> 0 | P234: =IF(AND($B234<>"",P$83<>""),IF($C234-P$83<$C$18,0,LOOKUP($C234-P$83,$C$203:$C$327,P$203:P$327)*(1+'DK2'!P$17)),0) -> 0 | Q234: =IF(AND($B234<>"",Q$83<>""),IF($C234-Q$83<$C$18,0,LOOKUP($C234-Q$83,$C$203:$C$327,Q$203:Q$327)*(1+'DK2'!Q$17)),0) -> 0 | R234: =IF(AND($B234<>"",R$83<>""),IF($C234-R$83<$C$18,0,LOOKUP($C234-R$83,$C$203:$C$327,R$203:R$327)*(1+'DK2'!R$17)),0) -> 0 | S234: =IF(AND($B234<>"",S$83<>""),IF($C234-S$83<$C$18,0,LOOKUP($C234-S$83,$C$203:$C$327,S$203:S$327)*(1+'DK2'!S$17)),0) -> 0 | T234: =IF(AND($B234<>"",T$83<>""),IF($C234-T$83<$C$18,0,LOOKUP($C234-T$83,$C$203:$C$327,T$203:T$327)*(1+'DK2'!T$17)),0) -> 0 | U234: 0 | V234: 0 | W234: Ersatzinvesttion | Y234: =IF(Z234<Planungsbeginn,"",LOOKUP(Z234,Grunddaten!$C$66:$C$190,Grunddaten!$D$66:$D$190)) -> Betrieb | Z234: 6 | AB234: =IF(AND($Y234<>"",E$83<>""),IF($Z234-E$83<Inbetriebnahme+1,0,(LOOKUP($Z234-E$83,$Z$229:$Z$327,AB$229:AB$327)+LOOKUP($Z234-E$83,$Z$199:$Z$228,AB$199:AB$228))*(1+'DK2'!E$17)),0) -> 0 | AC234: =IF(AND($Y234<>"",F$83<>""),IF($Z234-F$83<Inbetriebnahme+1,0,(LOOKUP($Z234-F$83,$Z$229:$Z$327,AC$229:AC$327)+LOOKUP($Z234-F$83,$Z$199:$Z$228,AC$199:AC$228))*(1+'DK2'!F$17)),0) -> 0 | AD234: =IF(AND($Y234<>"",G$83<>""),IF($Z234-G$83<Inbetriebnahme+1,0,(LOOKUP($Z234-G$83,$Z$229:$Z$327,AD$229:AD$327)+LOOKUP($Z234-G$83,$Z$199:$Z$228,AD$199:AD$228))*(1+'DK2'!G$17)),0) -> 0 | AE234: =IF(AND($Y234<>"",H$83<>""),IF($Z234-H$83<Inbetriebnahme+1,0,(LOOKUP($Z234-H$83,$Z$229:$Z$327,AE$229:AE$327)+LOOKUP($Z234-H$83,$Z$199:$Z$228,AE$199:AE$228))*(1+'DK2'!H$17)),0) -> 0 | AF234: =IF(AND($Y234<>"",I$83<>""),IF($Z234-I$83<Inbetriebnahme+1,0,(LOOKUP($Z234-I$83,$Z$229:$Z$327,AF$229:AF$327)+LOOKUP($Z234-I$83,$Z$199:$Z$228,AF$199:AF$228))*(1+'DK2'!I$17)),0) -> 0 | AG234: =IF(AND($Y234<>"",J$83<>""),IF($Z234-J$83<Inbetriebnahme+1,0,(LOOKUP($Z234-J$83,$Z$229:$Z$327,AG$229:AG$327)+LOOKUP($Z234-J$83,$Z$199:$Z$228,AG$199:AG$228))*(1+'DK2'!J$17)),0) -> 0 | AH234: =IF(AND($Y234<>"",K$83<>""),IF($Z234-K$83<Inbetriebnahme+1,0,(LOOKUP($Z234-K$83,$Z$229:$Z$327,AH$229:AH$327)+LOOKUP($Z234-K$83,$Z$199:$Z$228,AH$199:AH$228))*(1+'DK2'!K$17)),0) -> 0 | AI234: =IF(AND($Y234<>"",L$83<>""),IF($Z234-L$83<Inbetriebnahme+1,0,(LOOKUP($Z234-L$83,$Z$229:$Z$327,AI$229:AI$327)+LOOKUP($Z234-L$83,$Z$199:$Z$228,AI$199:AI$228))*(1+'DK2'!L$17)),0) -> 0 | AJ234: =IF(AND($Y234<>"",M$83<>""),IF($Z234-M$83<Inbetriebnahme+1,0,(LOOKUP($Z234-M$83,$Z$229:$Z$327,AJ$229:AJ$327)+LOOKUP($Z234-M$83,$Z$199:$Z$228,AJ$199:AJ$228))*(1+'DK2'!M$17)),0) -> 0 | AK234: =IF(AND($Y234<>"",N$83<>""),IF($Z234-N$83<Inbetriebnahme+1,0,(LOOKUP($Z234-N$83,$Z$229:$Z$327,AK$229:AK$327)+LOOKUP($Z234-N$83,$Z$199:$Z$228,AK$199:AK$228))*(1+'DK2'!N$17)),0) -> 0 | AL234: =IF(AND($Y234<>"",O$83<>""),IF($Z234-O$83<Inbetriebnahme+1,0,(LOOKUP($Z234-O$83,$Z$229:$Z$327,AL$229:AL$327)+LOOKUP($Z234-O$83,$Z$199:$Z$228,AL$199:AL$228))*(1+'DK2'!O$17)),0) -> 0 | AM234: =IF(AND($Y234<>"",P$83<>""),IF($Z234-P$83<Inbetriebnahme+1,0,(LOOKUP($Z234-P$83,$Z$229:$Z$327,AM$229:AM$327)+LOOKUP($Z234-P$83,$Z$199:$Z$228,AM$199:AM$228))*(1+'DK2'!P$17)),0) -> 0 | AN234: =IF(AND($Y234<>"",Q$83<>""),IF($Z234-Q$83<Inbetriebnahme+1,0,(LOOKUP($Z234-Q$83,$Z$229:$Z$327,AN$229:AN$327)+LOOKUP($Z234-Q$83,$Z$199:$Z$228,AN$199:AN$228))*(1+'DK2'!Q$17)),0) -> 0 | AO234: =IF(AND($Y234<>"",R$83<>""),IF($Z234-R$83<Inbetriebnahme+1,0,(LOOKUP($Z234-R$83,$Z$229:$Z$327,AO$229:AO$327)+LOOKUP($Z234-R$83,$Z$199:$Z$228,AO$199:AO$228))*(1+'DK2'!R$17)),0) -> 0 | AP234: =IF(AND($Y234<>"",S$83<>""),IF($Z234-S$83<Inbetriebnahme+1,0,(LOOKUP($Z234-S$83,$Z$229:$Z$327,AP$229:AP$327)+LOOKUP($Z234-S$83,$Z$199:$Z$228,AP$199:AP$228))*(1+'DK2'!S$17)),0) -> 0 | AQ234: =IF(AND($Y234<>"",T$83<>""),IF($Z234-T$83<Inbetriebnahme+1,0,(LOOKUP($Z234-T$83,$Z$229:$Z$327,AQ$229:AQ$327)+LOOKUP($Z234-T$83,$Z$199:$Z$228,AQ$199:AQ$228))*(1+'DK2'!T$17)),0) -> 0 | AS234: 0 | AT234: Ersatzinvesttion | AU234: 6 | AV234: 0 | AZ234: 6 | BA234: 0 | BB234: 0 | BC234: 0 | BD234: 0 | BE234: 0 | BF234: 0 | BG234: 0 | BH234: 0 | BI234: 0.025 | BJ234: 0.11 | BK234: 0.15 | BL234: 0.14 | BM234: 0.13 | BN234: 0.12 | BO234: 0.1 | BP234: 0.09 | BQ234: 0.08 | BR234: 0.08 | BS234: 0.07 | BT234: 0.06 | BU234: 8
B235: =IF(C235<Planungsbeginn,"",LOOKUP(C235,Grunddaten!$C$66:$C$190,Grunddaten!$D$66:$D$190)) -> Betrieb | C235: 7 | E235: =IF(AND($B235<>"",E$83<>""),IF($C235-E$83<$C$18,0,LOOKUP($C235-E$83,$C$203:$C$327,E$203:E$327)*(1+'DK2'!E$17)),0) -> 0 | F235: =IF(AND($B235<>"",F$83<>""),IF($C235-F$83<$C$18,0,LOOKUP($C235-F$83,$C$203:$C$327,F$203:F$327)*(1+'DK2'!F$17)),0) -> 0 | G235: =IF(AND($B235<>"",G$83<>""),IF($C235-G$83<$C$18,0,LOOKUP($C235-G$83,$C$203:$C$327,G$203:G$327)*(1+'DK2'!G$17)),0) -> 0 | H235: =IF(AND($B235<>"",H$83<>""),IF($C235-H$83<$C$18,0,LOOKUP($C235-H$83,$C$203:$C$327,H$203:H$327)*(1+'DK2'!H$17)),0) -> 0 | I235: =IF(AND($B235<>"",I$83<>""),IF($C235-I$83<$C$18,0,LOOKUP($C235-I$83,$C$203:$C$327,I$203:I$327)*(1+'DK2'!I$17)),0) -> 0 | J235: =IF(AND($B235<>"",J$83<>""),IF($C235-J$83<$C$18,0,LOOKUP($C235-J$83,$C$203:$C$327,J$203:J$327)*(1+'DK2'!J$17)),0) -> 0 | K235: =IF(AND($B235<>"",K$83<>""),IF($C235-K$83<$C$18,0,LOOKUP($C235-K$83,$C$203:$C$327,K$203:K$327)*(1+'DK2'!K$17)),0) -> 0 | L235: =IF(AND($B235<>"",L$83<>""),IF($C235-L$83<$C$18,0,LOOKUP($C235-L$83,$C$203:$C$327,L$203:L$327)*(1+'DK2'!L$17)),0) -> 0 | M235: =IF(AND($B235<>"",M$83<>""),IF($C235-M$83<$C$18,0,LOOKUP($C235-M$83,$C$203:$C$327,M$203:M$327)*(1+'DK2'!M$17)),0) -> 0 | N235: =IF(AND($B235<>"",N$83<>""),IF($C235-N$83<$C$18,0,LOOKUP($C235-N$83,$C$203:$C$327,N$203:N$327)*(1+'DK2'!N$17)),0) -> 0 | O235: =IF(AND($B235<>"",O$83<>""),IF($C235-O$83<$C$18,0,LOOKUP($C235-O$83,$C$203:$C$327,O$203:O$327)*(1+'DK2'!O$17)),0) -> 0 | P235: =IF(AND($B235<>"",P$83<>""),IF($C235-P$83<$C$18,0,LOOKUP($C235-P$83,$C$203:$C$327,P$203:P$327)*(1+'DK2'!P$17)),0) -> 0 | Q235: =IF(AND($B235<>"",Q$83<>""),IF($C235-Q$83<$C$18,0,LOOKUP($C235-Q$83,$C$203:$C$327,Q$203:Q$327)*(1+'DK2'!Q$17)),0) -> 0 | R235: =IF(AND($B235<>"",R$83<>""),IF($C235-R$83<$C$18,0,LOOKUP($C235-R$83,$C$203:$C$327,R$203:R$327)*(1+'DK2'!R$17)),0) -> 0 | S235: =IF(AND($B235<>"",S$83<>""),IF($C235-S$83<$C$18,0,LOOKUP($C235-S$83,$C$203:$C$327,S$203:S$327)*(1+'DK2'!S$17)),0) -> 0 | T235: =IF(AND($B235<>"",T$83<>""),IF($C235-T$83<$C$18,0,LOOKUP($C235-T$83,$C$203:$C$327,T$203:T$327)*(1+'DK2'!T$17)),0) -> 0 | U235: =IF(AND(C235<=$AU$245,C235>=$AU$228),VLOOKUP(C235,$AU$228:$AV$245,2,FALSE),0) -> 0 | V235: 0 | W235: Ersatzinvesttion | Y235: =IF(Z235<Planungsbeginn,"",LOOKUP(Z235,Grunddaten!$C$66:$C$190,Grunddaten!$D$66:$D$190)) -> Betrieb | Z235: 7 | AB235: =IF(AND($Y235<>"",E$83<>""),IF($Z235-E$83<Inbetriebnahme+1,0,(LOOKUP($Z235-E$83,$Z$229:$Z$327,AB$229:AB$327)+LOOKUP($Z235-E$83,$Z$199:$Z$228,AB$199:AB$228))*(1+'DK2'!E$17)),0) -> 0 | AC235: =IF(AND($Y235<>"",F$83<>""),IF($Z235-F$83<Inbetriebnahme+1,0,(LOOKUP($Z235-F$83,$Z$229:$Z$327,AC$229:AC$327)+LOOKUP($Z235-F$83,$Z$199:$Z$228,AC$199:AC$228))*(1+'DK2'!F$17)),0) -> 0 | AD235: =IF(AND($Y235<>"",G$83<>""),IF($Z235-G$83<Inbetriebnahme+1,0,(LOOKUP($Z235-G$83,$Z$229:$Z$327,AD$229:AD$327)+LOOKUP($Z235-G$83,$Z$199:$Z$228,AD$199:AD$228))*(1+'DK2'!G$17)),0) -> 0 | AE235: =IF(AND($Y235<>"",H$83<>""),IF($Z235-H$83<Inbetriebnahme+1,0,(LOOKUP($Z235-H$83,$Z$229:$Z$327,AE$229:AE$327)+LOOKUP($Z235-H$83,$Z$199:$Z$228,AE$199:AE$228))*(1+'DK2'!H$17)),0) -> 0 | AF235: =IF(AND($Y235<>"",I$83<>""),IF($Z235-I$83<Inbetriebnahme+1,0,(LOOKUP($Z235-I$83,$Z$229:$Z$327,AF$229:AF$327)+LOOKUP($Z235-I$83,$Z$199:$Z$228,AF$199:AF$228))*(1+'DK2'!I$17)),0) -> 0 | AG235: =IF(AND($Y235<>"",J$83<>""),IF($Z235-J$83<Inbetriebnahme+1,0,(LOOKUP($Z235-J$83,$Z$229:$Z$327,AG$229:AG$327)+LOOKUP($Z235-J$83,$Z$199:$Z$228,AG$199:AG$228))*(1+'DK2'!J$17)),0) -> 0 | AH235: =IF(AND($Y235<>"",K$83<>""),IF($Z235-K$83<Inbetriebnahme+1,0,(LOOKUP($Z235-K$83,$Z$229:$Z$327,AH$229:AH$327)+LOOKUP($Z235-K$83,$Z$199:$Z$228,AH$199:AH$228))*(1+'DK2'!K$17)),0) -> 0 | AI235: =IF(AND($Y235<>"",L$83<>""),IF($Z235-L$83<Inbetriebnahme+1,0,(LOOKUP($Z235-L$83,$Z$229:$Z$327,AI$229:AI$327)+LOOKUP($Z235-L$83,$Z$199:$Z$228,AI$199:AI$228))*(1+'DK2'!L$17)),0) -> 0 | AJ235: =IF(AND($Y235<>"",M$83<>""),IF($Z235-M$83<Inbetriebnahme+1,0,(LOOKUP($Z235-M$83,$Z$229:$Z$327,AJ$229:AJ$327)+LOOKUP($Z235-M$83,$Z$199:$Z$228,AJ$199:AJ$228))*(1+'DK2'!M$17)),0) -> 0 | AK235: =IF(AND($Y235<>"",N$83<>""),IF($Z235-N$83<Inbetriebnahme+1,0,(LOOKUP($Z235-N$83,$Z$229:$Z$327,AK$229:AK$327)+LOOKUP($Z235-N$83,$Z$199:$Z$228,AK$199:AK$228))*(1+'DK2'!N$17)),0) -> 0 | AL235: =IF(AND($Y235<>"",O$83<>""),IF($Z235-O$83<Inbetriebnahme+1,0,(LOOKUP($Z235-O$83,$Z$229:$Z$327,AL$229:AL$327)+LOOKUP($Z235-O$83,$Z$199:$Z$228,AL$199:AL$228))*(1+'DK2'!O$17)),0) -> 0 | AM235: =IF(AND($Y235<>"",P$83<>""),IF($Z235-P$83<Inbetriebnahme+1,0,(LOOKUP($Z235-P$83,$Z$229:$Z$327,AM$229:AM$327)+LOOKUP($Z235-P$83,$Z$199:$Z$228,AM$199:AM$228))*(1+'DK2'!P$17)),0) -> 0 | AN235: =IF(AND($Y235<>"",Q$83<>""),IF($Z235-Q$83<Inbetriebnahme+1,0,(LOOKUP($Z235-Q$83,$Z$229:$Z$327,AN$229:AN$327)+LOOKUP($Z235-Q$83,$Z$199:$Z$228,AN$199:AN$228))*(1+'DK2'!Q$17)),0) -> 0 | AO235: =IF(AND($Y235<>"",R$83<>""),IF($Z235-R$83<Inbetriebnahme+1,0,(LOOKUP($Z235-R$83,$Z$229:$Z$327,AO$229:AO$327)+LOOKUP($Z235-R$83,$Z$199:$Z$228,AO$199:AO$228))*(1+'DK2'!R$17)),0) -> 0 | AP235: =IF(AND($Y235<>"",S$83<>""),IF($Z235-S$83<Inbetriebnahme+1,0,(LOOKUP($Z235-S$83,$Z$229:$Z$327,AP$229:AP$327)+LOOKUP($Z235-S$83,$Z$199:$Z$228,AP$199:AP$228))*(1+'DK2'!S$17)),0) -> 0 | AQ235: =IF(AND($Y235<>"",T$83<>""),IF($Z235-T$83<Inbetriebnahme+1,0,(LOOKUP($Z235-T$83,$Z$229:$Z$327,AQ$229:AQ$327)+LOOKUP($Z235-T$83,$Z$199:$Z$228,AQ$199:AQ$228))*(1+'DK2'!T$17)),0) -> 0 | AS235: 0 | AT235: Ersatzinvesttion | AU235: 7 | AV235: 0 | AZ235: 7 | BA235: 0 | BB235: 0 | BC235: 0 | BD235: 0 | BE235: 0 | BF235: 0 | BG235: 0 | BH235: 0 | BI235: 0 | BJ235: 0.025 | BK235: 0.1 | BL235: 0.14 | BM235: 0.13 | BN235: 0.12 | BO235: 0.11 | BP235: 0.09 | BQ235: 0.09 | BR235: 0.08 | BS235: 0.075 | BT235: 0.07 | BU235: 9
B236: =IF(C236<Planungsbeginn,"",LOOKUP(C236,Grunddaten!$C$66:$C$190,Grunddaten!$D$66:$D$190)) -> Betrieb | C236: 8 | E236: =IF(AND($B236<>"",E$83<>""),IF($C236-E$83<$C$18,0,LOOKUP($C236-E$83,$C$203:$C$327,E$203:E$327)*(1+'DK2'!E$17)),0) -> 0 | F236: =IF(AND($B236<>"",F$83<>""),IF($C236-F$83<$C$18,0,LOOKUP($C236-F$83,$C$203:$C$327,F$203:F$327)*(1+'DK2'!F$17)),0) -> 0 | G236: =IF(AND($B236<>"",G$83<>""),IF($C236-G$83<$C$18,0,LOOKUP($C236-G$83,$C$203:$C$327,G$203:G$327)*(1+'DK2'!G$17)),0) -> 0 | H236: =IF(AND($B236<>"",H$83<>""),IF($C236-H$83<$C$18,0,LOOKUP($C236-H$83,$C$203:$C$327,H$203:H$327)*(1+'DK2'!H$17)),0) -> 0 | I236: =IF(AND($B236<>"",I$83<>""),IF($C236-I$83<$C$18,0,LOOKUP($C236-I$83,$C$203:$C$327,I$203:I$327)*(1+'DK2'!I$17)),0) -> 0 | J236: =IF(AND($B236<>"",J$83<>""),IF($C236-J$83<$C$18,0,LOOKUP($C236-J$83,$C$203:$C$327,J$203:J$327)*(1+'DK2'!J$17)),0) -> 0 | K236: =IF(AND($B236<>"",K$83<>""),IF($C236-K$83<$C$18,0,LOOKUP($C236-K$83,$C$203:$C$327,K$203:K$327)*(1+'DK2'!K$17)),0) -> 0 | L236: =IF(AND($B236<>"",L$83<>""),IF($C236-L$83<$C$18,0,LOOKUP($C236-L$83,$C$203:$C$327,L$203:L$327)*(1+'DK2'!L$17)),0) -> 0 | M236: =IF(AND($B236<>"",M$83<>""),IF($C236-M$83<$C$18,0,LOOKUP($C236-M$83,$C$203:$C$327,M$203:M$327)*(1+'DK2'!M$17)),0) -> 0 | N236: =IF(AND($B236<>"",N$83<>""),IF($C236-N$83<$C$18,0,LOOKUP($C236-N$83,$C$203:$C$327,N$203:N$327)*(1+'DK2'!N$17)),0) -> 0 | O236: =IF(AND($B236<>"",O$83<>""),IF($C236-O$83<$C$18,0,LOOKUP($C236-O$83,$C$203:$C$327,O$203:O$327)*(1+'DK2'!O$17)),0) -> 0 | P236: =IF(AND($B236<>"",P$83<>""),IF($C236-P$83<$C$18,0,LOOKUP($C236-P$83,$C$203:$C$327,P$203:P$327)*(1+'DK2'!P$17)),0) -> 0 | Q236: =IF(AND($B236<>"",Q$83<>""),IF($C236-Q$83<$C$18,0,LOOKUP($C236-Q$83,$C$203:$C$327,Q$203:Q$327)*(1+'DK2'!Q$17)),0) -> 0 | R236: =IF(AND($B236<>"",R$83<>""),IF($C236-R$83<$C$18,0,LOOKUP($C236-R$83,$C$203:$C$327,R$203:R$327)*(1+'DK2'!R$17)),0) -> 0 | S236: =IF(AND($B236<>"",S$83<>""),IF($C236-S$83<$C$18,0,LOOKUP($C236-S$83,$C$203:$C$327,S$203:S$327)*(1+'DK2'!S$17)),0) -> 0 | T236: =IF(AND($B236<>"",T$83<>""),IF($C236-T$83<$C$18,0,LOOKUP($C236-T$83,$C$203:$C$327,T$203:T$327)*(1+'DK2'!T$17)),0) -> 0 | U236: 0 | V236: 0 | W236: Ersatzinvesttion | Y236: =IF(Z236<Planungsbeginn,"",LOOKUP(Z236,Grunddaten!$C$66:$C$190,Grunddaten!$D$66:$D$190)) -> Betrieb | Z236: 8 | AB236: =IF(AND($Y236<>"",E$83<>""),IF($Z236-E$83<Inbetriebnahme+1,0,(LOOKUP($Z236-E$83,$Z$229:$Z$327,AB$229:AB$327)+LOOKUP($Z236-E$83,$Z$199:$Z$228,AB$199:AB$228))*(1+'DK2'!E$17)),0) -> 0 | AC236: =IF(AND($Y236<>"",F$83<>""),IF($Z236-F$83<Inbetriebnahme+1,0,(LOOKUP($Z236-F$83,$Z$229:$Z$327,AC$229:AC$327)+LOOKUP($Z236-F$83,$Z$199:$Z$228,AC$199:AC$228))*(1+'DK2'!F$17)),0) -> 0 | AD236: =IF(AND($Y236<>"",G$83<>""),IF($Z236-G$83<Inbetriebnahme+1,0,(LOOKUP($Z236-G$83,$Z$229:$Z$327,AD$229:AD$327)+LOOKUP($Z236-G$83,$Z$199:$Z$228,AD$199:AD$228))*(1+'DK2'!G$17)),0) -> 0 | AE236: =IF(AND($Y236<>"",H$83<>""),IF($Z236-H$83<Inbetriebnahme+1,0,(LOOKUP($Z236-H$83,$Z$229:$Z$327,AE$229:AE$327)+LOOKUP($Z236-H$83,$Z$199:$Z$228,AE$199:AE$228))*(1+'DK2'!H$17)),0) -> 0 | AF236: =IF(AND($Y236<>"",I$83<>""),IF($Z236-I$83<Inbetriebnahme+1,0,(LOOKUP($Z236-I$83,$Z$229:$Z$327,AF$229:AF$327)+LOOKUP($Z236-I$83,$Z$199:$Z$228,AF$199:AF$228))*(1+'DK2'!I$17)),0) -> 0 | AG236: =IF(AND($Y236<>"",J$83<>""),IF($Z236-J$83<Inbetriebnahme+1,0,(LOOKUP($Z236-J$83,$Z$229:$Z$327,AG$229:AG$327)+LOOKUP($Z236-J$83,$Z$199:$Z$228,AG$199:AG$228))*(1+'DK2'!J$17)),0) -> 0 | AH236: =IF(AND($Y236<>"",K$83<>""),IF($Z236-K$83<Inbetriebnahme+1,0,(LOOKUP($Z236-K$83,$Z$229:$Z$327,AH$229:AH$327)+LOOKUP($Z236-K$83,$Z$199:$Z$228,AH$199:AH$228))*(1+'DK2'!K$17)),0) -> 0 | AI236: =IF(AND($Y236<>"",L$83<>""),IF($Z236-L$83<Inbetriebnahme+1,0,(LOOKUP($Z236-L$83,$Z$229:$Z$327,AI$229:AI$327)+LOOKUP($Z236-L$83,$Z$199:$Z$228,AI$199:AI$228))*(1+'DK2'!L$17)),0) -> 0 | AJ236: =IF(AND($Y236<>"",M$83<>""),IF($Z236-M$83<Inbetriebnahme+1,0,(LOOKUP($Z236-M$83,$Z$229:$Z$327,AJ$229:AJ$327)+LOOKUP($Z236-M$83,$Z$199:$Z$228,AJ$199:AJ$228))*(1+'DK2'!M$17)),0) -> 0 | AK236: =IF(AND($Y236<>"",N$83<>""),IF($Z236-N$83<Inbetriebnahme+1,0,(LOOKUP($Z236-N$83,$Z$229:$Z$327,AK$229:AK$327)+LOOKUP($Z236-N$83,$Z$199:$Z$228,AK$199:AK$228))*(1+'DK2'!N$17)),0) -> 0 | AL236: =IF(AND($Y236<>"",O$83<>""),IF($Z236-O$83<Inbetriebnahme+1,0,(LOOKUP($Z236-O$83,$Z$229:$Z$327,AL$229:AL$327)+LOOKUP($Z236-O$83,$Z$199:$Z$228,AL$199:AL$228))*(1+'DK2'!O$17)),0) -> 0 | AM236: =IF(AND($Y236<>"",P$83<>""),IF($Z236-P$83<Inbetriebnahme+1,0,(LOOKUP($Z236-P$83,$Z$229:$Z$327,AM$229:AM$327)+LOOKUP($Z236-P$83,$Z$199:$Z$228,AM$199:AM$228))*(1+'DK2'!P$17)),0) -> 0 | AN236: =IF(AND($Y236<>"",Q$83<>""),IF($Z236-Q$83<Inbetriebnahme+1,0,(LOOKUP($Z236-Q$83,$Z$229:$Z$327,AN$229:AN$327)+LOOKUP($Z236-Q$83,$Z$199:$Z$228,AN$199:AN$228))*(1+'DK2'!Q$17)),0) -> 0 | AO236: =IF(AND($Y236<>"",R$83<>""),IF($Z236-R$83<Inbetriebnahme+1,0,(LOOKUP($Z236-R$83,$Z$229:$Z$327,AO$229:AO$327)+LOOKUP($Z236-R$83,$Z$199:$Z$228,AO$199:AO$228))*(1+'DK2'!R$17)),0) -> 0 | AP236: =IF(AND($Y236<>"",S$83<>""),IF($Z236-S$83<Inbetriebnahme+1,0,(LOOKUP($Z236-S$83,$Z$229:$Z$327,AP$229:AP$327)+LOOKUP($Z236-S$83,$Z$199:$Z$228,AP$199:AP$228))*(1+'DK2'!S$17)),0) -> 0 | AQ236: =IF(AND($Y236<>"",T$83<>""),IF($Z236-T$83<Inbetriebnahme+1,0,(LOOKUP($Z236-T$83,$Z$229:$Z$327,AQ$229:AQ$327)+LOOKUP($Z236-T$83,$Z$199:$Z$228,AQ$199:AQ$228))*(1+'DK2'!T$17)),0) -> 0 | AS236: 0 | AT236: Ersatzinvesttion | AU236: 8 | AV236: 0 | AZ236: 8 | BA236: 0 | BB236: 0 | BC236: 0 | BD236: 0 | BE236: 0 | BF236: 0 | BG236: 0 | BH236: 0 | BI236: 0 | BJ236: 0 | BK236: 0.02 | BL236: 0.09 | BM236: 0.13 | BN236: 0.12 | BO236: 0.11 | BP236: 0.1 | BQ236: 0.09 | BR236: 0.08 | BS236: 0.075 | BT236: 0.07 | BU236: 10
B237: =IF(C237<Planungsbeginn,"",LOOKUP(C237,Grunddaten!$C$66:$C$190,Grunddaten!$D$66:$D$190)) -> Betrieb | C237: 9 | E237: =IF(AND($B237<>"",E$83<>""),IF($C237-E$83<$C$18,0,LOOKUP($C237-E$83,$C$203:$C$327,E$203:E$327)*(1+'DK2'!E$17)),0) -> 0 | F237: =IF(AND($B237<>"",F$83<>""),IF($C237-F$83<$C$18,0,LOOKUP($C237-F$83,$C$203:$C$327,F$203:F$327)*(1+'DK2'!F$17)),0) -> 0 | G237: =IF(AND($B237<>"",G$83<>""),IF($C237-G$83<$C$18,0,LOOKUP($C237-G$83,$C$203:$C$327,G$203:G$327)*(1+'DK2'!G$17)),0) -> 0 | H237: =IF(AND($B237<>"",H$83<>""),IF($C237-H$83<$C$18,0,LOOKUP($C237-H$83,$C$203:$C$327,H$203:H$327)*(1+'DK2'!H$17)),0) -> 0 | I237: =IF(AND($B237<>"",I$83<>""),IF($C237-I$83<$C$18,0,LOOKUP($C237-I$83,$C$203:$C$327,I$203:I$327)*(1+'DK2'!I$17)),0) -> 0 | J237: =IF(AND($B237<>"",J$83<>""),IF($C237-J$83<$C$18,0,LOOKUP($C237-J$83,$C$203:$C$327,J$203:J$327)*(1+'DK2'!J$17)),0) -> 0 | K237: =IF(AND($B237<>"",K$83<>""),IF($C237-K$83<$C$18,0,LOOKUP($C237-K$83,$C$203:$C$327,K$203:K$327)*(1+'DK2'!K$17)),0) -> 0 | L237: =IF(AND($B237<>"",L$83<>""),IF($C237-L$83<$C$18,0,LOOKUP($C237-L$83,$C$203:$C$327,L$203:L$327)*(1+'DK2'!L$17)),0) -> 0 | M237: =IF(AND($B237<>"",M$83<>""),IF($C237-M$83<$C$18,0,LOOKUP($C237-M$83,$C$203:$C$327,M$203:M$327)*(1+'DK2'!M$17)),0) -> 0 | N237: =IF(AND($B237<>"",N$83<>""),IF($C237-N$83<$C$18,0,LOOKUP($C237-N$83,$C$203:$C$327,N$203:N$327)*(1+'DK2'!N$17)),0) -> 0 | O237: =IF(AND($B237<>"",O$83<>""),IF($C237-O$83<$C$18,0,LOOKUP($C237-O$83,$C$203:$C$327,O$203:O$327)*(1+'DK2'!O$17)),0) -> 0 | P237: =IF(AND($B237<>"",P$83<>""),IF($C237-P$83<$C$18,0,LOOKUP($C237-P$83,$C$203:$C$327,P$203:P$327)*(1+'DK2'!P$17)),0) -> 0 | Q237: =IF(AND($B237<>"",Q$83<>""),IF($C237-Q$83<$C$18,0,LOOKUP($C237-Q$83,$C$203:$C$327,Q$203:Q$327)*(1+'DK2'!Q$17)),0) -> 0 | R237: =IF(AND($B237<>"",R$83<>""),IF($C237-R$83<$C$18,0,LOOKUP($C237-R$83,$C$203:$C$327,R$203:R$327)*(1+'DK2'!R$17)),0) -> 0 | S237: =IF(AND($B237<>"",S$83<>""),IF($C237-S$83<$C$18,0,LOOKUP($C237-S$83,$C$203:$C$327,S$203:S$327)*(1+'DK2'!S$17)),0) -> 0 | T237: =IF(AND($B237<>"",T$83<>""),IF($C237-T$83<$C$18,0,LOOKUP($C237-T$83,$C$203:$C$327,T$203:T$327)*(1+'DK2'!T$17)),0) -> 0 | U237: 0 | V237: 0 | W237: Ersatzinvesttion | Y237: =IF(Z237<Planungsbeginn,"",LOOKUP(Z237,Grunddaten!$C$66:$C$190,Grunddaten!$D$66:$D$190)) -> Betrieb | Z237: 9 | AB237: =IF(AND($Y237<>"",E$83<>""),IF($Z237-E$83<Inbetriebnahme+1,0,(LOOKUP($Z237-E$83,$Z$229:$Z$327,AB$229:AB$327)+LOOKUP($Z237-E$83,$Z$199:$Z$228,AB$199:AB$228))*(1+'DK2'!E$17)),0) -> 0 | AC237: =IF(AND($Y237<>"",F$83<>""),IF($Z237-F$83<Inbetriebnahme+1,0,(LOOKUP($Z237-F$83,$Z$229:$Z$327,AC$229:AC$327)+LOOKUP($Z237-F$83,$Z$199:$Z$228,AC$199:AC$228))*(1+'DK2'!F$17)),0) -> 0 | AD237: =IF(AND($Y237<>"",G$83<>""),IF($Z237-G$83<Inbetriebnahme+1,0,(LOOKUP($Z237-G$83,$Z$229:$Z$327,AD$229:AD$327)+LOOKUP($Z237-G$83,$Z$199:$Z$228,AD$199:AD$228))*(1+'DK2'!G$17)),0) -> 0 | AE237: =IF(AND($Y237<>"",H$83<>""),IF($Z237-H$83<Inbetriebnahme+1,0,(LOOKUP($Z237-H$83,$Z$229:$Z$327,AE$229:AE$327)+LOOKUP($Z237-H$83,$Z$199:$Z$228,AE$199:AE$228))*(1+'DK2'!H$17)),0) -> 0 | AF237: =IF(AND($Y237<>"",I$83<>""),IF($Z237-I$83<Inbetriebnahme+1,0,(LOOKUP($Z237-I$83,$Z$229:$Z$327,AF$229:AF$327)+LOOKUP($Z237-I$83,$Z$199:$Z$228,AF$199:AF$228))*(1+'DK2'!I$17)),0) -> 0 | AG237: =IF(AND($Y237<>"",J$83<>""),IF($Z237-J$83<Inbetriebnahme+1,0,(LOOKUP($Z237-J$83,$Z$229:$Z$327,AG$229:AG$327)+LOOKUP($Z237-J$83,$Z$199:$Z$228,AG$199:AG$228))*(1+'DK2'!J$17)),0) -> 0 | AH237: =IF(AND($Y237<>"",K$83<>""),IF($Z237-K$83<Inbetriebnahme+1,0,(LOOKUP($Z237-K$83,$Z$229:$Z$327,AH$229:AH$327)+LOOKUP($Z237-K$83,$Z$199:$Z$228,AH$199:AH$228))*(1+'DK2'!K$17)),0) -> 0 | AI237: =IF(AND($Y237<>"",L$83<>""),IF($Z237-L$83<Inbetriebnahme+1,0,(LOOKUP($Z237-L$83,$Z$229:$Z$327,AI$229:AI$327)+LOOKUP($Z237-L$83,$Z$199:$Z$228,AI$199:AI$228))*(1+'DK2'!L$17)),0) -> 0 | AJ237: =IF(AND($Y237<>"",M$83<>""),IF($Z237-M$83<Inbetriebnahme+1,0,(LOOKUP($Z237-M$83,$Z$229:$Z$327,AJ$229:AJ$327)+LOOKUP($Z237-M$83,$Z$199:$Z$228,AJ$199:AJ$228))*(1+'DK2'!M$17)),0) -> 0 | AK237: =IF(AND($Y237<>"",N$83<>""),IF($Z237-N$83<Inbetriebnahme+1,0,(LOOKUP($Z237-N$83,$Z$229:$Z$327,AK$229:AK$327)+LOOKUP($Z237-N$83,$Z$199:$Z$228,AK$199:AK$228))*(1+'DK2'!N$17)),0) -> 0 | AL237: =IF(AND($Y237<>"",O$83<>""),IF($Z237-O$83<Inbetriebnahme+1,0,(LOOKUP($Z237-O$83,$Z$229:$Z$327,AL$229:AL$327)+LOOKUP($Z237-O$83,$Z$199:$Z$228,AL$199:AL$228))*(1+'DK2'!O$17)),0) -> 0 | AM237: =IF(AND($Y237<>"",P$83<>""),IF($Z237-P$83<Inbetriebnahme+1,0,(LOOKUP($Z237-P$83,$Z$229:$Z$327,AM$229:AM$327)+LOOKUP($Z237-P$83,$Z$199:$Z$228,AM$199:AM$228))*(1+'DK2'!P$17)),0) -> 0 | AN237: =IF(AND($Y237<>"",Q$83<>""),IF($Z237-Q$83<Inbetriebnahme+1,0,(LOOKUP($Z237-Q$83,$Z$229:$Z$327,AN$229:AN$327)+LOOKUP($Z237-Q$83,$Z$199:$Z$228,AN$199:AN$228))*(1+'DK2'!Q$17)),0) -> 0 | AO237: =IF(AND($Y237<>"",R$83<>""),IF($Z237-R$83<Inbetriebnahme+1,0,(LOOKUP($Z237-R$83,$Z$229:$Z$327,AO$229:AO$327)+LOOKUP($Z237-R$83,$Z$199:$Z$228,AO$199:AO$228))*(1+'DK2'!R$17)),0) -> 0 | AP237: =IF(AND($Y237<>"",S$83<>""),IF($Z237-S$83<Inbetriebnahme+1,0,(LOOKUP($Z237-S$83,$Z$229:$Z$327,AP$229:AP$327)+LOOKUP($Z237-S$83,$Z$199:$Z$228,AP$199:AP$228))*(1+'DK2'!S$17)),0) -> 0 | AQ237: =IF(AND($Y237<>"",T$83<>""),IF($Z237-T$83<Inbetriebnahme+1,0,(LOOKUP($Z237-T$83,$Z$229:$Z$327,AQ$229:AQ$327)+LOOKUP($Z237-T$83,$Z$199:$Z$228,AQ$199:AQ$228))*(1+'DK2'!T$17)),0) -> 0 | AS237: 0 | AT237: Ersatzinvesttion | AU237: 9 | AV237: 0 | AZ237: 9 | BA237: 0 | BB237: 0 | BC237: 0 | BD237: 0 | BE237: 0 | BF237: 0 | BG237: 0 | BH237: 0 | BI237: 0 | BJ237: 0 | BK237: 0 | BL237: 0.02 | BM237: 0.09 | BN237: 0.12 | BO237: 0.11 | BP237: 0.1 | BQ237: 0.09 | BR237: 0.08 | BS237: 0.075 | BT237: 0.07 | BU237: 11
B238: =IF(C238<Planungsbeginn,"",LOOKUP(C238,Grunddaten!$C$66:$C$190,Grunddaten!$D$66:$D$190)) -> Betrieb | C238: 10 | E238: =IF(AND($B238<>"",E$83<>""),IF($C238-E$83<$C$18,0,LOOKUP($C238-E$83,$C$203:$C$327,E$203:E$327)*(1+'DK2'!E$17)),0) -> 0 | F238: =IF(AND($B238<>"",F$83<>""),IF($C238-F$83<$C$18,0,LOOKUP($C238-F$83,$C$203:$C$327,F$203:F$327)*(1+'DK2'!F$17)),0) -> 0 | G238: =IF(AND($B238<>"",G$83<>""),IF($C238-G$83<$C$18,0,LOOKUP($C238-G$83,$C$203:$C$327,G$203:G$327)*(1+'DK2'!G$17)),0) -> 0 | H238: =IF(AND($B238<>"",H$83<>""),IF($C238-H$83<$C$18,0,LOOKUP($C238-H$83,$C$203:$C$327,H$203:H$327)*(1+'DK2'!H$17)),0) -> 0 | I238: =IF(AND($B238<>"",I$83<>""),IF($C238-I$83<$C$18,0,LOOKUP($C238-I$83,$C$203:$C$327,I$203:I$327)*(1+'DK2'!I$17)),0) -> 0 | J238: =IF(AND($B238<>"",J$83<>""),IF($C238-J$83<$C$18,0,LOOKUP($C238-J$83,$C$203:$C$327,J$203:J$327)*(1+'DK2'!J$17)),0) -> 0 | K238: =IF(AND($B238<>"",K$83<>""),IF($C238-K$83<$C$18,0,LOOKUP($C238-K$83,$C$203:$C$327,K$203:K$327)*(1+'DK2'!K$17)),0) -> 0 | L238: =IF(AND($B238<>"",L$83<>""),IF($C238-L$83<$C$18,0,LOOKUP($C238-L$83,$C$203:$C$327,L$203:L$327)*(1+'DK2'!L$17)),0) -> 0 | M238: =IF(AND($B238<>"",M$83<>""),IF($C238-M$83<$C$18,0,LOOKUP($C238-M$83,$C$203:$C$327,M$203:M$327)*(1+'DK2'!M$17)),0) -> 0 | N238: =IF(AND($B238<>"",N$83<>""),IF($C238-N$83<$C$18,0,LOOKUP($C238-N$83,$C$203:$C$327,N$203:N$327)*(1+'DK2'!N$17)),0) -> 0 | O238: =IF(AND($B238<>"",O$83<>""),IF($C238-O$83<$C$18,0,LOOKUP($C238-O$83,$C$203:$C$327,O$203:O$327)*(1+'DK2'!O$17)),0) -> 0 | P238: =IF(AND($B238<>"",P$83<>""),IF($C238-P$83<$C$18,0,LOOKUP($C238-P$83,$C$203:$C$327,P$203:P$327)*(1+'DK2'!P$17)),0) -> 0 | Q238: =IF(AND($B238<>"",Q$83<>""),IF($C238-Q$83<$C$18,0,LOOKUP($C238-Q$83,$C$203:$C$327,Q$203:Q$327)*(1+'DK2'!Q$17)),0) -> 0 | R238: =IF(AND($B238<>"",R$83<>""),IF($C238-R$83<$C$18,0,LOOKUP($C238-R$83,$C$203:$C$327,R$203:R$327)*(1+'DK2'!R$17)),0) -> 0 | S238: =IF(AND($B238<>"",S$83<>""),IF($C238-S$83<$C$18,0,LOOKUP($C238-S$83,$C$203:$C$327,S$203:S$327)*(1+'DK2'!S$17)),0) -> 0 | T238: =IF(AND($B238<>"",T$83<>""),IF($C238-T$83<$C$18,0,LOOKUP($C238-T$83,$C$203:$C$327,T$203:T$327)*(1+'DK2'!T$17)),0) -> 0 | U238: 0 | V238: 0 | W238: Ersatzinvesttion | Y238: =IF(Z238<Planungsbeginn,"",LOOKUP(Z238,Grunddaten!$C$66:$C$190,Grunddaten!$D$66:$D$190)) -> Betrieb | Z238: 10 | AB238: =IF(AND($Y238<>"",E$83<>""),IF($Z238-E$83<Inbetriebnahme+1,0,(LOOKUP($Z238-E$83,$Z$229:$Z$327,AB$229:AB$327)+LOOKUP($Z238-E$83,$Z$199:$Z$228,AB$199:AB$228))*(1+'DK2'!E$17)),0) -> 0 | AC238: =IF(AND($Y238<>"",F$83<>""),IF($Z238-F$83<Inbetriebnahme+1,0,(LOOKUP($Z238-F$83,$Z$229:$Z$327,AC$229:AC$327)+LOOKUP($Z238-F$83,$Z$199:$Z$228,AC$199:AC$228))*(1+'DK2'!F$17)),0) -> 0 | AD238: =IF(AND($Y238<>"",G$83<>""),IF($Z238-G$83<Inbetriebnahme+1,0,(LOOKUP($Z238-G$83,$Z$229:$Z$327,AD$229:AD$327)+LOOKUP($Z238-G$83,$Z$199:$Z$228,AD$199:AD$228))*(1+'DK2'!G$17)),0) -> 0 | AE238: =IF(AND($Y238<>"",H$83<>""),IF($Z238-H$83<Inbetriebnahme+1,0,(LOOKUP($Z238-H$83,$Z$229:$Z$327,AE$229:AE$327)+LOOKUP($Z238-H$83,$Z$199:$Z$228,AE$199:AE$228))*(1+'DK2'!H$17)),0) -> 0 | AF238: =IF(AND($Y238<>"",I$83<>""),IF($Z238-I$83<Inbetriebnahme+1,0,(LOOKUP($Z238-I$83,$Z$229:$Z$327,AF$229:AF$327)+LOOKUP($Z238-I$83,$Z$199:$Z$228,AF$199:AF$228))*(1+'DK2'!I$17)),0) -> 0 | AG238: =IF(AND($Y238<>"",J$83<>""),IF($Z238-J$83<Inbetriebnahme+1,0,(LOOKUP($Z238-J$83,$Z$229:$Z$327,AG$229:AG$327)+LOOKUP($Z238-J$83,$Z$199:$Z$228,AG$199:AG$228))*(1+'DK2'!J$17)),0) -> 0 | AH238: =IF(AND($Y238<>"",K$83<>""),IF($Z238-K$83<Inbetriebnahme+1,0,(LOOKUP($Z238-K$83,$Z$229:$Z$327,AH$229:AH$327)+LOOKUP($Z238-K$83,$Z$199:$Z$228,AH$199:AH$228))*(1+'DK2'!K$17)),0) -> 0 | AI238: =IF(AND($Y238<>"",L$83<>""),IF($Z238-L$83<Inbetriebnahme+1,0,(LOOKUP($Z238-L$83,$Z$229:$Z$327,AI$229:AI$327)+LOOKUP($Z238-L$83,$Z$199:$Z$228,AI$199:AI$228))*(1+'DK2'!L$17)),0) -> 0 | AJ238: =IF(AND($Y238<>"",M$83<>""),IF($Z238-M$83<Inbetriebnahme+1,0,(LOOKUP($Z238-M$83,$Z$229:$Z$327,AJ$229:AJ$327)+LOOKUP($Z238-M$83,$Z$199:$Z$228,AJ$199:AJ$228))*(1+'DK2'!M$17)),0) -> 0 | AK238: =IF(AND($Y238<>"",N$83<>""),IF($Z238-N$83<Inbetriebnahme+1,0,(LOOKUP($Z238-N$83,$Z$229:$Z$327,AK$229:AK$327)+LOOKUP($Z238-N$83,$Z$199:$Z$228,AK$199:AK$228))*(1+'DK2'!N$17)),0) -> 0 | AL238: =IF(AND($Y238<>"",O$83<>""),IF($Z238-O$83<Inbetriebnahme+1,0,(LOOKUP($Z238-O$83,$Z$229:$Z$327,AL$229:AL$327)+LOOKUP($Z238-O$83,$Z$199:$Z$228,AL$199:AL$228))*(1+'DK2'!O$17)),0) -> 0 | AM238: =IF(AND($Y238<>"",P$83<>""),IF($Z238-P$83<Inbetriebnahme+1,0,(LOOKUP($Z238-P$83,$Z$229:$Z$327,AM$229:AM$327)+LOOKUP($Z238-P$83,$Z$199:$Z$228,AM$199:AM$228))*(1+'DK2'!P$17)),0) -> 0 | AN238: =IF(AND($Y238<>"",Q$83<>""),IF($Z238-Q$83<Inbetriebnahme+1,0,(LOOKUP($Z238-Q$83,$Z$229:$Z$327,AN$229:AN$327)+LOOKUP($Z238-Q$83,$Z$199:$Z$228,AN$199:AN$228))*(1+'DK2'!Q$17)),0) -> 0 | AO238: =IF(AND($Y238<>"",R$83<>""),IF($Z238-R$83<Inbetriebnahme+1,0,(LOOKUP($Z238-R$83,$Z$229:$Z$327,AO$229:AO$327)+LOOKUP($Z238-R$83,$Z$199:$Z$228,AO$199:AO$228))*(1+'DK2'!R$17)),0) -> 0 | AP238: =IF(AND($Y238<>"",S$83<>""),IF($Z238-S$83<Inbetriebnahme+1,0,(LOOKUP($Z238-S$83,$Z$229:$Z$327,AP$229:AP$327)+LOOKUP($Z238-S$83,$Z$199:$Z$228,AP$199:AP$228))*(1+'DK2'!S$17)),0) -> 0 | AQ238: =IF(AND($Y238<>"",T$83<>""),IF($Z238-T$83<Inbetriebnahme+1,0,(LOOKUP($Z238-T$83,$Z$229:$Z$327,AQ$229:AQ$327)+LOOKUP($Z238-T$83,$Z$199:$Z$228,AQ$199:AQ$228))*(1+'DK2'!T$17)),0) -> 0 | AS238: 0 | AT238: Ersatzinvesttion | AU238: 10 | AV238: 0 | AZ238: 10 | BA238: 0 | BB238: 0 | BC238: 0 | BD238: 0 | BE238: 0 | BF238: 0 | BG238: 0 | BH238: 0 | BI238: 0 | BJ238: 0 | BK238: 0 | BL238: 0 | BM238: 0.015 | BN238: 0.08 | BO238: 0.11 | BP238: 0.1 | BQ238: 0.09 | BR238: 0.08 | BS238: 0.075 | BT238: 0.07 | BU238: 12
B239: =IF(C239<Planungsbeginn,"",LOOKUP(C239,Grunddaten!$C$66:$C$190,Grunddaten!$D$66:$D$190)) -> Betrieb | C239: 11 | E239: =IF(AND($B239<>"",E$83<>""),IF($C239-E$83<$C$18,0,LOOKUP($C239-E$83,$C$203:$C$327,E$203:E$327)*(1+'DK2'!E$17)),0) -> 0 | F239: =IF(AND($B239<>"",F$83<>""),IF($C239-F$83<$C$18,0,LOOKUP($C239-F$83,$C$203:$C$327,F$203:F$327)*(1+'DK2'!F$17)),0) -> 0 | G239: =IF(AND($B239<>"",G$83<>""),IF($C239-G$83<$C$18,0,LOOKUP($C239-G$83,$C$203:$C$327,G$203:G$327)*(1+'DK2'!G$17)),0) -> 0 | H239: =IF(AND($B239<>"",H$83<>""),IF($C239-H$83<$C$18,0,LOOKUP($C239-H$83,$C$203:$C$327,H$203:H$327)*(1+'DK2'!H$17)),0) -> 0 | I239: =IF(AND($B239<>"",I$83<>""),IF($C239-I$83<$C$18,0,LOOKUP($C239-I$83,$C$203:$C$327,I$203:I$327)*(1+'DK2'!I$17)),0) -> 0 | J239: =IF(AND($B239<>"",J$83<>""),IF($C239-J$83<$C$18,0,LOOKUP($C239-J$83,$C$203:$C$327,J$203:J$327)*(1+'DK2'!J$17)),0) -> 0 | K239: =IF(AND($B239<>"",K$83<>""),IF($C239-K$83<$C$18,0,LOOKUP($C239-K$83,$C$203:$C$327,K$203:K$327)*(1+'DK2'!K$17)),0) -> 0 | L239: =IF(AND($B239<>"",L$83<>""),IF($C239-L$83<$C$18,0,LOOKUP($C239-L$83,$C$203:$C$327,L$203:L$327)*(1+'DK2'!L$17)),0) -> 0 | M239: =IF(AND($B239<>"",M$83<>""),IF($C239-M$83<$C$18,0,LOOKUP($C239-M$83,$C$203:$C$327,M$203:M$327)*(1+'DK2'!M$17)),0) -> 0 | N239: =IF(AND($B239<>"",N$83<>""),IF($C239-N$83<$C$18,0,LOOKUP($C239-N$83,$C$203:$C$327,N$203:N$327)*(1+'DK2'!N$17)),0) -> 0 | O239: =IF(AND($B239<>"",O$83<>""),IF($C239-O$83<$C$18,0,LOOKUP($C239-O$83,$C$203:$C$327,O$203:O$327)*(1+'DK2'!O$17)),0) -> 0 | P239: =IF(AND($B239<>"",P$83<>""),IF($C239-P$83<$C$18,0,LOOKUP($C239-P$83,$C$203:$C$327,P$203:P$327)*(1+'DK2'!P$17)),0) -> 0 | Q239: =IF(AND($B239<>"",Q$83<>""),IF($C239-Q$83<$C$18,0,LOOKUP($C239-Q$83,$C$203:$C$327,Q$203:Q$327)*(1+'DK2'!Q$17)),0) -> 0 | R239: =IF(AND($B239<>"",R$83<>""),IF($C239-R$83<$C$18,0,LOOKUP($C239-R$83,$C$203:$C$327,R$203:R$327)*(1+'DK2'!R$17)),0) -> 0 | S239: =IF(AND($B239<>"",S$83<>""),IF($C239-S$83<$C$18,0,LOOKUP($C239-S$83,$C$203:$C$327,S$203:S$327)*(1+'DK2'!S$17)),0) -> 0 | T239: =IF(AND($B239<>"",T$83<>""),IF($C239-T$83<$C$18,0,LOOKUP($C239-T$83,$C$203:$C$327,T$203:T$327)*(1+'DK2'!T$17)),0) -> 0 | U239: 0 | V239: 0 | W239: Ersatzinvesttion | Y239: =IF(Z239<Planungsbeginn,"",LOOKUP(Z239,Grunddaten!$C$66:$C$190,Grunddaten!$D$66:$D$190)) -> Betrieb | Z239: 11 | AB239: =IF(AND($Y239<>"",E$83<>""),IF($Z239-E$83<Inbetriebnahme+1,0,(LOOKUP($Z239-E$83,$Z$229:$Z$327,AB$229:AB$327)+LOOKUP($Z239-E$83,$Z$199:$Z$228,AB$199:AB$228))*(1+'DK2'!E$17)),0) -> 0 | AC239: =IF(AND($Y239<>"",F$83<>""),IF($Z239-F$83<Inbetriebnahme+1,0,(LOOKUP($Z239-F$83,$Z$229:$Z$327,AC$229:AC$327)+LOOKUP($Z239-F$83,$Z$199:$Z$228,AC$199:AC$228))*(1+'DK2'!F$17)),0) -> 0 | AD239: =IF(AND($Y239<>"",G$83<>""),IF($Z239-G$83<Inbetriebnahme+1,0,(LOOKUP($Z239-G$83,$Z$229:$Z$327,AD$229:AD$327)+LOOKUP($Z239-G$83,$Z$199:$Z$228,AD$199:AD$228))*(1+'DK2'!G$17)),0) -> 0 | AE239: =IF(AND($Y239<>"",H$83<>""),IF($Z239-H$83<Inbetriebnahme+1,0,(LOOKUP($Z239-H$83,$Z$229:$Z$327,AE$229:AE$327)+LOOKUP($Z239-H$83,$Z$199:$Z$228,AE$199:AE$228))*(1+'DK2'!H$17)),0) -> 0 | AF239: =IF(AND($Y239<>"",I$83<>""),IF($Z239-I$83<Inbetriebnahme+1,0,(LOOKUP($Z239-I$83,$Z$229:$Z$327,AF$229:AF$327)+LOOKUP($Z239-I$83,$Z$199:$Z$228,AF$199:AF$228))*(1+'DK2'!I$17)),0) -> 0 | AG239: =IF(AND($Y239<>"",J$83<>""),IF($Z239-J$83<Inbetriebnahme+1,0,(LOOKUP($Z239-J$83,$Z$229:$Z$327,AG$229:AG$327)+LOOKUP($Z239-J$83,$Z$199:$Z$228,AG$199:AG$228))*(1+'DK2'!J$17)),0) -> 0 | AH239: =IF(AND($Y239<>"",K$83<>""),IF($Z239-K$83<Inbetriebnahme+1,0,(LOOKUP($Z239-K$83,$Z$229:$Z$327,AH$229:AH$327)+LOOKUP($Z239-K$83,$Z$199:$Z$228,AH$199:AH$228))*(1+'DK2'!K$17)),0) -> 0 | AI239: =IF(AND($Y239<>"",L$83<>""),IF($Z239-L$83<Inbetriebnahme+1,0,(LOOKUP($Z239-L$83,$Z$229:$Z$327,AI$229:AI$327)+LOOKUP($Z239-L$83,$Z$199:$Z$228,AI$199:AI$228))*(1+'DK2'!L$17)),0) -> 0 | AJ239: =IF(AND($Y239<>"",M$83<>""),IF($Z239-M$83<Inbetriebnahme+1,0,(LOOKUP($Z239-M$83,$Z$229:$Z$327,AJ$229:AJ$327)+LOOKUP($Z239-M$83,$Z$199:$Z$228,AJ$199:AJ$228))*(1+'DK2'!M$17)),0) -> 0 | AK239: =IF(AND($Y239<>"",N$83<>""),IF($Z239-N$83<Inbetriebnahme+1,0,(LOOKUP($Z239-N$83,$Z$229:$Z$327,AK$229:AK$327)+LOOKUP($Z239-N$83,$Z$199:$Z$228,AK$199:AK$228))*(1+'DK2'!N$17)),0) -> 0 | AL239: =IF(AND($Y239<>"",O$83<>""),IF($Z239-O$83<Inbetriebnahme+1,0,(LOOKUP($Z239-O$83,$Z$229:$Z$327,AL$229:AL$327)+LOOKUP($Z239-O$83,$Z$199:$Z$228,AL$199:AL$228))*(1+'DK2'!O$17)),0) -> 0 | AM239: =IF(AND($Y239<>"",P$83<>""),IF($Z239-P$83<Inbetriebnahme+1,0,(LOOKUP($Z239-P$83,$Z$229:$Z$327,AM$229:AM$327)+LOOKUP($Z239-P$83,$Z$199:$Z$228,AM$199:AM$228))*(1+'DK2'!P$17)),0) -> 0 | AN239: =IF(AND($Y239<>"",Q$83<>""),IF($Z239-Q$83<Inbetriebnahme+1,0,(LOOKUP($Z239-Q$83,$Z$229:$Z$327,AN$229:AN$327)+LOOKUP($Z239-Q$83,$Z$199:$Z$228,AN$199:AN$228))*(1+'DK2'!Q$17)),0) -> 0 | AO239: =IF(AND($Y239<>"",R$83<>""),IF($Z239-R$83<Inbetriebnahme+1,0,(LOOKUP($Z239-R$83,$Z$229:$Z$327,AO$229:AO$327)+LOOKUP($Z239-R$83,$Z$199:$Z$228,AO$199:AO$228))*(1+'DK2'!R$17)),0) -> 0 | AP239: =IF(AND($Y239<>"",S$83<>""),IF($Z239-S$83<Inbetriebnahme+1,0,(LOOKUP($Z239-S$83,$Z$229:$Z$327,AP$229:AP$327)+LOOKUP($Z239-S$83,$Z$199:$Z$228,AP$199:AP$228))*(1+'DK2'!S$17)),0) -> 0 | AQ239: =IF(AND($Y239<>"",T$83<>""),IF($Z239-T$83<Inbetriebnahme+1,0,(LOOKUP($Z239-T$83,$Z$229:$Z$327,AQ$229:AQ$327)+LOOKUP($Z239-T$83,$Z$199:$Z$228,AQ$199:AQ$228))*(1+'DK2'!T$17)),0) -> 0 | AS239: 0 | AT239: Ersatzinvesttion | AU239: 11 | AV239: 0 | AZ239: 11 | BA239: 0 | BB239: 0 | BC239: 0 | BD239: 0 | BE239: 0 | BF239: 0 | BG239: 0 | BH239: 0 | BI239: 0 | BJ239: 0 | BK239: 0 | BL239: 0 | BM239: 0 | BN239: 0.015 | BO239: 0.07 | BP239: 0.1 | BQ239: 0.09 | BR239: 0.08 | BS239: 0.075 | BT239: 0.07 | BU239: 13
B240: =IF(C240<Planungsbeginn,"",LOOKUP(C240,Grunddaten!$C$66:$C$190,Grunddaten!$D$66:$D$190)) -> Betrieb | C240: 12 | E240: =IF(AND($B240<>"",E$83<>""),IF($C240-E$83<$C$18,0,LOOKUP($C240-E$83,$C$203:$C$327,E$203:E$327)*(1+'DK2'!E$17)),0) -> 0 | F240: =IF(AND($B240<>"",F$83<>""),IF($C240-F$83<$C$18,0,LOOKUP($C240-F$83,$C$203:$C$327,F$203:F$327)*(1+'DK2'!F$17)),0) -> 0 | G240: =IF(AND($B240<>"",G$83<>""),IF($C240-G$83<$C$18,0,LOOKUP($C240-G$83,$C$203:$C$327,G$203:G$327)*(1+'DK2'!G$17)),0) -> 0 | H240: =IF(AND($B240<>"",H$83<>""),IF($C240-H$83<$C$18,0,LOOKUP($C240-H$83,$C$203:$C$327,H$203:H$327)*(1+'DK2'!H$17)),0) -> 0 | I240: =IF(AND($B240<>"",I$83<>""),IF($C240-I$83<$C$18,0,LOOKUP($C240-I$83,$C$203:$C$327,I$203:I$327)*(1+'DK2'!I$17)),0) -> 0 | J240: =IF(AND($B240<>"",J$83<>""),IF($C240-J$83<$C$18,0,LOOKUP($C240-J$83,$C$203:$C$327,J$203:J$327)*(1+'DK2'!J$17)),0) -> 0 | K240: =IF(AND($B240<>"",K$83<>""),IF($C240-K$83<$C$18,0,LOOKUP($C240-K$83,$C$203:$C$327,K$203:K$327)*(1+'DK2'!K$17)),0) -> 0 | L240: =IF(AND($B240<>"",L$83<>""),IF($C240-L$83<$C$18,0,LOOKUP($C240-L$83,$C$203:$C$327,L$203:L$327)*(1+'DK2'!L$17)),0) -> 0 | M240: =IF(AND($B240<>"",M$83<>""),IF($C240-M$83<$C$18,0,LOOKUP($C240-M$83,$C$203:$C$327,M$203:M$327)*(1+'DK2'!M$17)),0) -> 0 | N240: =IF(AND($B240<>"",N$83<>""),IF($C240-N$83<$C$18,0,LOOKUP($C240-N$83,$C$203:$C$327,N$203:N$327)*(1+'DK2'!N$17)),0) -> 0 | O240: =IF(AND($B240<>"",O$83<>""),IF($C240-O$83<$C$18,0,LOOKUP($C240-O$83,$C$203:$C$327,O$203:O$327)*(1+'DK2'!O$17)),0) -> 0 | P240: =IF(AND($B240<>"",P$83<>""),IF($C240-P$83<$C$18,0,LOOKUP($C240-P$83,$C$203:$C$327,P$203:P$327)*(1+'DK2'!P$17)),0) -> 0 | Q240: =IF(AND($B240<>"",Q$83<>""),IF($C240-Q$83<$C$18,0,LOOKUP($C240-Q$83,$C$203:$C$327,Q$203:Q$327)*(1+'DK2'!Q$17)),0) -> 0 | R240: =IF(AND($B240<>"",R$83<>""),IF($C240-R$83<$C$18,0,LOOKUP($C240-R$83,$C$203:$C$327,R$203:R$327)*(1+'DK2'!R$17)),0) -> 0 | S240: =IF(AND($B240<>"",S$83<>""),IF($C240-S$83<$C$18,0,LOOKUP($C240-S$83,$C$203:$C$327,S$203:S$327)*(1+'DK2'!S$17)),0) -> 0 | T240: =IF(AND($B240<>"",T$83<>""),IF($C240-T$83<$C$18,0,LOOKUP($C240-T$83,$C$203:$C$327,T$203:T$327)*(1+'DK2'!T$17)),0) -> 0 | U240: 0 | V240: 0 | W240: Ersatzinvesttion | Y240: =IF(Z240<Planungsbeginn,"",LOOKUP(Z240,Grunddaten!$C$66:$C$190,Grunddaten!$D$66:$D$190)) -> Betrieb | Z240: 12 | AB240: =IF(AND($Y240<>"",E$83<>""),IF($Z240-E$83<Inbetriebnahme+1,0,(LOOKUP($Z240-E$83,$Z$229:$Z$327,AB$229:AB$327)+LOOKUP($Z240-E$83,$Z$199:$Z$228,AB$199:AB$228))*(1+'DK2'!E$17)),0) -> 0 | AC240: =IF(AND($Y240<>"",F$83<>""),IF($Z240-F$83<Inbetriebnahme+1,0,(LOOKUP($Z240-F$83,$Z$229:$Z$327,AC$229:AC$327)+LOOKUP($Z240-F$83,$Z$199:$Z$228,AC$199:AC$228))*(1+'DK2'!F$17)),0) -> 0 | AD240: =IF(AND($Y240<>"",G$83<>""),IF($Z240-G$83<Inbetriebnahme+1,0,(LOOKUP($Z240-G$83,$Z$229:$Z$327,AD$229:AD$327)+LOOKUP($Z240-G$83,$Z$199:$Z$228,AD$199:AD$228))*(1+'DK2'!G$17)),0) -> 0 | AE240: =IF(AND($Y240<>"",H$83<>""),IF($Z240-H$83<Inbetriebnahme+1,0,(LOOKUP($Z240-H$83,$Z$229:$Z$327,AE$229:AE$327)+LOOKUP($Z240-H$83,$Z$199:$Z$228,AE$199:AE$228))*(1+'DK2'!H$17)),0) -> 0 | AF240: =IF(AND($Y240<>"",I$83<>""),IF($Z240-I$83<Inbetriebnahme+1,0,(LOOKUP($Z240-I$83,$Z$229:$Z$327,AF$229:AF$327)+LOOKUP($Z240-I$83,$Z$199:$Z$228,AF$199:AF$228))*(1+'DK2'!I$17)),0) -> 0 | AG240: =IF(AND($Y240<>"",J$83<>""),IF($Z240-J$83<Inbetriebnahme+1,0,(LOOKUP($Z240-J$83,$Z$229:$Z$327,AG$229:AG$327)+LOOKUP($Z240-J$83,$Z$199:$Z$228,AG$199:AG$228))*(1+'DK2'!J$17)),0) -> 0 | AH240: =IF(AND($Y240<>"",K$83<>""),IF($Z240-K$83<Inbetriebnahme+1,0,(LOOKUP($Z240-K$83,$Z$229:$Z$327,AH$229:AH$327)+LOOKUP($Z240-K$83,$Z$199:$Z$228,AH$199:AH$228))*(1+'DK2'!K$17)),0) -> 0 | AI240: =IF(AND($Y240<>"",L$83<>""),IF($Z240-L$83<Inbetriebnahme+1,0,(LOOKUP($Z240-L$83,$Z$229:$Z$327,AI$229:AI$327)+LOOKUP($Z240-L$83,$Z$199:$Z$228,AI$199:AI$228))*(1+'DK2'!L$17)),0) -> 0 | AJ240: =IF(AND($Y240<>"",M$83<>""),IF($Z240-M$83<Inbetriebnahme+1,0,(LOOKUP($Z240-M$83,$Z$229:$Z$327,AJ$229:AJ$327)+LOOKUP($Z240-M$83,$Z$199:$Z$228,AJ$199:AJ$228))*(1+'DK2'!M$17)),0) -> 0 | AK240: =IF(AND($Y240<>"",N$83<>""),IF($Z240-N$83<Inbetriebnahme+1,0,(LOOKUP($Z240-N$83,$Z$229:$Z$327,AK$229:AK$327)+LOOKUP($Z240-N$83,$Z$199:$Z$228,AK$199:AK$228))*(1+'DK2'!N$17)),0) -> 0 | AL240: =IF(AND($Y240<>"",O$83<>""),IF($Z240-O$83<Inbetriebnahme+1,0,(LOOKUP($Z240-O$83,$Z$229:$Z$327,AL$229:AL$327)+LOOKUP($Z240-O$83,$Z$199:$Z$228,AL$199:AL$228))*(1+'DK2'!O$17)),0) -> 0 | AM240: =IF(AND($Y240<>"",P$83<>""),IF($Z240-P$83<Inbetriebnahme+1,0,(LOOKUP($Z240-P$83,$Z$229:$Z$327,AM$229:AM$327)+LOOKUP($Z240-P$83,$Z$199:$Z$228,AM$199:AM$228))*(1+'DK2'!P$17)),0) -> 0 | AN240: =IF(AND($Y240<>"",Q$83<>""),IF($Z240-Q$83<Inbetriebnahme+1,0,(LOOKUP($Z240-Q$83,$Z$229:$Z$327,AN$229:AN$327)+LOOKUP($Z240-Q$83,$Z$199:$Z$228,AN$199:AN$228))*(1+'DK2'!Q$17)),0) -> 0 | AO240: =IF(AND($Y240<>"",R$83<>""),IF($Z240-R$83<Inbetriebnahme+1,0,(LOOKUP($Z240-R$83,$Z$229:$Z$327,AO$229:AO$327)+LOOKUP($Z240-R$83,$Z$199:$Z$228,AO$199:AO$228))*(1+'DK2'!R$17)),0) -> 0 | AP240: =IF(AND($Y240<>"",S$83<>""),IF($Z240-S$83<Inbetriebnahme+1,0,(LOOKUP($Z240-S$83,$Z$229:$Z$327,AP$229:AP$327)+LOOKUP($Z240-S$83,$Z$199:$Z$228,AP$199:AP$228))*(1+'DK2'!S$17)),0) -> 0 | AQ240: =IF(AND($Y240<>"",T$83<>""),IF($Z240-T$83<Inbetriebnahme+1,0,(LOOKUP($Z240-T$83,$Z$229:$Z$327,AQ$229:AQ$327)+LOOKUP($Z240-T$83,$Z$199:$Z$228,AQ$199:AQ$228))*(1+'DK2'!T$17)),0) -> 0 | AS240: 0 | AT240: Ersatzinvesttion | AU240: 12 | AV240: 0 | AZ240: 12 | BA240: 0 | BB240: 0 | BC240: 0 | BD240: 0 | BE240: 0 | BF240: 0 | BG240: 0 | BH240: 0 | BI240: 0 | BJ240: 0 | BK240: 0 | BL240: 0 | BM240: 0 | BN240: 0 | BO240: 0.015 | BP240: 0.07 | BQ240: 0.09 | BR240: 0.08 | BS240: 0.075 | BT240: 0.07 | BU240: 14
B241: =IF(C241<Planungsbeginn,"",LOOKUP(C241,Grunddaten!$C$66:$C$190,Grunddaten!$D$66:$D$190)) -> Betrieb | C241: 13 | E241: =IF(AND($B241<>"",E$83<>""),IF($C241-E$83<$C$18,0,LOOKUP($C241-E$83,$C$203:$C$327,E$203:E$327)*(1+'DK2'!E$17)),0) -> 0 | F241: =IF(AND($B241<>"",F$83<>""),IF($C241-F$83<$C$18,0,LOOKUP($C241-F$83,$C$203:$C$327,F$203:F$327)*(1+'DK2'!F$17)),0) -> 0 | G241: =IF(AND($B241<>"",G$83<>""),IF($C241-G$83<$C$18,0,LOOKUP($C241-G$83,$C$203:$C$327,G$203:G$327)*(1+'DK2'!G$17)),0) -> 0 | H241: =IF(AND($B241<>"",H$83<>""),IF($C241-H$83<$C$18,0,LOOKUP($C241-H$83,$C$203:$C$327,H$203:H$327)*(1+'DK2'!H$17)),0) -> 0 | I241: =IF(AND($B241<>"",I$83<>""),IF($C241-I$83<$C$18,0,LOOKUP($C241-I$83,$C$203:$C$327,I$203:I$327)*(1+'DK2'!I$17)),0) -> 0 | J241: =IF(AND($B241<>"",J$83<>""),IF($C241-J$83<$C$18,0,LOOKUP($C241-J$83,$C$203:$C$327,J$203:J$327)*(1+'DK2'!J$17)),0) -> 0 | K241: =IF(AND($B241<>"",K$83<>""),IF($C241-K$83<$C$18,0,LOOKUP($C241-K$83,$C$203:$C$327,K$203:K$327)*(1+'DK2'!K$17)),0) -> 0 | L241: =IF(AND($B241<>"",L$83<>""),IF($C241-L$83<$C$18,0,LOOKUP($C241-L$83,$C$203:$C$327,L$203:L$327)*(1+'DK2'!L$17)),0) -> 0 | M241: =IF(AND($B241<>"",M$83<>""),IF($C241-M$83<$C$18,0,LOOKUP($C241-M$83,$C$203:$C$327,M$203:M$327)*(1+'DK2'!M$17)),0) -> 0 | N241: =IF(AND($B241<>"",N$83<>""),IF($C241-N$83<$C$18,0,LOOKUP($C241-N$83,$C$203:$C$327,N$203:N$327)*(1+'DK2'!N$17)),0) -> 0 | O241: =IF(AND($B241<>"",O$83<>""),IF($C241-O$83<$C$18,0,LOOKUP($C241-O$83,$C$203:$C$327,O$203:O$327)*(1+'DK2'!O$17)),0) -> 0 | P241: =IF(AND($B241<>"",P$83<>""),IF($C241-P$83<$C$18,0,LOOKUP($C241-P$83,$C$203:$C$327,P$203:P$327)*(1+'DK2'!P$17)),0) -> 0 | Q241: =IF(AND($B241<>"",Q$83<>""),IF($C241-Q$83<$C$18,0,LOOKUP($C241-Q$83,$C$203:$C$327,Q$203:Q$327)*(1+'DK2'!Q$17)),0) -> 0 | R241: =IF(AND($B241<>"",R$83<>""),IF($C241-R$83<$C$18,0,LOOKUP($C241-R$83,$C$203:$C$327,R$203:R$327)*(1+'DK2'!R$17)),0) -> 0 | S241: =IF(AND($B241<>"",S$83<>""),IF($C241-S$83<$C$18,0,LOOKUP($C241-S$83,$C$203:$C$327,S$203:S$327)*(1+'DK2'!S$17)),0) -> 0 | T241: =IF(AND($B241<>"",T$83<>""),IF($C241-T$83<$C$18,0,LOOKUP($C241-T$83,$C$203:$C$327,T$203:T$327)*(1+'DK2'!T$17)),0) -> 0 | U241: 0 | V241: 0 | W241: Ersatzinvesttion | Y241: =IF(Z241<Planungsbeginn,"",LOOKUP(Z241,Grunddaten!$C$66:$C$190,Grunddaten!$D$66:$D$190)) -> Betrieb | Z241: 13 | AB241: =IF(AND($Y241<>"",E$83<>""),IF($Z241-E$83<Inbetriebnahme+1,0,(LOOKUP($Z241-E$83,$Z$229:$Z$327,AB$229:AB$327)+LOOKUP($Z241-E$83,$Z$199:$Z$228,AB$199:AB$228))*(1+'DK2'!E$17)),0) -> 0 | AC241: =IF(AND($Y241<>"",F$83<>""),IF($Z241-F$83<Inbetriebnahme+1,0,(LOOKUP($Z241-F$83,$Z$229:$Z$327,AC$229:AC$327)+LOOKUP($Z241-F$83,$Z$199:$Z$228,AC$199:AC$228))*(1+'DK2'!F$17)),0) -> 0 | AD241: =IF(AND($Y241<>"",G$83<>""),IF($Z241-G$83<Inbetriebnahme+1,0,(LOOKUP($Z241-G$83,$Z$229:$Z$327,AD$229:AD$327)+LOOKUP($Z241-G$83,$Z$199:$Z$228,AD$199:AD$228))*(1+'DK2'!G$17)),0) -> 0 | AE241: =IF(AND($Y241<>"",H$83<>""),IF($Z241-H$83<Inbetriebnahme+1,0,(LOOKUP($Z241-H$83,$Z$229:$Z$327,AE$229:AE$327)+LOOKUP($Z241-H$83,$Z$199:$Z$228,AE$199:AE$228))*(1+'DK2'!H$17)),0) -> 0 | AF241: =IF(AND($Y241<>"",I$83<>""),IF($Z241-I$83<Inbetriebnahme+1,0,(LOOKUP($Z241-I$83,$Z$229:$Z$327,AF$229:AF$327)+LOOKUP($Z241-I$83,$Z$199:$Z$228,AF$199:AF$228))*(1+'DK2'!I$17)),0) -> 0 | AG241: =IF(AND($Y241<>"",J$83<>""),IF($Z241-J$83<Inbetriebnahme+1,0,(LOOKUP($Z241-J$83,$Z$229:$Z$327,AG$229:AG$327)+LOOKUP($Z241-J$83,$Z$199:$Z$228,AG$199:AG$228))*(1+'DK2'!J$17)),0) -> 0 | AH241: =IF(AND($Y241<>"",K$83<>""),IF($Z241-K$83<Inbetriebnahme+1,0,(LOOKUP($Z241-K$83,$Z$229:$Z$327,AH$229:AH$327)+LOOKUP($Z241-K$83,$Z$199:$Z$228,AH$199:AH$228))*(1+'DK2'!K$17)),0) -> 0 | AI241: =IF(AND($Y241<>"",L$83<>""),IF($Z241-L$83<Inbetriebnahme+1,0,(LOOKUP($Z241-L$83,$Z$229:$Z$327,AI$229:AI$327)+LOOKUP($Z241-L$83,$Z$199:$Z$228,AI$199:AI$228))*(1+'DK2'!L$17)),0) -> 0 | AJ241: =IF(AND($Y241<>"",M$83<>""),IF($Z241-M$83<Inbetriebnahme+1,0,(LOOKUP($Z241-M$83,$Z$229:$Z$327,AJ$229:AJ$327)+LOOKUP($Z241-M$83,$Z$199:$Z$228,AJ$199:AJ$228))*(1+'DK2'!M$17)),0) -> 0 | AK241: =IF(AND($Y241<>"",N$83<>""),IF($Z241-N$83<Inbetriebnahme+1,0,(LOOKUP($Z241-N$83,$Z$229:$Z$327,AK$229:AK$327)+LOOKUP($Z241-N$83,$Z$199:$Z$228,AK$199:AK$228))*(1+'DK2'!N$17)),0) -> 0 | AL241: =IF(AND($Y241<>"",O$83<>""),IF($Z241-O$83<Inbetriebnahme+1,0,(LOOKUP($Z241-O$83,$Z$229:$Z$327,AL$229:AL$327)+LOOKUP($Z241-O$83,$Z$199:$Z$228,AL$199:AL$228))*(1+'DK2'!O$17)),0) -> 0 | AM241: =IF(AND($Y241<>"",P$83<>""),IF($Z241-P$83<Inbetriebnahme+1,0,(LOOKUP($Z241-P$83,$Z$229:$Z$327,AM$229:AM$327)+LOOKUP($Z241-P$83,$Z$199:$Z$228,AM$199:AM$228))*(1+'DK2'!P$17)),0) -> 0 | AN241: =IF(AND($Y241<>"",Q$83<>""),IF($Z241-Q$83<Inbetriebnahme+1,0,(LOOKUP($Z241-Q$83,$Z$229:$Z$327,AN$229:AN$327)+LOOKUP($Z241-Q$83,$Z$199:$Z$228,AN$199:AN$228))*(1+'DK2'!Q$17)),0) -> 0 | AO241: =IF(AND($Y241<>"",R$83<>""),IF($Z241-R$83<Inbetriebnahme+1,0,(LOOKUP($Z241-R$83,$Z$229:$Z$327,AO$229:AO$327)+LOOKUP($Z241-R$83,$Z$199:$Z$228,AO$199:AO$228))*(1+'DK2'!R$17)),0) -> 0 | AP241: =IF(AND($Y241<>"",S$83<>""),IF($Z241-S$83<Inbetriebnahme+1,0,(LOOKUP($Z241-S$83,$Z$229:$Z$327,AP$229:AP$327)+LOOKUP($Z241-S$83,$Z$199:$Z$228,AP$199:AP$228))*(1+'DK2'!S$17)),0) -> 0 | AQ241: =IF(AND($Y241<>"",T$83<>""),IF($Z241-T$83<Inbetriebnahme+1,0,(LOOKUP($Z241-T$83,$Z$229:$Z$327,AQ$229:AQ$327)+LOOKUP($Z241-T$83,$Z$199:$Z$228,AQ$199:AQ$228))*(1+'DK2'!T$17)),0) -> 0 | AS241: 0 | AT241: Ersatzinvesttion | AU241: 13 | AV241: 0 | AZ241: 13 | BA241: 0 | BB241: 0 | BC241: 0 | BD241: 0 | BE241: 0 | BF241: 0 | BG241: 0 | BH241: 0 | BI241: 0 | BJ241: 0 | BK241: 0 | BL241: 0 | BM241: 0 | BN241: 0 | BO241: 0 | BP241: 0.015 | BQ241: 0.06 | BR241: 0.08 | BS241: 0.075 | BT241: 0.07 | BU241: 15
B242: =IF(C242<Planungsbeginn,"",LOOKUP(C242,Grunddaten!$C$66:$C$190,Grunddaten!$D$66:$D$190)) -> Betrieb | C242: 14 | E242: =IF(AND($B242<>"",E$83<>""),IF($C242-E$83<$C$18,0,LOOKUP($C242-E$83,$C$203:$C$327,E$203:E$327)*(1+'DK2'!E$17)),0) -> 0 | F242: =IF(AND($B242<>"",F$83<>""),IF($C242-F$83<$C$18,0,LOOKUP($C242-F$83,$C$203:$C$327,F$203:F$327)*(1+'DK2'!F$17)),0) -> 0 | G242: =IF(AND($B242<>"",G$83<>""),IF($C242-G$83<$C$18,0,LOOKUP($C242-G$83,$C$203:$C$327,G$203:G$327)*(1+'DK2'!G$17)),0) -> 0 | H242: =IF(AND($B242<>"",H$83<>""),IF($C242-H$83<$C$18,0,LOOKUP($C242-H$83,$C$203:$C$327,H$203:H$327)*(1+'DK2'!H$17)),0) -> 0 | I242: =IF(AND($B242<>"",I$83<>""),IF($C242-I$83<$C$18,0,LOOKUP($C242-I$83,$C$203:$C$327,I$203:I$327)*(1+'DK2'!I$17)),0) -> 0 | J242: =IF(AND($B242<>"",J$83<>""),IF($C242-J$83<$C$18,0,LOOKUP($C242-J$83,$C$203:$C$327,J$203:J$327)*(1+'DK2'!J$17)),0) -> 0 | K242: =IF(AND($B242<>"",K$83<>""),IF($C242-K$83<$C$18,0,LOOKUP($C242-K$83,$C$203:$C$327,K$203:K$327)*(1+'DK2'!K$17)),0) -> 0 | L242: =IF(AND($B242<>"",L$83<>""),IF($C242-L$83<$C$18,0,LOOKUP($C242-L$83,$C$203:$C$327,L$203:L$327)*(1+'DK2'!L$17)),0) -> 0 | M242: =IF(AND($B242<>"",M$83<>""),IF($C242-M$83<$C$18,0,LOOKUP($C242-M$83,$C$203:$C$327,M$203:M$327)*(1+'DK2'!M$17)),0) -> 0 | N242: =IF(AND($B242<>"",N$83<>""),IF($C242-N$83<$C$18,0,LOOKUP($C242-N$83,$C$203:$C$327,N$203:N$327)*(1+'DK2'!N$17)),0) -> 0 | O242: =IF(AND($B242<>"",O$83<>""),IF($C242-O$83<$C$18,0,LOOKUP($C242-O$83,$C$203:$C$327,O$203:O$327)*(1+'DK2'!O$17)),0) -> 0 | P242: =IF(AND($B242<>"",P$83<>""),IF($C242-P$83<$C$18,0,LOOKUP($C242-P$83,$C$203:$C$327,P$203:P$327)*(1+'DK2'!P$17)),0) -> 0 | Q242: =IF(AND($B242<>"",Q$83<>""),IF($C242-Q$83<$C$18,0,LOOKUP($C242-Q$83,$C$203:$C$327,Q$203:Q$327)*(1+'DK2'!Q$17)),0) -> 0 | R242: =IF(AND($B242<>"",R$83<>""),IF($C242-R$83<$C$18,0,LOOKUP($C242-R$83,$C$203:$C$327,R$203:R$327)*(1+'DK2'!R$17)),0) -> 0 | S242: =IF(AND($B242<>"",S$83<>""),IF($C242-S$83<$C$18,0,LOOKUP($C242-S$83,$C$203:$C$327,S$203:S$327)*(1+'DK2'!S$17)),0) -> 0 | T242: =IF(AND($B242<>"",T$83<>""),IF($C242-T$83<$C$18,0,LOOKUP($C242-T$83,$C$203:$C$327,T$203:T$327)*(1+'DK2'!T$17)),0) -> 0 | U242: 0 | V242: 0 | W242: Ersatzinvesttion | Y242: =IF(Z242<Planungsbeginn,"",LOOKUP(Z242,Grunddaten!$C$66:$C$190,Grunddaten!$D$66:$D$190)) -> Betrieb | Z242: 14 | AB242: =IF(AND($Y242<>"",E$83<>""),IF($Z242-E$83<Inbetriebnahme+1,0,(LOOKUP($Z242-E$83,$Z$229:$Z$327,AB$229:AB$327)+LOOKUP($Z242-E$83,$Z$199:$Z$228,AB$199:AB$228))*(1+'DK2'!E$17)),0) -> 0 | AC242: =IF(AND($Y242<>"",F$83<>""),IF($Z242-F$83<Inbetriebnahme+1,0,(LOOKUP($Z242-F$83,$Z$229:$Z$327,AC$229:AC$327)+LOOKUP($Z242-F$83,$Z$199:$Z$228,AC$199:AC$228))*(1+'DK2'!F$17)),0) -> 0 | AD242: =IF(AND($Y242<>"",G$83<>""),IF($Z242-G$83<Inbetriebnahme+1,0,(LOOKUP($Z242-G$83,$Z$229:$Z$327,AD$229:AD$327)+LOOKUP($Z242-G$83,$Z$199:$Z$228,AD$199:AD$228))*(1+'DK2'!G$17)),0) -> 0 | AE242: =IF(AND($Y242<>"",H$83<>""),IF($Z242-H$83<Inbetriebnahme+1,0,(LOOKUP($Z242-H$83,$Z$229:$Z$327,AE$229:AE$327)+LOOKUP($Z242-H$83,$Z$199:$Z$228,AE$199:AE$228))*(1+'DK2'!H$17)),0) -> 0 | AF242: =IF(AND($Y242<>"",I$83<>""),IF($Z242-I$83<Inbetriebnahme+1,0,(LOOKUP($Z242-I$83,$Z$229:$Z$327,AF$229:AF$327)+LOOKUP($Z242-I$83,$Z$199:$Z$228,AF$199:AF$228))*(1+'DK2'!I$17)),0) -> 0 | AG242: =IF(AND($Y242<>"",J$83<>""),IF($Z242-J$83<Inbetriebnahme+1,0,(LOOKUP($Z242-J$83,$Z$229:$Z$327,AG$229:AG$327)+LOOKUP($Z242-J$83,$Z$199:$Z$228,AG$199:AG$228))*(1+'DK2'!J$17)),0) -> 0 | AH242: =IF(AND($Y242<>"",K$83<>""),IF($Z242-K$83<Inbetriebnahme+1,0,(LOOKUP($Z242-K$83,$Z$229:$Z$327,AH$229:AH$327)+LOOKUP($Z242-K$83,$Z$199:$Z$228,AH$199:AH$228))*(1+'DK2'!K$17)),0) -> 0 | AI242: =IF(AND($Y242<>"",L$83<>""),IF($Z242-L$83<Inbetriebnahme+1,0,(LOOKUP($Z242-L$83,$Z$229:$Z$327,AI$229:AI$327)+LOOKUP($Z242-L$83,$Z$199:$Z$228,AI$199:AI$228))*(1+'DK2'!L$17)),0) -> 0 | AJ242: =IF(AND($Y242<>"",M$83<>""),IF($Z242-M$83<Inbetriebnahme+1,0,(LOOKUP($Z242-M$83,$Z$229:$Z$327,AJ$229:AJ$327)+LOOKUP($Z242-M$83,$Z$199:$Z$228,AJ$199:AJ$228))*(1+'DK2'!M$17)),0) -> 0 | AK242: =IF(AND($Y242<>"",N$83<>""),IF($Z242-N$83<Inbetriebnahme+1,0,(LOOKUP($Z242-N$83,$Z$229:$Z$327,AK$229:AK$327)+LOOKUP($Z242-N$83,$Z$199:$Z$228,AK$199:AK$228))*(1+'DK2'!N$17)),0) -> 0 | AL242: =IF(AND($Y242<>"",O$83<>""),IF($Z242-O$83<Inbetriebnahme+1,0,(LOOKUP($Z242-O$83,$Z$229:$Z$327,AL$229:AL$327)+LOOKUP($Z242-O$83,$Z$199:$Z$228,AL$199:AL$228))*(1+'DK2'!O$17)),0) -> 0 | AM242: =IF(AND($Y242<>"",P$83<>""),IF($Z242-P$83<Inbetriebnahme+1,0,(LOOKUP($Z242-P$83,$Z$229:$Z$327,AM$229:AM$327)+LOOKUP($Z242-P$83,$Z$199:$Z$228,AM$199:AM$228))*(1+'DK2'!P$17)),0) -> 0 | AN242: =IF(AND($Y242<>"",Q$83<>""),IF($Z242-Q$83<Inbetriebnahme+1,0,(LOOKUP($Z242-Q$83,$Z$229:$Z$327,AN$229:AN$327)+LOOKUP($Z242-Q$83,$Z$199:$Z$228,AN$199:AN$228))*(1+'DK2'!Q$17)),0) -> 0 | AO242: =IF(AND($Y242<>"",R$83<>""),IF($Z242-R$83<Inbetriebnahme+1,0,(LOOKUP($Z242-R$83,$Z$229:$Z$327,AO$229:AO$327)+LOOKUP($Z242-R$83,$Z$199:$Z$228,AO$199:AO$228))*(1+'DK2'!R$17)),0) -> 0 | AP242: =IF(AND($Y242<>"",S$83<>""),IF($Z242-S$83<Inbetriebnahme+1,0,(LOOKUP($Z242-S$83,$Z$229:$Z$327,AP$229:AP$327)+LOOKUP($Z242-S$83,$Z$199:$Z$228,AP$199:AP$228))*(1+'DK2'!S$17)),0) -> 0 | AQ242: =IF(AND($Y242<>"",T$83<>""),IF($Z242-T$83<Inbetriebnahme+1,0,(LOOKUP($Z242-T$83,$Z$229:$Z$327,AQ$229:AQ$327)+LOOKUP($Z242-T$83,$Z$199:$Z$228,AQ$199:AQ$228))*(1+'DK2'!T$17)),0) -> 0 | AS242: 0 | AT242: Ersatzinvesttion | AU242: 14 | AV242: 0 | AZ242: 14 | BA242: 0 | BB242: 0 | BC242: 0 | BD242: 0 | BE242: 0 | BF242: 0 | BG242: 0 | BH242: 0 | BI242: 0 | BJ242: 0 | BK242: 0 | BL242: 0 | BM242: 0 | BN242: 0 | BO242: 0 | BP242: 0 | BQ242: 0.01 | BR242: 0.06 | BS242: 0.075 | BT242: 0.07 | BU242: 16
B243: =IF(C243<Planungsbeginn,"",LOOKUP(C243,Grunddaten!$C$66:$C$190,Grunddaten!$D$66:$D$190)) -> Betrieb | C243: 15 | E243: =IF(AND($B243<>"",E$83<>""),IF($C243-E$83<$C$18,0,LOOKUP($C243-E$83,$C$203:$C$327,E$203:E$327)*(1+'DK2'!E$17)),0) -> 0 | F243: =IF(AND($B243<>"",F$83<>""),IF($C243-F$83<$C$18,0,LOOKUP($C243-F$83,$C$203:$C$327,F$203:F$327)*(1+'DK2'!F$17)),0) -> 0 | G243: =IF(AND($B243<>"",G$83<>""),IF($C243-G$83<$C$18,0,LOOKUP($C243-G$83,$C$203:$C$327,G$203:G$327)*(1+'DK2'!G$17)),0) -> 0 | H243: =IF(AND($B243<>"",H$83<>""),IF($C243-H$83<$C$18,0,LOOKUP($C243-H$83,$C$203:$C$327,H$203:H$327)*(1+'DK2'!H$17)),0) -> 0 | I243: =IF(AND($B243<>"",I$83<>""),IF($C243-I$83<$C$18,0,LOOKUP($C243-I$83,$C$203:$C$327,I$203:I$327)*(1+'DK2'!I$17)),0) -> 0 | J243: =IF(AND($B243<>"",J$83<>""),IF($C243-J$83<$C$18,0,LOOKUP($C243-J$83,$C$203:$C$327,J$203:J$327)*(1+'DK2'!J$17)),0) -> 0 | K243: =IF(AND($B243<>"",K$83<>""),IF($C243-K$83<$C$18,0,LOOKUP($C243-K$83,$C$203:$C$327,K$203:K$327)*(1+'DK2'!K$17)),0) -> 0 | L243: =IF(AND($B243<>"",L$83<>""),IF($C243-L$83<$C$18,0,LOOKUP($C243-L$83,$C$203:$C$327,L$203:L$327)*(1+'DK2'!L$17)),0) -> 0 | M243: =IF(AND($B243<>"",M$83<>""),IF($C243-M$83<$C$18,0,LOOKUP($C243-M$83,$C$203:$C$327,M$203:M$327)*(1+'DK2'!M$17)),0) -> 0 | N243: =IF(AND($B243<>"",N$83<>""),IF($C243-N$83<$C$18,0,LOOKUP($C243-N$83,$C$203:$C$327,N$203:N$327)*(1+'DK2'!N$17)),0) -> 0 | O243: =IF(AND($B243<>"",O$83<>""),IF($C243-O$83<$C$18,0,LOOKUP($C243-O$83,$C$203:$C$327,O$203:O$327)*(1+'DK2'!O$17)),0) -> 0 | P243: =IF(AND($B243<>"",P$83<>""),IF($C243-P$83<$C$18,0,LOOKUP($C243-P$83,$C$203:$C$327,P$203:P$327)*(1+'DK2'!P$17)),0) -> 0 | Q243: =IF(AND($B243<>"",Q$83<>""),IF($C243-Q$83<$C$18,0,LOOKUP($C243-Q$83,$C$203:$C$327,Q$203:Q$327)*(1+'DK2'!Q$17)),0) -> 0 | R243: =IF(AND($B243<>"",R$83<>""),IF($C243-R$83<$C$18,0,LOOKUP($C243-R$83,$C$203:$C$327,R$203:R$327)*(1+'DK2'!R$17)),0) -> 0 | S243: =IF(AND($B243<>"",S$83<>""),IF($C243-S$83<$C$18,0,LOOKUP($C243-S$83,$C$203:$C$327,S$203:S$327)*(1+'DK2'!S$17)),0) -> 0 | T243: =IF(AND($B243<>"",T$83<>""),IF($C243-T$83<$C$18,0,LOOKUP($C243-T$83,$C$203:$C$327,T$203:T$327)*(1+'DK2'!T$17)),0) -> 0 | U243: 0 | V243: 0 | W243: Ersatzinvesttion | Y243: =IF(Z243<Planungsbeginn,"",LOOKUP(Z243,Grunddaten!$C$66:$C$190,Grunddaten!$D$66:$D$190)) -> Betrieb | Z243: 15 | AB243: =IF(AND($Y243<>"",E$83<>""),IF($Z243-E$83<Inbetriebnahme+1,0,(LOOKUP($Z243-E$83,$Z$229:$Z$327,AB$229:AB$327)+LOOKUP($Z243-E$83,$Z$199:$Z$228,AB$199:AB$228))*(1+'DK2'!E$17)),0) -> 0 | AC243: =IF(AND($Y243<>"",F$83<>""),IF($Z243-F$83<Inbetriebnahme+1,0,(LOOKUP($Z243-F$83,$Z$229:$Z$327,AC$229:AC$327)+LOOKUP($Z243-F$83,$Z$199:$Z$228,AC$199:AC$228))*(1+'DK2'!F$17)),0) -> 0 | AD243: =IF(AND($Y243<>"",G$83<>""),IF($Z243-G$83<Inbetriebnahme+1,0,(LOOKUP($Z243-G$83,$Z$229:$Z$327,AD$229:AD$327)+LOOKUP($Z243-G$83,$Z$199:$Z$228,AD$199:AD$228))*(1+'DK2'!G$17)),0) -> 0 | AE243: =IF(AND($Y243<>"",H$83<>""),IF($Z243-H$83<Inbetriebnahme+1,0,(LOOKUP($Z243-H$83,$Z$229:$Z$327,AE$229:AE$327)+LOOKUP($Z243-H$83,$Z$199:$Z$228,AE$199:AE$228))*(1+'DK2'!H$17)),0) -> 0 | AF243: =IF(AND($Y243<>"",I$83<>""),IF($Z243-I$83<Inbetriebnahme+1,0,(LOOKUP($Z243-I$83,$Z$229:$Z$327,AF$229:AF$327)+LOOKUP($Z243-I$83,$Z$199:$Z$228,AF$199:AF$228))*(1+'DK2'!I$17)),0) -> 0 | AG243: =IF(AND($Y243<>"",J$83<>""),IF($Z243-J$83<Inbetriebnahme+1,0,(LOOKUP($Z243-J$83,$Z$229:$Z$327,AG$229:AG$327)+LOOKUP($Z243-J$83,$Z$199:$Z$228,AG$199:AG$228))*(1+'DK2'!J$17)),0) -> 0 | AH243: =IF(AND($Y243<>"",K$83<>""),IF($Z243-K$83<Inbetriebnahme+1,0,(LOOKUP($Z243-K$83,$Z$229:$Z$327,AH$229:AH$327)+LOOKUP($Z243-K$83,$Z$199:$Z$228,AH$199:AH$228))*(1+'DK2'!K$17)),0) -> 0 | AI243: =IF(AND($Y243<>"",L$83<>""),IF($Z243-L$83<Inbetriebnahme+1,0,(LOOKUP($Z243-L$83,$Z$229:$Z$327,AI$229:AI$327)+LOOKUP($Z243-L$83,$Z$199:$Z$228,AI$199:AI$228))*(1+'DK2'!L$17)),0) -> 0 | AJ243: =IF(AND($Y243<>"",M$83<>""),IF($Z243-M$83<Inbetriebnahme+1,0,(LOOKUP($Z243-M$83,$Z$229:$Z$327,AJ$229:AJ$327)+LOOKUP($Z243-M$83,$Z$199:$Z$228,AJ$199:AJ$228))*(1+'DK2'!M$17)),0) -> 0 | AK243: =IF(AND($Y243<>"",N$83<>""),IF($Z243-N$83<Inbetriebnahme+1,0,(LOOKUP($Z243-N$83,$Z$229:$Z$327,AK$229:AK$327)+LOOKUP($Z243-N$83,$Z$199:$Z$228,AK$199:AK$228))*(1+'DK2'!N$17)),0) -> 0 | AL243: =IF(AND($Y243<>"",O$83<>""),IF($Z243-O$83<Inbetriebnahme+1,0,(LOOKUP($Z243-O$83,$Z$229:$Z$327,AL$229:AL$327)+LOOKUP($Z243-O$83,$Z$199:$Z$228,AL$199:AL$228))*(1+'DK2'!O$17)),0) -> 0 | AM243: =IF(AND($Y243<>"",P$83<>""),IF($Z243-P$83<Inbetriebnahme+1,0,(LOOKUP($Z243-P$83,$Z$229:$Z$327,AM$229:AM$327)+LOOKUP($Z243-P$83,$Z$199:$Z$228,AM$199:AM$228))*(1+'DK2'!P$17)),0) -> 0 | AN243: =IF(AND($Y243<>"",Q$83<>""),IF($Z243-Q$83<Inbetriebnahme+1,0,(LOOKUP($Z243-Q$83,$Z$229:$Z$327,AN$229:AN$327)+LOOKUP($Z243-Q$83,$Z$199:$Z$228,AN$199:AN$228))*(1+'DK2'!Q$17)),0) -> 0 | AO243: =IF(AND($Y243<>"",R$83<>""),IF($Z243-R$83<Inbetriebnahme+1,0,(LOOKUP($Z243-R$83,$Z$229:$Z$327,AO$229:AO$327)+LOOKUP($Z243-R$83,$Z$199:$Z$228,AO$199:AO$228))*(1+'DK2'!R$17)),0) -> 0 | AP243: =IF(AND($Y243<>"",S$83<>""),IF($Z243-S$83<Inbetriebnahme+1,0,(LOOKUP($Z243-S$83,$Z$229:$Z$327,AP$229:AP$327)+LOOKUP($Z243-S$83,$Z$199:$Z$228,AP$199:AP$228))*(1+'DK2'!S$17)),0) -> 0 | AQ243: =IF(AND($Y243<>"",T$83<>""),IF($Z243-T$83<Inbetriebnahme+1,0,(LOOKUP($Z243-T$83,$Z$229:$Z$327,AQ$229:AQ$327)+LOOKUP($Z243-T$83,$Z$199:$Z$228,AQ$199:AQ$228))*(1+'DK2'!T$17)),0) -> 0 | AS243: 0 | AT243: Ersatzinvesttion | AU243: 15 | AV243: 0 | AZ243: 15 | BA243: 0 | BB243: 0 | BC243: 0 | BD243: 0 | BE243: 0 | BF243: 0 | BG243: 0 | BH243: 0 | BI243: 0 | BJ243: 0 | BK243: 0 | BL243: 0 | BM243: 0 | BN243: 0 | BO243: 0 | BP243: 0 | BQ243: 0 | BR243: 0.01 | BS243: 0.05 | BT243: 0.07 | BU243: 17
B244: =IF(C244<Planungsbeginn,"",LOOKUP(C244,Grunddaten!$C$66:$C$190,Grunddaten!$D$66:$D$190)) -> Betrieb | C244: 16 | E244: =IF(AND($B244<>"",E$83<>""),IF($C244-E$83<$C$18,0,LOOKUP($C244-E$83,$C$203:$C$327,E$203:E$327)*(1+'DK2'!E$17)),0) -> 0 | F244: =IF(AND($B244<>"",F$83<>""),IF($C244-F$83<$C$18,0,LOOKUP($C244-F$83,$C$203:$C$327,F$203:F$327)*(1+'DK2'!F$17)),0) -> 0 | G244: =IF(AND($B244<>"",G$83<>""),IF($C244-G$83<$C$18,0,LOOKUP($C244-G$83,$C$203:$C$327,G$203:G$327)*(1+'DK2'!G$17)),0) -> 0 | H244: =IF(AND($B244<>"",H$83<>""),IF($C244-H$83<$C$18,0,LOOKUP($C244-H$83,$C$203:$C$327,H$203:H$327)*(1+'DK2'!H$17)),0) -> 0 | I244: =IF(AND($B244<>"",I$83<>""),IF($C244-I$83<$C$18,0,LOOKUP($C244-I$83,$C$203:$C$327,I$203:I$327)*(1+'DK2'!I$17)),0) -> 0 | J244: =IF(AND($B244<>"",J$83<>""),IF($C244-J$83<$C$18,0,LOOKUP($C244-J$83,$C$203:$C$327,J$203:J$327)*(1+'DK2'!J$17)),0) -> 0 | K244: =IF(AND($B244<>"",K$83<>""),IF($C244-K$83<$C$18,0,LOOKUP($C244-K$83,$C$203:$C$327,K$203:K$327)*(1+'DK2'!K$17)),0) -> 0 | L244: =IF(AND($B244<>"",L$83<>""),IF($C244-L$83<$C$18,0,LOOKUP($C244-L$83,$C$203:$C$327,L$203:L$327)*(1+'DK2'!L$17)),0) -> 0 | M244: =IF(AND($B244<>"",M$83<>""),IF($C244-M$83<$C$18,0,LOOKUP($C244-M$83,$C$203:$C$327,M$203:M$327)*(1+'DK2'!M$17)),0) -> 0 | N244: =IF(AND($B244<>"",N$83<>""),IF($C244-N$83<$C$18,0,LOOKUP($C244-N$83,$C$203:$C$327,N$203:N$327)*(1+'DK2'!N$17)),0) -> 0 | O244: =IF(AND($B244<>"",O$83<>""),IF($C244-O$83<$C$18,0,LOOKUP($C244-O$83,$C$203:$C$327,O$203:O$327)*(1+'DK2'!O$17)),0) -> 0 | P244: =IF(AND($B244<>"",P$83<>""),IF($C244-P$83<$C$18,0,LOOKUP($C244-P$83,$C$203:$C$327,P$203:P$327)*(1+'DK2'!P$17)),0) -> 0 | Q244: =IF(AND($B244<>"",Q$83<>""),IF($C244-Q$83<$C$18,0,LOOKUP($C244-Q$83,$C$203:$C$327,Q$203:Q$327)*(1+'DK2'!Q$17)),0) -> 0 | R244: =IF(AND($B244<>"",R$83<>""),IF($C244-R$83<$C$18,0,LOOKUP($C244-R$83,$C$203:$C$327,R$203:R$327)*(1+'DK2'!R$17)),0) -> 0 | S244: =IF(AND($B244<>"",S$83<>""),IF($C244-S$83<$C$18,0,LOOKUP($C244-S$83,$C$203:$C$327,S$203:S$327)*(1+'DK2'!S$17)),0) -> 0 | T244: =IF(AND($B244<>"",T$83<>""),IF($C244-T$83<$C$18,0,LOOKUP($C244-T$83,$C$203:$C$327,T$203:T$327)*(1+'DK2'!T$17)),0) -> 0 | U244: 0 | V244: 0 | W244: Ersatzinvesttion | Y244: =IF(Z244<Planungsbeginn,"",LOOKUP(Z244,Grunddaten!$C$66:$C$190,Grunddaten!$D$66:$D$190)) -> Betrieb | Z244: 16 | AB244: =IF(AND($Y244<>"",E$83<>""),IF($Z244-E$83<Inbetriebnahme+1,0,(LOOKUP($Z244-E$83,$Z$229:$Z$327,AB$229:AB$327)+LOOKUP($Z244-E$83,$Z$199:$Z$228,AB$199:AB$228))*(1+'DK2'!E$17)),0) -> 0 | AC244: =IF(AND($Y244<>"",F$83<>""),IF($Z244-F$83<Inbetriebnahme+1,0,(LOOKUP($Z244-F$83,$Z$229:$Z$327,AC$229:AC$327)+LOOKUP($Z244-F$83,$Z$199:$Z$228,AC$199:AC$228))*(1+'DK2'!F$17)),0) -> 0 | AD244: =IF(AND($Y244<>"",G$83<>""),IF($Z244-G$83<Inbetriebnahme+1,0,(LOOKUP($Z244-G$83,$Z$229:$Z$327,AD$229:AD$327)+LOOKUP($Z244-G$83,$Z$199:$Z$228,AD$199:AD$228))*(1+'DK2'!G$17)),0) -> 0 | AE244: =IF(AND($Y244<>"",H$83<>""),IF($Z244-H$83<Inbetriebnahme+1,0,(LOOKUP($Z244-H$83,$Z$229:$Z$327,AE$229:AE$327)+LOOKUP($Z244-H$83,$Z$199:$Z$228,AE$199:AE$228))*(1+'DK2'!H$17)),0) -> 0 | AF244: =IF(AND($Y244<>"",I$83<>""),IF($Z244-I$83<Inbetriebnahme+1,0,(LOOKUP($Z244-I$83,$Z$229:$Z$327,AF$229:AF$327)+LOOKUP($Z244-I$83,$Z$199:$Z$228,AF$199:AF$228))*(1+'DK2'!I$17)),0) -> 0 | AG244: =IF(AND($Y244<>"",J$83<>""),IF($Z244-J$83<Inbetriebnahme+1,0,(LOOKUP($Z244-J$83,$Z$229:$Z$327,AG$229:AG$327)+LOOKUP($Z244-J$83,$Z$199:$Z$228,AG$199:AG$228))*(1+'DK2'!J$17)),0) -> 0 | AH244: =IF(AND($Y244<>"",K$83<>""),IF($Z244-K$83<Inbetriebnahme+1,0,(LOOKUP($Z244-K$83,$Z$229:$Z$327,AH$229:AH$327)+LOOKUP($Z244-K$83,$Z$199:$Z$228,AH$199:AH$228))*(1+'DK2'!K$17)),0) -> 0 | AI244: =IF(AND($Y244<>"",L$83<>""),IF($Z244-L$83<Inbetriebnahme+1,0,(LOOKUP($Z244-L$83,$Z$229:$Z$327,AI$229:AI$327)+LOOKUP($Z244-L$83,$Z$199:$Z$228,AI$199:AI$228))*(1+'DK2'!L$17)),0) -> 0 | AJ244: =IF(AND($Y244<>"",M$83<>""),IF($Z244-M$83<Inbetriebnahme+1,0,(LOOKUP($Z244-M$83,$Z$229:$Z$327,AJ$229:AJ$327)+LOOKUP($Z244-M$83,$Z$199:$Z$228,AJ$199:AJ$228))*(1+'DK2'!M$17)),0) -> 0 | AK244: =IF(AND($Y244<>"",N$83<>""),IF($Z244-N$83<Inbetriebnahme+1,0,(LOOKUP($Z244-N$83,$Z$229:$Z$327,AK$229:AK$327)+LOOKUP($Z244-N$83,$Z$199:$Z$228,AK$199:AK$228))*(1+'DK2'!N$17)),0) -> 0 | AL244: =IF(AND($Y244<>"",O$83<>""),IF($Z244-O$83<Inbetriebnahme+1,0,(LOOKUP($Z244-O$83,$Z$229:$Z$327,AL$229:AL$327)+LOOKUP($Z244-O$83,$Z$199:$Z$228,AL$199:AL$228))*(1+'DK2'!O$17)),0) -> 0 | AM244: =IF(AND($Y244<>"",P$83<>""),IF($Z244-P$83<Inbetriebnahme+1,0,(LOOKUP($Z244-P$83,$Z$229:$Z$327,AM$229:AM$327)+LOOKUP($Z244-P$83,$Z$199:$Z$228,AM$199:AM$228))*(1+'DK2'!P$17)),0) -> 0 | AN244: =IF(AND($Y244<>"",Q$83<>""),IF($Z244-Q$83<Inbetriebnahme+1,0,(LOOKUP($Z244-Q$83,$Z$229:$Z$327,AN$229:AN$327)+LOOKUP($Z244-Q$83,$Z$199:$Z$228,AN$199:AN$228))*(1+'DK2'!Q$17)),0) -> 0 | AO244: =IF(AND($Y244<>"",R$83<>""),IF($Z244-R$83<Inbetriebnahme+1,0,(LOOKUP($Z244-R$83,$Z$229:$Z$327,AO$229:AO$327)+LOOKUP($Z244-R$83,$Z$199:$Z$228,AO$199:AO$228))*(1+'DK2'!R$17)),0) -> 0 | AP244: =IF(AND($Y244<>"",S$83<>""),IF($Z244-S$83<Inbetriebnahme+1,0,(LOOKUP($Z244-S$83,$Z$229:$Z$327,AP$229:AP$327)+LOOKUP($Z244-S$83,$Z$199:$Z$228,AP$199:AP$228))*(1+'DK2'!S$17)),0) -> 0 | AQ244: =IF(AND($Y244<>"",T$83<>""),IF($Z244-T$83<Inbetriebnahme+1,0,(LOOKUP($Z244-T$83,$Z$229:$Z$327,AQ$229:AQ$327)+LOOKUP($Z244-T$83,$Z$199:$Z$228,AQ$199:AQ$228))*(1+'DK2'!T$17)),0) -> 0 | AS244: 0 | AT244: Ersatzinvesttion | AU244: 16 | AV244: 0 | AZ244: 16 | BA244: 0 | BB244: 0 | BC244: 0 | BD244: 0 | BE244: 0 | BF244: 0 | BG244: 0 | BH244: 0 | BI244: 0 | BJ244: 0 | BK244: 0 | BL244: 0 | BM244: 0 | BN244: 0 | BO244: 0 | BP244: 0 | BQ244: 0 | BR244: 0 | BS244: 0.01 | BT244: 0.05 | BU244: 18
B245: =IF(C245<Planungsbeginn,"",LOOKUP(C245,Grunddaten!$C$66:$C$190,Grunddaten!$D$66:$D$190)) -> Betrieb | C245: 17 | E245: =IF(AND($B245<>"",E$83<>""),IF($C245-E$83<$C$18,0,LOOKUP($C245-E$83,$C$203:$C$327,E$203:E$327)*(1+'DK2'!E$17)),0) -> 0 | F245: =IF(AND($B245<>"",F$83<>""),IF($C245-F$83<$C$18,0,LOOKUP($C245-F$83,$C$203:$C$327,F$203:F$327)*(1+'DK2'!F$17)),0) -> 0 | G245: =IF(AND($B245<>"",G$83<>""),IF($C245-G$83<$C$18,0,LOOKUP($C245-G$83,$C$203:$C$327,G$203:G$327)*(1+'DK2'!G$17)),0) -> 0 | H245: =IF(AND($B245<>"",H$83<>""),IF($C245-H$83<$C$18,0,LOOKUP($C245-H$83,$C$203:$C$327,H$203:H$327)*(1+'DK2'!H$17)),0) -> 0 | I245: =IF(AND($B245<>"",I$83<>""),IF($C245-I$83<$C$18,0,LOOKUP($C245-I$83,$C$203:$C$327,I$203:I$327)*(1+'DK2'!I$17)),0) -> 0 | J245: =IF(AND($B245<>"",J$83<>""),IF($C245-J$83<$C$18,0,LOOKUP($C245-J$83,$C$203:$C$327,J$203:J$327)*(1+'DK2'!J$17)),0) -> 0 | K245: =IF(AND($B245<>"",K$83<>""),IF($C245-K$83<$C$18,0,LOOKUP($C245-K$83,$C$203:$C$327,K$203:K$327)*(1+'DK2'!K$17)),0) -> 0 | L245: =IF(AND($B245<>"",L$83<>""),IF($C245-L$83<$C$18,0,LOOKUP($C245-L$83,$C$203:$C$327,L$203:L$327)*(1+'DK2'!L$17)),0) -> 0 | M245: =IF(AND($B245<>"",M$83<>""),IF($C245-M$83<$C$18,0,LOOKUP($C245-M$83,$C$203:$C$327,M$203:M$327)*(1+'DK2'!M$17)),0) -> 0 | N245: =IF(AND($B245<>"",N$83<>""),IF($C245-N$83<$C$18,0,LOOKUP($C245-N$83,$C$203:$C$327,N$203:N$327)*(1+'DK2'!N$17)),0) -> 0 | O245: =IF(AND($B245<>"",O$83<>""),IF($C245-O$83<$C$18,0,LOOKUP($C245-O$83,$C$203:$C$327,O$203:O$327)*(1+'DK2'!O$17)),0) -> 0 | P245: =IF(AND($B245<>"",P$83<>""),IF($C245-P$83<$C$18,0,LOOKUP($C245-P$83,$C$203:$C$327,P$203:P$327)*(1+'DK2'!P$17)),0) -> 0 | Q245: =IF(AND($B245<>"",Q$83<>""),IF($C245-Q$83<$C$18,0,LOOKUP($C245-Q$83,$C$203:$C$327,Q$203:Q$327)*(1+'DK2'!Q$17)),0) -> 0 | R245: =IF(AND($B245<>"",R$83<>""),IF($C245-R$83<$C$18,0,LOOKUP($C245-R$83,$C$203:$C$327,R$203:R$327)*(1+'DK2'!R$17)),0) -> 0 | S245: =IF(AND($B245<>"",S$83<>""),IF($C245-S$83<$C$18,0,LOOKUP($C245-S$83,$C$203:$C$327,S$203:S$327)*(1+'DK2'!S$17)),0) -> 0 | T245: =IF(AND($B245<>"",T$83<>""),IF($C245-T$83<$C$18,0,LOOKUP($C245-T$83,$C$203:$C$327,T$203:T$327)*(1+'DK2'!T$17)),0) -> 0 | U245: 0 | V245: 0 | W245: Ersatzinvesttion | Y245: =IF(Z245<Planungsbeginn,"",LOOKUP(Z245,Grunddaten!$C$66:$C$190,Grunddaten!$D$66:$D$190)) -> Betrieb | Z245: 17 | AB245: =IF(AND($Y245<>"",E$83<>""),IF($Z245-E$83<Inbetriebnahme+1,0,(LOOKUP($Z245-E$83,$Z$229:$Z$327,AB$229:AB$327)+LOOKUP($Z245-E$83,$Z$199:$Z$228,AB$199:AB$228))*(1+'DK2'!E$17)),0) -> 0 | AC245: =IF(AND($Y245<>"",F$83<>""),IF($Z245-F$83<Inbetriebnahme+1,0,(LOOKUP($Z245-F$83,$Z$229:$Z$327,AC$229:AC$327)+LOOKUP($Z245-F$83,$Z$199:$Z$228,AC$199:AC$228))*(1+'DK2'!F$17)),0) -> 0 | AD245: =IF(AND($Y245<>"",G$83<>""),IF($Z245-G$83<Inbetriebnahme+1,0,(LOOKUP($Z245-G$83,$Z$229:$Z$327,AD$229:AD$327)+LOOKUP($Z245-G$83,$Z$199:$Z$228,AD$199:AD$228))*(1+'DK2'!G$17)),0) -> 0 | AE245: =IF(AND($Y245<>"",H$83<>""),IF($Z245-H$83<Inbetriebnahme+1,0,(LOOKUP($Z245-H$83,$Z$229:$Z$327,AE$229:AE$327)+LOOKUP($Z245-H$83,$Z$199:$Z$228,AE$199:AE$228))*(1+'DK2'!H$17)),0) -> 0 | AF245: =IF(AND($Y245<>"",I$83<>""),IF($Z245-I$83<Inbetriebnahme+1,0,(LOOKUP($Z245-I$83,$Z$229:$Z$327,AF$229:AF$327)+LOOKUP($Z245-I$83,$Z$199:$Z$228,AF$199:AF$228))*(1+'DK2'!I$17)),0) -> 0 | AG245: =IF(AND($Y245<>"",J$83<>""),IF($Z245-J$83<Inbetriebnahme+1,0,(LOOKUP($Z245-J$83,$Z$229:$Z$327,AG$229:AG$327)+LOOKUP($Z245-J$83,$Z$199:$Z$228,AG$199:AG$228))*(1+'DK2'!J$17)),0) -> 0 | AH245: =IF(AND($Y245<>"",K$83<>""),IF($Z245-K$83<Inbetriebnahme+1,0,(LOOKUP($Z245-K$83,$Z$229:$Z$327,AH$229:AH$327)+LOOKUP($Z245-K$83,$Z$199:$Z$228,AH$199:AH$228))*(1+'DK2'!K$17)),0) -> 0 | AI245: =IF(AND($Y245<>"",L$83<>""),IF($Z245-L$83<Inbetriebnahme+1,0,(LOOKUP($Z245-L$83,$Z$229:$Z$327,AI$229:AI$327)+LOOKUP($Z245-L$83,$Z$199:$Z$228,AI$199:AI$228))*(1+'DK2'!L$17)),0) -> 0 | AJ245: =IF(AND($Y245<>"",M$83<>""),IF($Z245-M$83<Inbetriebnahme+1,0,(LOOKUP($Z245-M$83,$Z$229:$Z$327,AJ$229:AJ$327)+LOOKUP($Z245-M$83,$Z$199:$Z$228,AJ$199:AJ$228))*(1+'DK2'!M$17)),0) -> 0 | AK245: =IF(AND($Y245<>"",N$83<>""),IF($Z245-N$83<Inbetriebnahme+1,0,(LOOKUP($Z245-N$83,$Z$229:$Z$327,AK$229:AK$327)+LOOKUP($Z245-N$83,$Z$199:$Z$228,AK$199:AK$228))*(1+'DK2'!N$17)),0) -> 0 | AL245: =IF(AND($Y245<>"",O$83<>""),IF($Z245-O$83<Inbetriebnahme+1,0,(LOOKUP($Z245-O$83,$Z$229:$Z$327,AL$229:AL$327)+LOOKUP($Z245-O$83,$Z$199:$Z$228,AL$199:AL$228))*(1+'DK2'!O$17)),0) -> 0 | AM245: =IF(AND($Y245<>"",P$83<>""),IF($Z245-P$83<Inbetriebnahme+1,0,(LOOKUP($Z245-P$83,$Z$229:$Z$327,AM$229:AM$327)+LOOKUP($Z245-P$83,$Z$199:$Z$228,AM$199:AM$228))*(1+'DK2'!P$17)),0) -> 0 | AN245: =IF(AND($Y245<>"",Q$83<>""),IF($Z245-Q$83<Inbetriebnahme+1,0,(LOOKUP($Z245-Q$83,$Z$229:$Z$327,AN$229:AN$327)+LOOKUP($Z245-Q$83,$Z$199:$Z$228,AN$199:AN$228))*(1+'DK2'!Q$17)),0) -> 0 | AO245: =IF(AND($Y245<>"",R$83<>""),IF($Z245-R$83<Inbetriebnahme+1,0,(LOOKUP($Z245-R$83,$Z$229:$Z$327,AO$229:AO$327)+LOOKUP($Z245-R$83,$Z$199:$Z$228,AO$199:AO$228))*(1+'DK2'!R$17)),0) -> 0 | AP245: =IF(AND($Y245<>"",S$83<>""),IF($Z245-S$83<Inbetriebnahme+1,0,(LOOKUP($Z245-S$83,$Z$229:$Z$327,AP$229:AP$327)+LOOKUP($Z245-S$83,$Z$199:$Z$228,AP$199:AP$228))*(1+'DK2'!S$17)),0) -> 0 | AQ245: =IF(AND($Y245<>"",T$83<>""),IF($Z245-T$83<Inbetriebnahme+1,0,(LOOKUP($Z245-T$83,$Z$229:$Z$327,AQ$229:AQ$327)+LOOKUP($Z245-T$83,$Z$199:$Z$228,AQ$199:AQ$228))*(1+'DK2'!T$17)),0) -> 0 | AS245: 0 | AT245: Ersatzinvesttion | AU245: 17 | AV245: 0 | AZ245: 17 | BA245: 0 | BB245: 0 | BC245: 0 | BD245: 0 | BE245: 0 | BF245: 0 | BG245: 0 | BH245: 0 | BI245: 0 | BJ245: 0 | BK245: 0 | BL245: 0 | BM245: 0 | BN245: 0 | BO245: 0 | BP245: 0 | BQ245: 0 | BR245: 0 | BS245: 0 | BT245: 0.01 | BU245: 19
B246: =IF(C246<Planungsbeginn,"",LOOKUP(C246,Grunddaten!$C$66:$C$190,Grunddaten!$D$66:$D$190)) -> Betrieb | C246: 18 | E246: =IF(AND($B246<>"",E$83<>""),IF($C246-E$83<$C$18,0,LOOKUP($C246-E$83,$C$203:$C$327,E$203:E$327)*(1+'DK2'!E$17)),0) -> 0 | F246: =IF(AND($B246<>"",F$83<>""),IF($C246-F$83<$C$18,0,LOOKUP($C246-F$83,$C$203:$C$327,F$203:F$327)*(1+'DK2'!F$17)),0) -> 0 | G246: =IF(AND($B246<>"",G$83<>""),IF($C246-G$83<$C$18,0,LOOKUP($C246-G$83,$C$203:$C$327,G$203:G$327)*(1+'DK2'!G$17)),0) -> 0 | H246: =IF(AND($B246<>"",H$83<>""),IF($C246-H$83<$C$18,0,LOOKUP($C246-H$83,$C$203:$C$327,H$203:H$327)*(1+'DK2'!H$17)),0) -> 0 | I246: =IF(AND($B246<>"",I$83<>""),IF($C246-I$83<$C$18,0,LOOKUP($C246-I$83,$C$203:$C$327,I$203:I$327)*(1+'DK2'!I$17)),0) -> 0 | J246: =IF(AND($B246<>"",J$83<>""),IF($C246-J$83<$C$18,0,LOOKUP($C246-J$83,$C$203:$C$327,J$203:J$327)*(1+'DK2'!J$17)),0) -> 0 | K246: =IF(AND($B246<>"",K$83<>""),IF($C246-K$83<$C$18,0,LOOKUP($C246-K$83,$C$203:$C$327,K$203:K$327)*(1+'DK2'!K$17)),0) -> 0 | L246: =IF(AND($B246<>"",L$83<>""),IF($C246-L$83<$C$18,0,LOOKUP($C246-L$83,$C$203:$C$327,L$203:L$327)*(1+'DK2'!L$17)),0) -> 0 | M246: =IF(AND($B246<>"",M$83<>""),IF($C246-M$83<$C$18,0,LOOKUP($C246-M$83,$C$203:$C$327,M$203:M$327)*(1+'DK2'!M$17)),0) -> 0 | N246: =IF(AND($B246<>"",N$83<>""),IF($C246-N$83<$C$18,0,LOOKUP($C246-N$83,$C$203:$C$327,N$203:N$327)*(1+'DK2'!N$17)),0) -> 0 | O246: =IF(AND($B246<>"",O$83<>""),IF($C246-O$83<$C$18,0,LOOKUP($C246-O$83,$C$203:$C$327,O$203:O$327)*(1+'DK2'!O$17)),0) -> 0 | P246: =IF(AND($B246<>"",P$83<>""),IF($C246-P$83<$C$18,0,LOOKUP($C246-P$83,$C$203:$C$327,P$203:P$327)*(1+'DK2'!P$17)),0) -> 0 | Q246: =IF(AND($B246<>"",Q$83<>""),IF($C246-Q$83<$C$18,0,LOOKUP($C246-Q$83,$C$203:$C$327,Q$203:Q$327)*(1+'DK2'!Q$17)),0) -> 0 | R246: =IF(AND($B246<>"",R$83<>""),IF($C246-R$83<$C$18,0,LOOKUP($C246-R$83,$C$203:$C$327,R$203:R$327)*(1+'DK2'!R$17)),0) -> 0 | S246: =IF(AND($B246<>"",S$83<>""),IF($C246-S$83<$C$18,0,LOOKUP($C246-S$83,$C$203:$C$327,S$203:S$327)*(1+'DK2'!S$17)),0) -> 0 | T246: =IF(AND($B246<>"",T$83<>""),IF($C246-T$83<$C$18,0,LOOKUP($C246-T$83,$C$203:$C$327,T$203:T$327)*(1+'DK2'!T$17)),0) -> 0 | U246: 0 | V246: 0 | W246: Ersatzinvesttion | Y246: =IF(Z246<Planungsbeginn,"",LOOKUP(Z246,Grunddaten!$C$66:$C$190,Grunddaten!$D$66:$D$190)) -> Betrieb | Z246: 18 | AB246: =IF(AND($Y246<>"",E$83<>""),IF($Z246-E$83<Inbetriebnahme+1,0,(LOOKUP($Z246-E$83,$Z$229:$Z$327,AB$229:AB$327)+LOOKUP($Z246-E$83,$Z$199:$Z$228,AB$199:AB$228))*(1+'DK2'!E$17)),0) -> 0 | AC246: =IF(AND($Y246<>"",F$83<>""),IF($Z246-F$83<Inbetriebnahme+1,0,(LOOKUP($Z246-F$83,$Z$229:$Z$327,AC$229:AC$327)+LOOKUP($Z246-F$83,$Z$199:$Z$228,AC$199:AC$228))*(1+'DK2'!F$17)),0) -> 0 | AD246: =IF(AND($Y246<>"",G$83<>""),IF($Z246-G$83<Inbetriebnahme+1,0,(LOOKUP($Z246-G$83,$Z$229:$Z$327,AD$229:AD$327)+LOOKUP($Z246-G$83,$Z$199:$Z$228,AD$199:AD$228))*(1+'DK2'!G$17)),0) -> 0 | AE246: =IF(AND($Y246<>"",H$83<>""),IF($Z246-H$83<Inbetriebnahme+1,0,(LOOKUP($Z246-H$83,$Z$229:$Z$327,AE$229:AE$327)+LOOKUP($Z246-H$83,$Z$199:$Z$228,AE$199:AE$228))*(1+'DK2'!H$17)),0) -> 0 | AF246: =IF(AND($Y246<>"",I$83<>""),IF($Z246-I$83<Inbetriebnahme+1,0,(LOOKUP($Z246-I$83,$Z$229:$Z$327,AF$229:AF$327)+LOOKUP($Z246-I$83,$Z$199:$Z$228,AF$199:AF$228))*(1+'DK2'!I$17)),0) -> 0 | AG246: =IF(AND($Y246<>"",J$83<>""),IF($Z246-J$83<Inbetriebnahme+1,0,(LOOKUP($Z246-J$83,$Z$229:$Z$327,AG$229:AG$327)+LOOKUP($Z246-J$83,$Z$199:$Z$228,AG$199:AG$228))*(1+'DK2'!J$17)),0) -> 0 | AH246: =IF(AND($Y246<>"",K$83<>""),IF($Z246-K$83<Inbetriebnahme+1,0,(LOOKUP($Z246-K$83,$Z$229:$Z$327,AH$229:AH$327)+LOOKUP($Z246-K$83,$Z$199:$Z$228,AH$199:AH$228))*(1+'DK2'!K$17)),0) -> 0 | AI246: =IF(AND($Y246<>"",L$83<>""),IF($Z246-L$83<Inbetriebnahme+1,0,(LOOKUP($Z246-L$83,$Z$229:$Z$327,AI$229:AI$327)+LOOKUP($Z246-L$83,$Z$199:$Z$228,AI$199:AI$228))*(1+'DK2'!L$17)),0) -> 0 | AJ246: =IF(AND($Y246<>"",M$83<>""),IF($Z246-M$83<Inbetriebnahme+1,0,(LOOKUP($Z246-M$83,$Z$229:$Z$327,AJ$229:AJ$327)+LOOKUP($Z246-M$83,$Z$199:$Z$228,AJ$199:AJ$228))*(1+'DK2'!M$17)),0) -> 0 | AK246: =IF(AND($Y246<>"",N$83<>""),IF($Z246-N$83<Inbetriebnahme+1,0,(LOOKUP($Z246-N$83,$Z$229:$Z$327,AK$229:AK$327)+LOOKUP($Z246-N$83,$Z$199:$Z$228,AK$199:AK$228))*(1+'DK2'!N$17)),0) -> 0 | AL246: =IF(AND($Y246<>"",O$83<>""),IF($Z246-O$83<Inbetriebnahme+1,0,(LOOKUP($Z246-O$83,$Z$229:$Z$327,AL$229:AL$327)+LOOKUP($Z246-O$83,$Z$199:$Z$228,AL$199:AL$228))*(1+'DK2'!O$17)),0) -> 0 | AM246: =IF(AND($Y246<>"",P$83<>""),IF($Z246-P$83<Inbetriebnahme+1,0,(LOOKUP($Z246-P$83,$Z$229:$Z$327,AM$229:AM$327)+LOOKUP($Z246-P$83,$Z$199:$Z$228,AM$199:AM$228))*(1+'DK2'!P$17)),0) -> 0 | AN246: =IF(AND($Y246<>"",Q$83<>""),IF($Z246-Q$83<Inbetriebnahme+1,0,(LOOKUP($Z246-Q$83,$Z$229:$Z$327,AN$229:AN$327)+LOOKUP($Z246-Q$83,$Z$199:$Z$228,AN$199:AN$228))*(1+'DK2'!Q$17)),0) -> 0 | AO246: =IF(AND($Y246<>"",R$83<>""),IF($Z246-R$83<Inbetriebnahme+1,0,(LOOKUP($Z246-R$83,$Z$229:$Z$327,AO$229:AO$327)+LOOKUP($Z246-R$83,$Z$199:$Z$228,AO$199:AO$228))*(1+'DK2'!R$17)),0) -> 0 | AP246: =IF(AND($Y246<>"",S$83<>""),IF($Z246-S$83<Inbetriebnahme+1,0,(LOOKUP($Z246-S$83,$Z$229:$Z$327,AP$229:AP$327)+LOOKUP($Z246-S$83,$Z$199:$Z$228,AP$199:AP$228))*(1+'DK2'!S$17)),0) -> 0 | AQ246: =IF(AND($Y246<>"",T$83<>""),IF($Z246-T$83<Inbetriebnahme+1,0,(LOOKUP($Z246-T$83,$Z$229:$Z$327,AQ$229:AQ$327)+LOOKUP($Z246-T$83,$Z$199:$Z$228,AQ$199:AQ$228))*(1+'DK2'!T$17)),0) -> 0 | AS246: 0 | AT246: Ersatzinvesttion
B247: =IF(C247<Planungsbeginn,"",LOOKUP(C247,Grunddaten!$C$66:$C$190,Grunddaten!$D$66:$D$190)) -> Betrieb | C247: 19 | E247: =IF(AND($B247<>"",E$83<>""),IF($C247-E$83<$C$18,0,LOOKUP($C247-E$83,$C$203:$C$327,E$203:E$327)*(1+'DK2'!E$17)),0) -> 0 | F247: =IF(AND($B247<>"",F$83<>""),IF($C247-F$83<$C$18,0,LOOKUP($C247-F$83,$C$203:$C$327,F$203:F$327)*(1+'DK2'!F$17)),0) -> 0 | G247: =IF(AND($B247<>"",G$83<>""),IF($C247-G$83<$C$18,0,LOOKUP($C247-G$83,$C$203:$C$327,G$203:G$327)*(1+'DK2'!G$17)),0) -> 0 | H247: =IF(AND($B247<>"",H$83<>""),IF($C247-H$83<$C$18,0,LOOKUP($C247-H$83,$C$203:$C$327,H$203:H$327)*(1+'DK2'!H$17)),0) -> 0 | I247: =IF(AND($B247<>"",I$83<>""),IF($C247-I$83<$C$18,0,LOOKUP($C247-I$83,$C$203:$C$327,I$203:I$327)*(1+'DK2'!I$17)),0) -> 0 | J247: =IF(AND($B247<>"",J$83<>""),IF($C247-J$83<$C$18,0,LOOKUP($C247-J$83,$C$203:$C$327,J$203:J$327)*(1+'DK2'!J$17)),0) -> 0 | K247: =IF(AND($B247<>"",K$83<>""),IF($C247-K$83<$C$18,0,LOOKUP($C247-K$83,$C$203:$C$327,K$203:K$327)*(1+'DK2'!K$17)),0) -> 0 | L247: =IF(AND($B247<>"",L$83<>""),IF($C247-L$83<$C$18,0,LOOKUP($C247-L$83,$C$203:$C$327,L$203:L$327)*(1+'DK2'!L$17)),0) -> 0 | M247: =IF(AND($B247<>"",M$83<>""),IF($C247-M$83<$C$18,0,LOOKUP($C247-M$83,$C$203:$C$327,M$203:M$327)*(1+'DK2'!M$17)),0) -> 0 | N247: =IF(AND($B247<>"",N$83<>""),IF($C247-N$83<$C$18,0,LOOKUP($C247-N$83,$C$203:$C$327,N$203:N$327)*(1+'DK2'!N$17)),0) -> 0 | O247: =IF(AND($B247<>"",O$83<>""),IF($C247-O$83<$C$18,0,LOOKUP($C247-O$83,$C$203:$C$327,O$203:O$327)*(1+'DK2'!O$17)),0) -> 0 | P247: =IF(AND($B247<>"",P$83<>""),IF($C247-P$83<$C$18,0,LOOKUP($C247-P$83,$C$203:$C$327,P$203:P$327)*(1+'DK2'!P$17)),0) -> 0 | Q247: =IF(AND($B247<>"",Q$83<>""),IF($C247-Q$83<$C$18,0,LOOKUP($C247-Q$83,$C$203:$C$327,Q$203:Q$327)*(1+'DK2'!Q$17)),0) -> 0 | R247: =IF(AND($B247<>"",R$83<>""),IF($C247-R$83<$C$18,0,LOOKUP($C247-R$83,$C$203:$C$327,R$203:R$327)*(1+'DK2'!R$17)),0) -> 0 | S247: =IF(AND($B247<>"",S$83<>""),IF($C247-S$83<$C$18,0,LOOKUP($C247-S$83,$C$203:$C$327,S$203:S$327)*(1+'DK2'!S$17)),0) -> 0 | T247: =IF(AND($B247<>"",T$83<>""),IF($C247-T$83<$C$18,0,LOOKUP($C247-T$83,$C$203:$C$327,T$203:T$327)*(1+'DK2'!T$17)),0) -> 0 | U247: 0 | V247: 0 | W247: Ersatzinvesttion | Y247: =IF(Z247<Planungsbeginn,"",LOOKUP(Z247,Grunddaten!$C$66:$C$190,Grunddaten!$D$66:$D$190)) -> Betrieb | Z247: 19 | AB247: =IF(AND($Y247<>"",E$83<>""),IF($Z247-E$83<Inbetriebnahme+1,0,(LOOKUP($Z247-E$83,$Z$229:$Z$327,AB$229:AB$327)+LOOKUP($Z247-E$83,$Z$199:$Z$228,AB$199:AB$228))*(1+'DK2'!E$17)),0) -> 0 | AC247: =IF(AND($Y247<>"",F$83<>""),IF($Z247-F$83<Inbetriebnahme+1,0,(LOOKUP($Z247-F$83,$Z$229:$Z$327,AC$229:AC$327)+LOOKUP($Z247-F$83,$Z$199:$Z$228,AC$199:AC$228))*(1+'DK2'!F$17)),0) -> 0 | AD247: =IF(AND($Y247<>"",G$83<>""),IF($Z247-G$83<Inbetriebnahme+1,0,(LOOKUP($Z247-G$83,$Z$229:$Z$327,AD$229:AD$327)+LOOKUP($Z247-G$83,$Z$199:$Z$228,AD$199:AD$228))*(1+'DK2'!G$17)),0) -> 0 | AE247: =IF(AND($Y247<>"",H$83<>""),IF($Z247-H$83<Inbetriebnahme+1,0,(LOOKUP($Z247-H$83,$Z$229:$Z$327,AE$229:AE$327)+LOOKUP($Z247-H$83,$Z$199:$Z$228,AE$199:AE$228))*(1+'DK2'!H$17)),0) -> 0 | AF247: =IF(AND($Y247<>"",I$83<>""),IF($Z247-I$83<Inbetriebnahme+1,0,(LOOKUP($Z247-I$83,$Z$229:$Z$327,AF$229:AF$327)+LOOKUP($Z247-I$83,$Z$199:$Z$228,AF$199:AF$228))*(1+'DK2'!I$17)),0) -> 0 | AG247: =IF(AND($Y247<>"",J$83<>""),IF($Z247-J$83<Inbetriebnahme+1,0,(LOOKUP($Z247-J$83,$Z$229:$Z$327,AG$229:AG$327)+LOOKUP($Z247-J$83,$Z$199:$Z$228,AG$199:AG$228))*(1+'DK2'!J$17)),0) -> 0 | AH247: =IF(AND($Y247<>"",K$83<>""),IF($Z247-K$83<Inbetriebnahme+1,0,(LOOKUP($Z247-K$83,$Z$229:$Z$327,AH$229:AH$327)+LOOKUP($Z247-K$83,$Z$199:$Z$228,AH$199:AH$228))*(1+'DK2'!K$17)),0) -> 0 | AI247: =IF(AND($Y247<>"",L$83<>""),IF($Z247-L$83<Inbetriebnahme+1,0,(LOOKUP($Z247-L$83,$Z$229:$Z$327,AI$229:AI$327)+LOOKUP($Z247-L$83,$Z$199:$Z$228,AI$199:AI$228))*(1+'DK2'!L$17)),0) -> 0 | AJ247: =IF(AND($Y247<>"",M$83<>""),IF($Z247-M$83<Inbetriebnahme+1,0,(LOOKUP($Z247-M$83,$Z$229:$Z$327,AJ$229:AJ$327)+LOOKUP($Z247-M$83,$Z$199:$Z$228,AJ$199:AJ$228))*(1+'DK2'!M$17)),0) -> 0 | AK247: =IF(AND($Y247<>"",N$83<>""),IF($Z247-N$83<Inbetriebnahme+1,0,(LOOKUP($Z247-N$83,$Z$229:$Z$327,AK$229:AK$327)+LOOKUP($Z247-N$83,$Z$199:$Z$228,AK$199:AK$228))*(1+'DK2'!N$17)),0) -> 0 | AL247: =IF(AND($Y247<>"",O$83<>""),IF($Z247-O$83<Inbetriebnahme+1,0,(LOOKUP($Z247-O$83,$Z$229:$Z$327,AL$229:AL$327)+LOOKUP($Z247-O$83,$Z$199:$Z$228,AL$199:AL$228))*(1+'DK2'!O$17)),0) -> 0 | AM247: =IF(AND($Y247<>"",P$83<>""),IF($Z247-P$83<Inbetriebnahme+1,0,(LOOKUP($Z247-P$83,$Z$229:$Z$327,AM$229:AM$327)+LOOKUP($Z247-P$83,$Z$199:$Z$228,AM$199:AM$228))*(1+'DK2'!P$17)),0) -> 0 | AN247: =IF(AND($Y247<>"",Q$83<>""),IF($Z247-Q$83<Inbetriebnahme+1,0,(LOOKUP($Z247-Q$83,$Z$229:$Z$327,AN$229:AN$327)+LOOKUP($Z247-Q$83,$Z$199:$Z$228,AN$199:AN$228))*(1+'DK2'!Q$17)),0) -> 0 | AO247: =IF(AND($Y247<>"",R$83<>""),IF($Z247-R$83<Inbetriebnahme+1,0,(LOOKUP($Z247-R$83,$Z$229:$Z$327,AO$229:AO$327)+LOOKUP($Z247-R$83,$Z$199:$Z$228,AO$199:AO$228))*(1+'DK2'!R$17)),0) -> 0 | AP247: =IF(AND($Y247<>"",S$83<>""),IF($Z247-S$83<Inbetriebnahme+1,0,(LOOKUP($Z247-S$83,$Z$229:$Z$327,AP$229:AP$327)+LOOKUP($Z247-S$83,$Z$199:$Z$228,AP$199:AP$228))*(1+'DK2'!S$17)),0) -> 0 | AQ247: =IF(AND($Y247<>"",T$83<>""),IF($Z247-T$83<Inbetriebnahme+1,0,(LOOKUP($Z247-T$83,$Z$229:$Z$327,AQ$229:AQ$327)+LOOKUP($Z247-T$83,$Z$199:$Z$228,AQ$199:AQ$228))*(1+'DK2'!T$17)),0) -> 0 | AS247: 0 | AT247: Ersatzinvesttion
... 216 more rows

Sheet DK2
B2: =NummerDK2&": "&NameDK2 -> DK2: Ersatzinvestitionen | V2: =TypDK2 -> KNA & KWA
D4: Kosten | E4: =V57 -> 0 | G4: ="(" & Inbetriebnahme & " bis " & BetrachtungEndjahr & ")" -> ( bis 39) | I4: =V54 -> 0 | K4: ="(Vergleichsjahr: "&Vergleichsjahr&")" -> (Vergleichsjahr: )
E5: Annuität in Mio. CHF pro Jahr | I5: Nettobarwert in Mio. CHF
B8: Eingabebereich
D11: ="reale Kostenveränderung ab "&PreisbasisDK1&" in % pro Jahr" -> reale Kostenveränderung ab in % pro Jahr
D12: Planung & Bauleitung | E12: ='DK1'!E17 -> ... | F12: ='DK1'!F17 -> ... | G12: ='DK1'!G17 -> ... | H12: ='DK1'!H17 -> ... | I12: ='DK1'!I17 -> ... | J12: ='DK1'!J17 -> ... | K12: ='DK1'!K17 -> ... | L12: ='DK1'!L17 -> ... | M12: ='DK1'!M17 -> ... | N12: ='DK1'!N17 -> ... | O12: ='DK1'!O17 -> ... | P12: ='DK1'!P17 -> ... | Q12: ='DK1'!Q17 -> ... | R12: ='DK1'!R17 -> ... | S12: ='DK1'!S17 -> ... | T12: ='DK1'!T17 -> ... | U12: ='DK1'!U17 -> Rückbaukosten
D13: ---- | U13: ----
C15: Lebensdauer (LD) | D15: ---- | E15: ='DK1'!E83 -> 0 | F15: ='DK1'!F83 -> 0 | G15: ='DK1'!G83 -> 0 | H15: ='DK1'!H83 -> 0 | I15: ='DK1'!I83 -> 0 | J15: ='DK1'!J83 -> 0 | K15: ='DK1'!K83 -> 0 | L15: ='DK1'!L83 -> 0 | M15: ='DK1'!M83 -> 0 | N15: ='DK1'!N83 -> 0 | O15: ='DK1'!O83 -> 0 | P15: ='DK1'!P83 -> 0 | Q15: ='DK1'!Q83 -> 0 | R15: ='DK1'!R83 -> 0 | S15: ='DK1'!S83 -> 0 | T15: ='DK1'!T83 -> 0 | U15: ----
C17: D über LD | D17: ---- | E17: =((1+E13)^E15)-1 -> 0 | F17: =((1+F13)^F15)-1 -> 0 | G17: 0 | H17: 0 | I17: 0 | J17: 0 | K17: 0 | L17: 0 | M17: 0 | N17: 0 | O17: 0 | P17: 0 | Q17: 0 | R17: 0 | S17: 0 | T17: 0 | U17: ----
B20: Bemerkungen / Begründungen | V20: => Kommentarblatt
B31: Überblick über Ergebnisse und zentrale Annahmen
E34: Veränderung über die Zeit mit
D36: =D12 -> Planung & Bauleitung | E36: =E12 -> ... | F36: =F12 -> ... | G36: ... | H36: ... | I36: ... | J36: ... | K36: ... | L36: ... | M36: ... | N36: ... | O36: ... | P36: ... | Q36: ... | R36: ... | S36: ... | T36: ... | U36: =U12 -> Rückbaukosten
C37: D reale Kosten | D37: =D13 -> ---- | E37: =E13 -> 0 | F37: 0 | G37: 0 | H37: 0 | I37: 0 | J37: 0 | K37: 0 | L37: 0 | M37: 0 | N37: 0 | O37: 0 | P37: 0 | Q37: 0 | R37: 0 | S37: 0 | T37: 0 | U37: =U13 -> ----
E40: Diskontsatz | F40: =Diskontsatz -> 0.02 | G40: =" ("&Sensitivitätsanalyse!$O$10&")" -> (Vorgabe KNA: Basis)
E42: Sensitivität Baukosten | F42: =SensitivitätBaukosten -> Basis
D45: ="in Mio. CHF bei Preisbasis "&Preisbasis -> in Mio. CHF bei Preisbasis 2019 | V45: Total
D46: =D12 -> Planung & Bauleitung | E46: ='DK1'!E17 -> ... | F46: ='DK1'!F17 -> ... | G46: ='DK1'!G17 -> ... | H46: ='DK1'!H17 -> ... | I46: ='DK1'!I17 -> ... | J46: ='DK1'!J17 -> ... | K46: ='DK1'!K17 -> ... | L46: ='DK1'!L17 -> ... | M46: ='DK1'!M17 -> ... | N46: ='DK1'!N17 -> ... | O46: ='DK1'!O17 -> ... | P46: ='DK1'!P17 -> ... | Q46: ='DK1'!Q17 -> ... | R46: ='DK1'!R17 -> ... | S46: ='DK1'!S17 -> ... | T46: ='DK1'!T17 -> ... | U46: ='DK1'!U17 -> Rückbaukosten
C48: Ersatzinv. Total¹ | D48: ---- | E48: =E168 -> 0 | F48: 0 | G48: 0 | H48: 0 | I48: 0 | J48: 0 | K48: 0 | L48: 0 | M48: 0 | N48: 0 | O48: 0 | P48: 0 | Q48: 0 | R48: 0 | S48: 0 | T48: 0 | U48: ---- | V48: =SUM(E48:U48) -> 0
C51: ="Restwerte "&BetrachtungEndjahr+1&"²" -> Restwerte 40² | D51: ---- | E51: =IF(ProvisoriumAktiv=0,'DK1'!E468+'DK1'!AB468,"----") -> 0 | F51: =IF(ProvisoriumAktiv=0,'DK1'!F468+'DK1'!AC468,"----") -> 0 | G51: =IF(ProvisoriumAktiv=0,'DK1'!G468+'DK1'!AD468,"----") -> 0 | H51: =IF(ProvisoriumAktiv=0,'DK1'!H468+'DK1'!AE468,"----") -> 0 | I51: =IF(ProvisoriumAktiv=0,'DK1'!I468+'DK1'!AF468,"----") -> 0 | J51: =IF(ProvisoriumAktiv=0,'DK1'!J468+'DK1'!AG468,"----") -> 0 | K51: =IF(ProvisoriumAktiv=0,'DK1'!K468+'DK1'!AH468,"----") -> 0 | L51: =IF(ProvisoriumAktiv=0,'DK1'!L468+'DK1'!AI468,"----") -> 0 | M51: =IF(ProvisoriumAktiv=0,'DK1'!M468+'DK1'!AJ468,"----") -> 0 | N51: =IF(ProvisoriumAktiv=0,'DK1'!N468+'DK1'!AK468,"----") -> 0 | O51: =IF(ProvisoriumAktiv=0,'DK1'!O468+'DK1'!AL468,"----") -> 0 | P51: =IF(ProvisoriumAktiv=0,'DK1'!P468+'DK1'!AM468,"----") -> 0 | Q51: =IF(ProvisoriumAktiv=0,'DK1'!Q468+'DK1'!AN468,"----") -> 0 | R51: =IF(ProvisoriumAktiv=0,'DK1'!R468+'DK1'!AO468,"----") -> 0 | S51: =IF(ProvisoriumAktiv=0,'DK1'!S468+'DK1'!AP468,"----") -> 0 | T51: =IF(ProvisoriumAktiv=0,'DK1'!T468+'DK1'!AQ468,"----") -> 0 | U51: ---- | V51: =IF(ProvisoriumAktiv=0,SUM(E51:U51),"----") -> 0
X52: Wie berechnen?
C54: ="NBW "&Vergleichsjahr -> NBW | D54: ---- | E54: =('DK1'!E330+'DK1'!AB330)*(1+Diskontsatz)^(Vergleichsjahr-Inbetriebnahme)-IF(E51="----",0,E51*(1+Diskontsatz)^(Vergleichsjahr-(BetrachtungEndjahr+1))) -> 0 | F54: =('DK1'!F330+'DK1'!AC330)*(1+Diskontsatz)^(Vergleichsjahr-Inbetriebnahme)-IF(F51="----",0,F51*(1+Diskontsatz)^(Vergleichsjahr-(BetrachtungEndjahr+1))) -> 0 | G54: =('DK1'!G330+'DK1'!AD330)*(1+Diskontsatz)^(Vergleichsjahr-Inbetriebnahme)-IF(G51="----",0,G51*(1+Diskontsatz)^(Vergleichsjahr-(BetrachtungEndjahr+1))) -> 0 | H54: =('DK1'!H330+'DK1'!AE330)*(1+Diskontsatz)^(Vergleichsjahr-Inbetriebnahme)-IF(H51="----",0,H51*(1+Diskontsatz)^(Vergleichsjahr-(BetrachtungEndjahr+1))) -> 0 | I54: =('DK1'!I330+'DK1'!AF330)*(1+Diskontsatz)^(Vergleichsjahr-Inbetriebnahme)-IF(I51="----",0,I51*(1+Diskontsatz)^(Vergleichsjahr-(BetrachtungEndjahr+1))) -> 0 | J54: =('DK1'!J330+'DK1'!AG330)*(1+Diskontsatz)^(Vergleichsjahr-Inbetriebnahme)-IF(J51="----",0,J51*(1+Diskontsatz)^(Vergleichsjahr-(BetrachtungEndjahr+1))) -> 0 | K54: =('DK1'!K330+'DK1'!AH330)*(1+Diskontsatz)^(Vergleichsjahr-Inbetriebnahme)-IF(K51="----",0,K51*(1+Diskontsatz)^(Vergleichsjahr-(BetrachtungEndjahr+1))) -> 0 | L54: =('DK1'!L330+'DK1'!AI330)*(1+Diskontsatz)^(Vergleichsjahr-Inbetriebnahme)-IF(L51="----",0,L51*(1+Diskontsatz)^(Vergleichsjahr-(BetrachtungEndjahr+1))) -> 0 | M54: =('DK1'!M330+'DK1'!AJ330)*(1+Diskontsatz)^(Vergleichsjahr-Inbetriebnahme)-IF(M51="----",0,M51*(1+Diskontsatz)^(Vergleichsjahr-(BetrachtungEndjahr+1))) -> 0 | N54: =('DK1'!N330+'DK1'!AK330)*(1+Diskontsatz)^(Vergleichsjahr-Inbetriebnahme)-IF(N51="----",0,N51*(1+Diskontsatz)^(Vergleichsjahr-(BetrachtungEndjahr+1))) -> 0 | O54: =('DK1'!O330+'DK1'!AL330)*(1+Diskontsatz)^(Vergleichsjahr-Inbetriebnahme)-IF(O51="----",0,O51*(1+Diskontsatz)^(Vergleichsjahr-(BetrachtungEndjahr+1))) -> 0 | P54: =('DK1'!P330+'DK1'!AM330)*(1+Diskontsatz)^(Vergleichsjahr-Inbetriebnahme)-IF(P51="----",0,P51*(1+Diskontsatz)^(Vergleichsjahr-(BetrachtungEndjahr+1))) -> 0 | Q54: =('DK1'!Q330+'DK1'!AN330)*(1+Diskontsatz)^(Vergleichsjahr-Inbetriebnahme)-IF(Q51="----",0,Q51*(1+Diskontsatz)^(Vergleichsjahr-(BetrachtungEndjahr+1))) -> 0 | R54: =('DK1'!R330+'DK1'!AO330)*(1+Diskontsatz)^(Vergleichsjahr-Inbetriebnahme)-IF(R51="----",0,R51*(1+Diskontsatz)^(Vergleichsjahr-(BetrachtungEndjahr+1))) -> 0 | S54: =('DK1'!S330+'DK1'!AP330)*(1+Diskontsatz)^(Vergleichsjahr-Inbetriebnahme)-IF(S51="----",0,S51*(1+Diskontsatz)^(Vergleichsjahr-(BetrachtungEndjahr+1))) -> 0 | T54: =('DK1'!T330+'DK1'!AQ330)*(1+Diskontsatz)^(Vergleichsjahr-Inbetriebnahme)-IF(T51="----",0,T51*(1+Diskontsatz)^(Vergleichsjahr-(BetrachtungEndjahr+1))) -> 0 | U54: ---- | V54: =SUM(E54:U54) -> 0
X55: Wie berechnen?
C57: =IF(OR(VergleichAktiv=1,ProvisoriumAktiv=1,EtappeAktiv=1),"Annuität³","Annuität") -> Annuität | D57: ---- | E57: =IF(E54=0,0,-PMT(Diskontsatz,BetrachtungEndjahr-Inbetriebnahme+1,E54*(1+Diskontsatz)^(Inbetriebnahme-1-Vergleichsjahr))) -> 0 | F57: 0 | G57: 0 | H57: 0 | I57: 0 | J57: 0 | K57: 0 | L57: 0 | M57: 0 | N57: 0 | O57: 0 | P57: 0 | Q57: 0 | R57: 0 | S57: 0 | T57: 0 | U57: ---- | V57: =IF(V54=0,0,-PMT(Diskontsatz,BetrachtungEndjahr-Inbetriebnahme+1,V54*(1+Diskontsatz)^(Inbetriebnahme-1-Vergleichsjahr))) -> 0
D59: ¹ohne Diskontierung
D60: ²Ohne Diskontierung, nur Ersatzinvestition (Restwerte der Baukosten/Erstinvestitionen bei W111) | X60: für Makro
D61: ³Achtung: Annuität eignet sich nicht zum Vergleich mit anderen Projekten! | X61: =IF(OR(VergleichAktiv=1,ProvisoriumAktiv=1,EtappeAktiv=1),1,0) -> 0
B63: Detaillierte Ergebnisse
D66: ="Ersatzinvestitionen in Mio. CHF bei Preisbasis "&Preisbasis&" (inkl. realer Kostenveränderung)" -> Ersatzinvestitionen in Mio. CHF bei Preisbasis 2019 (inkl. realer Kostenveränderung) | V66: Total
B67: Phase | C67: Jahr | D67: =D12 -> Planung & Bauleitung | E67: ='DK1'!E17 -> ... | F67: ='DK1'!F17 -> ... | G67: ='DK1'!G17 -> ... | H67: ='DK1'!H17 -> ... | I67: ='DK1'!I17 -> ... | J67: ='DK1'!J17 -> ... | K67: ='DK1'!K17 -> ... | L67: ='DK1'!L17 -> ... | M67: ='DK1'!M17 -> ... | N67: ='DK1'!N17 -> ... | O67: ='DK1'!O17 -> ... | P67: ='DK1'!P17 -> ... | Q67: ='DK1'!Q17 -> ... | R67: ='DK1'!R17 -> ... | S67: ='DK1'!S17 -> ... | T67: ='DK1'!T17 -> ... | U67: ='DK1'!U17 -> Rückbaukosten
B68: 2. Betriebsj. | C68: =Inbetriebnahme+1 -> 1 | D68: ---- | E68: =IF($B68="","",'DK1'!E229+'DK1'!AB229) -> 0 | F68: =IF($B68="","",'DK1'!F229+'DK1'!AC229) -> 0 | G68: =IF($B68="","",'DK1'!G229+'DK1'!AD229) -> 0 | H68: =IF($B68="","",'DK1'!H229+'DK1'!AE229) -> 0 | I68: =IF($B68="","",'DK1'!I229+'DK1'!AF229) -> 0 | J68: =IF($B68="","",'DK1'!J229+'DK1'!AG229) -> 0 | K68: =IF($B68="","",'DK1'!K229+'DK1'!AH229) -> 0 | L68: =IF($B68="","",'DK1'!L229+'DK1'!AI229) -> 0 | M68: =IF($B68="","",'DK1'!M229+'DK1'!AJ229) -> 0 | N68: =IF($B68="","",'DK1'!N229+'DK1'!AK229) -> 0 | O68: =IF($B68="","",'DK1'!O229+'DK1'!AL229) -> 0 | P68: =IF($B68="","",'DK1'!P229+'DK1'!AM229) -> 0 | Q68: =IF($B68="","",'DK1'!Q229+'DK1'!AN229) -> 0 | R68: =IF($B68="","",'DK1'!R229+'DK1'!AO229) -> 0 | S68: =IF($B68="","",'DK1'!S229+'DK1'!AP229) -> 0 | T68: =IF($B68="","",'DK1'!T229+'DK1'!AQ229) -> 0 | U68: ---- | V68: =SUM(E68:U68) -> 0
B69: =LOOKUP(C69,Grunddaten!$C$66:$C$189,Grunddaten!$D$66:$D$189) -> Betrieb | C69: =C68+1 -> 2 | D69: ---- | E69: =IF($B69="","",'DK1'!E230+'DK1'!AB230) -> 0 | F69: =IF($B69="","",'DK1'!F230+'DK1'!AC230) -> 0 | G69: =IF($B69="","",'DK1'!G230+'DK1'!AD230) -> 0 | H69: =IF($B69="","",'DK1'!H230+'DK1'!AE230) -> 0 | I69: =IF($B69="","",'DK1'!I230+'DK1'!AF230) -> 0 | J69: =IF($B69="","",'DK1'!J230+'DK1'!AG230) -> 0 | K69: =IF($B69="","",'DK1'!K230+'DK1'!AH230) -> 0 | L69: =IF($B69="","",'DK1'!L230+'DK1'!AI230) -> 0 | M69: =IF($B69="","",'DK1'!M230+'DK1'!AJ230) -> 0 | N69: =IF($B69="","",'DK1'!N230+'DK1'!AK230) -> 0 | O69: =IF($B69="","",'DK1'!O230+'DK1'!AL230) -> 0 | P69: =IF($B69="","",'DK1'!P230+'DK1'!AM230) -> 0 | Q69: =IF($B69="","",'DK1'!Q230+'DK1'!AN230) -> 0 | R69: =IF($B69="","",'DK1'!R230+'DK1'!AO230) -> 0 | S69: =IF($B69="","",'DK1'!S230+'DK1'!AP230) -> 0 | T69: =IF($B69="","",'DK1'!T230+'DK1'!AQ230) -> 0 | U69: ---- | V69: =SUM(E69:U69) -> 0
B70: =LOOKUP(C70,Grunddaten!$C$66:$C$189,Grunddaten!$D$66:$D$189) -> Betrieb | C70: 3 | D70: ---- | E70: =IF($B70="","",'DK1'!E231+'DK1'!AB231) -> 0 | F70: =IF($B70="","",'DK1'!F231+'DK1'!AC231) -> 0 | G70: =IF($B70="","",'DK1'!G231+'DK1'!AD231) -> 0 | H70: =IF($B70="","",'DK1'!H231+'DK1'!AE231) -> 0 | I70: =IF($B70="","",'DK1'!I231+'DK1'!AF231) -> 0 | J70: =IF($B70="","",'DK1'!J231+'DK1'!AG231) -> 0 | K70: =IF($B70="","",'DK1'!K231+'DK1'!AH231) -> 0 | L70: =IF($B70="","",'DK1'!L231+'DK1'!AI231) -> 0 | M70: =IF($B70="","",'DK1'!M231+'DK1'!AJ231) -> 0 | N70: =IF($B70="","",'DK1'!N231+'DK1'!AK231) -> 0 | O70: =IF($B70="","",'DK1'!O231+'DK1'!AL231) -> 0 | P70: =IF($B70="","",'DK1'!P231+'DK1'!AM231) -> 0 | Q70: =IF($B70="","",'DK1'!Q231+'DK1'!AN231) -> 0 | R70: =IF($B70="","",'DK1'!R231+'DK1'!AO231) -> 0 | S70: =IF($B70="","",'DK1'!S231+'DK1'!AP231) -> 0 | T70: =IF($B70="","",'DK1'!T231+'DK1'!AQ231) -> 0 | U70: ---- | V70: 0
B71: =LOOKUP(C71,Grunddaten!$C$66:$C$189,Grunddaten!$D$66:$D$189) -> Betrieb | C71: 4 | D71: ---- | E71: =IF($B71="","",'DK1'!E232+'DK1'!AB232) -> 0 | F71: =IF($B71="","",'DK1'!F232+'DK1'!AC232) -> 0 | G71: =IF($B71="","",'DK1'!G232+'DK1'!AD232) -> 0 | H71: =IF($B71="","",'DK1'!H232+'DK1'!AE232) -> 0 | I71: =IF($B71="","",'DK1'!I232+'DK1'!AF232) -> 0 | J71: =IF($B71="","",'DK1'!J232+'DK1'!AG232) -> 0 | K71: =IF($B71="","",'DK1'!K232+'DK1'!AH232) -> 0 | L71: =IF($B71="","",'DK1'!L232+'DK1'!AI232) -> 0 | M71: =IF($B71="","",'DK1'!M232+'DK1'!AJ232) -> 0 | N71: =IF($B71="","",'DK1'!N232+'DK1'!AK232) -> 0 | O71: =IF($B71="","",'DK1'!O232+'DK1'!AL232) -> 0 | P71: =IF($B71="","",'DK1'!P232+'DK1'!AM232) -> 0 | Q71: =IF($B71="","",'DK1'!Q232+'DK1'!AN232) -> 0 | R71: =IF($B71="","",'DK1'!R232+'DK1'!AO232) -> 0 | S71: =IF($B71="","",'DK1'!S232+'DK1'!AP232) -> 0 | T71: =IF($B71="","",'DK1'!T232+'DK1'!AQ232) -> 0 | U71: ---- | V71: 0
B72: =LOOKUP(C72,Grunddaten!$C$66:$C$189,Grunddaten!$D$66:$D$189) -> Betrieb | C72: 5 | D72: ---- | E72: =IF($B72="","",'DK1'!E233+'DK1'!AB233) -> 0 | F72: =IF($B72="","",'DK1'!F233+'DK1'!AC233) -> 0 | G72: =IF($B72="","",'DK1'!G233+'DK1'!AD233) -> 0 | H72: =IF($B72="","",'DK1'!H233+'DK1'!AE233) -> 0 | I72: =IF($B72="","",'DK1'!I233+'DK1'!AF233) -> 0 | J72: =IF($B72="","",'DK1'!J233+'DK1'!AG233) -> 0 | K72: =IF($B72="","",'DK1'!K233+'DK1'!AH233) -> 0 | L72: =IF($B72="","",'DK1'!L233+'DK1'!AI233) -> 0 | M72: =IF($B72="","",'DK1'!M233+'DK1'!AJ233) -> 0 | N72: =IF($B72="","",'DK1'!N233+'DK1'!AK233) -> 0 | O72: =IF($B72="","",'DK1'!O233+'DK1'!AL233) -> 0 | P72: =IF($B72="","",'DK1'!P233+'DK1'!AM233) -> 0 | Q72: =IF($B72="","",'DK1'!Q233+'DK1'!AN233) -> 0 | R72: =IF($B72="","",'DK1'!R233+'DK1'!AO233) -> 0 | S72: =IF($B72="","",'DK1'!S233+'DK1'!AP233) -> 0 | T72: =IF($B72="","",'DK1'!T233+'DK1'!AQ233) -> 0 | U72: ---- | V72: 0
B73: =LOOKUP(C73,Grunddaten!$C$66:$C$189,Grunddaten!$D$66:$D$189) -> Betrieb | C73: 6 | D73: ---- | E73: =IF($B73="","",'DK1'!E234+'DK1'!AB234) -> 0 | F73: =IF($B73="","",'DK1'!F234+'DK1'!AC234) -> 0 | G73: =IF($B73="","",'DK1'!G234+'DK1'!AD234) -> 0 | H73: =IF($B73="","",'DK1'!H234+'DK1'!AE234) -> 0 | I73: =IF($B73="","",'DK1'!I234+'DK1'!AF234) -> 0 | J73: =IF($B73="","",'DK1'!J234+'DK1'!AG234) -> 0 | K73: =IF($B73="","",'DK1'!K234+'DK1'!AH234) -> 0 | L73: =IF($B73="","",'DK1'!L234+'DK1'!AI234) -> 0 | M73: =IF($B73="","",'DK1'!M234+'DK1'!AJ234) -> 0 | N73: =IF($B73="","",'DK1'!N234+'DK1'!AK234) -> 0 | O73: =IF($B73="","",'DK1'!O234+'DK1'!AL234) -> 0 | P73: =IF($B73="","",'DK1'!P234+'DK1'!AM234) -> 0 | Q73: =IF($B73="","",'DK1'!Q234+'DK1'!AN234) -> 0 | R73: =IF($B73="","",'DK1'!R234+'DK1'!AO234) -> 0 | S73: =IF($B73="","",'DK1'!S234+'DK1'!AP234) -> 0 | T73: =IF($B73="","",'DK1'!T234+'DK1'!AQ234) -> 0 | U73: ---- | V73: 0
B74: =LOOKUP(C74,Grunddaten!$C$66:$C$189,Grunddaten!$D$66:$D$189) -> Betrieb | C74: 7 | D74: ---- | E74: =IF($B74="","",'DK1'!E235+'DK1'!AB235) -> 0 | F74: =IF($B74="","",'DK1'!F235+'DK1'!AC235) -> 0 | G74: =IF($B74="","",'DK1'!G235+'DK1'!AD235) -> 0 | H74: =IF($B74="","",'DK1'!H235+'DK1'!AE235) -> 0 | I74: =IF($B74="","",'DK1'!I235+'DK1'!AF235) -> 0 | J74: =IF($B74="","",'DK1'!J235+'DK1'!AG235) -> 0 | K74: =IF($B74="","",'DK1'!K235+'DK1'!AH235) -> 0 | L74: =IF($B74="","",'DK1'!L235+'DK1'!AI235) -> 0 | M74: =IF($B74="","",'DK1'!M235+'DK1'!AJ235) -> 0 | N74: =IF($B74="","",'DK1'!N235+'DK1'!AK235) -> 0 | O74: =IF($B74="","",'DK1'!O235+'DK1'!AL235) -> 0 | P74: =IF($B74="","",'DK1'!P235+'DK1'!AM235) -> 0 | Q74: =IF($B74="","",'DK1'!Q235+'DK1'!AN235) -> 0 | R74: =IF($B74="","",'DK1'!R235+'DK1'!AO235) -> 0 | S74: =IF($B74="","",'DK1'!S235+'DK1'!AP235) -> 0 | T74: =IF($B74="","",'DK1'!T235+'DK1'!AQ235) -> 0 | U74: ---- | V74: 0
B75: =LOOKUP(C75,Grunddaten!$C$66:$C$189,Grunddaten!$D$66:$D$189) -> Betrieb | C75: 8 | D75: ---- | E75: =IF($B75="","",'DK1'!E236+'DK1'!AB236) -> 0 | F75: =IF($B75="","",'DK1'!F236+'DK1'!AC236) -> 0 | G75: =IF($B75="","",'DK1'!G236+'DK1'!AD236) -> 0 | H75: =IF($B75="","",'DK1'!H236+'DK1'!AE236) -> 0 | I75: =IF($B75="","",'DK1'!I236+'DK1'!AF236) -> 0 | J75: =IF($B75="","",'DK1'!J236+'DK1'!AG236) -> 0 | K75: =IF($B75="","",'DK1'!K236+'DK1'!AH236) -> 0 | L75: =IF($B75="","",'DK1'!L236+'DK1'!AI236) -> 0 | M75: =IF($B75="","",'DK1'!M236+'DK1'!AJ236) -> 0 | N75: =IF($B75="","",'DK1'!N236+'DK1'!AK236) -> 0 | O75: =IF($B75="","",'DK1'!O236+'DK1'!AL236) -> 0 | P75: =IF($B75="","",'DK1'!P236+'DK1'!AM236) -> 0 | Q75: =IF($B75="","",'DK1'!Q236+'DK1'!AN236) -> 0 | R75: =IF($B75="","",'DK1'!R236+'DK1'!AO236) -> 0 | S75: =IF($B75="","",'DK1'!S236+'DK1'!AP236) -> 0 | T75: =IF($B75="","",'DK1'!T236+'DK1'!AQ236) -> 0 | U75: ---- | V75: 0
B76: =LOOKUP(C76,Grunddaten!$C$66:$C$189,Grunddaten!$D$66:$D$189) -> Betrieb | C76: 9 | D76: ---- | E76: =IF($B76="","",'DK1'!E237+'DK1'!AB237) -> 0 | F76: =IF($B76="","",'DK1'!F237+'DK1'!AC237) -> 0 | G76: =IF($B76="","",'DK1'!G237+'DK1'!AD237) -> 0 | H76: =IF($B76="","",'DK1'!H237+'DK1'!AE237) -> 0 | I76: =IF($B76="","",'DK1'!I237+'DK1'!AF237) -> 0 | J76: =IF($B76="","",'DK1'!J237+'DK1'!AG237) -> 0 | K76: =IF($B76="","",'DK1'!K237+'DK1'!AH237) -> 0 | L76: =IF($B76="","",'DK1'!L237+'DK1'!AI237) -> 0 | M76: =IF($B76="","",'DK1'!M237+'DK1'!AJ237) -> 0 | N76: =IF($B76="","",'DK1'!N237+'DK1'!AK237) -> 0 | O76: =IF($B76="","",'DK1'!O237+'DK1'!AL237) -> 0 | P76: =IF($B76="","",'DK1'!P237+'DK1'!AM237) -> 0 | Q76: =IF($B76="","",'DK1'!Q237+'DK1'!AN237) -> 0 | R76: =IF($B76="","",'DK1'!R237+'DK1'!AO237) -> 0 | S76: =IF($B76="","",'DK1'!S237+'DK1'!AP237) -> 0 | T76: =IF($B76="","",'DK1'!T237+'DK1'!AQ237) -> 0 | U76: ---- | V76: 0
B77: =LOOKUP(C77,Grunddaten!$C$66:$C$189,Grunddaten!$D$66:$D$189) -> Betrieb | C77: 10 | D77: ---- | E77: =IF($B77="","",'DK1'!E238+'DK1'!AB238) -> 0 | F77: =IF($B77="","",'DK1'!F238+'DK1'!AC238) -> 0 | G77: =IF($B77="","",'DK1'!G238+'DK1'!AD238) -> 0 | H77: =IF($B77="","",'DK1'!H238+'DK1'!AE238) -> 0 | I77: =IF($B77="","",'DK1'!I238+'DK1'!AF238) -> 0 | J77: =IF($B77="","",'DK1'!J238+'DK1'!AG238) -> 0 | K77: =IF($B77="","",'DK1'!K238+'DK1'!AH238) -> 0 | L77: =IF($B77="","",'DK1'!L238+'DK1'!AI238) -> 0 | M77: =IF($B77="","",'DK1'!M238+'DK1'!AJ238) -> 0 | N77: =IF($B77="","",'DK1'!N238+'DK1'!AK238) -> 0 | O77: =IF($B77="","",'DK1'!O238+'DK1'!AL238) -> 0 | P77: =IF($B77="","",'DK1'!P238+'DK1'!AM238) -> 0 | Q77: =IF($B77="","",'DK1'!Q238+'DK1'!AN238) -> 0 | R77: =IF($B77="","",'DK1'!R238+'DK1'!AO238) -> 0 | S77: =IF($B77="","",'DK1'!S238+'DK1'!AP238) -> 0 | T77: =IF($B77="","",'DK1'!T238+'DK1'!AQ238) -> 0 | U77: ---- | V77: 0
B78: =LOOKUP(C78,Grunddaten!$C$66:$C$189,Grunddaten!$D$66:$D$189) -> Betrieb | C78: 11 | D78: ---- | E78: =IF($B78="","",'DK1'!E239+'DK1'!AB239) -> 0 | F78: =IF($B78="","",'DK1'!F239+'DK1'!AC239) -> 0 | G78: =IF($B78="","",'DK1'!G239+'DK1'!AD239) -> 0 | H78: =IF($B78="","",'DK1'!H239+'DK1'!AE239) -> 0 | I78: =IF($B78="","",'DK1'!I239+'DK1'!AF239) -> 0 | J78: =IF($B78="","",'DK1'!J239+'DK1'!AG239) -> 0 | K78: =IF($B78="","",'DK1'!K239+'DK1'!AH239) -> 0 | L78: =IF($B78="","",'DK1'!L239+'DK1'!AI239) -> 0 | M78: =IF($B78="","",'DK1'!M239+'DK1'!AJ239) -> 0 | N78: =IF($B78="","",'DK1'!N239+'DK1'!AK239) -> 0 | O78: =IF($B78="","",'DK1'!O239+'DK1'!AL239) -> 0 | P78: =IF($B78="","",'DK1'!P239+'DK1'!AM239) -> 0 | Q78: =IF($B78="","",'DK1'!Q239+'DK1'!AN239) -> 0 | R78: =IF($B78="","",'DK1'!R239+'DK1'!AO239) -> 0 | S78: =IF($B78="","",'DK1'!S239+'DK1'!AP239) -> 0 | T78: =IF($B78="","",'DK1'!T239+'DK1'!AQ239) -> 0 | U78: ---- | V78: 0
B79: =LOOKUP(C79,Grunddaten!$C$66:$C$189,Grunddaten!$D$66:$D$189) -> Betrieb | C79: 12 | D79: ---- | E79: =IF($B79="","",'DK1'!E240+'DK1'!AB240) -> 0 | F79: =IF($B79="","",'DK1'!F240+'DK1'!AC240) -> 0 | G79: =IF($B79="","",'DK1'!G240+'DK1'!AD240) -> 0 | H79: =IF($B79="","",'DK1'!H240+'DK1'!AE240) -> 0 | I79: =IF($B79="","",'DK1'!I240+'DK1'!AF240) -> 0 | J79: =IF($B79="","",'DK1'!J240+'DK1'!AG240) -> 0 | K79: =IF($B79="","",'DK1'!K240+'DK1'!AH240) -> 0 | L79: =IF($B79="","",'DK1'!L240+'DK1'!AI240) -> 0 | M79: =IF($B79="","",'DK1'!M240+'DK1'!AJ240) -> 0 | N79: =IF($B79="","",'DK1'!N240+'DK1'!AK240) -> 0 | O79: =IF($B79="","",'DK1'!O240+'DK1'!AL240) -> 0 | P79: =IF($B79="","",'DK1'!P240+'DK1'!AM240) -> 0 | Q79: =IF($B79="","",'DK1'!Q240+'DK1'!AN240) -> 0 | R79: =IF($B79="","",'DK1'!R240+'DK1'!AO240) -> 0 | S79: =IF($B79="","",'DK1'!S240+'DK1'!AP240) -> 0 | T79: =IF($B79="","",'DK1'!T240+'DK1'!AQ240) -> 0 | U79: ---- | V79: 0
B80: =LOOKUP(C80,Grunddaten!$C$66:$C$189,Grunddaten!$D$66:$D$189) -> Betrieb | C80: 13 | D80: ---- | E80: =IF($B80="","",'DK1'!E241+'DK1'!AB241) -> 0 | F80: =IF($B80="","",'DK1'!F241+'DK1'!AC241) -> 0 | G80: =IF($B80="","",'DK1'!G241+'DK1'!AD241) -> 0 | H80: =IF($B80="","",'DK1'!H241+'DK1'!AE241) -> 0 | I80: =IF($B80="","",'DK1'!I241+'DK1'!AF241) -> 0 | J80: =IF($B80="","",'DK1'!J241+'DK1'!AG241) -> 0 | K80: =IF($B80="","",'DK1'!K241+'DK1'!AH241) -> 0 | L80: =IF($B80="","",'DK1'!L241+'DK1'!AI241) -> 0 | M80: =IF($B80="","",'DK1'!M241+'DK1'!AJ241) -> 0 | N80: =IF($B80="","",'DK1'!N241+'DK1'!AK241) -> 0 | O80: =IF($B80="","",'DK1'!O241+'DK1'!AL241) -> 0 | P80: =IF($B80="","",'DK1'!P241+'DK1'!AM241) -> 0 | Q80: =IF($B80="","",'DK1'!Q241+'DK1'!AN241) -> 0 | R80: =IF($B80="","",'DK1'!R241+'DK1'!AO241) -> 0 | S80: =IF($B80="","",'DK1'!S241+'DK1'!AP241) -> 0 | T80: =IF($B80="","",'DK1'!T241+'DK1'!AQ241) -> 0 | U80: ---- | V80: 0
B81: =LOOKUP(C81,Grunddaten!$C$66:$C$189,Grunddaten!$D$66:$D$189) -> Betrieb | C81: 14 | D81: ---- | E81: =IF($B81="","",'DK1'!E242+'DK1'!AB242) -> 0 | F81: =IF($B81="","",'DK1'!F242+'DK1'!AC242) -> 0 | G81: =IF($B81="","",'DK1'!G242+'DK1'!AD242) -> 0 | H81: =IF($B81="","",'DK1'!H242+'DK1'!AE242) -> 0 | I81: =IF($B81="","",'DK1'!I242+'DK1'!AF242) -> 0 | J81: =IF($B81="","",'DK1'!J242+'DK1'!AG242) -> 0 | K81: =IF($B81="","",'DK1'!K242+'DK1'!AH242) -> 0 | L81: =IF($B81="","",'DK1'!L242+'DK1'!AI242) -> 0 | M81: =IF($B81="","",'DK1'!M242+'DK1'!AJ242) -> 0 | N81: =IF($B81="","",'DK1'!N242+'DK1'!AK242) -> 0 | O81: =IF($B81="","",'DK1'!O242+'DK1'!AL242) -> 0 | P81: =IF($B81="","",'DK1'!P242+'DK1'!AM242) -> 0 | Q81: =IF($B81="","",'DK1'!Q242+'DK1'!AN242) -> 0 | R81: =IF($B81="","",'DK1'!R242+'DK1'!AO242) -> 0 | S81: =IF($B81="","",'DK1'!S242+'DK1'!AP242) -> 0 | T81: =IF($B81="","",'DK1'!T242+'DK1'!AQ242) -> 0 | U81: ---- | V81: 0
B82: =LOOKUP(C82,Grunddaten!$C$66:$C$189,Grunddaten!$D$66:$D$189) -> Betrieb | C82: 15 | D82: ---- | E82: =IF($B82="","",'DK1'!E243+'DK1'!AB243) -> 0 | F82: =IF($B82="","",'DK1'!F243+'DK1'!AC243) -> 0 | G82: =IF($B82="","",'DK1'!G243+'DK1'!AD243) -> 0 | H82: =IF($B82="","",'DK1'!H243+'DK1'!AE243) -> 0 | I82: =IF($B82="","",'DK1'!I243+'DK1'!AF243) -> 0 | J82: =IF($B82="","",'DK1'!J243+'DK1'!AG243) -> 0 | K82: =IF($B82="","",'DK1'!K243+'DK1'!AH243) -> 0 | L82: =IF($B82="","",'DK1'!L243+'DK1'!AI243) -> 0 | M82: =IF($B82="","",'DK1'!M243+'DK1'!AJ243) -> 0 | N82: =IF($B82="","",'DK1'!N243+'DK1'!AK243) -> 0 | O82: =IF($B82="","",'DK1'!O243+'DK1'!AL243) -> 0 | P82: =IF($B82="","",'DK1'!P243+'DK1'!AM243) -> 0 | Q82: =IF($B82="","",'DK1'!Q243+'DK1'!AN243) -> 0 | R82: =IF($B82="","",'DK1'!R243+'DK1'!AO243) -> 0 | S82: =IF($B82="","",'DK1'!S243+'DK1'!AP243) -> 0 | T82: =IF($B82="","",'DK1'!T243+'DK1'!AQ243) -> 0 | U82: ---- | V82: 0
B83: =LOOKUP(C83,Grunddaten!$C$66:$C$189,Grunddaten!$D$66:$D$189) -> Betrieb | C83: 16 | D83: ---- | E83: =IF($B83="","",'DK1'!E244+'DK1'!AB244) -> 0 | F83: =IF($B83="","",'DK1'!F244+'DK1'!AC244) -> 0 | G83: =IF($B83="","",'DK1'!G244+'DK1'!AD244) -> 0 | H83: =IF($B83="","",'DK1'!H244+'DK1'!AE244) -> 0 | I83: =IF($B83="","",'DK1'!I244+'DK1'!AF244) -> 0 | J83: =IF($B83="","",'DK1'!J244+'DK1'!AG244) -> 0 | K83: =IF($B83="","",'DK1'!K244+'DK1'!AH244) -> 0 | L83: =IF($B83="","",'DK1'!L244+'DK1'!AI244) -> 0 | M83: =IF($B83="","",'DK1'!M244+'DK1'!AJ244) -> 0 | N83: =IF($B83="","",'DK1'!N244+'DK1'!AK244) -> 0 | O83: =IF($B83="","",'DK1'!O244+'DK1'!AL244) -> 0 | P83: =IF($B83="","",'DK1'!P244+'DK1'!AM244) -> 0 | Q83: =IF($B83="","",'DK1'!Q244+'DK1'!AN244) -> 0 | R83: =IF($B83="","",'DK1'!R244+'DK1'!AO244) -> 0 | S83: =IF($B83="","",'DK1'!S244+'DK1'!AP244) -> 0 | T83: =IF($B83="","",'DK1'!T244+'DK1'!AQ244) -> 0 | U83: ---- | V83: 0
B84: =LOOKUP(C84,Grunddaten!$C$66:$C$189,Grunddaten!$D$66:$D$189) -> Betrieb | C84: 17 | D84: ---- | E84: =IF($B84="","",'DK1'!E245+'DK1'!AB245) -> 0 | F84: =IF($B84="","",'DK1'!F245+'DK1'!AC245) -> 0 | G84: =IF($B84="","",'DK1'!G245+'DK1'!AD245) -> 0 | H84: =IF($B84="","",'DK1'!H245+'DK1'!AE245) -> 0 | I84: =IF($B84="","",'DK1'!I245+'DK1'!AF245) -> 0 | J84: =IF($B84="","",'DK1'!J245+'DK1'!AG245) -> 0 | K84: =IF($B84="","",'DK1'!K245+'DK1'!AH245) -> 0 | L84: =IF($B84="","",'DK1'!L245+'DK1'!AI245) -> 0 | M84: =IF($B84="","",'DK1'!M245+'DK1'!AJ245) -> 0 | N84: =IF($B84="","",'DK1'!N245+'DK1'!AK245) -> 0 | O84: =IF($B84="","",'DK1'!O245+'DK1'!AL245) -> 0 | P84: =IF($B84="","",'DK1'!P245+'DK1'!AM245) -> 0 | Q84: =IF($B84="","",'DK1'!Q245+'DK1'!AN245) -> 0 | R84: =IF($B84="","",'DK1'!R245+'DK1'!AO245) -> 0 | S84: =IF($B84="","",'DK1'!S245+'DK1'!AP245) -> 0 | T84: =IF($B84="","",'DK1'!T245+'DK1'!AQ245) -> 0 | U84: ---- | V84: 0
B85: =LOOKUP(C85,Grunddaten!$C$66:$C$189,Grunddaten!$D$66:$D$189) -> Betrieb | C85: 18 | D85: ---- | E85: =IF($B85="","",'DK1'!E246+'DK1'!AB246) -> 0 | F85: =IF($B85="","",'DK1'!F246+'DK1'!AC246) -> 0 | G85: =IF($B85="","",'DK1'!G246+'DK1'!AD246) -> 0 | H85: =IF($B85="","",'DK1'!H246+'DK1'!AE246) -> 0 | I85: =IF($B85="","",'DK1'!I246+'DK1'!AF246) -> 0 | J85: =IF($B85="","",'DK1'!J246+'DK1'!AG246) -> 0 | K85: =IF($B85="","",'DK1'!K246+'DK1'!AH246) -> 0 | L85: =IF($B85="","",'DK1'!L246+'DK1'!AI246) -> 0 | M85: =IF($B85="","",'DK1'!M246+'DK1'!AJ246) -> 0 | N85: =IF($B85="","",'DK1'!N246+'DK1'!AK246) -> 0 | O85: =IF($B85="","",'DK1'!O246+'DK1'!AL246) -> 0 | P85: =IF($B85="","",'DK1'!P246+'DK1'!AM246) -> 0 | Q85: =IF($B85="","",'DK1'!Q246+'DK1'!AN246) -> 0 | R85: =IF($B85="","",'DK1'!R246+'DK1'!AO246) -> 0 | S85: =IF($B85="","",'DK1'!S246+'DK1'!AP246) -> 0 | T85: =IF($B85="","",'DK1'!T246+'DK1'!AQ246) -> 0 | U85: ---- | V85: 0
B86: =LOOKUP(C86,Grunddaten!$C$66:$C$189,Grunddaten!$D$66:$D$189) -> Betrieb | C86: 19 | D86: ---- | E86: =IF($B86="","",'DK1'!E247+'DK1'!AB247) -> 0 | F86: =IF($B86="","",'DK1'!F247+'DK1'!AC247) -> 0 | G86: =IF($B86="","",'DK1'!G247+'DK1'!AD247) -> 0 | H86: =IF($B86="","",'DK1'!H247+'DK1'!AE247) -> 0 | I86: =IF($B86="","",'DK1'!I247+'DK1'!AF247) -> 0 | J86: =IF($B86="","",'DK1'!J247+'DK1'!AG247) -> 0 | K86: =IF($B86="","",'DK1'!K247+'DK1'!AH247) -> 0 | L86: =IF($B86="","",'DK1'!L247+'DK1'!AI247) -> 0 | M86: =IF($B86="","",'DK1'!M247+'DK1'!AJ247) -> 0 | N86: =IF($B86="","",'DK1'!N247+'DK1'!AK247) -> 0 | O86: =IF($B86="","",'DK1'!O247+'DK1'!AL247) -> 0 | P86: =IF($B86="","",'DK1'!P247+'DK1'!AM247) -> 0 | Q86: =IF($B86="","",'DK1'!Q247+'DK1'!AN247) -> 0 | R86: =IF($B86="","",'DK1'!R247+'DK1'!AO247) -> 0 | S86: =IF($B86="","",'DK1'!S247+'DK1'!AP247) -> 0 | T86: =IF($B86="","",'DK1'!T247+'DK1'!AQ247) -> 0 | U86: ---- | V86: 0
B87: =LOOKUP(C87,Grunddaten!$C$66:$C$189,Grunddaten!$D$66:$D$189) -> Betrieb | C87: 20 | D87: ---- | E87: =IF($B87="","",'DK1'!E248+'DK1'!AB248) -> 0 | F87: =IF($B87="","",'DK1'!F248+'DK1'!AC248) -> 0 | G87: =IF($B87="","",'DK1'!G248+'DK1'!AD248) -> 0 | H87: =IF($B87="","",'DK1'!H248+'DK1'!AE248) -> 0 | I87: =IF($B87="","",'DK1'!I248+'DK1'!AF248) -> 0 | J87: =IF($B87="","",'DK1'!J248+'DK1'!AG248) -> 0 | K87: =IF($B87="","",'DK1'!K248+'DK1'!AH248) -> 0 | L87: =IF($B87="","",'DK1'!L248+'DK1'!AI248) -> 0 | M87: =IF($B87="","",'DK1'!M248+'DK1'!AJ248) -> 0 | N87: =IF($B87="","",'DK1'!N248+'DK1'!AK248) -> 0 | O87: =IF($B87="","",'DK1'!O248+'DK1'!AL248) -> 0 | P87: =IF($B87="","",'DK1'!P248+'DK1'!AM248) -> 0 | Q87: =IF($B87="","",'DK1'!Q248+'DK1'!AN248) -> 0 | R87: =IF($B87="","",'DK1'!R248+'DK1'!AO248) -> 0 | S87: =IF($B87="","",'DK1'!S248+'DK1'!AP248) -> 0 | T87: =IF($B87="","",'DK1'!T248+'DK1'!AQ248) -> 0 | U87: ---- | V87: 0
B88: =LOOKUP(C88,Grunddaten!$C$66:$C$189,Grunddaten!$D$66:$D$189) -> Betrieb | C88: 21 | D88: ---- | E88: =IF($B88="","",'DK1'!E249+'DK1'!AB249) -> 0 | F88: =IF($B88="","",'DK1'!F249+'DK1'!AC249) -> 0 | G88: =IF($B88="","",'DK1'!G249+'DK1'!AD249) -> 0 | H88: =IF($B88="","",'DK1'!H249+'DK1'!AE249) -> 0 | I88: =IF($B88="","",'DK1'!I249+'DK1'!AF249) -> 0 | J88: =IF($B88="","",'DK1'!J249+'DK1'!AG249) -> 0 | K88: =IF($B88="","",'DK1'!K249+'DK1'!AH249) -> 0 | L88: =IF($B88="","",'DK1'!L249+'DK1'!AI249) -> 0 | M88: =IF($B88="","",'DK1'!M249+'DK1'!AJ249) -> 0 | N88: =IF($B88="","",'DK1'!N249+'DK1'!AK249) -> 0 | O88: =IF($B88="","",'DK1'!O249+'DK1'!AL249) -> 0 | P88: =IF($B88="","",'DK1'!P249+'DK1'!AM249) -> 0 | Q88: =IF($B88="","",'DK1'!Q249+'DK1'!AN249) -> 0 | R88: =IF($B88="","",'DK1'!R249+'DK1'!AO249) -> 0 | S88: =IF($B88="","",'DK1'!S249+'DK1'!AP249) -> 0 | T88: =IF($B88="","",'DK1'!T249+'DK1'!AQ249) -> 0 | U88: ---- | V88: 0
B89: =LOOKUP(C89,Grunddaten!$C$66:$C$189,Grunddaten!$D$66:$D$189) -> Betrieb | C89: 22 | D89: ---- | E89: =IF($B89="","",'DK1'!E250+'DK1'!AB250) -> 0 | F89: =IF($B89="","",'DK1'!F250+'DK1'!AC250) -> 0 | G89: =IF($B89="","",'DK1'!G250+'DK1'!AD250) -> 0 | H89: =IF($B89="","",'DK1'!H250+'DK1'!AE250) -> 0 | I89: =IF($B89="","",'DK1'!I250+'DK1'!AF250) -> 0 | J89: =IF($B89="","",'DK1'!J250+'DK1'!AG250) -> 0 | K89: =IF($B89="","",'DK1'!K250+'DK1'!AH250) -> 0 | L89: =IF($B89="","",'DK1'!L250+'DK1'!AI250) -> 0 | M89: =IF($B89="","",'DK1'!M250+'DK1'!AJ250) -> 0 | N89: =IF($B89="","",'DK1'!N250+'DK1'!AK250) -> 0 | O89: =IF($B89="","",'DK1'!O250+'DK1'!AL250) -> 0 | P89: =IF($B89="","",'DK1'!P250+'DK1'!AM250) -> 0 | Q89: =IF($B89="","",'DK1'!Q250+'DK1'!AN250) -> 0 | R89: =IF($B89="","",'DK1'!R250+'DK1'!AO250) -> 0 | S89: =IF($B89="","",'DK1'!S250+'DK1'!AP250) -> 0 | T89: =IF($B89="","",'DK1'!T250+'DK1'!AQ250) -> 0 | U89: ---- | V89: 0
B90: =LOOKUP(C90,Grunddaten!$C$66:$C$189,Grunddaten!$D$66:$D$189) -> Betrieb | C90: 23 | D90: ---- | E90: =IF($B90="","",'DK1'!E251+'DK1'!AB251) -> 0 | F90: =IF($B90="","",'DK1'!F251+'DK1'!AC251) -> 0 | G90: =IF($B90="","",'DK1'!G251+'DK1'!AD251) -> 0 | H90: =IF($B90="","",'DK1'!H251+'DK1'!AE251) -> 0 | I90: =IF($B90="","",'DK1'!I251+'DK1'!AF251) -> 0 | J90: =IF($B90="","",'DK1'!J251+'DK1'!AG251) -> 0 | K90: =IF($B90="","",'DK1'!K251+'DK1'!AH251) -> 0 | L90: =IF($B90="","",'DK1'!L251+'DK1'!AI251) -> 0 | M90: =IF($B90="","",'DK1'!M251+'DK1'!AJ251) -> 0 | N90: =IF($B90="","",'DK1'!N251+'DK1'!AK251) -> 0 | O90: =IF($B90="","",'DK1'!O251+'DK1'!AL251) -> 0 | P90: =IF($B90="","",'DK1'!P251+'DK1'!AM251) -> 0 | Q90: =IF($B90="","",'DK1'!Q251+'DK1'!AN251) -> 0 | R90: =IF($B90="","",'DK1'!R251+'DK1'!AO251) -> 0 | S90: =IF($B90="","",'DK1'!S251+'DK1'!AP251) -> 0 | T90: =IF($B90="","",'DK1'!T251+'DK1'!AQ251) -> 0 | U90: ---- | V90: 0
B91: =LOOKUP(C91,Grunddaten!$C$66:$C$189,Grunddaten!$D$66:$D$189) -> Betrieb | C91: 24 | D91: ---- | E91: =IF($B91="","",'DK1'!E252+'DK1'!AB252) -> 0 | F91: =IF($B91="","",'DK1'!F252+'DK1'!AC252) -> 0 | G91: =IF($B91="","",'DK1'!G252+'DK1'!AD252) -> 0 | H91: =IF($B91="","",'DK1'!H252+'DK1'!AE252) -> 0 | I91: =IF($B91="","",'DK1'!I252+'DK1'!AF252) -> 0 | J91: =IF($B91="","",'DK1'!J252+'DK1'!AG252) -> 0 | K91: =IF($B91="","",'DK1'!K252+'DK1'!AH252) -> 0 | L91: =IF($B91="","",'DK1'!L252+'DK1'!AI252) -> 0 | M91: =IF($B91="","",'DK1'!M252+'DK1'!AJ252) -> 0 | N91: =IF($B91="","",'DK1'!N252+'DK1'!AK252) -> 0 | O91: =IF($B91="","",'DK1'!O252+'DK1'!AL252) -> 0 | P91: =IF($B91="","",'DK1'!P252+'DK1'!AM252) -> 0 | Q91: =IF($B91="","",'DK1'!Q252+'DK1'!AN252) -> 0 | R91: =IF($B91="","",'DK1'!R252+'DK1'!AO252) -> 0 | S91: =IF($B91="","",'DK1'!S252+'DK1'!AP252) -> 0 | T91: =IF($B91="","",'DK1'!T252+'DK1'!AQ252) -> 0 | U91: ---- | V91: 0
B92: =LOOKUP(C92,Grunddaten!$C$66:$C$189,Grunddaten!$D$66:$D$189) -> Betrieb | C92: 25 | D92: ---- | E92: =IF($B92="","",'DK1'!E253+'DK1'!AB253) -> 0 | F92: =IF($B92="","",'DK1'!F253+'DK1'!AC253) -> 0 | G92: =IF($B92="","",'DK1'!G253+'DK1'!AD253) -> 0 | H92: =IF($B92="","",'DK1'!H253+'DK1'!AE253) -> 0 | I92: =IF($B92="","",'DK1'!I253+'DK1'!AF253) -> 0 | J92: =IF($B92="","",'DK1'!J253+'DK1'!AG253) -> 0 | K92: =IF($B92="","",'DK1'!K253+'DK1'!AH253) -> 0 | L92: =IF($B92="","",'DK1'!L253+'DK1'!AI253) -> 0 | M92: =IF($B92="","",'DK1'!M253+'DK1'!AJ253) -> 0 | N92: =IF($B92="","",'DK1'!N253+'DK1'!AK253) -> 0 | O92: =IF($B92="","",'DK1'!O253+'DK1'!AL253) -> 0 | P92: =IF($B92="","",'DK1'!P253+'DK1'!AM253) -> 0 | Q92: =IF($B92="","",'DK1'!Q253+'DK1'!AN253) -> 0 | R92: =IF($B92="","",'DK1'!R253+'DK1'!AO253) -> 0 | S92: =IF($B92="","",'DK1'!S253+'DK1'!AP253) -> 0 | T92: =IF($B92="","",'DK1'!T253+'DK1'!AQ253) -> 0 | U92: ---- | V92: 0
B93: =LOOKUP(C93,Grunddaten!$C$66:$C$189,Grunddaten!$D$66:$D$189) -> Betrieb | C93: 26 | D93: ---- | E93: =IF($B93="","",'DK1'!E254+'DK1'!AB254) -> 0 | F93: =IF($B93="","",'DK1'!F254+'DK1'!AC254) -> 0 | G93: =IF($B93="","",'DK1'!G254+'DK1'!AD254) -> 0 | H93: =IF($B93="","",'DK1'!H254+'DK1'!AE254) -> 0 | I93: =IF($B93="","",'DK1'!I254+'DK1'!AF254) -> 0 | J93: =IF($B93="","",'DK1'!J254+'DK1'!AG254) -> 0 | K93: =IF($B93="","",'DK1'!K254+'DK1'!AH254) -> 0 | L93: =IF($B93="","",'DK1'!L254+'DK1'!AI254) -> 0 | M93: =IF($B93="","",'DK1'!M254+'DK1'!AJ254) -> 0 | N93: =IF($B93="","",'DK1'!N254+'DK1'!AK254) -> 0 | O93: =IF($B93="","",'DK1'!O254+'DK1'!AL254) -> 0 | P93: =IF($B93="","",'DK1'!P254+'DK1'!AM254) -> 0 | Q93: =IF($B93="","",'DK1'!Q254+'DK1'!AN254) -> 0 | R93: =IF($B93="","",'DK1'!R254+'DK1'!AO254) -> 0 | S93: =IF($B93="","",'DK1'!S254+'DK1'!AP254) -> 0 | T93: =IF($B93="","",'DK1'!T254+'DK1'!AQ254) -> 0 | U93: ---- | V93: 0
B94: =LOOKUP(C94,Grunddaten!$C$66:$C$189,Grunddaten!$D$66:$D$189) -> Betrieb | C94: 27 | D94: ---- | E94: =IF($B94="","",'DK1'!E255+'DK1'!AB255) -> 0 | F94: =IF($B94="","",'DK1'!F255+'DK1'!AC255) -> 0 | G94: =IF($B94="","",'DK1'!G255+'DK1'!AD255) -> 0 | H94: =IF($B94="","",'DK1'!H255+'DK1'!AE255) -> 0 | I94: =IF($B94="","",'DK1'!I255+'DK1'!AF255) -> 0 | J94: =IF($B94="","",'DK1'!J255+'DK1'!AG255) -> 0 | K94: =IF($B94="","",'DK1'!K255+'DK1'!AH255) -> 0 | L94: =IF($B94="","",'DK1'!L255+'DK1'!AI255) -> 0 | M94: =IF($B94="","",'DK1'!M255+'DK1'!AJ255) -> 0 | N94: =IF($B94="","",'DK1'!N255+'DK1'!AK255) -> 0 | O94: =IF($B94="","",'DK1'!O255+'DK1'!AL255) -> 0 | P94: =IF($B94="","",'DK1'!P255+'DK1'!AM255) -> 0 | Q94: =IF($B94="","",'DK1'!Q255+'DK1'!AN255) -> 0 | R94: =IF($B94="","",'DK1'!R255+'DK1'!AO255) -> 0 | S94: =IF($B94="","",'DK1'!S255+'DK1'!AP255) -> 0 | T94: =IF($B94="","",'DK1'!T255+'DK1'!AQ255) -> 0 | U94: ---- | V94: 0
B95: =LOOKUP(C95,Grunddaten!$C$66:$C$189,Grunddaten!$D$66:$D$189) -> Betrieb | C95: 28 | D95: ---- | E95: =IF($B95="","",'DK1'!E256+'DK1'!AB256) -> 0 | F95: =IF($B95="","",'DK1'!F256+'DK1'!AC256) -> 0 | G95: =IF($B95="","",'DK1'!G256+'DK1'!AD256) -> 0 | H95: =IF($B95="","",'DK1'!H256+'DK1'!AE256) -> 0 | I95: =IF($B95="","",'DK1'!I256+'DK1'!AF256) -> 0 | J95: =IF($B95="","",'DK1'!J256+'DK1'!AG256) -> 0 | K95: =IF($B95="","",'DK1'!K256+'DK1'!AH256) -> 0 | L95: =IF($B95="","",'DK1'!L256+'DK1'!AI256) -> 0 | M95: =IF($B95="","",'DK1'!M256+'DK1'!AJ256) -> 0 | N95: =IF($B95="","",'DK1'!N256+'DK1'!AK256) -> 0 | O95: =IF($B95="","",'DK1'!O256+'DK1'!AL256) -> 0 | P95: =IF($B95="","",'DK1'!P256+'DK1'!AM256) -> 0 | Q95: =IF($B95="","",'DK1'!Q256+'DK1'!AN256) -> 0 | R95: =IF($B95="","",'DK1'!R256+'DK1'!AO256) -> 0 | S95: =IF($B95="","",'DK1'!S256+'DK1'!AP256) -> 0 | T95: =IF($B95="","",'DK1'!T256+'DK1'!AQ256) -> 0 | U95: ---- | V95: 0
B96: =LOOKUP(C96,Grunddaten!$C$66:$C$189,Grunddaten!$D$66:$D$189) -> Betrieb | C96: 29 | D96: ---- | E96: =IF($B96="","",'DK1'!E257+'DK1'!AB257) -> 0 | F96: =IF($B96="","",'DK1'!F257+'DK1'!AC257) -> 0 | G96: =IF($B96="","",'DK1'!G257+'DK1'!AD257) -> 0 | H96: =IF($B96="","",'DK1'!H257+'DK1'!AE257) -> 0 | I96: =IF($B96="","",'DK1'!I257+'DK1'!AF257) -> 0 | J96: =IF($B96="","",'DK1'!J257+'DK1'!AG257) -> 0 | K96: =IF($B96="","",'DK1'!K257+'DK1'!AH257) -> 0 | L96: =IF($B96="","",'DK1'!L257+'DK1'!AI257) -> 0 | M96: =IF($B96="","",'DK1'!M257+'DK1'!AJ257) -> 0 | N96: =IF($B96="","",'DK1'!N257+'DK1'!AK257) -> 0 | O96: =IF($B96="","",'DK1'!O257+'DK1'!AL257) -> 0 | P96: =IF($B96="","",'DK1'!P257+'DK1'!AM257) -> 0 | Q96: =IF($B96="","",'DK1'!Q257+'DK1'!AN257) -> 0 | R96: =IF($B96="","",'DK1'!R257+'DK1'!AO257) -> 0 | S96: =IF($B96="","",'DK1'!S257+'DK1'!AP257) -> 0 | T96: =IF($B96="","",'DK1'!T257+'DK1'!AQ257) -> 0 | U96: ---- | V96: 0
B97: =LOOKUP(C97,Grunddaten!$C$66:$C$189,Grunddaten!$D$66:$D$189) -> Betrieb | C97: 30 | D97: ---- | E97: =IF($B97="","",'DK1'!E258+'DK1'!AB258) -> 0 | F97: =IF($B97="","",'DK1'!F258+'DK1'!AC258) -> 0 | G97: =IF($B97="","",'DK1'!G258+'DK1'!AD258) -> 0 | H97: =IF($B97="","",'DK1'!H258+'DK1'!AE258) -> 0 | I97: =IF($B97="","",'DK1'!I258+'DK1'!AF258) -> 0 | J97: =IF($B97="","",'DK1'!J258+'DK1'!AG258) -> 0 | K97: =IF($B97="","",'DK1'!K258+'DK1'!AH258) -> 0 | L97: =IF($B97="","",'DK1'!L258+'DK1'!AI258) -> 0 | M97: =IF($B97="","",'DK1'!M258+'DK1'!AJ258) -> 0 | N97: =IF($B97="","",'DK1'!N258+'DK1'!AK258) -> 0 | O97: =IF($B97="","",'DK1'!O258+'DK1'!AL258) -> 0 | P97: =IF($B97="","",'DK1'!P258+'DK1'!AM258) -> 0 | Q97: =IF($B97="","",'DK1'!Q258+'DK1'!AN258) -> 0 | R97: =IF($B97="","",'DK1'!R258+'DK1'!AO258) -> 0 | S97: =IF($B97="","",'DK1'!S258+'DK1'!AP258) -> 0 | T97: =IF($B97="","",'DK1'!T258+'DK1'!AQ258) -> 0 | U97: ---- | V97: 0
B98: =LOOKUP(C98,Grunddaten!$C$66:$C$189,Grunddaten!$D$66:$D$189) -> Betrieb | C98: 31 | D98: ---- | E98: =IF($B98="","",'DK1'!E259+'DK1'!AB259) -> 0 | F98: =IF($B98="","",'DK1'!F259+'DK1'!AC259) -> 0 | G98: =IF($B98="","",'DK1'!G259+'DK1'!AD259) -> 0 | H98: =IF($B98="","",'DK1'!H259+'DK1'!AE259) -> 0 | I98: =IF($B98="","",'DK1'!I259+'DK1'!AF259) -> 0 | J98: =IF($B98="","",'DK1'!J259+'DK1'!AG259) -> 0 | K98: =IF($B98="","",'DK1'!K259+'DK1'!AH259) -> 0 | L98: =IF($B98="","",'DK1'!L259+'DK1'!AI259) -> 0 | M98: =IF($B98="","",'DK1'!M259+'DK1'!AJ259) -> 0 | N98: =IF($B98="","",'DK1'!N259+'DK1'!AK259) -> 0 | O98: =IF($B98="","",'DK1'!O259+'DK1'!AL259) -> 0 | P98: =IF($B98="","",'DK1'!P259+'DK1'!AM259) -> 0 | Q98: =IF($B98="","",'DK1'!Q259+'DK1'!AN259) -> 0 | R98: =IF($B98="","",'DK1'!R259+'DK1'!AO259) -> 0 | S98: =IF($B98="","",'DK1'!S259+'DK1'!AP259) -> 0 | T98: =IF($B98="","",'DK1'!T259+'DK1'!AQ259) -> 0 | U98: ---- | V98: 0
B99: =LOOKUP(C99,Grunddaten!$C$66:$C$189,Grunddaten!$D$66:$D$189) -> Betrieb | C99: 32 | D99: ---- | E99: =IF($B99="","",'DK1'!E260+'DK1'!AB260) -> 0 | F99: =IF($B99="","",'DK1'!F260+'DK1'!AC260) -> 0 | G99: =IF($B99="","",'DK1'!G260+'DK1'!AD260) -> 0 | H99: =IF($B99="","",'DK1'!H260+'DK1'!AE260) -> 0 | I99: =IF($B99="","",'DK1'!I260+'DK1'!AF260) -> 0 | J99: =IF($B99="","",'DK1'!J260+'DK1'!AG260) -> 0 | K99: =IF($B99="","",'DK1'!K260+'DK1'!AH260) -> 0 | L99: =IF($B99="","",'DK1'!L260+'DK1'!AI260) -> 0 | M99: =IF($B99="","",'DK1'!M260+'DK1'!AJ260) -> 0 | N99: =IF($B99="","",'DK1'!N260+'DK1'!AK260) -> 0 | O99: =IF($B99="","",'DK1'!O260+'DK1'!AL260) -> 0 | P99: =IF($B99="","",'DK1'!P260+'DK1'!AM260) -> 0 | Q99: =IF($B99="","",'DK1'!Q260+'DK1'!AN260) -> 0 | R99: =IF($B99="","",'DK1'!R260+'DK1'!AO260) -> 0 | S99: =IF($B99="","",'DK1'!S260+'DK1'!AP260) -> 0 | T99: =IF($B99="","",'DK1'!T260+'DK1'!AQ260) -> 0 | U99: ---- | V99: 0
B100: =LOOKUP(C100,Grunddaten!$C$66:$C$189,Grunddaten!$D$66:$D$189) -> Betrieb | C100: 33 | D100: ---- | E100: =IF($B100="","",'DK1'!E261+'DK1'!AB261) -> 0 | F100: =IF($B100="","",'DK1'!F261+'DK1'!AC261) -> 0 | G100: =IF($B100="","",'DK1'!G261+'DK1'!AD261) -> 0 | H100: =IF($B100="","",'DK1'!H261+'DK1'!AE261) -> 0 | I100: =IF($B100="","",'DK1'!I261+'DK1'!AF261) -> 0 | J100: =IF($B100="","",'DK1'!J261+'DK1'!AG261) -> 0 | K100: =IF($B100="","",'DK1'!K261+'DK1'!AH261) -> 0 | L100: =IF($B100="","",'DK1'!L261+'DK1'!AI261) -> 0 | M100: =IF($B100="","",'DK1'!M261+'DK1'!AJ261) -> 0 | N100: =IF($B100="","",'DK1'!N261+'DK1'!AK261) -> 0 | O100: =IF($B100="","",'DK1'!O261+'DK1'!AL261) -> 0 | P100: =IF($B100="","",'DK1'!P261+'DK1'!AM261) -> 0 | Q100: =IF($B100="","",'DK1'!Q261+'DK1'!AN261) -> 0 | R100: =IF($B100="","",'DK1'!R261+'DK1'!AO261) -> 0 | S100: =IF($B100="","",'DK1'!S261+'DK1'!AP261) -> 0 | T100: =IF($B100="","",'DK1'!T261+'DK1'!AQ261) -> 0 | U100: ---- | V100: 0
B101: =LOOKUP(C101,Grunddaten!$C$66:$C$189,Grunddaten!$D$66:$D$189) -> Betrieb | C101: =C100+1 -> 34 | D101: ---- | E101: =IF($B101="","",'DK1'!E262+'DK1'!AB262) -> 0 | F101: =IF($B101="","",'DK1'!F262+'DK1'!AC262) -> 0 | G101: =IF($B101="","",'DK1'!G262+'DK1'!AD262) -> 0 | H101: =IF($B101="","",'DK1'!H262+'DK1'!AE262) -> 0 | I101: =IF($B101="","",'DK1'!I262+'DK1'!AF262) -> 0 | J101: =IF($B101="","",'DK1'!J262+'DK1'!AG262) -> 0 | K101: =IF($B101="","",'DK1'!K262+'DK1'!AH262) -> 0 | L101: =IF($B101="","",'DK1'!L262+'DK1'!AI262) -> 0 | M101: =IF($B101="","",'DK1'!M262+'DK1'!AJ262) -> 0 | N101: =IF($B101="","",'DK1'!N262+'DK1'!AK262) -> 0 | O101: =IF($B101="","",'DK1'!O262+'DK1'!AL262) -> 0 | P101: =IF($B101="","",'DK1'!P262+'DK1'!AM262) -> 0 | Q101: =IF($B101="","",'DK1'!Q262+'DK1'!AN262) -> 0 | R101: =IF($B101="","",'DK1'!R262+'DK1'!AO262) -> 0 | S101: =IF($B101="","",'DK1'!S262+'DK1'!AP262) -> 0 | T101: =IF($B101="","",'DK1'!T262+'DK1'!AQ262) -> 0 | U101: ---- | V101: 0
B102: =LOOKUP(C102,Grunddaten!$C$66:$C$189,Grunddaten!$D$66:$D$189) -> Betrieb | C102: 35 | D102: ---- | E102: =IF($B102="","",'DK1'!E263+'DK1'!AB263) -> 0 | F102: =IF($B102="","",'DK1'!F263+'DK1'!AC263) -> 0 | G102: =IF($B102="","",'DK1'!G263+'DK1'!AD263) -> 0 | H102: =IF($B102="","",'DK1'!H263+'DK1'!AE263) -> 0 | I102: =IF($B102="","",'DK1'!I263+'DK1'!AF263) -> 0 | J102: =IF($B102="","",'DK1'!J263+'DK1'!AG263) -> 0 | K102: =IF($B102="","",'DK1'!K263+'DK1'!AH263) -> 0 | L102: =IF($B102="","",'DK1'!L263+'DK1'!AI263) -> 0 | M102: =IF($B102="","",'DK1'!M263+'DK1'!AJ263) -> 0 | N102: =IF($B102="","",'DK1'!N263+'DK1'!AK263) -> 0 | O102: =IF($B102="","",'DK1'!O263+'DK1'!AL263) -> 0 | P102: =IF($B102="","",'DK1'!P263+'DK1'!AM263) -> 0 | Q102: =IF($B102="","",'DK1'!Q263+'DK1'!AN263) -> 0 | R102: =IF($B102="","",'DK1'!R263+'DK1'!AO263) -> 0 | S102: =IF($B102="","",'DK1'!S263+'DK1'!AP263) -> 0 | T102: =IF($B102="","",'DK1'!T263+'DK1'!AQ263) -> 0 | U102: ---- | V102: 0
B103: =LOOKUP(C103,Grunddaten!$C$66:$C$189,Grunddaten!$D$66:$D$189) -> Betrieb | C103: 36 | D103: ---- | E103: =IF($B103="","",'DK1'!E264+'DK1'!AB264) -> 0 | F103: =IF($B103="","",'DK1'!F264+'DK1'!AC264) -> 0 | G103: =IF($B103="","",'DK1'!G264+'DK1'!AD264) -> 0 | H103: =IF($B103="","",'DK1'!H264+'DK1'!AE264) -> 0 | I103: =IF($B103="","",'DK1'!I264+'DK1'!AF264) -> 0 | J103: =IF($B103="","",'DK1'!J264+'DK1'!AG264) -> 0 | K103: =IF($B103="","",'DK1'!K264+'DK1'!AH264) -> 0 | L103: =IF($B103="","",'DK1'!L264+'DK1'!AI264) -> 0 | M103: =IF($B103="","",'DK1'!M264+'DK1'!AJ264) -> 0 | N103: =IF($B103="","",'DK1'!N264+'DK1'!AK264) -> 0 | O103: =IF($B103="","",'DK1'!O264+'DK1'!AL264) -> 0 | P103: =IF($B103="","",'DK1'!P264+'DK1'!AM264) -> 0 | Q103: =IF($B103="","",'DK1'!Q264+'DK1'!AN264) -> 0 | R103: =IF($B103="","",'DK1'!R264+'DK1'!AO264) -> 0 | S103: =IF($B103="","",'DK1'!S264+'DK1'!AP264) -> 0 | T103: =IF($B103="","",'DK1'!T264+'DK1'!AQ264) -> 0 | U103: ---- | V103: 0
B104: =LOOKUP(C104,Grunddaten!$C$66:$C$189,Grunddaten!$D$66:$D$189) -> Betrieb | C104: 37 | D104: ---- | E104: =IF($B104="","",'DK1'!E265+'DK1'!AB265) -> 0 | F104: =IF($B104="","",'DK1'!F265+'DK1'!AC265) -> 0 | G104: =IF($B104="","",'DK1'!G265+'DK1'!AD265) -> 0 | H104: =IF($B104="","",'DK1'!H265+'DK1'!AE265) -> 0 | I104: =IF($B104="","",'DK1'!I265+'DK1'!AF265) -> 0 | J104: =IF($B104="","",'DK1'!J265+'DK1'!AG265) -> 0 | K104: =IF($B104="","",'DK1'!K265+'DK1'!AH265) -> 0 | L104: =IF($B104="","",'DK1'!L265+'DK1'!AI265) -> 0 | M104: =IF($B104="","",'DK1'!M265+'DK1'!AJ265) -> 0 | N104: =IF($B104="","",'DK1'!N265+'DK1'!AK265) -> 0 | O104: =IF($B104="","",'DK1'!O265+'DK1'!AL265) -> 0 | P104: =IF($B104="","",'DK1'!P265+'DK1'!AM265) -> 0 | Q104: =IF($B104="","",'DK1'!Q265+'DK1'!AN265) -> 0 | R104: =IF($B104="","",'DK1'!R265+'DK1'!AO265) -> 0 | S104: =IF($B104="","",'DK1'!S265+'DK1'!AP265) -> 0 | T104: =IF($B104="","",'DK1'!T265+'DK1'!AQ265) -> 0 | U104: ---- | V104: 0
B105: =LOOKUP(C105,Grunddaten!$C$66:$C$189,Grunddaten!$D$66:$D$189) -> Betrieb | C105: 38 | D105: ---- | E105: =IF($B105="","",'DK1'!E266+'DK1'!AB266) -> 0 | F105: =IF($B105="","",'DK1'!F266+'DK1'!AC266) -> 0 | G105: =IF($B105="","",'DK1'!G266+'DK1'!AD266) -> 0 | H105: =IF($B105="","",'DK1'!H266+'DK1'!AE266) -> 0 | I105: =IF($B105="","",'DK1'!I266+'DK1'!AF266) -> 0 | J105: =IF($B105="","",'DK1'!J266+'DK1'!AG266) -> 0 | K105: =IF($B105="","",'DK1'!K266+'DK1'!AH266) -> 0 | L105: =IF($B105="","",'DK1'!L266+'DK1'!AI266) -> 0 | M105: =IF($B105="","",'DK1'!M266+'DK1'!AJ266) -> 0 | N105: =IF($B105="","",'DK1'!N266+'DK1'!AK266) -> 0 | O105: =IF($B105="","",'DK1'!O266+'DK1'!AL266) -> 0 | P105: =IF($B105="","",'DK1'!P266+'DK1'!AM266) -> 0 | Q105: =IF($B105="","",'DK1'!Q266+'DK1'!AN266) -> 0 | R105: =IF($B105="","",'DK1'!R266+'DK1'!AO266) -> 0 | S105: =IF($B105="","",'DK1'!S266+'DK1'!AP266) -> 0 | T105: =IF($B105="","",'DK1'!T266+'DK1'!AQ266) -> 0 | U105: ---- | V105: 0
B106: =LOOKUP(C106,Grunddaten!$C$66:$C$189,Grunddaten!$D$66:$D$189) -> Betrieb | C106: 39 | D106: ---- | E106: =IF($B106="","",'DK1'!E267+'DK1'!AB267) -> 0 | F106: =IF($B106="","",'DK1'!F267+'DK1'!AC267) -> 0 | G106: =IF($B106="","",'DK1'!G267+'DK1'!AD267) -> 0 | H106: =IF($B106="","",'DK1'!H267+'DK1'!AE267) -> 0 | I106: =IF($B106="","",'DK1'!I267+'DK1'!AF267) -> 0 | J106: =IF($B106="","",'DK1'!J267+'DK1'!AG267) -> 0 | K106: =IF($B106="","",'DK1'!K267+'DK1'!AH267) -> 0 | L106: =IF($B106="","",'DK1'!L267+'DK1'!AI267) -> 0 | M106: =IF($B106="","",'DK1'!M267+'DK1'!AJ267) -> 0 | N106: =IF($B106="","",'DK1'!N267+'DK1'!AK267) -> 0 | O106: =IF($B106="","",'DK1'!O267+'DK1'!AL267) -> 0 | P106: =IF($B106="","",'DK1'!P267+'DK1'!AM267) -> 0 | Q106: =IF($B106="","",'DK1'!Q267+'DK1'!AN267) -> 0 | R106: =IF($B106="","",'DK1'!R267+'DK1'!AO267) -> 0 | S106: =IF($B106="","",'DK1'!S267+'DK1'!AP267) -> 0 | T106: =IF($B106="","",'DK1'!T267+'DK1'!AQ267) -> 0 | U106: ---- | V106: 0
B107: =LOOKUP(C107,Grunddaten!$C$66:$C$189,Grunddaten!$D$66:$D$189) ->  | C107: 40 | D107: ---- | E107: =IF($B107="","",'DK1'!E268+'DK1'!AB268) ->  | F107: =IF($B107="","",'DK1'!F268+'DK1'!AC268) ->  | G107: =IF($B107="","",'DK1'!G268+'DK1'!AD268) ->  | H107: =IF($B107="","",'DK1'!H268+'DK1'!AE268) ->  | I107: =IF($B107="","",'DK1'!I268+'DK1'!AF268) ->  | J107: =IF($B107="","",'DK1'!J268+'DK1'!AG268) ->  | K107: =IF($B107="","",'DK1'!K268+'DK1'!AH268) ->  | L107: =IF($B107="","",'DK1'!L268+'DK1'!AI268) ->  | M107: =IF($B107="","",'DK1'!M268+'DK1'!AJ268) ->  | N107: =IF($B107="","",'DK1'!N268+'DK1'!AK268) ->  | O107: =IF($B107="","",'DK1'!O268+'DK1'!AL268) ->  | P107: =IF($B107="","",'DK1'!P268+'DK1'!AM268) ->  | Q107: =IF($B107="","",'DK1'!Q268+'DK1'!AN268) ->  | R107: =IF($B107="","",'DK1'!R268+'DK1'!AO268) ->  | S107: =IF($B107="","",'DK1'!S268+'DK1'!AP268) ->  | T107: =IF($B107="","",'DK1'!T268+'DK1'!AQ268) ->  | U107: ---- | V107: 0
B108: =LOOKUP(C108,Grunddaten!$C$66:$C$189,Grunddaten!$D$66:$D$189) ->  | C108: 41 | D108: ---- | E108: =IF($B108="","",'DK1'!E269+'DK1'!AB269) ->  | F108: =IF($B108="","",'DK1'!F269+'DK1'!AC269) ->  | G108: =IF($B108="","",'DK1'!G269+'DK1'!AD269) ->  | H108: =IF($B108="","",'DK1'!H269+'DK1'!AE269) ->  | I108: =IF($B108="","",'DK1'!I269+'DK1'!AF269) ->  | J108: =IF($B108="","",'DK1'!J269+'DK1'!AG269) ->  | K108: =IF($B108="","",'DK1'!K269+'DK1'!AH269) ->  | L108: =IF($B108="","",'DK1'!L269+'DK1'!AI269) ->  | M108: =IF($B108="","",'DK1'!M269+'DK1'!AJ269) ->  | N108: =IF($B108="","",'DK1'!N269+'DK1'!AK269) ->  | O108: =IF($B108="","",'DK1'!O269+'DK1'!AL269) ->  | P108: =IF($B108="","",'DK1'!P269+'DK1'!AM269) ->  | Q108: =IF($B108="","",'DK1'!Q269+'DK1'!AN269) ->  | R108: =IF($B108="","",'DK1'!R269+'DK1'!AO269) ->  | S108: =IF($B108="","",'DK1'!S269+'DK1'!AP269) ->  | T108: =IF($B108="","",'DK1'!T269+'DK1'!AQ269) ->  | U108: ---- | V108: 0
B109: =LOOKUP(C109,Grunddaten!$C$66:$C$189,Grunddaten!$D$66:$D$189) ->  | C109: 42 | D109: ---- | E109: =IF($B109="","",'DK1'!E270+'DK1'!AB270) ->  | F109: =IF($B109="","",'DK1'!F270+'DK1'!AC270) ->  | G109: =IF($B109="","",'DK1'!G270+'DK1'!AD270) ->  | H109: =IF($B109="","",'DK1'!H270+'DK1'!AE270) ->  | I109: =IF($B109="","",'DK1'!I270+'DK1'!AF270) ->  | J109: =IF($B109="","",'DK1'!J270+'DK1'!AG270) ->  | K109: =IF($B109="","",'DK1'!K270+'DK1'!AH270) ->  | L109: =IF($B109="","",'DK1'!L270+'DK1'!AI270) ->  | M109: =IF($B109="","",'DK1'!M270+'DK1'!AJ270) ->  | N109: =IF($B109="","",'DK1'!N270+'DK1'!AK270) ->  | O109: =IF($B109="","",'DK1'!O270+'DK1'!AL270) ->  | P109: =IF($B109="","",'DK1'!P270+'DK1'!AM270) ->  | Q109: =IF($B109="","",'DK1'!Q270+'DK1'!AN270) ->  | R109: =IF($B109="","",'DK1'!R270+'DK1'!AO270) ->  | S109: =IF($B109="","",'DK1'!S270+'DK1'!AP270) ->  | T109: =IF($B109="","",'DK1'!T270+'DK1'!AQ270) ->  | U109: ---- | V109: 0
B110: =LOOKUP(C110,Grunddaten!$C$66:$C$189,Grunddaten!$D$66:$D$189) ->  | C110: 43 | D110: ---- | E110: =IF($B110="","",'DK1'!E271+'DK1'!AB271) ->  | F110: =IF($B110="","",'DK1'!F271+'DK1'!AC271) ->  | G110: =IF($B110="","",'DK1'!G271+'DK1'!AD271) ->  | H110: =IF($B110="","",'DK1'!H271+'DK1'!AE271) ->  | I110: =IF($B110="","",'DK1'!I271+'DK1'!AF271) ->  | J110: =IF($B110="","",'DK1'!J271+'DK1'!AG271) ->  | K110: =IF($B110="","",'DK1'!K271+'DK1'!AH271) ->  | L110: =IF($B110="","",'DK1'!L271+'DK1'!AI271) ->  | M110: =IF($B110="","",'DK1'!M271+'DK1'!AJ271) ->  | N110: =IF($B110="","",'DK1'!N271+'DK1'!AK271) ->  | O110: =IF($B110="","",'DK1'!O271+'DK1'!AL271) ->  | P110: =IF($B110="","",'DK1'!P271+'DK1'!AM271) ->  | Q110: =IF($B110="","",'DK1'!Q271+'DK1'!AN271) ->  | R110: =IF($B110="","",'DK1'!R271+'DK1'!AO271) ->  | S110: =IF($B110="","",'DK1'!S271+'DK1'!AP271) ->  | T110: =IF($B110="","",'DK1'!T271+'DK1'!AQ271) ->  | U110: ---- | V110: 0
B111: =LOOKUP(C111,Grunddaten!$C$66:$C$189,Grunddaten!$D$66:$D$189) ->  | C111: 44 | D111: ---- | E111: =IF($B111="","",'DK1'!E272+'DK1'!AB272) ->  | F111: =IF($B111="","",'DK1'!F272+'DK1'!AC272) ->  | G111: =IF($B111="","",'DK1'!G272+'DK1'!AD272) ->  | H111: =IF($B111="","",'DK1'!H272+'DK1'!AE272) ->  | I111: =IF($B111="","",'DK1'!I272+'DK1'!AF272) ->  | J111: =IF($B111="","",'DK1'!J272+'DK1'!AG272) ->  | K111: =IF($B111="","",'DK1'!K272+'DK1'!AH272) ->  | L111: =IF($B111="","",'DK1'!L272+'DK1'!AI272) ->  | M111: =IF($B111="","",'DK1'!M272+'DK1'!AJ272) ->  | N111: =IF($B111="","",'DK1'!N272+'DK1'!AK272) ->  | O111: =IF($B111="","",'DK1'!O272+'DK1'!AL272) ->  | P111: =IF($B111="","",'DK1'!P272+'DK1'!AM272) ->  | Q111: =IF($B111="","",'DK1'!Q272+'DK1'!AN272) ->  | R111: =IF($B111="","",'DK1'!R272+'DK1'!AO272) ->  | S111: =IF($B111="","",'DK1'!S272+'DK1'!AP272) ->  | T111: =IF($B111="","",'DK1'!T272+'DK1'!AQ272) ->  | U111: ---- | V111: 0
B112: =LOOKUP(C112,Grunddaten!$C$66:$C$189,Grunddaten!$D$66:$D$189) ->  | C112: 45 | D112: ---- | E112: =IF($B112="","",'DK1'!E273+'DK1'!AB273) ->  | F112: =IF($B112="","",'DK1'!F273+'DK1'!AC273) ->  | G112: =IF($B112="","",'DK1'!G273+'DK1'!AD273) ->  | H112: =IF($B112="","",'DK1'!H273+'DK1'!AE273) ->  | I112: =IF($B112="","",'DK1'!I273+'DK1'!AF273) ->  | J112: =IF($B112="","",'DK1'!J273+'DK1'!AG273) ->  | K112: =IF($B112="","",'DK1'!K273+'DK1'!AH273) ->  | L112: =IF($B112="","",'DK1'!L273+'DK1'!AI273) ->  | M112: =IF($B112="","",'DK1'!M273+'DK1'!AJ273) ->  | N112: =IF($B112="","",'DK1'!N273+'DK1'!AK273) ->  | O112: =IF($B112="","",'DK1'!O273+'DK1'!AL273) ->  | P112: =IF($B112="","",'DK1'!P273+'DK1'!AM273) ->  | Q112: =IF($B112="","",'DK1'!Q273+'DK1'!AN273) ->  | R112: =IF($B112="","",'DK1'!R273+'DK1'!AO273) ->  | S112: =IF($B112="","",'DK1'!S273+'DK1'!AP273) ->  | T112: =IF($B112="","",'DK1'!T273+'DK1'!AQ273) ->  | U112: ---- | V112: 0
B113: =LOOKUP(C113,Grunddaten!$C$66:$C$189,Grunddaten!$D$66:$D$189) ->  | C113: 46 | D113: ---- | E113: =IF($B113="","",'DK1'!E274+'DK1'!AB274) ->  | F113: =IF($B113="","",'DK1'!F274+'DK1'!AC274) ->  | G113: =IF($B113="","",'DK1'!G274+'DK1'!AD274) ->  | H113: =IF($B113="","",'DK1'!H274+'DK1'!AE274) ->  | I113: =IF($B113="","",'DK1'!I274+'DK1'!AF274) ->  | J113: =IF($B113="","",'DK1'!J274+'DK1'!AG274) ->  | K113: =IF($B113="","",'DK1'!K274+'DK1'!AH274) ->  | L113: =IF($B113="","",'DK1'!L274+'DK1'!AI274) ->  | M113: =IF($B113="","",'DK1'!M274+'DK1'!AJ274) ->  | N113: =IF($B113="","",'DK1'!N274+'DK1'!AK274) ->  | O113: =IF($B113="","",'DK1'!O274+'DK1'!AL274) ->  | P113: =IF($B113="","",'DK1'!P274+'DK1'!AM274) ->  | Q113: =IF($B113="","",'DK1'!Q274+'DK1'!AN274) ->  | R113: =IF($B113="","",'DK1'!R274+'DK1'!AO274) ->  | S113: =IF($B113="","",'DK1'!S274+'DK1'!AP274) ->  | T113: =IF($B113="","",'DK1'!T274+'DK1'!AQ274) ->  | U113: ---- | V113: 0
B114: =LOOKUP(C114,Grunddaten!$C$66:$C$189,Grunddaten!$D$66:$D$189) ->  | C114: 47 | D114: ---- | E114: =IF($B114="","",'DK1'!E275+'DK1'!AB275) ->  | F114: =IF($B114="","",'DK1'!F275+'DK1'!AC275) ->  | G114: =IF($B114="","",'DK1'!G275+'DK1'!AD275) ->  | H114: =IF($B114="","",'DK1'!H275+'DK1'!AE275) ->  | I114: =IF($B114="","",'DK1'!I275+'DK1'!AF275) ->  | J114: =IF($B114="","",'DK1'!J275+'DK1'!AG275) ->  | K114: =IF($B114="","",'DK1'!K275+'DK1'!AH275) ->  | L114: =IF($B114="","",'DK1'!L275+'DK1'!AI275) ->  | M114: =IF($B114="","",'DK1'!M275+'DK1'!AJ275) ->  | N114: =IF($B114="","",'DK1'!N275+'DK1'!AK275) ->  | O114: =IF($B114="","",'DK1'!O275+'DK1'!AL275) ->  | P114: =IF($B114="","",'DK1'!P275+'DK1'!AM275) ->  | Q114: =IF($B114="","",'DK1'!Q275+'DK1'!AN275) ->  | R114: =IF($B114="","",'DK1'!R275+'DK1'!AO275) ->  | S114: =IF($B114="","",'DK1'!S275+'DK1'!AP275) ->  | T114: =IF($B114="","",'DK1'!T275+'DK1'!AQ275) ->  | U114: ---- | V114: 0
B115: =LOOKUP(C115,Grunddaten!$C$66:$C$189,Grunddaten!$D$66:$D$189) ->  | C115: 48 | D115: ---- | E115: =IF($B115="","",'DK1'!E276+'DK1'!AB276) ->  | F115: =IF($B115="","",'DK1'!F276+'DK1'!AC276) ->  | G115: =IF($B115="","",'DK1'!G276+'DK1'!AD276) ->  | H115: =IF($B115="","",'DK1'!H276+'DK1'!AE276) ->  | I115: =IF($B115="","",'DK1'!I276+'DK1'!AF276) ->  | J115: =IF($B115="","",'DK1'!J276+'DK1'!AG276) ->  | K115: =IF($B115="","",'DK1'!K276+'DK1'!AH276) ->  | L115: =IF($B115="","",'DK1'!L276+'DK1'!AI276) ->  | M115: =IF($B115="","",'DK1'!M276+'DK1'!AJ276) ->  | N115: =IF($B115="","",'DK1'!N276+'DK1'!AK276) ->  | O115: =IF($B115="","",'DK1'!O276+'DK1'!AL276) ->  | P115: =IF($B115="","",'DK1'!P276+'DK1'!AM276) ->  | Q115: =IF($B115="","",'DK1'!Q276+'DK1'!AN276) ->  | R115: =IF($B115="","",'DK1'!R276+'DK1'!AO276) ->  | S115: =IF($B115="","",'DK1'!S276+'DK1'!AP276) ->  | T115: =IF($B115="","",'DK1'!T276+'DK1'!AQ276) ->  | U115: ---- | V115: 0
B116: =LOOKUP(C116,Grunddaten!$C$66:$C$189,Grunddaten!$D$66:$D$189) ->  | C116: 49 | D116: ---- | E116: =IF($B116="","",'DK1'!E277+'DK1'!AB277) ->  | F116: =IF($B116="","",'DK1'!F277+'DK1'!AC277) ->  | G116: =IF($B116="","",'DK1'!G277+'DK1'!AD277) ->  | H116: =IF($B116="","",'DK1'!H277+'DK1'!AE277) ->  | I116: =IF($B116="","",'DK1'!I277+'DK1'!AF277) ->  | J116: =IF($B116="","",'DK1'!J277+'DK1'!AG277) ->  | K116: =IF($B116="","",'DK1'!K277+'DK1'!AH277) ->  | L116: =IF($B116="","",'DK1'!L277+'DK1'!AI277) ->  | M116: =IF($B116="","",'DK1'!M277+'DK1'!AJ277) ->  | N116: =IF($B116="","",'DK1'!N277+'DK1'!AK277) ->  | O116: =IF($B116="","",'DK1'!O277+'DK1'!AL277) ->  | P116: =IF($B116="","",'DK1'!P277+'DK1'!AM277) ->  | Q116: =IF($B116="","",'DK1'!Q277+'DK1'!AN277) ->  | R116: =IF($B116="","",'DK1'!R277+'DK1'!AO277) ->  | S116: =IF($B116="","",'DK1'!S277+'DK1'!AP277) ->  | T116: =IF($B116="","",'DK1'!T277+'DK1'!AQ277) ->  | U116: ---- | V116: 0
B117: =LOOKUP(C117,Grunddaten!$C$66:$C$189,Grunddaten!$D$66:$D$189) ->  | C117: 50 | D117: ---- | E117: =IF($B117="","",'DK1'!E278+'DK1'!AB278) ->  | F117: =IF($B117="","",'DK1'!F278+'DK1'!AC278) ->  | G117: =IF($B117="","",'DK1'!G278+'DK1'!AD278) ->  | H117: =IF($B117="","",'DK1'!H278+'DK1'!AE278) ->  | I117: =IF($B117="","",'DK1'!I278+'DK1'!AF278) ->  | J117: =IF($B117="","",'DK1'!J278+'DK1'!AG278) ->  | K117: =IF($B117="","",'DK1'!K278+'DK1'!AH278) ->  | L117: =IF($B117="","",'DK1'!L278+'DK1'!AI278) ->  | M117: =IF($B117="","",'DK1'!M278+'DK1'!AJ278) ->  | N117: =IF($B117="","",'DK1'!N278+'DK1'!AK278) ->  | O117: =IF($B117="","",'DK1'!O278+'DK1'!AL278) ->  | P117: =IF($B117="","",'DK1'!P278+'DK1'!AM278) ->  | Q117: =IF($B117="","",'DK1'!Q278+'DK1'!AN278) ->  | R117: =IF($B117="","",'DK1'!R278+'DK1'!AO278) ->  | S117: =IF($B117="","",'DK1'!S278+'DK1'!AP278) ->  | T117: =IF($B117="","",'DK1'!T278+'DK1'!AQ278) ->  | U117: ---- | V117: 0
B118: =LOOKUP(C118,Grunddaten!$C$66:$C$189,Grunddaten!$D$66:$D$189) ->  | C118: 51 | D118: ---- | E118: =IF($B118="","",'DK1'!E279+'DK1'!AB279) ->  | F118: =IF($B118="","",'DK1'!F279+'DK1'!AC279) ->  | G118: =IF($B118="","",'DK1'!G279+'DK1'!AD279) ->  | H118: =IF($B118="","",'DK1'!H279+'DK1'!AE279) ->  | I118: =IF($B118="","",'DK1'!I279+'DK1'!AF279) ->  | J118: =IF($B118="","",'DK1'!J279+'DK1'!AG279) ->  | K118: =IF($B118="","",'DK1'!K279+'DK1'!AH279) ->  | L118: =IF($B118="","",'DK1'!L279+'DK1'!AI279) ->  | M118: =IF($B118="","",'DK1'!M279+'DK1'!AJ279) ->  | N118: =IF($B118="","",'DK1'!N279+'DK1'!AK279) ->  | O118: =IF($B118="","",'DK1'!O279+'DK1'!AL279) ->  | P118: =IF($B118="","",'DK1'!P279+'DK1'!AM279) ->  | Q118: =IF($B118="","",'DK1'!Q279+'DK1'!AN279) ->  | R118: =IF($B118="","",'DK1'!R279+'DK1'!AO279) ->  | S118: =IF($B118="","",'DK1'!S279+'DK1'!AP279) ->  | T118: =IF($B118="","",'DK1'!T279+'DK1'!AQ279) ->  | U118: ---- | V118: 0
